Workbook

Sheet 2023-2024
BS1: Data | BT1: Sarbatoare legala
BS2: 2023-11-30 | BT2: Sf Andrei
BS3: 2023-12-01 | BT3: Ziua Nationala
BS4: 2023-12-25 | BT4: Crăciun prima zi
BS5: 2023-12-26 | BT5: Crăciun a doua zi
BS6: 2024-01-01 | BT6: Anul Nou prima zi
BS7: 2024-01-02 | BT7: Anul Nou a doua zi
BC8: parteneri adiacenti | BD8: UR | BP8: parteneri adiacenti | BQ8: UR | BS8: 2024-01-24 | BT8: Ziua Unirii Principatelor României
A9: EVIDENȚA LIMITĂRILOR ȘI/SAU ÎNTRERUPERILOR PLANIFICATE ȘI NEPLANIFICATE pentru anul gazier 2023 - 2024 / RECORD OF THE PLANNED AND UNPLANNED LIMITATIONS AND/OR INTERRUPTIONS related to the gas year 2023 - 2024 | AR9: Lucrari neprogramate | BB9: NU6 | BC9: =SUBTOTAL(9,AS:AS) -> 68 | BD9: =SUBTOTAL(9,AV:AV) -> 1565 | BF9: Lucrari programate | BO9: NU5 | BP9: =SUBTOTAL(9,BG:BG) -> 1 | BQ9: =SUBTOTAL(9,BJ:BJ) -> 12 | BS9: 2024-05-01 | BT9: Ziua muncii
AR10: Partener adiacent | AU10: UR | BB10: NUafectati | BC10: =SUBTOTAL(9,AT:AT) -> 68 | BD10: =SUBTOTAL(9,AW:AW) -> 1565 | BF10: Partener adiacent | BI10: UR | BO10: NUafectati | BP10: =SUBTOTAL(9,BH:BH) -> 1 | BQ10: =SUBTOTAL(9,BK:BK) -> 12 | BS10: 2024-05-03 | BT10: Vinerea Mare
A11: Nr. crt. / Item No. | B11: Tip limitare/întrerupere / Type of limitation/interruption | D11: Denumire lucrare/motiv limitare și/sau întrerupere / Name of the works/reason for the limitation and/or interruption | E11: Locația limitării/întreruperii / Location of the limitation/interruption | L11: Punct de ieșire/intrare afectat / Affected exit/entry point | T11: Cod punct relevant / Code of the relevant point | U11: UR/operator de sistem adiacent afectat / Affected network user/adjacent system operator | W11: Perioada planificată de execuție a lucrării / Planned period for the execution of the works | X11: Data și ora limitării/întreruperii / Date and hour of the limitation/interruption | Z11: Data și ora reluării prestării serviciului / Date and hour the service supply is resumed | AB11: Exploatarea Teritorială / Regional Office | AC11: Observații / Comments | AD11: Justificarea modificării perioadei planificate de execuție a lucrări | AE11: Data și ora efectivă de limitare/întrerupere | AG11: Data și ora efectivă de reluare a prestării serviciului | AI11: Data și ora informării UR | AK11: Data și ora informării partenerului adiacent | AM11: Foaia de manevră | AN11: A fost afectat producătorul (în cazul PM) sau consumatorul final (în cazul SM)? (DA/NU) | AO11: Observatii | AP11: Program bugetat | AR11: Numar de ore de la producerea intreruperii / limitarii pana la anuntarea partenerului adiacent (trebuie sa fie mai mic decat 6) | AS11: NU6 | AT11: NUafectati | AU11: Numar de ore de la producerea intreruperii / limitarii pana la anuntarea UR (trebuie sa fie mai mic decat 6) | AV11: NU6 | AW11: NUafectati | AX11: Durata intreruperii / limitarii [ore] (daca este mai mare de 24, trebuie sa fie completata celula aferenta de pe coloana AZ) | AY11: NU24 | AZ11: Nuafectati | BA11: Partener adiacent informat din 12 in 12 ore, daca durata mai mare de 24h (DA/NU) | BB11: NU6 | BC11: =BC9+BD9 -> 1633 | BD11: IP51 | BF11: Numar de zile lucratoare de anuntare partener adiacent pana la limitare / intrerupere (trebuie sa fie mai mare de 5) | BG11: NU5 | BH11: NUafectati | BI11: Numar de zile de anuntare UR pana la limitare / intrerupere (trebuie sa fie mai mare de 5) | BJ11: NU5 | BK11: NUafectati | BL11: Numar ore intre data anuntata si cea efectiva de reluare (trebuie sa fie mai mic sau egal cu 0) | BM11: NUreluate | BN11: NUafectati | BO11: NU5 | BP11: =BP9+BQ9 -> 13 | BQ11: IP61 | BS11: 2024-05-06 | BT11: A doua zi de Paste Ortodox
E12: Siruta / Siruta code | F12: Localitate / Locality | G12: Județ / County | H12: Coordonate GPS început / GPS coordinates-beginning | J12: Coordonate GPS sfârșit / GPS coordinates-end | L12: Puncte de ieșire din SNT / NTS exit points | P12: Puncte de intrare în SNT / NTS entry points | BB12: NUafectati | BC12: =BC10+BD10 -> 1633 | BD12: =IF(BC12=0,1,BC11/BC12) -> 1 | BO12: NUafectati | BP12: =BP10+BQ10 -> 13 | BQ12: =IF(BP12=0,1,BP11/BP12) -> 1 | BS12: 2024-06-24 | BT12: A doua zi de Rusalii
B13: neplanificată / unplanned | C13: planificată / planned | L13: Limitare / Limitation | N13: Întrerupere / Interruption | P13: Limitare / Limitation | R13: Întrerupere / Interruption | X13: Data / Date | Y13: Ora / Hour | Z13: Data / Date | AA13: Ora / Hour | AE13: Data | AF13: Ora | AG13: Data | AH13: Ora | AI13: Data | AJ13: Ora | AK13: Data | AL13: Ora | BB13: NU24 | BC13: =SUBTOTAL(9,AY:AY) -> 7 | BD13: IP52 | BO13: NUreluare | BP13: =SUBTOTAL(9,BM:BM) -> 13 | BQ13: IP62 | BS13: 2024-08-15 | BT13: Adormirea Maicii Domnului
H14: X1 | I14: Y1 | J14: X2 | K14: Y2 | L14: Cod / Code | M14: Denumire / Name | N14: Cod / Code | O14: Denumire / Name | P14: Cod / Code | Q14: Denumire / Name | R14: Cod / Code | S14: Denumire / Name | U14: UR / Network user | V14: Operator de sistem adiacent / Adjacent system operator | BB14: NUafectati | BC14: =SUBTOTAL(9,AZ:AZ) -> 7 | BD14: =IF(BC14=0,1,BC13/BC14) -> 1 | BO14: NUafectati | BP14: =SUBTOTAL(9,BN:BN) -> 13 | BQ14: =IF(BP14=0,1,BP13/BP14) -> 1
A15: 0 | B15: 1 | C15: 2 | D15: 3 | E15: 4 | F15: 5 | G15: 6 | H15: 7 | I15: 8 | J15: 9 | K15: 10 | L15: 11 | M15: 12 | N15: 13 | O15: 14 | P15: 15 | Q15: 16 | R15: 17 | S15: 18 | T15: 19 | U15: 20 | V15: 21 | W15: 22 | X15: 23 | Y15: 24 | Z15: 25 | AA15: 26 | AB15: 27 | AC15: 28 | AD15: 29 | AE15: 30 | AF15: 31 | AG15: 32 | AH15: 33 | AI15: 34 | AJ15: 35 | AK15: 36 | AL15: 37 | AM15: 38 | AN15: 39 | AO15: 40 | AP15: 41
A16: 1 | B16: - | C16: x | D16: Reabilitare conductă DN700 Bățani - Onești, Etapa 1- pregătirea conductei pentru transformarea în conductă godevilabilă | E16: 86197 | F16: Tușnad | G16: Harghita | H16: 566491.57 | I16: 515633.51 | J16: 566491.57 | K16: 515633.51 | L16: - | M16: - | N16: SM0397D0 | O16: Tușnad | P16: - | Q16: - | R16: - | S16: - | T16: SM-SD001 | V16: Delgaz Grid | W16: iunie - septembrie 2024 anul gazier 2024 - 2025 | AB16: Brașov | AD16: Dificultăți în obținerea autorizației de construcție. | AP16: PLRRM 2024-2026 Anexa1_II_B1 | AR16: =IF(B16="X",IF(AN16="","Afectat sau NU?",IF(AN16="DA",IF(((AK16+AL16)-(AE16+AF16))*24<-720,"Neinformat",((AK16+AL16)-(AE16+AF16))*24),"Nu a fost afectat producator/consumator")),"") ->  | AS16: =IF(B16="X",IF(AN16="DA",IF(AR16<6,LEN(TRIM(V16))-LEN(SUBSTITUTE(V16,CHAR(44),""))+1,0),"-"),"") ->  | AT16: =IF(B16="X",IF(AN16="DA",LEN(TRIM(V16))-LEN(SUBSTITUTE(V16,CHAR(44),""))+1,"-"),"") ->  | AU16: =IF(B16="X",IF(AN16="","Afectat sau NU?",IF(AN16="DA",IF(((AI16+AJ16)-(AE16+AF16))*24<-720,"Neinformat",((AI16+AJ16)-(AE16+AF16))*24),"Nu a fost afectat producator/consumator")),"") ->  | AV16: =IF(B16="X",IF(AN16="DA",IF(AU16<6,LEN(TRIM(U16))-LEN(SUBSTITUTE(U16,CHAR(44),""))+1,0),"-"),"") ->  | AW16: =IF(B16="X",IF(AN16="DA",LEN(TRIM(U16))-LEN(SUBSTITUTE(U16,CHAR(44),""))+1,"-"),"") ->  | AX16: =IF(B16="X",IF(AN16="","Afectat sau NU?",IF(AN16="DA",((AG16+AH16)-(AE16+AF16))*24,"Nu a fost afectat producator/consumator")),"") ->  | AY16: =IF(B16="X",IF(AN16="DA",IF(AX16>24,IF(BA16="NU",0,LEN(TRIM(V16))-LEN(SUBSTITUTE(V16,CHAR(44),""))+1),0),"-"),"") ->  | AZ16: =IF(B16="X",IF(AN16="DA",IF(AX16>24,LEN(TRIM(V16))-LEN(SUBSTITUTE(V16,CHAR(44),""))+1,0),"-"),"") ->  | BF16: =IF(C16="X",IF(AN16="","Afectat sau NU?",IF(AN16="DA",IF(AK16="","Neinformat",NETWORKDAYS(AK16+AL16,AE16+AF16,$BS$2:$BS$14)-2),"Nu a fost afectat producator/consumator")),"") -> Afectat sau NU? | BG16: =IF(C16="X",IF(AN16="DA",IF(AND(BF16>=5,AK16<>""),LEN(TRIM(V16))-LEN(SUBSTITUTE(V16,CHAR(44),""))+1,0),"-"),"") -> - | BH16: =IF(C16="X",IF(AN16="DA",LEN(TRIM(V16))-LEN(SUBSTITUTE(V16,CHAR(44),""))+1,"-"),"") -> - | BI16: =IF(C16="X",IF(AN16="","Afectat sau NU?",IF(AN16="DA",IF(AI16="","Neinformat",NETWORKDAYS(AI16+AJ16,AE16+AF16,$BS$2:$BS$14)-2),"Nu a fost afectat producator/consumator")),"") -> Afectat sau NU? | BJ16: =IF(C16="X",IF(AN16="DA",IF(AND(BI16>=5,AI16<>""),LEN(TRIM(U16))-LEN(SUBSTITUTE(U16,CHAR(44),""))+1,0),"-"),"") -> - | BK16: =IF(C16="X",IF(AN16="DA",LEN(TRIM(U16))-LEN(SUBSTITUTE(U16,CHAR(44),""))+1,"-"),"") -> - | BL16: =IF(C16="X",IF(AN16="","Afectat sau NU?",IF(AN16="DA",((AG16+AH16)-(Z16+AA16))*24,"Nu a fost afectat producator/consumator")),"") -> Afectat sau NU? | BM16: =IF(C16="X",IF(AN16<>"DA","-",IF(AND(AN16="DA",BL16<=0),LEN(TRIM(V16))-LEN(SUBSTITUTE(V16,CHAR(44),""))+1+LEN(TRIM(U16))-LEN(SUBSTITUTE(U16,CHAR(44),""))+1,0)),"") -> - | BN16: =IF(C16="X",IF(AN16="DA",LEN(TRIM(V16))-LEN(SUBSTITUTE(V16,CHAR(44),""))+1+LEN(TRIM(U16))-LEN(SUBSTITUTE(U16,CHAR(44),""))+1,"-"),"") -> -
A17: 2 | B17: - | C17: x | D17: Reabilitare conductă DN700 Bățani - Onești, Etapa 1- pregătirea conductei pentru transformarea în conductă godevilabilă | E17: 64880 | F17: Turia | G17: Covasna | H17: 574240.05 | I17: 512562.4 | J17: 574240.05 | K17: 512562.4 | L17: - | M17: - | N17: SM0398D0 | O17: SC Prod Dărăguș Turia Balvanyos | P17: - | Q17: - | R17: - | S17: - | T17: SM-CF001 | V17: Dărăguș SRL | W17: iunie - septembrie 2024 anul gazier 2024 - 2025 | AB17: Brașov | AD17: Dificultăți în obținerea autorizației de construcție. | AP17: PLRRM 2024-2026 Anexa1_II_B1 | BF17: Afectat sau NU? | BG17: - | BH17: - | BI17: Afectat sau NU? | BJ17: - | BK17: - | BL17: Afectat sau NU? | BM17: - | BN17: -
A18: =A17+1 -> 3 | B18: - | C18: x | D18: Reabilitare conductă DN700 Bățani - Onești, Etapa 1- pregătirea conductei pentru transformarea în conductă godevilabilă | E18: 64470 | F18: Lemnia | G18: Covasna | H18: 597464.45 | I18: 506826.16 | J18: 597464.45 | K18: 506826.16 | L18: - | M18: - | N18: SM0407D0 | O18: Lemnia | P18: - | Q18: - | R18: - | S18: - | T18: SM-SD001 | V18: Distrigaz Sud Rețele | W18: iunie - septembrie 2024 anul gazier 2024 - 2025 | AB18: Brașov | AD18: Dificultăți în obținerea autorizației de construcție. | AP18: PLRRM 2024-2026 Anexa1_II_B1 | BF18: Afectat sau NU? | BG18: - | BH18: - | BI18: Afectat sau NU? | BJ18: - | BK18: - | BL18: Afectat sau NU? | BM18: - | BN18: -
A19: =A18+1 -> 4 | B19: - | C19: x | D19: Reabilitare conductă DN700 Bățani - Onești, Etapa 1- pregătirea conductei pentru transformarea în conductă godevilabilă | E19: 23804 | F19: Oituz | G19: Bacău | H19: 622831.62 | I19: 524130.32 | J19: 622831.62 | K19: 524130.32 | L19: - | M19: - | N19: SM0386D0 | O19: Oituz | P19: - | Q19: - | R19: - | S19: - | T19: SM-SD001 | V19: Delgaz Grid | W19: iunie - septembrie 2024 anul gazier 2024 - 2025 | AB19: Bacău | AD19: Dificultăți în obținerea autorizației de construcție. | AP19: PLRRM 2024-2026 Anexa1_II_B1 | BF19: Afectat sau NU? | BG19: - | BH19: - | BI19: Afectat sau NU? | BJ19: - | BK19: - | BL19: Afectat sau NU? | BM19: - | BN19: -
A20: 5 | B20: - | C20: x | D20: Reabilitare conductă DN700 Bățani - Onești, Etapa 1- pregătirea conductei pentru transformarea în conductă godevilabilă | E20: 23804 | F20: Oituz | G20: Bacău | H20: 623001.97 | I20: 524169.25 | J20: 623001.97 | K20: 524169.25 | L20: - | M20: - | N20: SM0387D0 | O20: SC Pa&Co Internațional Oituz | P20: - | Q20: - | R20: - | S20: - | T20: SM-CF001 | V20: Pa&Co International | W20: iunie - septembrie 2024 anul gazier 2024 - 2025 | AB20: Bacău | AD20: Dificultăți în obținerea autorizației de construcție. | AP20: PLRRM 2024-2026 Anexa1_II_B1 | BF20: Afectat sau NU? | BG20: - | BH20: - | BI20: Afectat sau NU? | BJ20: - | BK20: - | BL20: Afectat sau NU? | BM20: - | BN20: -
A21: 6 | B21: - | C21: x | D21: Reabilitare conductă DN700 Bățani - Onești, Etapa 1- pregătirea conductei pentru transformarea în conductă godevilabilă | E21: 23804 | F21: Oituz | G21: Bacău | H21: 624041.5 | I21: 524592.28 | J21: 624041.5 | K21: 524592.28 | L21: - | M21: - | N21: SM0909D0 | O21: Pa&Co Internațional Oituz locuință | P21: - | Q21: - | R21: - | S21: - | T21: SM-CF001 | V21: Pa&Co International | W21: iunie - septembrie 2024 anul gazier 2024 - 2025 | AB21: Bacău | AD21: Dificultăți în obținerea autorizației de construcție. | AP21: PLRRM 2024-2026 Anexa1_II_B1 | BF21: Afectat sau NU? | BG21: - | BH21: - | BI21: Afectat sau NU? | BJ21: - | BK21: - | BL21: Afectat sau NU? | BM21: - | BN21: -
A22: 7 | B22: - | C22: x | D22: Reabilitare conductă DN700 Bățani - Onești, Etapa 1- pregătirea conductei pentru transformarea în conductă godevilabilă | E22: 22585 | F22: Filipești | G22: Bacău | H22: 632633.77 | I22: 526820.44 | J22: 632633.77 | K22: 526820.44 | L22: - | M22: - | N22: SM0128D0 | O22: SC Fabrica de pâine Șerban Filipești | P22: - | Q22: - | R22: - | S22: - | T22: SM-CF001 | V22: Fabrica de pâine Șerban | W22: iunie - septembrie 2024 anul gazier 2024 - 2025 | AB22: Bacău | AD22: Dificultăți în obținerea autorizației de construcție. | AP22: PLRRM 2024-2026 Anexa1_II_B1 | BF22: Afectat sau NU? | BG22: - | BH22: - | BI22: Afectat sau NU? | BJ22: - | BK22: - | BL22: Afectat sau NU? | BM22: - | BN22: -
A23: 8 | B23: - | C23: x | D23: Pregătire conductă DN 500 Munteni - Bârlad pentru transformare în conductă godevilabilă | E23: 166538 | F23: Tutova | G23: Vaslui | H23: 697349.73 | I23: 516890.65 | J23: 697349.73 | K23: 516890.65 | L23: - | M23: - | N23: SM1151D0 | O23: Tutova | P23: - | Q23: - | R23: - | S23: - | T23: SM-SD001 | V23: Gaz Est | W23: iulie - septembrie 2024 anul gazier 2024 - 2025 | AB23: Brăila | AD23: Dificultăți în obținerea autorizației de construcție. | AP23: PLRRM 2024-2026 Anexa1_II_B3 | AR23: =IF(B23="X",IF(AN23="","Afectat sau NU?",IF(AN23="DA",IF(((AK23+AL23)-(AE23+AF23))*24<-720,"Neinformat",((AK23+AL23)-(AE23+AF23))*24),"Nu a fost afectat producator/consumator")),"") ->  | AS23: =IF(B23="X",IF(AN23="DA",IF(AR23<6,LEN(TRIM(V23))-LEN(SUBSTITUTE(V23,CHAR(44),""))+1,0),"-"),"") ->  | AT23: =IF(B23="X",IF(AN23="DA",LEN(TRIM(V23))-LEN(SUBSTITUTE(V23,CHAR(44),""))+1,"-"),"") ->  | AU23: =IF(B23="X",IF(AN23="","Afectat sau NU?",IF(AN23="DA",IF(((AI23+AJ23)-(AE23+AF23))*24<-720,"Neinformat",((AI23+AJ23)-(AE23+AF23))*24),"Nu a fost afectat producator/consumator")),"") ->  | AV23: =IF(B23="X",IF(AN23="DA",IF(AU23<6,LEN(TRIM(U23))-LEN(SUBSTITUTE(U23,CHAR(44),""))+1,0),"-"),"") ->  | AW23: =IF(B23="X",IF(AN23="DA",LEN(TRIM(U23))-LEN(SUBSTITUTE(U23,CHAR(44),""))+1,"-"),"") ->  | AX23: =IF(B23="X",IF(AN23="","Afectat sau NU?",IF(AN23="DA",((AG23+AH23)-(AE23+AF23))*24,"Nu a fost afectat producator/consumator")),"") ->  | AY23: =IF(B23="X",IF(AN23="DA",IF(AX23>24,IF(BA23="NU",0,LEN(TRIM(V23))-LEN(SUBSTITUTE(V23,CHAR(44),""))+1),0),"-"),"") ->  | AZ23: =IF(B23="X",IF(AN23="DA",IF(AX23>24,LEN(TRIM(V23))-LEN(SUBSTITUTE(V23,CHAR(44),""))+1,0),"-"),"") ->  | BF23: Afectat sau NU? | BG23: =IF(C23="X",IF(AN23="DA",IF(AND(BF23>=5,AK23<>""),LEN(TRIM(V23))-LEN(SUBSTITUTE(V23,CHAR(44),""))+1,0),"-"),"") -> - | BH23: =IF(C23="X",IF(AN23="DA",LEN(TRIM(V23))-LEN(SUBSTITUTE(V23,CHAR(44),""))+1,"-"),"") -> - | BI23: Afectat sau NU? | BJ23: =IF(C23="X",IF(AN23="DA",IF(AND(BI23>=5,AI23<>""),LEN(TRIM(U23))-LEN(SUBSTITUTE(U23,CHAR(44),""))+1,0),"-"),"") -> - | BK23: =IF(C23="X",IF(AN23="DA",LEN(TRIM(U23))-LEN(SUBSTITUTE(U23,CHAR(44),""))+1,"-"),"") -> - | BL23: =IF(C23="X",IF(AN23="","Afectat sau NU?",IF(AN23="DA",((AG23+AH23)-(Z23+AA23))*24,"Nu a fost afectat producator/consumator")),"") -> Afectat sau NU? | BM23: =IF(C23="X",IF(AN23<>"DA","-",IF(AND(AN23="DA",BL23<=0),LEN(TRIM(V23))-LEN(SUBSTITUTE(V23,CHAR(44),""))+1+LEN(TRIM(U23))-LEN(SUBSTITUTE(U23,CHAR(44),""))+1,0)),"") -> - | BN23: =IF(C23="X",IF(AN23="DA",LEN(TRIM(V23))-LEN(SUBSTITUTE(V23,CHAR(44),""))+1+LEN(TRIM(U23))-LEN(SUBSTITUTE(U23,CHAR(44),""))+1,"-"),"") -> -
A24: 9 | B24: - | C24: x | D24: Pregătire conductă DN 500 Munteni - Bârlad pentru transformare în conductă godevilabilă | E24: 75828 | F24: Buciumeni | G24: Galați | H24: 677419.66 | I24: 506159.21 | J24: 677419.66 | K24: 506159.21 | L24: - | M24: - | N24: SM0515D0 | O24: Buciumeni Mănăstire | P24: - | Q24: - | R24: - | S24: - | T24: SM-SD001 | V24: Distrigaz Sud Rețele | W24: iulie - septembrie 2024 anul gazier 2024 - 2025 | AB24: Brăila | AD24: Dificultăți în obținerea autorizației de construcție. | AP24: PLRRM 2024-2026 Anexa1_II_B3 | AR24: =IF(B24="X",IF(AN24="","Afectat sau NU?",IF(AN24="DA",IF(((AK24+AL24)-(AE24+AF24))*24<-720,"Neinformat",((AK24+AL24)-(AE24+AF24))*24),"Nu a fost afectat producator/consumator")),"") ->  | AS24: =IF(B24="X",IF(AN24="DA",IF(AR24<6,LEN(TRIM(V24))-LEN(SUBSTITUTE(V24,CHAR(44),""))+1,0),"-"),"") ->  | AT24: =IF(B24="X",IF(AN24="DA",LEN(TRIM(V24))-LEN(SUBSTITUTE(V24,CHAR(44),""))+1,"-"),"") ->  | AU24: =IF(B24="X",IF(AN24="","Afectat sau NU?",IF(AN24="DA",IF(((AI24+AJ24)-(AE24+AF24))*24<-720,"Neinformat",((AI24+AJ24)-(AE24+AF24))*24),"Nu a fost afectat producator/consumator")),"") ->  | AV24: =IF(B24="X",IF(AN24="DA",IF(AU24<6,LEN(TRIM(U24))-LEN(SUBSTITUTE(U24,CHAR(44),""))+1,0),"-"),"") ->  | AW24: =IF(B24="X",IF(AN24="DA",LEN(TRIM(U24))-LEN(SUBSTITUTE(U24,CHAR(44),""))+1,"-"),"") ->  | AX24: =IF(B24="X",IF(AN24="","Afectat sau NU?",IF(AN24="DA",((AG24+AH24)-(AE24+AF24))*24,"Nu a fost afectat producator/consumator")),"") ->  | AY24: =IF(B24="X",IF(AN24="DA",IF(AX24>24,IF(BA24="NU",0,LEN(TRIM(V24))-LEN(SUBSTITUTE(V24,CHAR(44),""))+1),0),"-"),"") ->  | AZ24: =IF(B24="X",IF(AN24="DA",IF(AX24>24,LEN(TRIM(V24))-LEN(SUBSTITUTE(V24,CHAR(44),""))+1,0),"-"),"") ->  | BF24: Afectat sau NU? | BG24: =IF(C24="X",IF(AN24="DA",IF(AND(BF24>=5,AK24<>""),LEN(TRIM(V24))-LEN(SUBSTITUTE(V24,CHAR(44),""))+1,0),"-"),"") -> - | BH24: =IF(C24="X",IF(AN24="DA",LEN(TRIM(V24))-LEN(SUBSTITUTE(V24,CHAR(44),""))+1,"-"),"") -> - | BI24: Afectat sau NU? | BJ24: =IF(C24="X",IF(AN24="DA",IF(AND(BI24>=5,AI24<>""),LEN(TRIM(U24))-LEN(SUBSTITUTE(U24,CHAR(44),""))+1,0),"-"),"") -> - | BK24: =IF(C24="X",IF(AN24="DA",LEN(TRIM(U24))-LEN(SUBSTITUTE(U24,CHAR(44),""))+1,"-"),"") -> - | BL24: =IF(C24="X",IF(AN24="","Afectat sau NU?",IF(AN24="DA",((AG24+AH24)-(Z24+AA24))*24,"Nu a fost afectat producator/consumator")),"") -> Afectat sau NU? | BM24: =IF(C24="X",IF(AN24<>"DA","-",IF(AND(AN24="DA",BL24<=0),LEN(TRIM(V24))-LEN(SUBSTITUTE(V24,CHAR(44),""))+1+LEN(TRIM(U24))-LEN(SUBSTITUTE(U24,CHAR(44),""))+1,0)),"") -> - | BN24: =IF(C24="X",IF(AN24="DA",LEN(TRIM(V24))-LEN(SUBSTITUTE(V24,CHAR(44),""))+1+LEN(TRIM(U24))-LEN(SUBSTITUTE(U24,CHAR(44),""))+1,"-"),"") -> -
A25: 10 | B25: - | C25: x | D25: Reabilitare conductă DN 500 Coroi - Ungheni, etapa I - pregătirea conductei pentru transformare în conductă godevilabilă | E25: 117952 | F25: Corunca | G25: Mureș | H25: 470037.27 | I25: 557385.33 | J25: 470037.27 | K25: 557385.33 | L25: - | M25: - | N25: - | O25: - | P25: - | Q25: - | R25: PM0177 | S25: Mureș SU P9 | T25: PM-PP001 | V25: Romgaz | W25: iunie - septembrie 2024 anul gazier 2024 - 2025 | AB25: Mediaș | AD25: Dificultăți în obținerea autorizației de construcție. | AP25: PLRRM 2024-2026 Anexa1_II_B7 | BF25: Afectat sau NU? | BG25: - | BH25: - | BI25: Afectat sau NU? | BJ25: - | BK25: - | BL25: Afectat sau NU? | BM25: - | BN25: -
A26: 11 | B26: - | C26: x | D26: Reabilitare conductă DN 500 Coroi - Ungheni, etapa I - pregătirea conductei pentru transformare în conductă godevilabilă | E26: 116199 | F26: Coroi | G26: Mureș | H26: 470200.08 | I26: 545077.49 | J26: 470200.08 | K26: 545077.49 | L26: - | M26: - | N26: SM0689D0 | O26: Coroi | P26: - | Q26: - | R26: - | S26: - | T26: SM-SD001 | V26: Delgaz Grid | W26: iunie - septembrie 2024 anul gazier 2024 - 2025 | AB26: Mediaș | AD26: Dificultăți în obținerea autorizației de construcție. | AP26: PLRRM 2024-2026 Anexa1_II_B7 | BF26: Afectat sau NU? | BG26: - | BH26: - | BI26: Afectat sau NU? | BJ26: - | BK26: - | BL26: Afectat sau NU? | BM26: - | BN26: -
A27: 12 | B27: - | C27: x | D27: Pregătire conductă de transport gaze naturale DN 700 Seleuș - Cristur - Bățani în vederea transformării în conductă godevilabilă - etapa 2B (jud. Harghita) | E27: 85591 | F27: Secuieni HG | G27: Harghita | H27: 498017.44 | I27: 528594.77 | J27: 498017.44 | K27: 528594.77 | L27: - | M27: - | N27: SM0374D0 | O27: Secuieni I HG | P27: - | Q27: - | R27: - | S27: - | T27: SM-SD001 | V27: Hargaz | W27: aprilie - septembrie 2024 anul gazier 2024 - 2025 | AB27: Brașov | AD27: Perioada de execuție a lucrării, conform contractului, este de 18 luni. | AP27: PLRRM 2024-2026 Anexa1_II_A1 | AR27: =IF(B27="X",IF(AN27="","Afectat sau NU?",IF(AN27="DA",IF(((AK27+AL27)-(AE27+AF27))*24<-720,"Neinformat",((AK27+AL27)-(AE27+AF27))*24),"Nu a fost afectat producator/consumator")),"") ->  | AS27: =IF(B27="X",IF(AN27="DA",IF(AR27<6,LEN(TRIM(V27))-LEN(SUBSTITUTE(V27,CHAR(44),""))+1,0),"-"),"") ->  | AT27: =IF(B27="X",IF(AN27="DA",LEN(TRIM(V27))-LEN(SUBSTITUTE(V27,CHAR(44),""))+1,"-"),"") ->  | AU27: =IF(B27="X",IF(AN27="","Afectat sau NU?",IF(AN27="DA",IF(((AI27+AJ27)-(AE27+AF27))*24<-720,"Neinformat",((AI27+AJ27)-(AE27+AF27))*24),"Nu a fost afectat producator/consumator")),"") ->  | AV27: =IF(B27="X",IF(AN27="DA",IF(AU27<6,LEN(TRIM(U27))-LEN(SUBSTITUTE(U27,CHAR(44),""))+1,0),"-"),"") ->  | AW27: =IF(B27="X",IF(AN27="DA",LEN(TRIM(U27))-LEN(SUBSTITUTE(U27,CHAR(44),""))+1,"-"),"") ->  | AX27: =IF(B27="X",IF(AN27="","Afectat sau NU?",IF(AN27="DA",((AG27+AH27)-(AE27+AF27))*24,"Nu a fost afectat producator/consumator")),"") ->  | AY27: =IF(B27="X",IF(AN27="DA",IF(AX27>24,IF(BA27="NU",0,LEN(TRIM(V27))-LEN(SUBSTITUTE(V27,CHAR(44),""))+1),0),"-"),"") ->  | AZ27: =IF(B27="X",IF(AN27="DA",IF(AX27>24,LEN(TRIM(V27))-LEN(SUBSTITUTE(V27,CHAR(44),""))+1,0),"-"),"") ->  | BF27: Afectat sau NU? | BG27: =IF(C27="X",IF(AN27="DA",IF(AND(BF27>=5,AK27<>""),LEN(TRIM(V27))-LEN(SUBSTITUTE(V27,CHAR(44),""))+1,0),"-"),"") -> - | BH27: =IF(C27="X",IF(AN27="DA",LEN(TRIM(V27))-LEN(SUBSTITUTE(V27,CHAR(44),""))+1,"-"),"") -> - | BI27: Afectat sau NU? | BJ27: =IF(C27="X",IF(AN27="DA",IF(AND(BI27>=5,AI27<>""),LEN(TRIM(U27))-LEN(SUBSTITUTE(U27,CHAR(44),""))+1,0),"-"),"") -> - | BK27: =IF(C27="X",IF(AN27="DA",LEN(TRIM(U27))-LEN(SUBSTITUTE(U27,CHAR(44),""))+1,"-"),"") -> - | BL27: =IF(C27="X",IF(AN27="","Afectat sau NU?",IF(AN27="DA",((AG27+AH27)-(Z27+AA27))*24,"Nu a fost afectat producator/consumator")),"") -> Afectat sau NU? | BM27: =IF(C27="X",IF(AN27<>"DA","-",IF(AND(AN27="DA",BL27<=0),LEN(TRIM(V27))-LEN(SUBSTITUTE(V27,CHAR(44),""))+1+LEN(TRIM(U27))-LEN(SUBSTITUTE(U27,CHAR(44),""))+1,0)),"") -> - | BN27: =IF(C27="X",IF(AN27="DA",LEN(TRIM(V27))-LEN(SUBSTITUTE(V27,CHAR(44),""))+1+LEN(TRIM(U27))-LEN(SUBSTITUTE(U27,CHAR(44),""))+1,"-"),"") -> -
A28: 13 | B28: - | C28: x | D28: Pregătire conductă de transport gaze naturale DN 700 Seleuș - Cristur - Bățani în vederea transformării în conductă godevilabilă - etapa 2B (jud. Harghita) | E28: 85591 | F28: Secuieni HG | G28: Harghita | H28: 498017.44 | I28: 528594.77 | J28: 498017.44 | K28: 528594.77 | L28: - | M28: - | N28: SM0374D1 | O28: Secuieni II HG | P28: - | Q28: - | R28: - | S28: - | T28: SM-SD001 | V28: Hargaz | W28: aprilie - septembrie 2024 anul gazier 2024 - 2025 | AB28: Brașov | AD28: Perioada de execuție a lucrării, conform contractului, este de 18 luni. | AP28: PLRRM 2024-2026 Anexa1_II_A1 | AR28: =IF(B28="X",IF(AN28="","Afectat sau NU?",IF(AN28="DA",IF(((AK28+AL28)-(AE28+AF28))*24<-720,"Neinformat",((AK28+AL28)-(AE28+AF28))*24),"Nu a fost afectat producator/consumator")),"") ->  | AS28: =IF(B28="X",IF(AN28="DA",IF(AR28<6,LEN(TRIM(V28))-LEN(SUBSTITUTE(V28,CHAR(44),""))+1,0),"-"),"") ->  | AT28: =IF(B28="X",IF(AN28="DA",LEN(TRIM(V28))-LEN(SUBSTITUTE(V28,CHAR(44),""))+1,"-"),"") ->  | AU28: =IF(B28="X",IF(AN28="","Afectat sau NU?",IF(AN28="DA",IF(((AI28+AJ28)-(AE28+AF28))*24<-720,"Neinformat",((AI28+AJ28)-(AE28+AF28))*24),"Nu a fost afectat producator/consumator")),"") ->  | AV28: =IF(B28="X",IF(AN28="DA",IF(AU28<6,LEN(TRIM(U28))-LEN(SUBSTITUTE(U28,CHAR(44),""))+1,0),"-"),"") ->  | AW28: =IF(B28="X",IF(AN28="DA",LEN(TRIM(U28))-LEN(SUBSTITUTE(U28,CHAR(44),""))+1,"-"),"") ->  | AX28: =IF(B28="X",IF(AN28="","Afectat sau NU?",IF(AN28="DA",((AG28+AH28)-(AE28+AF28))*24,"Nu a fost afectat producator/consumator")),"") ->  | AY28: =IF(B28="X",IF(AN28="DA",IF(AX28>24,IF(BA28="NU",0,LEN(TRIM(V28))-LEN(SUBSTITUTE(V28,CHAR(44),""))+1),0),"-"),"") ->  | AZ28: =IF(B28="X",IF(AN28="DA",IF(AX28>24,LEN(TRIM(V28))-LEN(SUBSTITUTE(V28,CHAR(44),""))+1,0),"-"),"") ->  | BF28: Afectat sau NU? | BG28: =IF(C28="X",IF(AN28="DA",IF(AND(BF28>=5,AK28<>""),LEN(TRIM(V28))-LEN(SUBSTITUTE(V28,CHAR(44),""))+1,0),"-"),"") -> - | BH28: =IF(C28="X",IF(AN28="DA",LEN(TRIM(V28))-LEN(SUBSTITUTE(V28,CHAR(44),""))+1,"-"),"") -> - | BI28: Afectat sau NU? | BJ28: =IF(C28="X",IF(AN28="DA",IF(AND(BI28>=5,AI28<>""),LEN(TRIM(U28))-LEN(SUBSTITUTE(U28,CHAR(44),""))+1,0),"-"),"") -> - | BK28: =IF(C28="X",IF(AN28="DA",LEN(TRIM(U28))-LEN(SUBSTITUTE(U28,CHAR(44),""))+1,"-"),"") -> - | BL28: =IF(C28="X",IF(AN28="","Afectat sau NU?",IF(AN28="DA",((AG28+AH28)-(Z28+AA28))*24,"Nu a fost afectat producator/consumator")),"") -> Afectat sau NU? | BM28: =IF(C28="X",IF(AN28<>"DA","-",IF(AND(AN28="DA",BL28<=0),LEN(TRIM(V28))-LEN(SUBSTITUTE(V28,CHAR(44),""))+1+LEN(TRIM(U28))-LEN(SUBSTITUTE(U28,CHAR(44),""))+1,0)),"") -> - | BN28: =IF(C28="X",IF(AN28="DA",LEN(TRIM(V28))-LEN(SUBSTITUTE(V28,CHAR(44),""))+1+LEN(TRIM(U28))-LEN(SUBSTITUTE(U28,CHAR(44),""))+1,"-"),"") -> -
A29: 14 | B29: - | C29: x | D29: Pregătire conductă de transport gaze naturale DN 700 Seleuș - Cristur - Bățani în vederea transformării în conductă godevilabilă - etapa 2B (jud. Harghita) | E29: 83534 | F29: Cristuru Secuiesc | G29: Harghita | H29: 502768.61 | I29: 530742.38 | J29: 502768.61 | K29: 530742.38 | L29: - | M29: - | N29: SM0373D0 | O29: Cristuru Secuiesc | P29: - | Q29: - | R29: - | S29: - | T29: SM-SD001 | V29: Delgaz Grid | W29: aprilie - septembrie 2024 anul gazier 2024 - 2025 | AB29: Brașov | AD29: Perioada de execuție a lucrării, conform contractului, este de 18 luni. | AP29: PLRRM 2024-2026 Anexa1_II_A1 | AR29: =IF(B29="X",IF(AN29="","Afectat sau NU?",IF(AN29="DA",IF(((AK29+AL29)-(AE29+AF29))*24<-720,"Neinformat",((AK29+AL29)-(AE29+AF29))*24),"Nu a fost afectat producator/consumator")),"") ->  | AS29: =IF(B29="X",IF(AN29="DA",IF(AR29<6,LEN(TRIM(V29))-LEN(SUBSTITUTE(V29,CHAR(44),""))+1,0),"-"),"") ->  | AT29: =IF(B29="X",IF(AN29="DA",LEN(TRIM(V29))-LEN(SUBSTITUTE(V29,CHAR(44),""))+1,"-"),"") ->  | AU29: =IF(B29="X",IF(AN29="","Afectat sau NU?",IF(AN29="DA",IF(((AI29+AJ29)-(AE29+AF29))*24<-720,"Neinformat",((AI29+AJ29)-(AE29+AF29))*24),"Nu a fost afectat producator/consumator")),"") ->  | AV29: =IF(B29="X",IF(AN29="DA",IF(AU29<6,LEN(TRIM(U29))-LEN(SUBSTITUTE(U29,CHAR(44),""))+1,0),"-"),"") ->  | AW29: =IF(B29="X",IF(AN29="DA",LEN(TRIM(U29))-LEN(SUBSTITUTE(U29,CHAR(44),""))+1,"-"),"") ->  | AX29: =IF(B29="X",IF(AN29="","Afectat sau NU?",IF(AN29="DA",((AG29+AH29)-(AE29+AF29))*24,"Nu a fost afectat producator/consumator")),"") ->  | AY29: =IF(B29="X",IF(AN29="DA",IF(AX29>24,IF(BA29="NU",0,LEN(TRIM(V29))-LEN(SUBSTITUTE(V29,CHAR(44),""))+1),0),"-"),"") ->  | AZ29: =IF(B29="X",IF(AN29="DA",IF(AX29>24,LEN(TRIM(V29))-LEN(SUBSTITUTE(V29,CHAR(44),""))+1,0),"-"),"") ->  | BF29: Afectat sau NU? | BG29: =IF(C29="X",IF(AN29="DA",IF(AND(BF29>=5,AK29<>""),LEN(TRIM(V29))-LEN(SUBSTITUTE(V29,CHAR(44),""))+1,0),"-"),"") -> - | BH29: =IF(C29="X",IF(AN29="DA",LEN(TRIM(V29))-LEN(SUBSTITUTE(V29,CHAR(44),""))+1,"-"),"") -> - | BI29: Afectat sau NU? | BJ29: =IF(C29="X",IF(AN29="DA",IF(AND(BI29>=5,AI29<>""),LEN(TRIM(U29))-LEN(SUBSTITUTE(U29,CHAR(44),""))+1,0),"-"),"") -> - | BK29: =IF(C29="X",IF(AN29="DA",LEN(TRIM(U29))-LEN(SUBSTITUTE(U29,CHAR(44),""))+1,"-"),"") -> - | BL29: =IF(C29="X",IF(AN29="","Afectat sau NU?",IF(AN29="DA",((AG29+AH29)-(Z29+AA29))*24,"Nu a fost afectat producator/consumator")),"") -> Afectat sau NU? | BM29: =IF(C29="X",IF(AN29<>"DA","-",IF(AND(AN29="DA",BL29<=0),LEN(TRIM(V29))-LEN(SUBSTITUTE(V29,CHAR(44),""))+1+LEN(TRIM(U29))-LEN(SUBSTITUTE(U29,CHAR(44),""))+1,0)),"") -> - | BN29: =IF(C29="X",IF(AN29="DA",LEN(TRIM(V29))-LEN(SUBSTITUTE(V29,CHAR(44),""))+1+LEN(TRIM(U29))-LEN(SUBSTITUTE(U29,CHAR(44),""))+1,"-"),"") -> -
A30: 15 | B30: - | C30: x | D30: Pregătire conductă de transport gaze naturale DN 700 Seleuș - Cristur - Bățani în vederea transformării în conductă godevilabilă - etapa 2B (jud. Harghita) | E30: 85225 | F30: Porumbenii Mici | G30: Harghita | H30: 508390.27 | I30: 530075.4 | J30: 508390.27 | K30: 530075.4 | L30: - | M30: - | N30: SM0382D0 | O30: Porumbenii Mici | P30: - | Q30: - | R30: - | S30: - | T30: SM-SD001 | V30: Hargaz | W30: aprilie - septembrie 2024 anul gazier 2024 - 2025 | AB30: Brașov | AD30: Perioada de execuție a lucrării, conform contractului, este de 18 luni. | AP30: PLRRM 2024-2026 Anexa1_II_A1 | BF30: Afectat sau NU? | BG30: - | BH30: - | BI30: Afectat sau NU? | BJ30: - | BK30: - | BL30: Afectat sau NU? | BM30: - | BN30: -
A31: 16 | B31: - | C31: x | D31: Pregătire conductă de transport gaze naturale DN 700 Seleuș - Cristur - Bățani în vederea transformării în conductă godevilabilă - etapa 2B (jud. Harghita) | E31: 85216 | F31: Porumbenii Mari | G31: Harghita | H31: 510974.58 | I31: 529794.75 | J31: 510974.58 | K31: 529794.75 | L31: - | M31: - | N31: SM0383D0 | O31: Porumbenii Mari | P31: - | Q31: - | R31: - | S31: - | T31: SM-SD001 | V31: Hargaz | W31: aprilie - septembrie 2024 anul gazier 2024 - 2025 | AB31: Brașov | AD31: Perioada de execuție a lucrării, conform contractului, este de 18 luni. | AP31: PLRRM 2024-2026 Anexa1_II_A1 | BF31: Afectat sau NU? | BG31: - | BH31: - | BI31: Afectat sau NU? | BJ31: - | BK31: - | BL31: Afectat sau NU? | BM31: - | BN31: -
A32: 17 | B32: - | C32: x | D32: Pregătire conductă de transport gaze naturale DN 700 Seleuș - Cristur - Bățani în vederea transformării în conductă godevilabilă - etapa 2B (jud. Harghita) | E32: 85190 | F32: Lutița | G32: Harghita | H32: 514498.48 | I32: 528362.57 | J32: 514498.48 | K32: 528362.57 | L32: - | M32: - | N32: SM0384D0 | O32: Lutița | P32: - | Q32: - | R32: - | S32: - | T32: SM-SD001 | V32: Delgaz Grid | W32: aprilie - septembrie 2024 anul gazier 2024 - 2025 | AB32: Brașov | AD32: Perioada de execuție a lucrării, conform contractului, este de 18 luni. | AP32: PLRRM 2024-2026 Anexa1_II_A1 | AR32: =IF(B32="X",IF(AN32="","Afectat sau NU?",IF(AN32="DA",IF(((AK32+AL32)-(AE32+AF32))*24<-720,"Neinformat",((AK32+AL32)-(AE32+AF32))*24),"Nu a fost afectat producator/consumator")),"") ->  | AS32: =IF(B32="X",IF(AN32="DA",IF(AR32<6,LEN(TRIM(V32))-LEN(SUBSTITUTE(V32,CHAR(44),""))+1,0),"-"),"") ->  | AT32: =IF(B32="X",IF(AN32="DA",LEN(TRIM(V32))-LEN(SUBSTITUTE(V32,CHAR(44),""))+1,"-"),"") ->  | AU32: =IF(B32="X",IF(AN32="","Afectat sau NU?",IF(AN32="DA",IF(((AI32+AJ32)-(AE32+AF32))*24<-720,"Neinformat",((AI32+AJ32)-(AE32+AF32))*24),"Nu a fost afectat producator/consumator")),"") ->  | AV32: =IF(B32="X",IF(AN32="DA",IF(AU32<6,LEN(TRIM(U32))-LEN(SUBSTITUTE(U32,CHAR(44),""))+1,0),"-"),"") ->  | AW32: =IF(B32="X",IF(AN32="DA",LEN(TRIM(U32))-LEN(SUBSTITUTE(U32,CHAR(44),""))+1,"-"),"") ->  | AX32: =IF(B32="X",IF(AN32="","Afectat sau NU?",IF(AN32="DA",((AG32+AH32)-(AE32+AF32))*24,"Nu a fost afectat producator/consumator")),"") ->  | AY32: =IF(B32="X",IF(AN32="DA",IF(AX32>24,IF(BA32="NU",0,LEN(TRIM(V32))-LEN(SUBSTITUTE(V32,CHAR(44),""))+1),0),"-"),"") ->  | AZ32: =IF(B32="X",IF(AN32="DA",IF(AX32>24,LEN(TRIM(V32))-LEN(SUBSTITUTE(V32,CHAR(44),""))+1,0),"-"),"") ->  | BF32: Afectat sau NU? | BG32: =IF(C32="X",IF(AN32="DA",IF(AND(BF32>=5,AK32<>""),LEN(TRIM(V32))-LEN(SUBSTITUTE(V32,CHAR(44),""))+1,0),"-"),"") -> - | BH32: =IF(C32="X",IF(AN32="DA",LEN(TRIM(V32))-LEN(SUBSTITUTE(V32,CHAR(44),""))+1,"-"),"") -> - | BI32: Afectat sau NU? | BJ32: =IF(C32="X",IF(AN32="DA",IF(AND(BI32>=5,AI32<>""),LEN(TRIM(U32))-LEN(SUBSTITUTE(U32,CHAR(44),""))+1,0),"-"),"") -> - | BK32: =IF(C32="X",IF(AN32="DA",LEN(TRIM(U32))-LEN(SUBSTITUTE(U32,CHAR(44),""))+1,"-"),"") -> - | BL32: =IF(C32="X",IF(AN32="","Afectat sau NU?",IF(AN32="DA",((AG32+AH32)-(Z32+AA32))*24,"Nu a fost afectat producator/consumator")),"") -> Afectat sau NU? | BM32: =IF(C32="X",IF(AN32<>"DA","-",IF(AND(AN32="DA",BL32<=0),LEN(TRIM(V32))-LEN(SUBSTITUTE(V32,CHAR(44),""))+1+LEN(TRIM(U32))-LEN(SUBSTITUTE(U32,CHAR(44),""))+1,0)),"") -> - | BN32: =IF(C32="X",IF(AN32="DA",LEN(TRIM(V32))-LEN(SUBSTITUTE(V32,CHAR(44),""))+1+LEN(TRIM(U32))-LEN(SUBSTITUTE(U32,CHAR(44),""))+1,"-"),"") -> -
A33: 18 | B33: - | C33: x | D33: Montare gară primire godevil DN600/ANSI400 în NT Recaș | E33: - | F33: Csanadpalota | G33: - | H33: 170687.28 | I33: 531495.46 | J33: 170687.28 | K33: 531495.46 | L33: - | M33: - | N33: SM1281D0 | O33: Csanadpalota Export | P33: - | Q33: - | R33: - | S33: - | T33: SM1281D0 | V33: FGSZ Ltd | W33: iulie - septembrie 2024 se va reprograma, după finalizarea conductei DN800 Recaș - Horia | AB33: Arad | AD33: Datorită contractelor de transport încheiate cu UR-ei, pe punctul de interconectare transfrontalieră Csanadpalota, serviciului de transport nu poate fi întrerupt. Lucrarea va fi reprogramată după finalizarea conductei DN800 Recaș - Horia (BRUA faza2). | AP33: PMDI 2024-2026 Anexa1_B5 | BF33: Afectat sau NU? | BG33: - | BH33: - | BI33: Afectat sau NU? | BJ33: - | BK33: - | BL33: Afectat sau NU? | BM33: - | BN33: -
A34: 19 | B34: - | C34: x | D34: Montare gară primire godevil DN600/ANSI400 în NT Recaș | E34: - | F34: Csanadpalota | G34: - | H34: 170687.28 | I34: 531495.46 | J34: 170687.28 | K34: 531495.46 | L34: - | M34: - | N34: - | O34: - | P34: - | Q34: - | R34: PM0266 | S34: Csanadpalota | T34: PM0266 | V34: FGSZ Ltd | W34: iulie - septembrie 2024 se va reprograma, după finalizarea conductei DN800 Recaș - Horia | AB34: Arad | AD34: Datorită contractelor de transport încheiate cu UR-ei, pe punctul de interconectare transfrontalieră Csanadpalota, serviciului de transport nu poate fi întrerupt. Lucrarea va fi reprogramată după finalizarea conductei DN800 Recaș - Horia (BRUA faza2). | AP34: PMDI 2024-2026 Anexa1_B5 | BF34: Afectat sau NU? | BG34: - | BH34: - | BI34: Afectat sau NU? | BJ34: - | BK34: - | BL34: Afectat sau NU? | BM34: - | BN34: -
A35: 20 | B35: - | C35: x | D35: Montare robinet de reglare în NT Hurezani pe direcția Hurezani-Corbu-București, fir godevilabil | E35: 80515 | F35: Hurezani | G35: Gorj | H35: 394174.23 | I35: 369081.88 | J35: 394174.23 | K35: 369081.88 | L35: - | M35: - | N35: - | O35: - | P35: PM0062 | Q35: Hurezani - Bulbuceni | R35: - | S35: - | T35: PM-PP001 | V35: Petrom | W35: iulie - septembrie 2024 anul gazier 2024 - 2025 | AB35: Craiova | AD35: La prima licitație nu s-a primit nici o ofertă. Se va relua procedura de licitație. | AP35: PMDI 2024-2026 Anexa1_B3 | BF35: Afectat sau NU? | BG35: - | BH35: - | BI35: Afectat sau NU? | BJ35: - | BK35: - | BL35: Afectat sau NU? | BM35: - | BN35: -
A36: 21 | B36: - | C36: x | D36: Adaptare la teren și montare gară de primire GODEVIL DN700 pe conducta de transport gaze naturale DN 700 Inel București | E36: 102053 | F36: Olteni | G36: Ilfov | H36: 577911.69 | I36: 322107.23 | J36: 577911.69 | K36: 322107.23 | L36: - | M36: - | N36: SM1224D0 | O36: Olteni | P36: - | Q36: - | R36: - | S36: - | T36: SM-SD001 | V36: Premier Energy | W36: iulie - septembrie 2024 anul gazier 2024 - 2025 | AB36: București | AD36: Revizuire Proiect Tehnic | AP36: PMDI 2024-2026 Anexa3_A.2.28 | AR36: =IF(B36="X",IF(AN36="","Afectat sau NU?",IF(AN36="DA",IF(((AK36+AL36)-(AE36+AF36))*24<-720,"Neinformat",((AK36+AL36)-(AE36+AF36))*24),"Nu a fost afectat producator/consumator")),"") ->  | AS36: =IF(B36="X",IF(AN36="DA",IF(AR36<6,LEN(TRIM(V36))-LEN(SUBSTITUTE(V36,CHAR(44),""))+1,0),"-"),"") ->  | AT36: =IF(B36="X",IF(AN36="DA",LEN(TRIM(V36))-LEN(SUBSTITUTE(V36,CHAR(44),""))+1,"-"),"") ->  | AU36: =IF(B36="X",IF(AN36="","Afectat sau NU?",IF(AN36="DA",IF(((AI36+AJ36)-(AE36+AF36))*24<-720,"Neinformat",((AI36+AJ36)-(AE36+AF36))*24),"Nu a fost afectat producator/consumator")),"") ->  | AV36: =IF(B36="X",IF(AN36="DA",IF(AU36<6,LEN(TRIM(U36))-LEN(SUBSTITUTE(U36,CHAR(44),""))+1,0),"-"),"") ->  | AW36: =IF(B36="X",IF(AN36="DA",LEN(TRIM(U36))-LEN(SUBSTITUTE(U36,CHAR(44),""))+1,"-"),"") ->  | AX36: =IF(B36="X",IF(AN36="","Afectat sau NU?",IF(AN36="DA",((AG36+AH36)-(AE36+AF36))*24,"Nu a fost afectat producator/consumator")),"") ->  | AY36: =IF(B36="X",IF(AN36="DA",IF(AX36>24,IF(BA36="NU",0,LEN(TRIM(V36))-LEN(SUBSTITUTE(V36,CHAR(44),""))+1),0),"-"),"") ->  | AZ36: =IF(B36="X",IF(AN36="DA",IF(AX36>24,LEN(TRIM(V36))-LEN(SUBSTITUTE(V36,CHAR(44),""))+1,0),"-"),"") ->  | BF36: Afectat sau NU? | BG36: =IF(C36="X",IF(AN36="DA",IF(AND(BF36>=5,AK36<>""),LEN(TRIM(V36))-LEN(SUBSTITUTE(V36,CHAR(44),""))+1,0),"-"),"") -> - | BH36: =IF(C36="X",IF(AN36="DA",LEN(TRIM(V36))-LEN(SUBSTITUTE(V36,CHAR(44),""))+1,"-"),"") -> - | BI36: Afectat sau NU? | BJ36: =IF(C36="X",IF(AN36="DA",IF(AND(BI36>=5,AI36<>""),LEN(TRIM(U36))-LEN(SUBSTITUTE(U36,CHAR(44),""))+1,0),"-"),"") -> - | BK36: =IF(C36="X",IF(AN36="DA",LEN(TRIM(U36))-LEN(SUBSTITUTE(U36,CHAR(44),""))+1,"-"),"") -> - | BL36: =IF(C36="X",IF(AN36="","Afectat sau NU?",IF(AN36="DA",((AG36+AH36)-(Z36+AA36))*24,"Nu a fost afectat producator/consumator")),"") -> Afectat sau NU? | BM36: =IF(C36="X",IF(AN36<>"DA","-",IF(AND(AN36="DA",BL36<=0),LEN(TRIM(V36))-LEN(SUBSTITUTE(V36,CHAR(44),""))+1+LEN(TRIM(U36))-LEN(SUBSTITUTE(U36,CHAR(44),""))+1,0)),"") -> - | BN36: =IF(C36="X",IF(AN36="DA",LEN(TRIM(V36))-LEN(SUBSTITUTE(V36,CHAR(44),""))+1+LEN(TRIM(U36))-LEN(SUBSTITUTE(U36,CHAR(44),""))+1,"-"),"") -> -
A37: 22 | B37: - | C37: x | D37: Punere în siguranță conductă de transport gaze naturale DN800 Butimanu - Brazi, la subtraversare râu Prahova, zona Stăncești, jud. Prahova | E37: 130721 | F37: Brazii de Sus | G37: Prahova | H37: 578964.7 | I37: 376015.84 | J37: 578964.7 | K37: 376015.84 | L37: - | M37: - | N37: SM1248D0 | O37: Cogenerare Brazi | P37: - | Q37: - | R37: - | S37: - | T37: SM-CF001 | V37: Petrom (livrare directă) | W37: martie - aprilie 2024 anul gazier 2024 - 2025 | AB37: București | AD37: A fost necesară încheierea unui contract de supraveghere arheologică. | AP37: PMDI 2024-2026 Anexa3_A.1.8 | AR37: =IF(B37="X",IF(AN37="","Afectat sau NU?",IF(AN37="DA",IF(((AK37+AL37)-(AE37+AF37))*24<-720,"Neinformat",((AK37+AL37)-(AE37+AF37))*24),"Nu a fost afectat producator/consumator")),"") ->  | AS37: =IF(B37="X",IF(AN37="DA",IF(AR37<6,LEN(TRIM(V37))-LEN(SUBSTITUTE(V37,CHAR(44),""))+1,0),"-"),"") ->  | AT37: =IF(B37="X",IF(AN37="DA",LEN(TRIM(V37))-LEN(SUBSTITUTE(V37,CHAR(44),""))+1,"-"),"") ->  | AU37: =IF(B37="X",IF(AN37="","Afectat sau NU?",IF(AN37="DA",IF(((AI37+AJ37)-(AE37+AF37))*24<-720,"Neinformat",((AI37+AJ37)-(AE37+AF37))*24),"Nu a fost afectat producator/consumator")),"") ->  | AV37: =IF(B37="X",IF(AN37="DA",IF(AU37<6,LEN(TRIM(U37))-LEN(SUBSTITUTE(U37,CHAR(44),""))+1,0),"-"),"") ->  | AW37: =IF(B37="X",IF(AN37="DA",LEN(TRIM(U37))-LEN(SUBSTITUTE(U37,CHAR(44),""))+1,"-"),"") ->  | AX37: =IF(B37="X",IF(AN37="","Afectat sau NU?",IF(AN37="DA",((AG37+AH37)-(AE37+AF37))*24,"Nu a fost afectat producator/consumator")),"") ->  | AY37: =IF(B37="X",IF(AN37="DA",IF(AX37>24,IF(BA37="NU",0,LEN(TRIM(V37))-LEN(SUBSTITUTE(V37,CHAR(44),""))+1),0),"-"),"") ->  | AZ37: =IF(B37="X",IF(AN37="DA",IF(AX37>24,LEN(TRIM(V37))-LEN(SUBSTITUTE(V37,CHAR(44),""))+1,0),"-"),"") ->  | BF37: Afectat sau NU? | BG37: =IF(C37="X",IF(AN37="DA",IF(AND(BF37>=5,AK37<>""),LEN(TRIM(V37))-LEN(SUBSTITUTE(V37,CHAR(44),""))+1,0),"-"),"") -> - | BH37: =IF(C37="X",IF(AN37="DA",LEN(TRIM(V37))-LEN(SUBSTITUTE(V37,CHAR(44),""))+1,"-"),"") -> - | BI37: Afectat sau NU? | BJ37: =IF(C37="X",IF(AN37="DA",IF(AND(BI37>=5,AI37<>""),LEN(TRIM(U37))-LEN(SUBSTITUTE(U37,CHAR(44),""))+1,0),"-"),"") -> - | BK37: =IF(C37="X",IF(AN37="DA",LEN(TRIM(U37))-LEN(SUBSTITUTE(U37,CHAR(44),""))+1,"-"),"") -> - | BL37: =IF(C37="X",IF(AN37="","Afectat sau NU?",IF(AN37="DA",((AG37+AH37)-(Z37+AA37))*24,"Nu a fost afectat producator/consumator")),"") -> Afectat sau NU? | BM37: =IF(C37="X",IF(AN37<>"DA","-",IF(AND(AN37="DA",BL37<=0),LEN(TRIM(V37))-LEN(SUBSTITUTE(V37,CHAR(44),""))+1+LEN(TRIM(U37))-LEN(SUBSTITUTE(U37,CHAR(44),""))+1,0)),"") -> - | BN37: =IF(C37="X",IF(AN37="DA",LEN(TRIM(V37))-LEN(SUBSTITUTE(V37,CHAR(44),""))+1+LEN(TRIM(U37))-LEN(SUBSTITUTE(U37,CHAR(44),""))+1,"-"),"") -> -
A38: 23 | B38: - | C38: x | D38: Punerea în siguranță conductă de transport gaze naturale DN500 Schitu Golesti - Tigveni, la traversarea aeriană pârâu Valea Danului, zona loc.Valea Danului, jud. Argeș | E38: 13891 | F38: Albești de Argeș | G38: Argeș | H38: 474126.09 | I38: 410441.12 | J38: 474126.09 | K38: 410441.12 | L38: - | M38: - | N38: SM1244D0 | O38: Albești de Argeș | P38: - | Q38: - | R38: - | S38: - | T38: SM-SD001 | V38: Distrigaz Sud Rețele | W38: iunie - iulie 2024 anul gazier 2024 - 2025 | AB38: Craiova | AD38: Revizuire Proiect Tehnic | AP38: PMDI 2024-2026 Anexa3_A.2.37 | BF38: Afectat sau NU? | BG38: - | BH38: - | BI38: Afectat sau NU? | BJ38: - | BK38: - | BL38: Afectat sau NU? | BM38: - | BN38: -
A39: 24 | B39: - | C39: x | D39: Punere în siguranță conductă de transport gaze naturale DN500 Posada - Bobolia, la subtraversare râu Prahova zona Nistorești - Breaza, jud. Prahova | E39: 131158 | F39: Nistorești | G39: Prahova | H39: 552081.85 | I39: 411912.9 | J39: 552081.85 | K39: 411912.9 | L39: - | M39: - | N39: SM0087D0 | O39: SC Izvorul Rece Nistorești | P39: - | Q39: - | R39: - | S39: - | T39: SM-CF001 | V39: SC Izvorul Rece | W39: noiembrie - decembrie 2023 martie - mai 2024 august - septembrie 2024 | AB39: București | AD39: Necesitatea emiterii unei dispoziții de șantier A fost necesară întocmirea unei Dispoziții de Șantier. | AP39: PMDI 2024-2026 Anexa3_A.1.4 | BF39: Afectat sau NU? | BG39: - | BH39: - | BI39: Afectat sau NU? | BJ39: - | BK39: - | BL39: Afectat sau NU? | BM39: - | BN39: -
A40: 25 | B40: - | C40: x | D40: Punere în siguranță conductă de transport gaze naturale DN500 racord SRM Brașov II | E40: 40205 | F40: Brașov | G40: Brașov | H40: 546477.46 | I40: 467208.75 | J40: 546477.46 | K40: 467208.75 | L40: - | M40: - | N40: SM1034D0 | O40: SC Kronospan Stupini Brașov | P40: - | Q40: - | R40: - | S40: - | T40: SM-CF001 | V40: SC Kronospan | W40: ianuarie - februarie 2024 anul gazier 2022 - 2023 | AB40: Brașov | AD40: Lucrare urgentă pentru care a fost emis ordinul de începere din data de 21.06.2023. | AP40: PMDI 2023-2025 Anexa3_A.2.33. | BF40: Afectat sau NU? | BG40: - | BH40: - | BI40: Afectat sau NU? | BJ40: - | BK40: - | BL40: Afectat sau NU? | BM40: - | BN40: -
A41: 26 | B41: - | C41: x | D41: Punere în siguranță conductă de transport gaze naturale DN500 racord SRM Brașov II | E41: 41934 | F41: Sânpetru | G41: Brașov | H41: 548450.68 | I41: 465899.12 | J41: 548450.68 | K41: 465899.12 | L41: - | M41: - | N41: SM0050D2 | O41: Sânpetru | P41: - | Q41: - | R41: - | S41: - | T41: SM-SD001 | V41: Distrigaz Sud Rețele | W41: ianuarie - februarie 2024 anul gazier 2022 - 2023 | AB41: Brașov | AD41: Lucrare urgentă pentru care a fost emis ordinul de începere din data de 21.06.2023. | AP41: PMDI 2023-2025 Anexa3_A.2.33. | BF41: Afectat sau NU? | BG41: - | BH41: - | BI41: Afectat sau NU? | BJ41: - | BK41: - | BL41: Afectat sau NU? | BM41: - | BN41: -
A42: 27 | B42: - | C42: x | D42: Punere în siguranță conductă de transport gaze naturale DN500 racord SRM Brașov II | E42: 41097 | F42: Hărman | G42: Brașov | H42: 553066.53 | I42: 467266.75 | J42: 553066.53 | K42: 467266.75 | L42: - | M42: - | N42: SM0048D0 | O42: Hărman | P42: - | Q42: - | R42: - | S42: - | T42: SM-SD001 | V42: Distrigaz Sud Rețele | W42: ianuarie - februarie 2024 anul gazier 2022 - 2023 | AB42: Brașov | AD42: Lucrare urgentă pentru care a fost emis ordinul de începere din data de 21.06.2023. | AP42: PMDI 2023-2025 Anexa3_A.2.33. | BF42: Afectat sau NU? | BG42: - | BH42: - | BI42: Afectat sau NU? | BJ42: - | BK42: - | BL42: Afectat sau NU? | BM42: - | BN42: -
A43: 28 | B43: - | C43: x | D43: Punere în siguranță conductă de transport gaze naturale DN500 racord SRM Brașov II | E43: 41676 | F43: Prejmer | G43: Brașov | H43: 558035.31 | I43: 468707.66 | J43: 558035.31 | K43: 468707.66 | L43: - | M43: - | N43: SM1011D0 | O43: SC Graells Prejmer | P43: - | Q43: - | R43: - | S43: - | T43: SM-SD001 | V43: Distrigaz Sud Rețele | W43: ianuarie - februarie 2024 anul gazier 2022 - 2023 | AB43: Brașov | AD43: Lucrare urgentă pentru care a fost emis ordinul de începere din data de 21.06.2023. | AP43: PMDI 2023-2025 Anexa3_A.2.33. | BF43: Afectat sau NU? | BG43: - | BH43: - | BI43: Afectat sau NU? | BJ43: - | BK43: - | BL43: Afectat sau NU? | BM43: - | BN43: -
A44: 29 | B44: - | C44: x | D44: Punere în siguranță conductă de transport gaze naturale DN500 racord SRM Brașov II | E44: 41676 | F44: Prejmer | G44: Brașov | H44: 560082.66 | I44: 468147.57 | J44: 560082.66 | K44: 468147.57 | L44: - | M44: - | N44: SM0049D0 | O44: Prejmer | P44: - | Q44: - | R44: - | S44: - | T44: SM-SD001 | V44: Distrigaz Sud Rețele | W44: ianuarie - februarie 2024 anul gazier 2022 - 2023 | AB44: Brașov | AD44: Lucrare urgentă pentru care a fost emis ordinul de începere din data de 21.06.2023. | AP44: PMDI 2023-2025 Anexa3_A.2.33. | BF44: Afectat sau NU? | BG44: - | BH44: - | BI44: Afectat sau NU? | BJ44: - | BK44: - | BL44: Afectat sau NU? | BM44: - | BN44: -
A45: 30 | B45: - | C45: x | D45: Punere în siguranță conductă de transport gaze naturale DN500 racord SRM Brașov II | E45: 40205 | F45: Brașov | G45: Brașov | H45: 554708.24 | I45: 461528.35 | J45: 554708.24 | K45: 461528.35 | L45: - | M45: - | N45: SM0866D0 | O45: Brașov II | P45: - | Q45: - | R45: - | S45: - | T45: SM-SD001 | V45: Distrigaz Sud Rețele | W45: ianuarie - februarie 2024 anul gazier 2022 - 2023 | AB45: Brașov | AD45: Lucrare urgentă pentru care a fost emis ordinul de începere din data de 21.06.2023. | AP45: PMDI 2023-2025 Anexa3_A.2.33. | BF45: Afectat sau NU? | BG45: - | BH45: - | BI45: Afectat sau NU? | BJ45: - | BK45: - | BL45: Afectat sau NU? | BM45: - | BN45: -
A46: 31 | B46: - | C46: x | D46: Punere în siguranță conductă de transport gaze naturale DN500 racord SRM Brașov II | E46: 40205 | F46: Brașov | G46: Brașov | H46: 554708.24 | I46: 461528.35 | J46: 554708.24 | K46: 461528.35 | L46: - | M46: - | N46: SM0866D1 | O46: Tărlungeni | P46: - | Q46: - | R46: - | S46: - | T46: SM-SD001 | V46: Megaconstruct | W46: ianuarie - februarie 2024 anul gazier 2022 - 2023 | AB46: Brașov | AD46: Lucrare urgentă pentru care a fost emis ordinul de începere din data de 21.06.2023. | AP46: PMDI 2023-2025 Anexa3_A.2.33. | BF46: Afectat sau NU? | BG46: - | BH46: - | BI46: Afectat sau NU? | BJ46: - | BK46: - | BL46: Afectat sau NU? | BM46: - | BN46: -
A47: 32 | B47: - | C47: x | D47: Punerea în siguranță conductă de transport gaze naturale DN250 Târgu Ocna - Slănic Moldova, în zona Târgu Ocna, jud. Bacău | E47: 20947 | F47: Cireșoaia | G47: Bacău | H47: 619918.59 | I47: 528972.02 | J47: 619918.59 | K47: 528972.02 | L47: - | M47: - | N47: SM0422D0 | O47: Cireșoaia | P47: - | Q47: - | R47: - | S47: - | T47: SM-SD001 | V47: Delgaz Grid | W47: martie - aprilie 2024 | AB47: Bacău | AP47: PMDI 2023-2025 Anexa3_A.2.43. | BF47: Afectat sau NU? | BG47: - | BH47: - | BI47: Afectat sau NU? | BJ47: - | BK47: - | BL47: Afectat sau NU? | BM47: - | BN47: -
A48: 33 | B48: - | C48: x | D48: Conductă de transport gaze naturale DN500 Plătărești - Bălăceanca | E48: 103023 | F48: Fundeni | G48: Călărași | H48: 611849.99 | I48: 322444.53 | J48: 611849.99 | K48: 322444.53 | L48: - | M48: - | N48: SM1302D0 | O48: Fundeni | P48: - | Q48: - | R48: - | S48: - | T48: SM-SD001 | U48: Nova Power, Premier Energy, Dornacor Invest, Engie, E.on Energie, Electrica Furnizare, Energy Distribution, PPC Energie, PPC Energie Muntenia, Lord Energy, Petrom, Tinmar | V48: Dornacor Invest | W48: noiembrie - decebrie 2023 aprilie - iunie 2024 | X48: 2024-06-12 | Y48: 07:00:00 | Z48: 2024-06-14 | AA48: 07:00:00 | AB48: București | AC48: Efectuată | AD48: Termenul de finalizare conform contract este 10.04.2024 | AE48: 2024-06-12 | AF48: 07:00:00 | AG48: 2024-06-13 | AH48: 13:30:00 | AI48: 2024-06-03 | AJ48: 14:22:00 | AK48: 2024-06-03 | AL48: 14:14:00 | AM48: 48775/10.06.2024 | AN48: DA | AP48: PMDI 2024-2026 Anexa3_B.1.2 | BF48: =IF(C48="X",IF(AN48="","Afectat sau NU?",IF(AN48="DA",IF(AK48="","Neinformat",NETWORKDAYS(AK48+AL48,AE48+AF48,$BS$2:$BS$14)-2),"Nu a fost afectat producator/consumator")),"") -> 6 | BG48: 1 | BH48: 1 | BI48: =IF(C48="X",IF(AN48="","Afectat sau NU?",IF(AN48="DA",IF(AI48="","Neinformat",NETWORKDAYS(AI48+AJ48,AE48+AF48,$BS$2:$BS$14)-2),"Nu a fost afectat producator/consumator")),"") -> 6 | BJ48: 12 | BK48: 12 | BL48: -17.5 | BM48: 13 | BN48: 13
A49: 34 | B49: - | C49: x | D49: Conductă de transport gaze naturale DN500 Plătărești - Bălăceanca | E49: 101813 | F49: Chirnogi | G49: Călărași | H49: 627947.05 | I49: 921419.55 | J49: 627947.05 | K49: 921419.55 | L49: - | M49: - | N49: SM1152D0 | O49: Chirnogi | P49: - | Q49: - | R49: - | S49: - | T49: SM-SD001 | V49: Gazmir | W49: noiembrie - decebrie 2023 aprilie - iunie 2024 | AB49: București | AC49: Efectuată (fără întreruperea serviciului de transport) | AD49: Termenul de finalizare conform contract este 10.04.2024 | AP49: PMDI 2024-2026 Anexa3_B.1.2 | BF49: Afectat sau NU? | BG49: - | BH49: - | BI49: Afectat sau NU? | BJ49: - | BK49: - | BL49: Afectat sau NU? | BM49: - | BN49: -
A50: 35 | B50: - | C50: x | D50: Conductă de transport gaze naturale DN500 Plătărești - Bălăceanca | E50: 100629 | F50: Oltenița | G50: Călărași | H50: 632490.71 | I50: 289208.04 | J50: 632490.71 | K50: 289208.04 | L50: - | M50: - | N50: SM0962D0 | O50: Oltenița | P50: - | Q50: - | R50: - | S50: - | T50: SM-SD001 | V50: Distrigaz Sud Rețele | W50: noiembrie - decebrie 2023 aprilie - iunie 2024 | AB50: București | AC50: Efectuată (fără întreruperea serviciului de transport) | AD50: Termenul de finalizare conform contract este 10.04.2024 | AP50: PMDI 2024-2026 Anexa3_B.1.2 | BF50: Afectat sau NU? | BG50: - | BH50: - | BI50: Afectat sau NU? | BJ50: - | BK50: - | BL50: Afectat sau NU? | BM50: - | BN50: -
A51: 36 | B51: - | C51: x | D51: Conductă de transport gaze naturale DN500 Plătărești - Bălăceanca | E51: 101154 | F51: Berceni IF | G51: Ilfov | H51: 593357.13 | I51: 315818.77 | J51: 593357.13 | K51: 315818.77 | L51: - | M51: - | N51: SM0907D0 | O51: Berceni IF | P51: - | Q51: - | R51: - | S51: - | T51: SM-SD001 | V51: Progaz | W51: noiembrie - decebrie 2023 aprilie - iunie 2024 | AB51: București | AC51: Efectuată (fără întreruperea serviciului de transport) | AD51: Termenul de finalizare conform contract este 10.04.2024 | AP51: PMDI 2024-2026 Anexa3_B.1.2 | BF51: Afectat sau NU? | BG51: - | BH51: - | BI51: Afectat sau NU? | BJ51: - | BK51: - | BL51: Afectat sau NU? | BM51: - | BN51: -
A52: 37 | B52: - | C52: x | D52: Conductă de transport gaze naturale DN600 Mihai Bravu - Siliștea și transformarea în conductă godevilabilă. Subtraversare Dunăre Braț Borcea | E52: 43322 | F52: Gropeni | G52: Brăila | H52: 739106.8 | I52: 399849.46 | J52: 739106.8 | K52: 399849.46 | L52: - | M52: - | N52: SM1305D0 | O52: SC Agricost Albatros 1 Gropeni | P52: - | Q52: - | R52: - | S52: - | T52: SM-CF001 | V52: SC Agricost | W52: decembrie 2023 - februarie 2024 august 2024 | AB52: Brăila | AD52: Necesitatea încheierii unui contract de supraveghere arheologică. | AP52: PMDI 2024-2026 Anexa4_A.1.2 | BF52: Afectat sau NU? | BG52: - | BH52: - | BI52: Afectat sau NU? | BJ52: - | BK52: - | BL52: Afectat sau NU? | BM52: - | BN52: -
A53: 38 | B53: - | C53: x | D53: Conductă de transport gaze naturale DN600 Mihai Bravu - Siliștea și transformarea în conductă godevilabilă. Subtraversare Dunăre Braț Borcea | E53: 43322 | F53: Gropeni | G53: Brăila | H53: 739233.22 | I53: 393360.45 | J53: 739233.22 | K53: 393360.45 | L53: - | M53: - | N53: SM1308D0 | O53: SC Agricost Lebăda 2 Gropeni | P53: - | Q53: - | R53: - | S53: - | T53: SM-CF001 | V53: SC Agricost | W53: decembrie 2023 - februarie 2024 august 2024 | AB53: Brăila | AD53: Necesitatea încheierii unui contract de supraveghere arheologică. | AP53: PMDI 2024-2026 Anexa4_A.1.2 | AR53: =IF(B53="X",IF(AN53="","Afectat sau NU?",IF(AN53="DA",IF(((AK53+AL53)-(AE53+AF53))*24<-720,"Neinformat",((AK53+AL53)-(AE53+AF53))*24),"Nu a fost afectat producator/consumator")),"") ->  | AS53: =IF(B53="X",IF(AN53="DA",IF(AR53<6,LEN(TRIM(V53))-LEN(SUBSTITUTE(V53,CHAR(44),""))+1,0),"-"),"") ->  | AT53: =IF(B53="X",IF(AN53="DA",LEN(TRIM(V53))-LEN(SUBSTITUTE(V53,CHAR(44),""))+1,"-"),"") ->  | AU53: =IF(B53="X",IF(AN53="","Afectat sau NU?",IF(AN53="DA",IF(((AI53+AJ53)-(AE53+AF53))*24<-720,"Neinformat",((AI53+AJ53)-(AE53+AF53))*24),"Nu a fost afectat producator/consumator")),"") ->  | AV53: =IF(B53="X",IF(AN53="DA",IF(AU53<6,LEN(TRIM(U53))-LEN(SUBSTITUTE(U53,CHAR(44),""))+1,0),"-"),"") ->  | AW53: =IF(B53="X",IF(AN53="DA",LEN(TRIM(U53))-LEN(SUBSTITUTE(U53,CHAR(44),""))+1,"-"),"") ->  | AX53: =IF(B53="X",IF(AN53="","Afectat sau NU?",IF(AN53="DA",((AG53+AH53)-(AE53+AF53))*24,"Nu a fost afectat producator/consumator")),"") ->  | AY53: =IF(B53="X",IF(AN53="DA",IF(AX53>24,IF(BA53="NU",0,LEN(TRIM(V53))-LEN(SUBSTITUTE(V53,CHAR(44),""))+1),0),"-"),"") ->  | AZ53: =IF(B53="X",IF(AN53="DA",IF(AX53>24,LEN(TRIM(V53))-LEN(SUBSTITUTE(V53,CHAR(44),""))+1,0),"-"),"") ->  | BF53: Afectat sau NU? | BG53: =IF(C53="X",IF(AN53="DA",IF(AND(BF53>=5,AK53<>""),LEN(TRIM(V53))-LEN(SUBSTITUTE(V53,CHAR(44),""))+1,0),"-"),"") -> - | BH53: =IF(C53="X",IF(AN53="DA",LEN(TRIM(V53))-LEN(SUBSTITUTE(V53,CHAR(44),""))+1,"-"),"") -> - | BI53: Afectat sau NU? | BJ53: =IF(C53="X",IF(AN53="DA",IF(AND(BI53>=5,AI53<>""),LEN(TRIM(U53))-LEN(SUBSTITUTE(U53,CHAR(44),""))+1,0),"-"),"") -> - | BK53: =IF(C53="X",IF(AN53="DA",LEN(TRIM(U53))-LEN(SUBSTITUTE(U53,CHAR(44),""))+1,"-"),"") -> - | BL53: =IF(C53="X",IF(AN53="","Afectat sau NU?",IF(AN53="DA",((AG53+AH53)-(Z53+AA53))*24,"Nu a fost afectat producator/consumator")),"") -> Afectat sau NU? | BM53: =IF(C53="X",IF(AN53<>"DA","-",IF(AND(AN53="DA",BL53<=0),LEN(TRIM(V53))-LEN(SUBSTITUTE(V53,CHAR(44),""))+1+LEN(TRIM(U53))-LEN(SUBSTITUTE(U53,CHAR(44),""))+1,0)),"") -> - | BN53: =IF(C53="X",IF(AN53="DA",LEN(TRIM(V53))-LEN(SUBSTITUTE(V53,CHAR(44),""))+1+LEN(TRIM(U53))-LEN(SUBSTITUTE(U53,CHAR(44),""))+1,"-"),"") -> -
A54: 39 | B54: - | C54: x | D54: Conductă de transport gaze naturale DN600 Mihai Bravu - Siliștea și transformarea în conductă godevilabilă. Subtraversare Dunăre Braț Borcea | E54: 43322 | F54: Gropeni | G54: Brăila | H54: 727721.01 | I54: 400811.2 | J54: 727721.01 | K54: 400811.2 | L54: - | M54: - | N54: SM0115D0 | O54: SC TEBU Consult Invest Gropeni | P54: - | Q54: - | R54: - | S54: - | T54: SM-CF001 | V54: SC TEBU | W54: decembrie 2023 - februarie 2024 august 2024 | AB54: Brăila | AD54: Necesitatea încheierii unui contract de supraveghere arheologică. | AP54: PMDI 2024-2026 Anexa4_A.1.2 | BF54: Afectat sau NU? | BG54: - | BH54: - | BI54: Afectat sau NU? | BJ54: - | BK54: - | BL54: Afectat sau NU? | BM54: - | BN54: -
A55: 40 | B55: - | C55: x | D55: Conductă de transport gaze naturale DN600 Mihai Bravu - Siliștea și transformarea în conductă godevilabilă. Subtraversare Dunăre Braț Borcea | E55: 44186 | F55: Tichilești | G55: Brăila | H55: 729013.84 | I55: 409220.21 | J55: 729013.84 | K55: 409220.21 | L55: - | M55: - | N55: SM0528D0 | O55: Tichilești | P55: - | Q55: - | R55: - | S55: - | T55: SM-SD001 | V55: Distrigaz Sud Rețele | W55: decembrie 2023 - februarie 2024 august 2024 | AB55: Brăila | AD55: Necesitatea încheierii unui contract de supraveghere arheologică. | AP55: PMDI 2024-2026 Anexa4_A.1.2 | BF55: Afectat sau NU? | BG55: - | BH55: - | BI55: Afectat sau NU? | BJ55: - | BK55: - | BL55: Afectat sau NU? | BM55: - | BN55: -
A56: 41 | B56: - | C56: x | D56: Conductă de transport gaze naturale Tg. Neamț - Băltătești, Jud. Neamț | E56: 121064 | F56: Târgu Neamț | G56: Neamț | H56: 602678.26 | I56: 634671.84 | J56: 602678.26 | K56: 634671.84 | L56: - | M56: - | N56: SM0462D0 | O56: Târgu Neamț | P56: - | Q56: - | R56: - | S56: - | T56: SM-SD001 | V56: Delgaz Grid | W56: martie - aprilie 2024 | AB56: Bacău | AP56: PMDI 2023-2025 Anexa18_B.1. | BF56: Afectat sau NU? | BG56: - | BH56: - | BI56: Afectat sau NU? | BJ56: - | BK56: - | BL56: Afectat sau NU? | BM56: - | BN56: -
A57: 42 | B57: - | C57: x | D57: Conductă de transport gaze naturale Tg. Neamț - Băltătești, Jud. Neamț | E57: 121064 | F57: Târgu Neamț | G57: Neamț | H57: 602678.26 | I57: 634671.84 | J57: 602678.26 | K57: 634671.84 | L57: - | M57: - | N57: SM0462D1 | O57: Vânători | P57: - | Q57: - | R57: - | S57: - | T57: SM-SD001 | V57: Mihoc Oil | W57: martie - aprilie 2024 | AB57: Bacău | AP57: PMDI 2023-2025 Anexa18_B.1. | BF57: Afectat sau NU? | BG57: - | BH57: - | BI57: Afectat sau NU? | BJ57: - | BK57: - | BL57: Afectat sau NU? | BM57: - | BN57: -
A58: 43 | B58: - | C58: x | D58: Interconectare 32" Moșu - Podișor cu 16" Gura Șuții, zona Slobozia Moara și relocare Rv16 cu refulator. | E58: 68636 | F58: Răcari | G58: Dâmbovița | H58: 557141.14 | I58: 348301.15 | J58: 557141.14 | K58: 348301.15 | L58: - | M58: - | N58: SM0145D0 | O58: Răcari | P58: - | Q58: - | R58: - | S58: - | T58: SM-SD001 | V58: Distrigaz Sud Rețele | W58: mai - septembrie 2024 | AB58: București | AP58: Forțe proprii/SM | BF58: Afectat sau NU? | BG58: - | BH58: - | BI58: Afectat sau NU? | BJ58: - | BK58: - | BL58: Afectat sau NU? | BM58: - | BN58: -
A59: 44 | B59: - | C59: x | D59: Interconectare 32" Moșu - Podișor cu 16" Gura Șuții, zona Slobozia Moara și relocare Rv16 cu refulator. | E59: 105543 | F59: Tărtășești | G59: Dâmbovița | H59: 564729.06 | I59: 341811.75 | J59: 564729.06 | K59: 341811.75 | L59: - | M59: - | N59: SM0112D0 | O59: Tărtășești | P59: - | Q59: - | R59: - | S59: - | T59: SM-SD001 | V59: Premier Energy | W59: mai - septembrie 2024 | AB59: București | AP59: Forțe proprii/SM | BF59: Afectat sau NU? | BG59: - | BH59: - | BI59: Afectat sau NU? | BJ59: - | BK59: - | BL59: Afectat sau NU? | BM59: - | BN59: -
A60: 45 | B60: - | C60: x | D60: Interconectare 32" Moșu - Podișor cu 16" Gura Șuții, zona Slobozia Moara și relocare Rv16 cu refulator. | E60: 104038 | F60: Săbăreni | G60: Giurgiu | H60: 569107.28 | I60: 334140.35 | J60: 569107.28 | K60: 334140.35 | L60: - | M60: - | N60: SM1086D0 | O60: Joița | P60: - | Q60: - | R60: - | S60: - | T60: SM-SD001 | V60: Euro Seven Industry | W60: mai - septembrie 2024 | AB60: București | AP60: Forțe proprii/SM | BF60: Afectat sau NU? | BG60: - | BH60: - | BI60: Afectat sau NU? | BJ60: - | BK60: - | BL60: Afectat sau NU? | BM60: - | BN60: -
A61: 46 | B61: - | C61: x | D61: Eliminare R7 pe conducta 28” Coroi - București, zona Posada | E61: 131381 | F61: Posada | G61: Prahova | H61: 548893.7 | I61: 420137.21 | J61: 548893.7 | K61: 420137.21 | L61: - | M61: - | N61: SM0081D0 | O61: Posada | P61: - | Q61: - | R61: - | S61: - | T61: SM-SD001 | V61: Distrigaz Sud Rețele | W61: mai - septembrie 2024 | AB61: București | AP61: Plan lucrări SM 2021, cap.A + forțe proprii | BF61: Afectat sau NU? | BG61: - | BH61: - | BI61: Afectat sau NU? | BJ61: - | BK61: - | BL61: Afectat sau NU? | BM61: - | BN61: -
A62: 47 | B62: - | C62: x | D62: Înlocuire instalație mecanică la SRM Finta | E62: 67489 | F62: Finta | G62: Dâmbovița | H62: 563895 | I62: 366569.11 | J62: 563895 | K62: 366569.11 | L62: - | M62: - | N62: SM0141D0 | O62: Finta | P62: - | Q62: - | R62: - | S62: - | T62: SM-SD001 | V62: Distrigaz Sud Rețele | W62: mai - septembrie 2024 | AB62: București | AP62: Forțe proprii | BF62: Afectat sau NU? | BG62: - | BH62: - | BI62: Afectat sau NU? | BJ62: - | BK62: - | BL62: Afectat sau NU? | BM62: - | BN62: -
A63: 48 | B63: - | C63: x | D63: Înlocuire flansă electroizolantă pe racord SRM Vidra | E63: 105945 | F63: Vidra | G63: Ilfov | H63: 588819.98 | I63: 315459.76 | J63: 588819.98 | K63: 315459.76 | L63: - | M63: - | N63: SM0152D0 | O63: Vidra | P63: - | Q63: - | R63: - | S63: - | T63: SM-SD001 | V63: Distrigaz Sud Rețele | W63: octombrie - decembrie 2023 martie - septembrie 2024 | AB63: București | AD63: Întârzieri în aprovizionarea cu materialele necesare | AP63: Forțe proprii | BF63: Afectat sau NU? | BG63: - | BH63: - | BI63: Afectat sau NU? | BJ63: - | BK63: - | BL63: Afectat sau NU? | BM63: - | BN63: -
A64: 49 | B64: - | C64: x | D64: Sistematizare interconectare teu Dragomirești | E64: 102614 | F64: Dragomirești Vale | G64: Ilfov | H64: 575255.72 | I64: 327051.14 | J64: 575255.72 | K64: 327051.14 | L64: - | M64: - | N64: SM1004D0 | O64: Portland Chiajna | P64: - | Q64: - | R64: - | S64: - | T64: SM-SD001 | V64: Distrigaz Sud Rețele | W64: mai - septembrie 2024 | AB64: București | AP64: Forțe proprii | AR64: =IF(B64="X",IF(AN64="","Afectat sau NU?",IF(AN64="DA",IF(((AK64+AL64)-(AE64+AF64))*24<-720,"Neinformat",((AK64+AL64)-(AE64+AF64))*24),"Nu a fost afectat producator/consumator")),"") ->  | AS64: =IF(B64="X",IF(AN64="DA",IF(AR64<6,LEN(TRIM(V64))-LEN(SUBSTITUTE(V64,CHAR(44),""))+1,0),"-"),"") ->  | AT64: =IF(B64="X",IF(AN64="DA",LEN(TRIM(V64))-LEN(SUBSTITUTE(V64,CHAR(44),""))+1,"-"),"") ->  | AU64: =IF(B64="X",IF(AN64="","Afectat sau NU?",IF(AN64="DA",IF(((AI64+AJ64)-(AE64+AF64))*24<-720,"Neinformat",((AI64+AJ64)-(AE64+AF64))*24),"Nu a fost afectat producator/consumator")),"") ->  | AV64: =IF(B64="X",IF(AN64="DA",IF(AU64<6,LEN(TRIM(U64))-LEN(SUBSTITUTE(U64,CHAR(44),""))+1,0),"-"),"") ->  | AW64: =IF(B64="X",IF(AN64="DA",LEN(TRIM(U64))-LEN(SUBSTITUTE(U64,CHAR(44),""))+1,"-"),"") ->  | AX64: =IF(B64="X",IF(AN64="","Afectat sau NU?",IF(AN64="DA",((AG64+AH64)-(AE64+AF64))*24,"Nu a fost afectat producator/consumator")),"") ->  | AY64: =IF(B64="X",IF(AN64="DA",IF(AX64>24,IF(BA64="NU",0,LEN(TRIM(V64))-LEN(SUBSTITUTE(V64,CHAR(44),""))+1),0),"-"),"") ->  | AZ64: =IF(B64="X",IF(AN64="DA",IF(AX64>24,LEN(TRIM(V64))-LEN(SUBSTITUTE(V64,CHAR(44),""))+1,0),"-"),"") ->  | BF64: =IF(C64="X",IF(AN64="","Afectat sau NU?",IF(AN64="DA",IF(AK64="","Neinformat",NETWORKDAYS(AK64+AL64,AE64+AF64,$BS$2:$BS$14)-2),"Nu a fost afectat producator/consumator")),"") -> Afectat sau NU? | BG64: =IF(C64="X",IF(AN64="DA",IF(AND(BF64>=5,AK64<>""),LEN(TRIM(V64))-LEN(SUBSTITUTE(V64,CHAR(44),""))+1,0),"-"),"") -> - | BH64: =IF(C64="X",IF(AN64="DA",LEN(TRIM(V64))-LEN(SUBSTITUTE(V64,CHAR(44),""))+1,"-"),"") -> - | BI64: =IF(C64="X",IF(AN64="","Afectat sau NU?",IF(AN64="DA",IF(AI64="","Neinformat",NETWORKDAYS(AI64+AJ64,AE64+AF64,$BS$2:$BS$14)-2),"Nu a fost afectat producator/consumator")),"") -> Afectat sau NU? | BJ64: =IF(C64="X",IF(AN64="DA",IF(AND(BI64>=5,AI64<>""),LEN(TRIM(U64))-LEN(SUBSTITUTE(U64,CHAR(44),""))+1,0),"-"),"") -> - | BK64: =IF(C64="X",IF(AN64="DA",LEN(TRIM(U64))-LEN(SUBSTITUTE(U64,CHAR(44),""))+1,"-"),"") -> - | BL64: =IF(C64="X",IF(AN64="","Afectat sau NU?",IF(AN64="DA",((AG64+AH64)-(Z64+AA64))*24,"Nu a fost afectat producator/consumator")),"") -> Afectat sau NU? | BM64: =IF(C64="X",IF(AN64<>"DA","-",IF(AND(AN64="DA",BL64<=0),LEN(TRIM(V64))-LEN(SUBSTITUTE(V64,CHAR(44),""))+1+LEN(TRIM(U64))-LEN(SUBSTITUTE(U64,CHAR(44),""))+1,0)),"") -> - | BN64: =IF(C64="X",IF(AN64="DA",LEN(TRIM(V64))-LEN(SUBSTITUTE(V64,CHAR(44),""))+1+LEN(TRIM(U64))-LEN(SUBSTITUTE(U64,CHAR(44),""))+1,"-"),"") -> -
A65: 50 | B65: - | C65: x | D65: Sistematizare interconectare teu Dragomirești | E65: 179258 | F65: Chiajna | G65: Ilfov | H65: 575281.78 | I65: 326844.52 | J65: 575281.78 | K65: 326844.52 | L65: - | M65: - | N65: SM0911D0 | O65: Cefin (Iveco) Chiajna | P65: - | Q65: - | R65: - | S65: - | T65: SM-SD001 | V65: Distrigaz Sud Rețele | W65: mai - septembrie 2024 | AB65: București | AP65: Forțe proprii | BF65: Afectat sau NU? | BG65: - | BH65: - | BI65: Afectat sau NU? | BJ65: - | BK65: - | BL65: Afectat sau NU? | BM65: - | BN65: -
A66: 51 | B66: - | C66: x | D66: Sistematizare instalație tehnologică SRM Corbeanca | E66: 102179 | F66: Corbeanca | G66: Ilfov | H66: 582902.09 | I66: 344014.84 | J66: 582902.09 | K66: 344014.84 | L66: - | M66: - | N66: SM0148D0 | O66: Corbeanca | P66: - | Q66: - | R66: - | S66: - | T66: SM-SD001 | V66: Distrigaz Sud Rețele | W66: mai - septembrie 2024 | AB66: București | AP66: Forțe proprii | BF66: Afectat sau NU? | BG66: - | BH66: - | BI66: Afectat sau NU? | BJ66: - | BK66: - | BL66: Afectat sau NU? | BM66: - | BN66: -
A67: 52 | B67: - | C67: x | D67: Relocare racord Elsid Titu în incinta SRM Gura Șuții | E67: 66090 | F67: Titu | G67: Dâmbovița | H67: 544540.01 | I67: 352291.66 | J67: 544540.01 | K67: 352291.66 | L67: - | M67: - | N67: SM0147D0 | O67: SC Elsid Titu | P67: - | Q67: - | R67: - | S67: - | T67: SM-CF001 | V67: SC Elsid | W67: mai - septembrie 2024 | AB67: București | AP67: Forțe proprii | AR67: =IF(B67="X",IF(AN67="","Afectat sau NU?",IF(AN67="DA",IF(((AK67+AL67)-(AE67+AF67))*24<-720,"Neinformat",((AK67+AL67)-(AE67+AF67))*24),"Nu a fost afectat producator/consumator")),"") ->  | AS67: =IF(B67="X",IF(AN67="DA",IF(AR67<6,LEN(TRIM(V67))-LEN(SUBSTITUTE(V67,CHAR(44),""))+1,0),"-"),"") ->  | AT67: =IF(B67="X",IF(AN67="DA",LEN(TRIM(V67))-LEN(SUBSTITUTE(V67,CHAR(44),""))+1,"-"),"") ->  | AU67: =IF(B67="X",IF(AN67="","Afectat sau NU?",IF(AN67="DA",IF(((AI67+AJ67)-(AE67+AF67))*24<-720,"Neinformat",((AI67+AJ67)-(AE67+AF67))*24),"Nu a fost afectat producator/consumator")),"") ->  | AV67: =IF(B67="X",IF(AN67="DA",IF(AU67<6,LEN(TRIM(U67))-LEN(SUBSTITUTE(U67,CHAR(44),""))+1,0),"-"),"") ->  | AW67: =IF(B67="X",IF(AN67="DA",LEN(TRIM(U67))-LEN(SUBSTITUTE(U67,CHAR(44),""))+1,"-"),"") ->  | AX67: =IF(B67="X",IF(AN67="","Afectat sau NU?",IF(AN67="DA",((AG67+AH67)-(AE67+AF67))*24,"Nu a fost afectat producator/consumator")),"") ->  | AY67: =IF(B67="X",IF(AN67="DA",IF(AX67>24,IF(BA67="NU",0,LEN(TRIM(V67))-LEN(SUBSTITUTE(V67,CHAR(44),""))+1),0),"-"),"") ->  | AZ67: =IF(B67="X",IF(AN67="DA",IF(AX67>24,LEN(TRIM(V67))-LEN(SUBSTITUTE(V67,CHAR(44),""))+1,0),"-"),"") ->  | BF67: =IF(C67="X",IF(AN67="","Afectat sau NU?",IF(AN67="DA",IF(AK67="","Neinformat",NETWORKDAYS(AK67+AL67,AE67+AF67,$BS$2:$BS$14)-2),"Nu a fost afectat producator/consumator")),"") -> Afectat sau NU? | BG67: =IF(C67="X",IF(AN67="DA",IF(AND(BF67>=5,AK67<>""),LEN(TRIM(V67))-LEN(SUBSTITUTE(V67,CHAR(44),""))+1,0),"-"),"") -> - | BH67: =IF(C67="X",IF(AN67="DA",LEN(TRIM(V67))-LEN(SUBSTITUTE(V67,CHAR(44),""))+1,"-"),"") -> - | BI67: =IF(C67="X",IF(AN67="","Afectat sau NU?",IF(AN67="DA",IF(AI67="","Neinformat",NETWORKDAYS(AI67+AJ67,AE67+AF67,$BS$2:$BS$14)-2),"Nu a fost afectat producator/consumator")),"") -> Afectat sau NU? | BJ67: =IF(C67="X",IF(AN67="DA",IF(AND(BI67>=5,AI67<>""),LEN(TRIM(U67))-LEN(SUBSTITUTE(U67,CHAR(44),""))+1,0),"-"),"") -> - | BK67: =IF(C67="X",IF(AN67="DA",LEN(TRIM(U67))-LEN(SUBSTITUTE(U67,CHAR(44),""))+1,"-"),"") -> - | BL67: =IF(C67="X",IF(AN67="","Afectat sau NU?",IF(AN67="DA",((AG67+AH67)-(Z67+AA67))*24,"Nu a fost afectat producator/consumator")),"") -> Afectat sau NU? | BM67: =IF(C67="X",IF(AN67<>"DA","-",IF(AND(AN67="DA",BL67<=0),LEN(TRIM(V67))-LEN(SUBSTITUTE(V67,CHAR(44),""))+1+LEN(TRIM(U67))-LEN(SUBSTITUTE(U67,CHAR(44),""))+1,0)),"") -> - | BN67: =IF(C67="X",IF(AN67="DA",LEN(TRIM(V67))-LEN(SUBSTITUTE(V67,CHAR(44),""))+1+LEN(TRIM(U67))-LEN(SUBSTITUTE(U67,CHAR(44),""))+1,"-"),"") -> -
A68: 53 | B68: - | C68: x | D68: Curățire interioara cu PIG a conductei 12” racord SRM Videle | E68: 151914 | F68: Videle | G68: Teleorman | H68: 543275.88 | I68: 310029.43 | J68: 543275.88 | K68: 310029.43 | L68: - | M68: - | N68: SM1111D0 | O68: Videle | P68: - | Q68: - | R68: - | S68: - | T68: SM-SD001 | V68: Premier Energy | W68: august - septembrie 2024 | AB68: București | AP68: Forțe proprii | BF68: Afectat sau NU? | BG68: - | BH68: - | BI68: Afectat sau NU? | BJ68: - | BK68: - | BL68: Afectat sau NU? | BM68: - | BN68: -
A69: 54 | B69: - | C69: x | D69: Curățire interioara cu PIG a conductei 12” racord SRM Videle | E69: 104234 | F69: Mârșa | G69: Giurgiu | H69: 543811.16 | I69: 313253.82 | J69: 543811.16 | K69: 313253.82 | L69: - | M69: - | N69: SM1165D0 | O69: Depozit 160 Videle | P69: - | Q69: - | R69: - | S69: - | T69: SM-CF001 | V69: Petrom (livrare directă) | W69: august - septembrie 2024 | AB69: București | AP69: Forțe proprii | BF69: Afectat sau NU? | BG69: - | BH69: - | BI69: Afectat sau NU? | BJ69: - | BK69: - | BL69: Afectat sau NU? | BM69: - | BN69: -
A70: 55 | B70: - | C70: x | D70: Lucrări de mentenanță în SRM București Titan | E70: 403 | F70: București | G70: București | H70: 594982.35 | I70: 325100.93 | J70: 594982.35 | K70: 325100.93 | L70: - | M70: - | N70: SM0157D0 | O70: București Titan | P70: - | Q70: - | R70: - | S70: - | T70: SM-SD001 | V70: Distrigaz Sud Rețele | W70: mai - septembrie 2024 | AB70: București | AP70: Forțe proprii | BF70: Afectat sau NU? | BG70: - | BH70: - | BI70: Afectat sau NU? | BJ70: - | BK70: - | BL70: Afectat sau NU? | BM70: - | BN70: -
A71: 56 | B71: - | C71: x | D71: Lucrări de mentenanță în SRM Măgurele București | E71: 179418 | F71: Măgurele | G71: Ilfov | H71: 583333.36 | I71: 319855.82 | J71: 583333.36 | K71: 319855.82 | L71: - | M71: - | N71: SM0252D0 | O71: Măgurele București | P71: - | Q71: - | R71: - | S71: - | T71: SM-SD001 | U71: Alpha Metal, Nova Power, BTDConstruct, Premier Energy, Complexul Energetic Oltenia, Crest Energy, Distrigaz Sud Rețele, Distrigaz Vest, Engie, E.on Energie, Electrocentrale București, Electrica Furnizare, Electric Planners, Energy Core, Energy Distribution, PPC Energie, PPC Energie Muntenia, Entrex, Euro Seven, Eye Mall, Premier Energy Trading, Gaz Est, Getica95, Local Gaz, Lord Energy, Met România, Monsson, Termoenergetica București, MVM Future, Next Energy Distribution, Next Energy Partners, Premier Energy, Petrom, Gas Provider, Renovatio, Romgaz, RWE Supply, M.D.A Energy, Solprim, Sustainable Energy, Termocentrale Constanța, Termo Calor, Tinmar, Transenergo, Termoelectrica Giurgiu, Gaz Vest Trading, Management România | V71: Distrigaz Sud Rețele | W71: mai - septembrie 2024 | X71: 2024-05-02 | Y71: 10:00:00 | Z71: 2024-06-13 | AA71: 10:00:00 | AB71: București | AC71: Efectuată | AE71: 2024-05-02 | AF71: 10:00:00 | AG71: 2024-06-11 | AH71: 09:39:00 | AI71: 2024-04-22 | AJ71: 10:19:00 | AK71: 2024-04-22 | AL71: 09:32:00 | AM71: 36697/25.04.2024 | AN71: NU | AP71: Forțe proprii | BF71: Nu a fost afectat producator/consumator | BG71: - | BH71: - | BI71: Nu a fost afectat producator/consumator | BJ71: - | BK71: - | BL71: Nu a fost afectat producator/consumator | BM71: - | BN71: -
A72: 57 | B72: - | C72: x | D72: Lucrări de mentenanță și sistematizare panouri de măsură în SRM CET Vest București - etapa I | E72: 403 | F72: București | G72: București | H72: 577613.28 | I72: 325145.01 | J72: 577613.28 | K72: 325145.01 | L72: - | M72: - | N72: SM0151D0 | O72: București Cet Vest | P72: - | Q72: - | R72: - | S72: - | T72: SM-SD001 | V72: Distrigaz Sud Rețele | W72: mai - septembrie 2024 | X72: 2024-06-12 | Y72: 10:00:00 | Z72: 2024-07-11 | AA72: 10:00:00 | AB72: București | AE72: 2024-06-12 | AI72: 2024-06-03 | AJ72: 09:29:00 | AK72: 2024-06-03 | AL72: 09:14:00 | AM72: 48548/07.06.2024 | AP72: Forțe proprii | BF72: =IF(C72="X",IF(AN72="","Afectat sau NU?",IF(AN72="DA",IF(AK72="","Neinformat",NETWORKDAYS(AK72+AL72,AE72+AF72,$BS$2:$BS$14)-2),"Nu a fost afectat producator/consumator")),"") -> Afectat sau NU? | BG72: - | BH72: - | BI72: =IF(C72="X",IF(AN72="","Afectat sau NU?",IF(AN72="DA",IF(AI72="","Neinformat",NETWORKDAYS(AI72+AJ72,AE72+AF72,$BS$2:$BS$14)-2),"Nu a fost afectat producator/consumator")),"") -> Afectat sau NU? | BJ72: - | BK72: - | BL72: =IF(C72="X",IF(AN72="","Afectat sau NU?",IF(AN72="DA",((AG72+AH72)-(Z72+AA72))*24,"Nu a fost afectat producator/consumator")),"") -> Afectat sau NU? | BM72: - | BN72: -
A73: 57 bis | B73: - | C73: x | D73: Lucrări de mentenanță și sistematizare panouri de măsură în SRM CET Vest București - etapa II | E73: 403 | F73: București | G73: București | H73: 577613.28 | I73: 325145.01 | J73: 577613.28 | K73: 325145.01 | L73: - | M73: - | N73: SM0151D0 | O73: București Cet Vest | P73: - | Q73: - | R73: - | S73: - | T73: SM-SD001 | V73: Distrigaz Sud Rețele | W73: mai - septembrie 2024 | AB73: București | AP73: Forțe proprii | AR73: =IF(B73="X",IF(AN73="","Afectat sau NU?",IF(AN73="DA",IF(((AK73+AL73)-(AE73+AF73))*24<-720,"Neinformat",((AK73+AL73)-(AE73+AF73))*24),"Nu a fost afectat producator/consumator")),"") ->  | AS73: =IF(B73="X",IF(AN73="DA",IF(AR73<6,LEN(TRIM(V73))-LEN(SUBSTITUTE(V73,CHAR(44),""))+1,0),"-"),"") ->  | AT73: =IF(B73="X",IF(AN73="DA",LEN(TRIM(V73))-LEN(SUBSTITUTE(V73,CHAR(44),""))+1,"-"),"") ->  | AU73: =IF(B73="X",IF(AN73="","Afectat sau NU?",IF(AN73="DA",IF(((AI73+AJ73)-(AE73+AF73))*24<-720,"Neinformat",((AI73+AJ73)-(AE73+AF73))*24),"Nu a fost afectat producator/consumator")),"") ->  | AV73: =IF(B73="X",IF(AN73="DA",IF(AU73<6,LEN(TRIM(U73))-LEN(SUBSTITUTE(U73,CHAR(44),""))+1,0),"-"),"") ->  | AW73: =IF(B73="X",IF(AN73="DA",LEN(TRIM(U73))-LEN(SUBSTITUTE(U73,CHAR(44),""))+1,"-"),"") ->  | AX73: =IF(B73="X",IF(AN73="","Afectat sau NU?",IF(AN73="DA",((AG73+AH73)-(AE73+AF73))*24,"Nu a fost afectat producator/consumator")),"") ->  | AY73: =IF(B73="X",IF(AN73="DA",IF(AX73>24,IF(BA73="NU",0,LEN(TRIM(V73))-LEN(SUBSTITUTE(V73,CHAR(44),""))+1),0),"-"),"") ->  | AZ73: =IF(B73="X",IF(AN73="DA",IF(AX73>24,LEN(TRIM(V73))-LEN(SUBSTITUTE(V73,CHAR(44),""))+1,0),"-"),"") ->  | BF73: =IF(C73="X",IF(AN73="","Afectat sau NU?",IF(AN73="DA",IF(AK73="","Neinformat",NETWORKDAYS(AK73+AL73,AE73+AF73,$BS$2:$BS$14)-2),"Nu a fost afectat producator/consumator")),"") -> Afectat sau NU? | BG73: =IF(C73="X",IF(AN73="DA",IF(AND(BF73>=5,AK73<>""),LEN(TRIM(V73))-LEN(SUBSTITUTE(V73,CHAR(44),""))+1,0),"-"),"") -> - | BH73: =IF(C73="X",IF(AN73="DA",LEN(TRIM(V73))-LEN(SUBSTITUTE(V73,CHAR(44),""))+1,"-"),"") -> - | BI73: =IF(C73="X",IF(AN73="","Afectat sau NU?",IF(AN73="DA",IF(AI73="","Neinformat",NETWORKDAYS(AI73+AJ73,AE73+AF73,$BS$2:$BS$14)-2),"Nu a fost afectat producator/consumator")),"") -> Afectat sau NU? | BJ73: =IF(C73="X",IF(AN73="DA",IF(AND(BI73>=5,AI73<>""),LEN(TRIM(U73))-LEN(SUBSTITUTE(U73,CHAR(44),""))+1,0),"-"),"") -> - | BK73: =IF(C73="X",IF(AN73="DA",LEN(TRIM(U73))-LEN(SUBSTITUTE(U73,CHAR(44),""))+1,"-"),"") -> - | BL73: =IF(C73="X",IF(AN73="","Afectat sau NU?",IF(AN73="DA",((AG73+AH73)-(Z73+AA73))*24,"Nu a fost afectat producator/consumator")),"") -> Afectat sau NU? | BM73: =IF(C73="X",IF(AN73<>"DA","-",IF(AND(AN73="DA",BL73<=0),LEN(TRIM(V73))-LEN(SUBSTITUTE(V73,CHAR(44),""))+1+LEN(TRIM(U73))-LEN(SUBSTITUTE(U73,CHAR(44),""))+1,0)),"") -> - | BN73: =IF(C73="X",IF(AN73="DA",LEN(TRIM(V73))-LEN(SUBSTITUTE(V73,CHAR(44),""))+1+LEN(TRIM(U73))-LEN(SUBSTITUTE(U73,CHAR(44),""))+1,"-"),"") -> -
A74: =A72+1 -> 58 | B74: - | C74: x | D74: Lucrări de mentenanță si sistematizare panouri de masura în cadrul SRM 16 Februarie București | E74: 403 | F74: București | G74: București | H74: 580043.32 | I74: 331375.9 | J74: 580043.32 | K74: 331375.9 | L74: - | M74: - | N74: SM0144D0 | O74: București 16 Februarie | P74: - | Q74: - | R74: - | S74: - | T74: SM-SD001 | V74: Distrigaz Sud Rețele | W74: mai - septembrie 2024 | AB74: București | AP74: Forțe proprii | BF74: Afectat sau NU? | BG74: - | BH74: - | BI74: Afectat sau NU? | BJ74: - | BK74: - | BL74: Afectat sau NU? | BM74: - | BN74: -
A75: 59 | B75: x | C75: - | D75: Lucrari de mentenanță în SRM Donalam | E75: 92578 | F75: Călărași | G75: Călărași | H75: 684827.36 | I75: 306820.24 | J75: 684827.36 | K75: 306820.24 | L75: - | M75: - | N75: SM1121D0 | O75: SC Donalam Călărași | P75: - | Q75: - | R75: - | S75: - | T75: SM-CF001 | U75: Engie | V75: SC Donalam | W75: - | X75: 2023-10-02 | Y75: 08:35:00 | Z75: 2023-10-02 | AA75: 12:00:00 | AB75: Brăila | AC75: Efectuată | AE75: 2023-10-02 | AF75: 08:35:00 | AG75: 2023-10-02 | AH75: 09:36:00 | AI75: 2023-10-02 | AJ75: 08:54:00 | AK75: 2023-10-02 | AL75: 08:36:00 | AM75: 72057/29.09.2023 | AN75: DA | AR75: =IF(B75="X",IF(AN75="","Afectat sau NU?",IF(AN75="DA",IF(((AK75+AL75)-(AE75+AF75))*24<-720,"Neinformat",((AK75+AL75)-(AE75+AF75))*24),"Nu a fost afectat producator/consumator")),"") -> 0.01666666655 | AS75: =IF(B75="X",IF(AN75="DA",IF(AR75<6,LEN(TRIM(V75))-LEN(SUBSTITUTE(V75,CHAR(44),""))+1,0),"-"),"") -> 1 | AT75: =IF(B75="X",IF(AN75="DA",LEN(TRIM(V75))-LEN(SUBSTITUTE(V75,CHAR(44),""))+1,"-"),"") -> 1 | AU75: =IF(B75="X",IF(AN75="","Afectat sau NU?",IF(AN75="DA",IF(((AI75+AJ75)-(AE75+AF75))*24<-720,"Neinformat",((AI75+AJ75)-(AE75+AF75))*24),"Nu a fost afectat producator/consumator")),"") -> 0.3166666667 | AV75: =IF(B75="X",IF(AN75="DA",IF(AU75<6,LEN(TRIM(U75))-LEN(SUBSTITUTE(U75,CHAR(44),""))+1,0),"-"),"") -> 1 | AW75: =IF(B75="X",IF(AN75="DA",LEN(TRIM(U75))-LEN(SUBSTITUTE(U75,CHAR(44),""))+1,"-"),"") -> 1 | AX75: =IF(B75="X",IF(AN75="","Afectat sau NU?",IF(AN75="DA",((AG75+AH75)-(AE75+AF75))*24,"Nu a fost afectat producator/consumator")),"") -> 1.016666667 | AY75: =IF(B75="X",IF(AN75="DA",IF(AX75>24,IF(BA75="NU",0,LEN(TRIM(V75))-LEN(SUBSTITUTE(V75,CHAR(44),""))+1),0),"-"),"") -> 0 | AZ75: =IF(B75="X",IF(AN75="DA",IF(AX75>24,LEN(TRIM(V75))-LEN(SUBSTITUTE(V75,CHAR(44),""))+1,0),"-"),"") -> 0 | BF75: =IF(C75="X",IF(AN75="","Afectat sau NU?",IF(AN75="DA",IF(AK75="","Neinformat",NETWORKDAYS(AK75+AL75,AE75+AF75,$BS$2:$BS$14)-2),"Nu a fost afectat producator/consumator")),"") ->  | BG75: =IF(C75="X",IF(AN75="DA",IF(AND(BF75>=5,AK75<>""),LEN(TRIM(V75))-LEN(SUBSTITUTE(V75,CHAR(44),""))+1,0),"-"),"") ->  | BH75: =IF(C75="X",IF(AN75="DA",LEN(TRIM(V75))-LEN(SUBSTITUTE(V75,CHAR(44),""))+1,"-"),"") ->  | BI75: =IF(C75="X",IF(AN75="","Afectat sau NU?",IF(AN75="DA",IF(AI75="","Neinformat",NETWORKDAYS(AI75+AJ75,AE75+AF75,$BS$2:$BS$14)-2),"Nu a fost afectat producator/consumator")),"") ->  | BJ75: =IF(C75="X",IF(AN75="DA",IF(AND(BI75>=5,AI75<>""),LEN(TRIM(U75))-LEN(SUBSTITUTE(U75,CHAR(44),""))+1,0),"-"),"") ->  | BK75: =IF(C75="X",IF(AN75="DA",LEN(TRIM(U75))-LEN(SUBSTITUTE(U75,CHAR(44),""))+1,"-"),"") ->  | BL75: =IF(C75="X",IF(AN75="","Afectat sau NU?",IF(AN75="DA",((AG75+AH75)-(Z75+AA75))*24,"Nu a fost afectat producator/consumator")),"") ->  | BM75: =IF(C75="X",IF(AN75<>"DA","-",IF(AND(AN75="DA",BL75<=0),LEN(TRIM(V75))-LEN(SUBSTITUTE(V75,CHAR(44),""))+1+LEN(TRIM(U75))-LEN(SUBSTITUTE(U75,CHAR(44),""))+1,0)),"") ->  | BN75: =IF(C75="X",IF(AN75="DA",LEN(TRIM(V75))-LEN(SUBSTITUTE(V75,CHAR(44),""))+1+LEN(TRIM(U75))-LEN(SUBSTITUTE(U75,CHAR(44),""))+1,"-"),"") -> 
A76: 60 | B76: x | C76: - | D76: Înlocuire îmbinare electroizolantă cu îmbinare electroizolantă monobloc la SRM Călărași(Cluj) | E76: 56434 | F76: Călărași | G76: Cluj | H76: 415665.64 | I76: 553271.11 | J76: 415665.64 | K76: 553271.11 | L76: - | M76: - | N76: SM0608D0 | O76: Călărași CJ | P76: - | Q76: - | R76: - | S76: - | T76: SM-SD001 | U76: Nova Power, Cet Hidrocarburi, Cez Vânzare, Colterm, CPL Concordia, Delgaz, Design Proiect, Distrigaz Vest, Engie, Axpo, E.on Energie, Electrica Furnizare, Electric Planners, Energy Distribution, Enel Energie, Enel Muntenia, Entrex, Eye Mall, Premier Energy Trading, Gaz Est, Gazmir, Local Gaz, Mihoc Oil, Met România, MVM Future, Next Energy Distribution, Premier Energy, Petrom, Prisma Serv, Gas Provider, Renovatio, Romgaz, RWE Supply, Solprim, Tetarom, Tinmar, Transenergo | V76: Delgaz Grid | W76: - | X76: 2023-10-03 | Y76: 10:30:00 | Z76: 2023-10-03 | AA76: 14:00:00 | AB76: Cluj | AC76: Efectuată | AE76: 2023-10-03 | AF76: 10:30:00 | AG76: 2023-10-03 | AH76: 12:00:00 | AI76: 2023-10-03 | AJ76: 10:39:00 | AK76: 2023-10-03 | AL76: 10:33:00 | AM76: 72566/02.10.2023 | AN76: NU | AR76: =IF(B76="X",IF(AN76="","Afectat sau NU?",IF(AN76="DA",IF(((AK76+AL76)-(AE76+AF76))*24<-720,"Neinformat",((AK76+AL76)-(AE76+AF76))*24),"Nu a fost afectat producator/consumator")),"") -> Nu a fost afectat producator/consumator | AS76: =IF(B76="X",IF(AN76="DA",IF(AR76<6,LEN(TRIM(V76))-LEN(SUBSTITUTE(V76,CHAR(44),""))+1,0),"-"),"") -> - | AT76: =IF(B76="X",IF(AN76="DA",LEN(TRIM(V76))-LEN(SUBSTITUTE(V76,CHAR(44),""))+1,"-"),"") -> - | AU76: =IF(B76="X",IF(AN76="","Afectat sau NU?",IF(AN76="DA",IF(((AI76+AJ76)-(AE76+AF76))*24<-720,"Neinformat",((AI76+AJ76)-(AE76+AF76))*24),"Nu a fost afectat producator/consumator")),"") -> Nu a fost afectat producator/consumator | AV76: =IF(B76="X",IF(AN76="DA",IF(AU76<6,LEN(TRIM(U76))-LEN(SUBSTITUTE(U76,CHAR(44),""))+1,0),"-"),"") -> - | AW76: =IF(B76="X",IF(AN76="DA",LEN(TRIM(U76))-LEN(SUBSTITUTE(U76,CHAR(44),""))+1,"-"),"") -> - | AX76: =IF(B76="X",IF(AN76="","Afectat sau NU?",IF(AN76="DA",((AG76+AH76)-(AE76+AF76))*24,"Nu a fost afectat producator/consumator")),"") -> Nu a fost afectat producator/consumator | AY76: =IF(B76="X",IF(AN76="DA",IF(AX76>24,IF(BA76="NU",0,LEN(TRIM(V76))-LEN(SUBSTITUTE(V76,CHAR(44),""))+1),0),"-"),"") -> - | AZ76: =IF(B76="X",IF(AN76="DA",IF(AX76>24,LEN(TRIM(V76))-LEN(SUBSTITUTE(V76,CHAR(44),""))+1,0),"-"),"") -> - | BF76: =IF(C76="X",IF(AN76="","Afectat sau NU?",IF(AN76="DA",IF(AK76="","Neinformat",NETWORKDAYS(AK76+AL76,AE76+AF76,$BS$2:$BS$14)-2),"Nu a fost afectat producator/consumator")),"") ->  | BG76: =IF(C76="X",IF(AN76="DA",IF(AND(BF76>=5,AK76<>""),LEN(TRIM(V76))-LEN(SUBSTITUTE(V76,CHAR(44),""))+1,0),"-"),"") ->  | BH76: =IF(C76="X",IF(AN76="DA",LEN(TRIM(V76))-LEN(SUBSTITUTE(V76,CHAR(44),""))+1,"-"),"") ->  | BI76: =IF(C76="X",IF(AN76="","Afectat sau NU?",IF(AN76="DA",IF(AI76="","Neinformat",NETWORKDAYS(AI76+AJ76,AE76+AF76,$BS$2:$BS$14)-2),"Nu a fost afectat producator/consumator")),"") ->  | BJ76: =IF(C76="X",IF(AN76="DA",IF(AND(BI76>=5,AI76<>""),LEN(TRIM(U76))-LEN(SUBSTITUTE(U76,CHAR(44),""))+1,0),"-"),"") ->  | BK76: =IF(C76="X",IF(AN76="DA",LEN(TRIM(U76))-LEN(SUBSTITUTE(U76,CHAR(44),""))+1,"-"),"") ->  | BL76: =IF(C76="X",IF(AN76="","Afectat sau NU?",IF(AN76="DA",((AG76+AH76)-(Z76+AA76))*24,"Nu a fost afectat producator/consumator")),"") ->  | BM76: =IF(C76="X",IF(AN76<>"DA","-",IF(AND(AN76="DA",BL76<=0),LEN(TRIM(V76))-LEN(SUBSTITUTE(V76,CHAR(44),""))+1+LEN(TRIM(U76))-LEN(SUBSTITUTE(U76,CHAR(44),""))+1,0)),"") ->  | BN76: =IF(C76="X",IF(AN76="DA",LEN(TRIM(V76))-LEN(SUBSTITUTE(V76,CHAR(44),""))+1+LEN(TRIM(U76))-LEN(SUBSTITUTE(U76,CHAR(44),""))+1,"-"),"") -> 
A77: 61 | B77: x | C77: - | D77: Curățire interioară DN500 Recaș-Timișoara I, fir III | E77: 158323 | F77: Recaș | G77: Timiș | H77: 228618.4 | I77: 484544.8 | J77: 228618.4 | K77: 484544.8 | L77: - | M77: - | N77: SM0332D0 | O77: Recaș | P77: - | Q77: - | R77: - | S77: - | T77: SM-SD001 | U77: Nova Power, Cez Vânzare, Distrigaz Vest, Engie, AXPO Energy, E.on Energie, Electrica Furnizare, Energy Distribution, Enel Energie, Enel Muntenia, Eye Mall, Premier Energy Trading, Gaz Vest, Met România, MVM Future, Premier Energy, Petrom, Gas Provider, Renovatio, Romgaz, Solprim, Tinmar | V77: Gaz Vest | W77: - | X77: 2023-10-04 | Y77: 09:18:00 | Z77: 2023-10-04 | AA77: 09:45:00 | AB77: Arad | AC77: Efectuată | AE77: 2023-10-04 | AF77: 09:18:00 | AG77: 2023-10-04 | AH77: 09:20:00 | AI77: 2023-10-04 | AJ77: 09:32:00 | AK77: 2023-10-04 | AL77: 09:21:00 | AM77: 72080/29.09.2023 | AN77: NU | AR77: =IF(B77="X",IF(AN77="","Afectat sau NU?",IF(AN77="DA",IF(((AK77+AL77)-(AE77+AF77))*24<-720,"Neinformat",((AK77+AL77)-(AE77+AF77))*24),"Nu a fost afectat producator/consumator")),"") -> Nu a fost afectat producator/consumator | AS77: =IF(B77="X",IF(AN77="DA",IF(AR77<6,LEN(TRIM(V77))-LEN(SUBSTITUTE(V77,CHAR(44),""))+1,0),"-"),"") -> - | AT77: =IF(B77="X",IF(AN77="DA",LEN(TRIM(V77))-LEN(SUBSTITUTE(V77,CHAR(44),""))+1,"-"),"") -> - | AU77: =IF(B77="X",IF(AN77="","Afectat sau NU?",IF(AN77="DA",IF(((AI77+AJ77)-(AE77+AF77))*24<-720,"Neinformat",((AI77+AJ77)-(AE77+AF77))*24),"Nu a fost afectat producator/consumator")),"") -> Nu a fost afectat producator/consumator | AV77: =IF(B77="X",IF(AN77="DA",IF(AU77<6,LEN(TRIM(U77))-LEN(SUBSTITUTE(U77,CHAR(44),""))+1,0),"-"),"") -> - | AW77: =IF(B77="X",IF(AN77="DA",LEN(TRIM(U77))-LEN(SUBSTITUTE(U77,CHAR(44),""))+1,"-"),"") -> - | AX77: =IF(B77="X",IF(AN77="","Afectat sau NU?",IF(AN77="DA",((AG77+AH77)-(AE77+AF77))*24,"Nu a fost afectat producator/consumator")),"") -> Nu a fost afectat producator/consumator | AY77: =IF(B77="X",IF(AN77="DA",IF(AX77>24,IF(BA77="NU",0,LEN(TRIM(V77))-LEN(SUBSTITUTE(V77,CHAR(44),""))+1),0),"-"),"") -> - | AZ77: =IF(B77="X",IF(AN77="DA",IF(AX77>24,LEN(TRIM(V77))-LEN(SUBSTITUTE(V77,CHAR(44),""))+1,0),"-"),"") -> - | BG77: =IF(C77="X",IF(AN77="DA",IF(AND(BF77>=5,AK77<>""),LEN(TRIM(V77))-LEN(SUBSTITUTE(V77,CHAR(44),""))+1,0),"-"),"") ->  | BH77: =IF(C77="X",IF(AN77="DA",LEN(TRIM(V77))-LEN(SUBSTITUTE(V77,CHAR(44),""))+1,"-"),"") ->  | BJ77: =IF(C77="X",IF(AN77="DA",IF(AND(BI77>=5,AI77<>""),LEN(TRIM(U77))-LEN(SUBSTITUTE(U77,CHAR(44),""))+1,0),"-"),"") ->  | BK77: =IF(C77="X",IF(AN77="DA",LEN(TRIM(U77))-LEN(SUBSTITUTE(U77,CHAR(44),""))+1,"-"),"") ->  | BL77: =IF(C77="X",IF(AN77="","Afectat sau NU?",IF(AN77="DA",((AG77+AH77)-(Z77+AA77))*24,"Nu a fost afectat producator/consumator")),"") ->  | BM77: =IF(C77="X",IF(AN77<>"DA","-",IF(AND(AN77="DA",BL77<=0),LEN(TRIM(V77))-LEN(SUBSTITUTE(V77,CHAR(44),""))+1+LEN(TRIM(U77))-LEN(SUBSTITUTE(U77,CHAR(44),""))+1,0)),"") ->  | BN77: =IF(C77="X",IF(AN77="DA",LEN(TRIM(V77))-LEN(SUBSTITUTE(V77,CHAR(44),""))+1+LEN(TRIM(U77))-LEN(SUBSTITUTE(U77,CHAR(44),""))+1,"-"),"") -> 
A78: 62 | B78: x | C78: - | D78: Curățire interioară DN500 Recaș-Timișoara I, fir III | E78: 158350 | F78: Izvin | G78: Timiș | H78: 224757.04 | I78: 484415.35 | J78: 224757.04 | K78: 484415.35 | L78: - | M78: - | N78: SM0331D0 | O78: Izvin | P78: - | Q78: - | R78: - | S78: - | T78: SM-SD001 | U78: Nova Power, Cez Vânzare, Distrigaz Vest, Engie, AXPO Energy, E.on Energie, Electrica Furnizare, Energy Distribution, Enel Energie, Enel Muntenia, Eye Mall, Premier Energy Trading, Gaz Vest, Met România, MVM Future, Premier Energy, Petrom, Gas Provider, Renovatio, Romgaz, Solprim, Tinmar | V78: Gaz Vest | W78: - | X78: 2023-10-04 | Y78: 09:42:00 | Z78: 2023-10-04 | AA78: 10:15:00 | AB78: Arad | AC78: Efectuată | AE78: 2023-10-04 | AF78: 09:42:00 | AG78: 2023-10-04 | AH78: 09:55:00 | AI78: 2023-10-04 | AJ78: 10:00:00 | AK78: 2023-10-04 | AL78: 09:56:00 | AM78: 72080/29.09.2023 | AN78: NU | AR78: =IF(B78="X",IF(AN78="","Afectat sau NU?",IF(AN78="DA",IF(((AK78+AL78)-(AE78+AF78))*24<-720,"Neinformat",((AK78+AL78)-(AE78+AF78))*24),"Nu a fost afectat producator/consumator")),"") -> Nu a fost afectat producator/consumator | AS78: =IF(B78="X",IF(AN78="DA",IF(AR78<6,LEN(TRIM(V78))-LEN(SUBSTITUTE(V78,CHAR(44),""))+1,0),"-"),"") -> - | AT78: =IF(B78="X",IF(AN78="DA",LEN(TRIM(V78))-LEN(SUBSTITUTE(V78,CHAR(44),""))+1,"-"),"") -> - | AU78: =IF(B78="X",IF(AN78="","Afectat sau NU?",IF(AN78="DA",IF(((AI78+AJ78)-(AE78+AF78))*24<-720,"Neinformat",((AI78+AJ78)-(AE78+AF78))*24),"Nu a fost afectat producator/consumator")),"") -> Nu a fost afectat producator/consumator | AV78: =IF(B78="X",IF(AN78="DA",IF(AU78<6,LEN(TRIM(U78))-LEN(SUBSTITUTE(U78,CHAR(44),""))+1,0),"-"),"") -> - | AW78: =IF(B78="X",IF(AN78="DA",LEN(TRIM(U78))-LEN(SUBSTITUTE(U78,CHAR(44),""))+1,"-"),"") -> - | AX78: =IF(B78="X",IF(AN78="","Afectat sau NU?",IF(AN78="DA",((AG78+AH78)-(AE78+AF78))*24,"Nu a fost afectat producator/consumator")),"") -> Nu a fost afectat producator/consumator | AY78: =IF(B78="X",IF(AN78="DA",IF(AX78>24,IF(BA78="NU",0,LEN(TRIM(V78))-LEN(SUBSTITUTE(V78,CHAR(44),""))+1),0),"-"),"") -> - | AZ78: =IF(B78="X",IF(AN78="DA",IF(AX78>24,LEN(TRIM(V78))-LEN(SUBSTITUTE(V78,CHAR(44),""))+1,0),"-"),"") -> - | BG78: =IF(C78="X",IF(AN78="DA",IF(AND(BF78>=5,AK78<>""),LEN(TRIM(V78))-LEN(SUBSTITUTE(V78,CHAR(44),""))+1,0),"-"),"") ->  | BH78: =IF(C78="X",IF(AN78="DA",LEN(TRIM(V78))-LEN(SUBSTITUTE(V78,CHAR(44),""))+1,"-"),"") ->  | BJ78: =IF(C78="X",IF(AN78="DA",IF(AND(BI78>=5,AI78<>""),LEN(TRIM(U78))-LEN(SUBSTITUTE(U78,CHAR(44),""))+1,0),"-"),"") ->  | BK78: =IF(C78="X",IF(AN78="DA",LEN(TRIM(U78))-LEN(SUBSTITUTE(U78,CHAR(44),""))+1,"-"),"") ->  | BL78: =IF(C78="X",IF(AN78="","Afectat sau NU?",IF(AN78="DA",((AG78+AH78)-(Z78+AA78))*24,"Nu a fost afectat producator/consumator")),"") ->  | BM78: =IF(C78="X",IF(AN78<>"DA","-",IF(AND(AN78="DA",BL78<=0),LEN(TRIM(V78))-LEN(SUBSTITUTE(V78,CHAR(44),""))+1+LEN(TRIM(U78))-LEN(SUBSTITUTE(U78,CHAR(44),""))+1,0)),"") ->  | BN78: =IF(C78="X",IF(AN78="DA",LEN(TRIM(V78))-LEN(SUBSTITUTE(V78,CHAR(44),""))+1+LEN(TRIM(U78))-LEN(SUBSTITUTE(U78,CHAR(44),""))+1,"-"),"") -> 
A79: 63 | B79: x | C79: - | D79: Curățire interioară DN500 Recaș-Timișoara I, fir III | E79: 158403 | F79: Remetea Mare | G79: Timiș | H79: 219348.26 | I79: 482047.03 | J79: 219348.26 | K79: 482047.03 | L79: - | M79: - | N79: SM0333D0 | O79: Remetea | P79: - | Q79: - | R79: - | S79: - | T79: SM-SD001 | U79: Nova Power, Cez Vânzare, Distrigaz Vest, Engie, AXPO Energy, E.on Energie, Electrica Furnizare, Energy Distribution, Enel Energie, Enel Muntenia, Eye Mall, Premier Energy Trading, Gaz Vest, Met România, MVM Future, Premier Energy, Petrom, Gas Provider, Renovatio, Romgaz, Solprim, Tinmar | V79: Gaz Vest | W79: - | X79: 2023-10-04 | Y79: 10:36:00 | Z79: 2023-10-04 | AA79: 11:00:00 | AB79: Arad | AC79: Efectuată | AE79: 2023-10-04 | AF79: 10:36:00 | AG79: 2023-10-04 | AH79: 10:43:00 | AI79: 2023-10-04 | AJ79: 10:47:00 | AK79: 2023-10-04 | AL79: 10:42:00 | AM79: 72080/29.09.2023 | AN79: NU | AR79: =IF(B79="X",IF(AN79="","Afectat sau NU?",IF(AN79="DA",IF(((AK79+AL79)-(AE79+AF79))*24<-720,"Neinformat",((AK79+AL79)-(AE79+AF79))*24),"Nu a fost afectat producator/consumator")),"") -> Nu a fost afectat producator/consumator | AS79: =IF(B79="X",IF(AN79="DA",IF(AR79<6,LEN(TRIM(V79))-LEN(SUBSTITUTE(V79,CHAR(44),""))+1,0),"-"),"") -> - | AT79: =IF(B79="X",IF(AN79="DA",LEN(TRIM(V79))-LEN(SUBSTITUTE(V79,CHAR(44),""))+1,"-"),"") -> - | AU79: =IF(B79="X",IF(AN79="","Afectat sau NU?",IF(AN79="DA",IF(((AI79+AJ79)-(AE79+AF79))*24<-720,"Neinformat",((AI79+AJ79)-(AE79+AF79))*24),"Nu a fost afectat producator/consumator")),"") -> Nu a fost afectat producator/consumator | AV79: =IF(B79="X",IF(AN79="DA",IF(AU79<6,LEN(TRIM(U79))-LEN(SUBSTITUTE(U79,CHAR(44),""))+1,0),"-"),"") -> - | AW79: =IF(B79="X",IF(AN79="DA",LEN(TRIM(U79))-LEN(SUBSTITUTE(U79,CHAR(44),""))+1,"-"),"") -> - | AX79: =IF(B79="X",IF(AN79="","Afectat sau NU?",IF(AN79="DA",((AG79+AH79)-(AE79+AF79))*24,"Nu a fost afectat producator/consumator")),"") -> Nu a fost afectat producator/consumator | AY79: =IF(B79="X",IF(AN79="DA",IF(AX79>24,IF(BA79="NU",0,LEN(TRIM(V79))-LEN(SUBSTITUTE(V79,CHAR(44),""))+1),0),"-"),"") -> - | AZ79: =IF(B79="X",IF(AN79="DA",IF(AX79>24,LEN(TRIM(V79))-LEN(SUBSTITUTE(V79,CHAR(44),""))+1,0),"-"),"") -> - | BG79: =IF(C79="X",IF(AN79="DA",IF(AND(BF79>=5,AK79<>""),LEN(TRIM(V79))-LEN(SUBSTITUTE(V79,CHAR(44),""))+1,0),"-"),"") ->  | BH79: =IF(C79="X",IF(AN79="DA",LEN(TRIM(V79))-LEN(SUBSTITUTE(V79,CHAR(44),""))+1,"-"),"") ->  | BJ79: =IF(C79="X",IF(AN79="DA",IF(AND(BI79>=5,AI79<>""),LEN(TRIM(U79))-LEN(SUBSTITUTE(U79,CHAR(44),""))+1,0),"-"),"") ->  | BK79: =IF(C79="X",IF(AN79="DA",LEN(TRIM(U79))-LEN(SUBSTITUTE(U79,CHAR(44),""))+1,"-"),"") ->  | BL79: =IF(C79="X",IF(AN79="","Afectat sau NU?",IF(AN79="DA",((AG79+AH79)-(Z79+AA79))*24,"Nu a fost afectat producator/consumator")),"") ->  | BM79: =IF(C79="X",IF(AN79<>"DA","-",IF(AND(AN79="DA",BL79<=0),LEN(TRIM(V79))-LEN(SUBSTITUTE(V79,CHAR(44),""))+1+LEN(TRIM(U79))-LEN(SUBSTITUTE(U79,CHAR(44),""))+1,0)),"") ->  | BN79: =IF(C79="X",IF(AN79="DA",LEN(TRIM(V79))-LEN(SUBSTITUTE(V79,CHAR(44),""))+1+LEN(TRIM(U79))-LEN(SUBSTITUTE(U79,CHAR(44),""))+1,"-"),"") -> 
A80: =A79+1 -> 64 | B80: x | C80: - | D80: Curățire interioară DN500 Recaș-Timișoara I, fir III | E80: 158421 | F80: Bucovăț | G80: Timiș | H80: 219649.45 | I80: 478583.36 | J80: 219649.45 | K80: 478583.36 | L80: - | M80: - | N80: SM1174D0 | O80: Bucovăț | P80: - | Q80: - | R80: - | S80: - | T80: SM-SD001 | U80: Nova Power, Cez Vânzare, Distrigaz Vest, Engie, AXPO Energy, E.on Energie, Electrica Furnizare, Energy Distribution, Enel Energie, Enel Muntenia, Eye Mall, Premier Energy Trading, Gaz Vest, Met România, MVM Future, Premier Energy, Petrom, Gas Provider, Renovatio, Romgaz, Solprim, Tinmar | V80: Gaz Vest | W80: - | X80: 2023-10-04 | Y80: 10:42:00 | Z80: 2023-10-04 | AA80: 11:00:00 | AB80: Arad | AC80: Efectuată | AE80: 2023-10-04 | AF80: 10:42:00 | AG80: 2023-10-04 | AH80: 10:55:00 | AI80: 2023-10-04 | AJ80: 10:52:00 | AK80: 2023-10-04 | AL80: 10:47:00 | AM80: 72080/29.09.2023 | AN80: NU | AR80: =IF(B80="X",IF(AN80="","Afectat sau NU?",IF(AN80="DA",IF(((AK80+AL80)-(AE80+AF80))*24<-720,"Neinformat",((AK80+AL80)-(AE80+AF80))*24),"Nu a fost afectat producator/consumator")),"") -> Nu a fost afectat producator/consumator | AS80: =IF(B80="X",IF(AN80="DA",IF(AR80<6,LEN(TRIM(V80))-LEN(SUBSTITUTE(V80,CHAR(44),""))+1,0),"-"),"") -> - | AT80: =IF(B80="X",IF(AN80="DA",LEN(TRIM(V80))-LEN(SUBSTITUTE(V80,CHAR(44),""))+1,"-"),"") -> - | AU80: =IF(B80="X",IF(AN80="","Afectat sau NU?",IF(AN80="DA",IF(((AI80+AJ80)-(AE80+AF80))*24<-720,"Neinformat",((AI80+AJ80)-(AE80+AF80))*24),"Nu a fost afectat producator/consumator")),"") -> Nu a fost afectat producator/consumator | AV80: =IF(B80="X",IF(AN80="DA",IF(AU80<6,LEN(TRIM(U80))-LEN(SUBSTITUTE(U80,CHAR(44),""))+1,0),"-"),"") -> - | AW80: =IF(B80="X",IF(AN80="DA",LEN(TRIM(U80))-LEN(SUBSTITUTE(U80,CHAR(44),""))+1,"-"),"") -> - | AX80: =IF(B80="X",IF(AN80="","Afectat sau NU?",IF(AN80="DA",((AG80+AH80)-(AE80+AF80))*24,"Nu a fost afectat producator/consumator")),"") -> Nu a fost afectat producator/consumator | AY80: =IF(B80="X",IF(AN80="DA",IF(AX80>24,IF(BA80="NU",0,LEN(TRIM(V80))-LEN(SUBSTITUTE(V80,CHAR(44),""))+1),0),"-"),"") -> - | AZ80: =IF(B80="X",IF(AN80="DA",IF(AX80>24,LEN(TRIM(V80))-LEN(SUBSTITUTE(V80,CHAR(44),""))+1,0),"-"),"") -> - | BG80: =IF(C80="X",IF(AN80="DA",IF(AND(BF80>=5,AK80<>""),LEN(TRIM(V80))-LEN(SUBSTITUTE(V80,CHAR(44),""))+1,0),"-"),"") ->  | BH80: =IF(C80="X",IF(AN80="DA",LEN(TRIM(V80))-LEN(SUBSTITUTE(V80,CHAR(44),""))+1,"-"),"") ->  | BJ80: =IF(C80="X",IF(AN80="DA",IF(AND(BI80>=5,AI80<>""),LEN(TRIM(U80))-LEN(SUBSTITUTE(U80,CHAR(44),""))+1,0),"-"),"") ->  | BK80: =IF(C80="X",IF(AN80="DA",LEN(TRIM(U80))-LEN(SUBSTITUTE(U80,CHAR(44),""))+1,"-"),"") ->  | BL80: =IF(C80="X",IF(AN80="","Afectat sau NU?",IF(AN80="DA",((AG80+AH80)-(Z80+AA80))*24,"Nu a fost afectat producator/consumator")),"") ->  | BM80: =IF(C80="X",IF(AN80<>"DA","-",IF(AND(AN80="DA",BL80<=0),LEN(TRIM(V80))-LEN(SUBSTITUTE(V80,CHAR(44),""))+1+LEN(TRIM(U80))-LEN(SUBSTITUTE(U80,CHAR(44),""))+1,0)),"") ->  | BN80: =IF(C80="X",IF(AN80="DA",LEN(TRIM(V80))-LEN(SUBSTITUTE(V80,CHAR(44),""))+1+LEN(TRIM(U80))-LEN(SUBSTITUTE(U80,CHAR(44),""))+1,"-"),"") -> 
A81: 65 | B81: x | C81: - | D81: Curățire interioară DN500 Recaș-Timișoara I, fir III | E81: 157834 | F81: Moșnița Veche | G81: Timiș | H81: 214047.13 | I81: 479657.04 | J81: 214047.13 | K81: 479657.04 | L81: - | M81: - | N81: SM1261D0 | O81: Moșnița Nouă | P81: - | Q81: - | R81: - | S81: - | T81: SM-SD001 | U81: Nova Power, Cet Hidrocarburi, Cez Vânzare, Colterm, CPL Concordia, Delgaz, Design Proiect, Distrigaz Vest, Engie, Axpo, E.on Energie, Electrica Furnizare, Electric Planners, Energy Distribution, Enel Energie, Enel Muntenia, Entrex, Eye Mall, Premier Energy Trading, Gaz Est, Gazmir, Local Gaz, Mihoc Oil, Met România, MVM Future, Next Energy Distribution, Premier Energy, Petrom, Prisma Serv, Gas Provider, Renovatio, Romgaz, RWE Supply, Solprim, Tetarom, Tinmar, Transenergo | V81: Delgaz Grid | W81: - | X81: 2023-10-04 | Y81: 11:42:00 | Z81: 2023-10-04 | AA81: 12:00:00 | AB81: Arad | AC81: Efectuată | AE81: 2023-10-04 | AF81: 11:42:00 | AG81: 2023-10-04 | AH81: 11:50:00 | AI81: 2023-10-04 | AJ81: 11:49:00 | AK81: 2023-10-04 | AL81: 11:44:00 | AM81: 72080/29.09.2023 | AN81: NU | AR81: =IF(B81="X",IF(AN81="","Afectat sau NU?",IF(AN81="DA",IF(((AK81+AL81)-(AE81+AF81))*24<-720,"Neinformat",((AK81+AL81)-(AE81+AF81))*24),"Nu a fost afectat producator/consumator")),"") -> Nu a fost afectat producator/consumator | AS81: =IF(B81="X",IF(AN81="DA",IF(AR81<6,LEN(TRIM(V81))-LEN(SUBSTITUTE(V81,CHAR(44),""))+1,0),"-"),"") -> - | AT81: =IF(B81="X",IF(AN81="DA",LEN(TRIM(V81))-LEN(SUBSTITUTE(V81,CHAR(44),""))+1,"-"),"") -> - | AU81: =IF(B81="X",IF(AN81="","Afectat sau NU?",IF(AN81="DA",IF(((AI81+AJ81)-(AE81+AF81))*24<-720,"Neinformat",((AI81+AJ81)-(AE81+AF81))*24),"Nu a fost afectat producator/consumator")),"") -> Nu a fost afectat producator/consumator | AV81: =IF(B81="X",IF(AN81="DA",IF(AU81<6,LEN(TRIM(U81))-LEN(SUBSTITUTE(U81,CHAR(44),""))+1,0),"-"),"") -> - | AW81: =IF(B81="X",IF(AN81="DA",LEN(TRIM(U81))-LEN(SUBSTITUTE(U81,CHAR(44),""))+1,"-"),"") -> - | AX81: =IF(B81="X",IF(AN81="","Afectat sau NU?",IF(AN81="DA",((AG81+AH81)-(AE81+AF81))*24,"Nu a fost afectat producator/consumator")),"") -> Nu a fost afectat producator/consumator | AY81: =IF(B81="X",IF(AN81="DA",IF(AX81>24,IF(BA81="NU",0,LEN(TRIM(V81))-LEN(SUBSTITUTE(V81,CHAR(44),""))+1),0),"-"),"") -> - | AZ81: =IF(B81="X",IF(AN81="DA",IF(AX81>24,LEN(TRIM(V81))-LEN(SUBSTITUTE(V81,CHAR(44),""))+1,0),"-"),"") -> - | BG81: =IF(C81="X",IF(AN81="DA",IF(AND(BF81>=5,AK81<>""),LEN(TRIM(V81))-LEN(SUBSTITUTE(V81,CHAR(44),""))+1,0),"-"),"") ->  | BH81: =IF(C81="X",IF(AN81="DA",LEN(TRIM(V81))-LEN(SUBSTITUTE(V81,CHAR(44),""))+1,"-"),"") ->  | BJ81: =IF(C81="X",IF(AN81="DA",IF(AND(BI81>=5,AI81<>""),LEN(TRIM(U81))-LEN(SUBSTITUTE(U81,CHAR(44),""))+1,0),"-"),"") ->  | BK81: =IF(C81="X",IF(AN81="DA",LEN(TRIM(U81))-LEN(SUBSTITUTE(U81,CHAR(44),""))+1,"-"),"") ->  | BL81: =IF(C81="X",IF(AN81="","Afectat sau NU?",IF(AN81="DA",((AG81+AH81)-(Z81+AA81))*24,"Nu a fost afectat producator/consumator")),"") ->  | BM81: =IF(C81="X",IF(AN81<>"DA","-",IF(AND(AN81="DA",BL81<=0),LEN(TRIM(V81))-LEN(SUBSTITUTE(V81,CHAR(44),""))+1+LEN(TRIM(U81))-LEN(SUBSTITUTE(U81,CHAR(44),""))+1,0)),"") ->  | BN81: =IF(C81="X",IF(AN81="DA",LEN(TRIM(V81))-LEN(SUBSTITUTE(V81,CHAR(44),""))+1+LEN(TRIM(U81))-LEN(SUBSTITUTE(U81,CHAR(44),""))+1,"-"),"") -> 
A82: 66 | B82: x | C82: - | D82: Realizare dublă alimentare SRM Odoreu | E82: 138299 | F82: Odoreu | G82: Satu Mare | H82: 348654.59 | I82: 702722.54 | J82: 348654.59 | K82: 702722.54 | L82: - | M82: - | N82: SM0917D0 | O82: Odoreu | P82: - | Q82: - | R82: - | S82: - | T82: SM-SD001 | U82: Nova Power, Cet Hidrocarburi, Cez Vânzare, Colterm, CPL Concordia, Delgaz, Design Proiect, Distrigaz Vest, Engie, Axpo, E.on Energie, Electrica Furnizare, Electric Planners, Energy Distribution, Enel Energie, Enel Muntenia, Entrex, Eye Mall, Premier Energy Trading, Gaz Est, Gazmir, Local Gaz, Mihoc Oil, Met România, MVM Future, Next Energy Distribution, Premier Energy, Petrom, Prisma Serv, Gas Provider, Renovatio, Romgaz, RWE Supply, Solprim, Tetarom, Tinmar, Transenergo | V82: Delgaz Grid | W82: - | X82: 2023-10-05 | Y82: 12:00:00 | Z82: 2023-10-05 | AA82: 14:00:00 | AB82: Cluj | AC82: Efectuată | AE82: 2023-10-05 | AF82: 12:00:00 | AG82: 2023-10-05 | AH82: 12:25:00 | AI82: 2023-10-05 | AJ82: 12:19:00 | AK82: 2023-10-05 | AL82: 12:02:00 | AM82: 73555/04.10.2023 | AN82: NU | AR82: =IF(B82="X",IF(AN82="","Afectat sau NU?",IF(AN82="DA",IF(((AK82+AL82)-(AE82+AF82))*24<-720,"Neinformat",((AK82+AL82)-(AE82+AF82))*24),"Nu a fost afectat producator/consumator")),"") -> Nu a fost afectat producator/consumator | AS82: =IF(B82="X",IF(AN82="DA",IF(AR82<6,LEN(TRIM(V82))-LEN(SUBSTITUTE(V82,CHAR(44),""))+1,0),"-"),"") -> - | AT82: =IF(B82="X",IF(AN82="DA",LEN(TRIM(V82))-LEN(SUBSTITUTE(V82,CHAR(44),""))+1,"-"),"") -> - | AU82: =IF(B82="X",IF(AN82="","Afectat sau NU?",IF(AN82="DA",IF(((AI82+AJ82)-(AE82+AF82))*24<-720,"Neinformat",((AI82+AJ82)-(AE82+AF82))*24),"Nu a fost afectat producator/consumator")),"") -> Nu a fost afectat producator/consumator | AV82: =IF(B82="X",IF(AN82="DA",IF(AU82<6,LEN(TRIM(U82))-LEN(SUBSTITUTE(U82,CHAR(44),""))+1,0),"-"),"") -> - | AW82: =IF(B82="X",IF(AN82="DA",LEN(TRIM(U82))-LEN(SUBSTITUTE(U82,CHAR(44),""))+1,"-"),"") -> - | AX82: =IF(B82="X",IF(AN82="","Afectat sau NU?",IF(AN82="DA",((AG82+AH82)-(AE82+AF82))*24,"Nu a fost afectat producator/consumator")),"") -> Nu a fost afectat producator/consumator | AY82: =IF(B82="X",IF(AN82="DA",IF(AX82>24,IF(BA82="NU",0,LEN(TRIM(V82))-LEN(SUBSTITUTE(V82,CHAR(44),""))+1),0),"-"),"") -> - | AZ82: =IF(B82="X",IF(AN82="DA",IF(AX82>24,LEN(TRIM(V82))-LEN(SUBSTITUTE(V82,CHAR(44),""))+1,0),"-"),"") -> - | BG82: =IF(C82="X",IF(AN82="DA",IF(AND(BF82>=5,AK82<>""),LEN(TRIM(V82))-LEN(SUBSTITUTE(V82,CHAR(44),""))+1,0),"-"),"") ->  | BH82: =IF(C82="X",IF(AN82="DA",LEN(TRIM(V82))-LEN(SUBSTITUTE(V82,CHAR(44),""))+1,"-"),"") ->  | BJ82: =IF(C82="X",IF(AN82="DA",IF(AND(BI82>=5,AI82<>""),LEN(TRIM(U82))-LEN(SUBSTITUTE(U82,CHAR(44),""))+1,0),"-"),"") ->  | BK82: =IF(C82="X",IF(AN82="DA",LEN(TRIM(U82))-LEN(SUBSTITUTE(U82,CHAR(44),""))+1,"-"),"") ->  | BL82: =IF(C82="X",IF(AN82="","Afectat sau NU?",IF(AN82="DA",((AG82+AH82)-(Z82+AA82))*24,"Nu a fost afectat producator/consumator")),"") ->  | BM82: =IF(C82="X",IF(AN82<>"DA","-",IF(AND(AN82="DA",BL82<=0),LEN(TRIM(V82))-LEN(SUBSTITUTE(V82,CHAR(44),""))+1+LEN(TRIM(U82))-LEN(SUBSTITUTE(U82,CHAR(44),""))+1,0)),"") ->  | BN82: =IF(C82="X",IF(AN82="DA",LEN(TRIM(V82))-LEN(SUBSTITUTE(V82,CHAR(44),""))+1+LEN(TRIM(U82))-LEN(SUBSTITUTE(U82,CHAR(44),""))+1,"-"),"") -> 
A83: 67 | B83: x | C83: - | D83: Cuplare conductă DN80 racord SRM Centrală Cogenerare Rifil Săvinești | E83: 120833 | F83: Săvinești | G83: Neamț | H83: 611468.46 | I83: 598880.92 | J83: 611468.46 | K83: 598880.92 | L83: - | M83: - | N83: SM0450D1 | O83: SC Kober Săvinești | P83: - | Q83: - | R83: - | S83: - | T83: SM-CF001 | U83: Petrom | V83: SC Kober | X83: 2023-10-06 | Y83: 10:02:00 | Z83: 2023-10-06 | AA83: 16:00:00 | AB83: Bacău | AC83: Efectuată | AE83: 2023-10-06 | AF83: 10:02:00 | AG83: 2023-10-06 | AH83: 15:58:00 | AI83: 2023-10-06 | AJ83: 10:36:00 | AK83: 2023-10-06 | AL83: 10:21:00 | AM83: 73609/04.10.2023 | AN83: DA | AR83: 0.3166666667 | AS83: 1 | AT83: 1 | AU83: 0.5666666666 | AV83: 1 | AW83: 1 | AX83: 5.933333333 | AY83: 0 | AZ83: 0 | BG83: =IF(C83="X",IF(AN83="DA",IF(AND(BF83>=5,AK83<>""),LEN(TRIM(V83))-LEN(SUBSTITUTE(V83,CHAR(44),""))+1,0),"-"),"") ->  | BJ83: =IF(C83="X",IF(AN83="DA",IF(AND(BI83>=5,AI83<>""),LEN(TRIM(U83))-LEN(SUBSTITUTE(U83,CHAR(44),""))+1,0),"-"),"") -> 
A84: =A83+1 -> 68 | B84: x | C84: - | D84: Cuplare conductă DN80 racord SRM Centrală Cogenerare Rifil Săvinești | E84: 120833 | F84: Săvinești | G84: Neamț | H84: 611468.46 | I84: 598880.92 | J84: 611468.46 | K84: 598880.92 | L84: - | M84: - | N84: SM0450D2 | O84: SC Rifil Săvinești | P84: - | Q84: - | R84: - | S84: - | T84: SM-CF001 | U84: Petrom | V84: SC Rifil | X84: 2023-10-06 | Y84: 10:02:00 | Z84: 2023-10-06 | AA84: 16:00:00 | AB84: Bacău | AC84: Efectuată | AE84: 2023-10-06 | AF84: 10:02:00 | AG84: 2023-10-06 | AH84: 15:58:00 | AI84: 2023-10-06 | AJ84: 10:33:00 | AK84: 2023-10-06 | AL84: 10:19:00 | AM84: 73609/04.10.2023 | AN84: DA | AR84: 0.2833333332 | AS84: 1 | AT84: 1 | AU84: 0.5166666666 | AV84: 1 | AW84: 1 | AX84: 5.933333333 | AY84: 0 | AZ84: 0
A85: 69 | B85: x | C85: - | D85: Întrerupere accidentală SRM Rugănești | E85: 86106 | F85: Rugănești | G85: Harghita | H85: 504957.75 | I85: 533202.31 | J85: 504957.75 | K85: 533202.31 | L85: - | M85: - | N85: SM0401D0 | O85: Rugănești | P85: - | Q85: - | R85: - | S85: - | T85: SM-SD001 | U85: Nova Power, Cez Vânzare, Distrigaz Vest, Engie, E.on Energie, Electrica Furnizare, Energy Distribution, Enel Energie, Enel Muntenia, Entrex, Eye Mall, Premier Energy Trading, Gaz Est, Local Gaz, Met România, MVM Future, Premier Energy, Petrom, Gas Provider, Renovatio, Romgaz, Solprim,Tinmar, Transenergo | V85: Premier Energy | W85: - | X85: 2023-10-07 | Y85: 11:30:00 | Z85: 2023-10-07 | AA85: 13:55:00 | AB85: Brașov | AC85: Efectuată | AE85: 2023-10-07 | AF85: 11:30:00 | AG85: 2023-10-07 | AH85: 13:55:00 | AI85: 2023-10-07 | AJ85: 14:42:00 | AK85: 2023-10-07 | AL85: 14:35:00 | AM85: - | AN85: DA | AR85: 3.083333333 | AS85: 1 | AT85: 1 | AU85: 3.2 | AV85: 24 | AW85: 24 | AX85: 2.416666667 | AY85: 0 | AZ85: 0
A86: 70 | B86: x | C86: - | D86: Înlocuire îmbinare electroizolantă DN50 la SRM Valea Măriei | E86: 139349 | F86: Vama | G86: Satu Mare | H86: 378753.11 | I86: 707417.7 | J86: 378753.11 | K86: 707417.7 | L86: - | M86: - | N86: SM0982D0 | O86: Valea Măriei | P86: - | Q86: - | R86: - | S86: - | T86: SM-SD001 | U86: Nova Power, Cez Vânzare, Distrigaz Vest, Engie, AXPO Energy, E.on Energie, Electrica Furnizare, Energy Distribution, Enel Energie, Enel Muntenia, Eye Mall, Premier Energy Trading, Gaz Vest, Met România, MVM Future, Premier Energy, Petrom, Gas Provider, Renovatio, Romgaz, Solprim, Tinmar | V86: Gaz Vest | W86: - | X86: 2023-10-09 | Y86: 12:00:00 | Z86: 2023-10-09 | AA86: 14:00:00 | AB86: Cluj | AC86: Efectuată | AE86: 2023-10-09 | AF86: 12:00:00 | AG86: 2023-10-09 | AH86: 14:00:00 | AI86: 2023-10-09 | AJ86: 12:12:00 | AK86: 2023-10-09 | AL86: 12:05:00 | AM86: 74240/06.10.2023 | AN86: NU | AR86: =IF(B86="X",IF(AN86="","Afectat sau NU?",IF(AN86="DA",IF(((AK86+AL86)-(AE86+AF86))*24<-720,"Neinformat",((AK86+AL86)-(AE86+AF86))*24),"Nu a fost afectat producator/consumator")),"") -> Nu a fost afectat producator/consumator | AS86: =IF(B86="X",IF(AN86="DA",IF(AR86<6,LEN(TRIM(V86))-LEN(SUBSTITUTE(V86,CHAR(44),""))+1,0),"-"),"") -> - | AT86: =IF(B86="X",IF(AN86="DA",LEN(TRIM(V86))-LEN(SUBSTITUTE(V86,CHAR(44),""))+1,"-"),"") -> - | AU86: =IF(B86="X",IF(AN86="","Afectat sau NU?",IF(AN86="DA",IF(((AI86+AJ86)-(AE86+AF86))*24<-720,"Neinformat",((AI86+AJ86)-(AE86+AF86))*24),"Nu a fost afectat producator/consumator")),"") -> Nu a fost afectat producator/consumator | AV86: =IF(B86="X",IF(AN86="DA",IF(AU86<6,LEN(TRIM(U86))-LEN(SUBSTITUTE(U86,CHAR(44),""))+1,0),"-"),"") -> - | AW86: =IF(B86="X",IF(AN86="DA",LEN(TRIM(U86))-LEN(SUBSTITUTE(U86,CHAR(44),""))+1,"-"),"") -> - | AX86: =IF(B86="X",IF(AN86="","Afectat sau NU?",IF(AN86="DA",((AG86+AH86)-(AE86+AF86))*24,"Nu a fost afectat producator/consumator")),"") -> Nu a fost afectat producator/consumator | AY86: =IF(B86="X",IF(AN86="DA",IF(AX86>24,IF(BA86="NU",0,LEN(TRIM(V86))-LEN(SUBSTITUTE(V86,CHAR(44),""))+1),0),"-"),"") -> - | AZ86: =IF(B86="X",IF(AN86="DA",IF(AX86>24,LEN(TRIM(V86))-LEN(SUBSTITUTE(V86,CHAR(44),""))+1,0),"-"),"") -> - | BF86: =IF(C86="X",IF(AN86="","Afectat sau NU?",IF(AN86="DA",IF(AK86="","Neinformat",NETWORKDAYS(AK86+AL86,AE86+AF86,$BS$2:$BS$14)-2),"Nu a fost afectat producator/consumator")),"") ->  | BG86: =IF(C86="X",IF(AN86="DA",IF(AND(BF86>=5,AK86<>""),LEN(TRIM(V86))-LEN(SUBSTITUTE(V86,CHAR(44),""))+1,0),"-"),"") ->  | BH86: =IF(C86="X",IF(AN86="DA",LEN(TRIM(V86))-LEN(SUBSTITUTE(V86,CHAR(44),""))+1,"-"),"") ->  | BI86: =IF(C86="X",IF(AN86="","Afectat sau NU?",IF(AN86="DA",IF(AI86="","Neinformat",NETWORKDAYS(AI86+AJ86,AE86+AF86,$BS$2:$BS$14)-2),"Nu a fost afectat producator/consumator")),"") ->  | BJ86: =IF(C86="X",IF(AN86="DA",IF(AND(BI86>=5,AI86<>""),LEN(TRIM(U86))-LEN(SUBSTITUTE(U86,CHAR(44),""))+1,0),"-"),"") ->  | BK86: =IF(C86="X",IF(AN86="DA",LEN(TRIM(U86))-LEN(SUBSTITUTE(U86,CHAR(44),""))+1,"-"),"") ->  | BL86: =IF(C86="X",IF(AN86="","Afectat sau NU?",IF(AN86="DA",((AG86+AH86)-(Z86+AA86))*24,"Nu a fost afectat producator/consumator")),"") ->  | BM86: =IF(C86="X",IF(AN86<>"DA","-",IF(AND(AN86="DA",BL86<=0),LEN(TRIM(V86))-LEN(SUBSTITUTE(V86,CHAR(44),""))+1+LEN(TRIM(U86))-LEN(SUBSTITUTE(U86,CHAR(44),""))+1,0)),"") ->  | BN86: =IF(C86="X",IF(AN86="DA",LEN(TRIM(V86))-LEN(SUBSTITUTE(V86,CHAR(44),""))+1+LEN(TRIM(U86))-LEN(SUBSTITUTE(U86,CHAR(44),""))+1,"-"),"") -> 
A87: 71 | B87: x | C87: - | D87: Reparare definitivă pe conducta DN50 racord SRM Mănăstirea Măgura Ocnei | E87: 20974 | F87: Târgu Ocna | G87: Bacău | H87: 622375.15 | I87: 531290.59 | J87: 622375.15 | K87: 531290.59 | L87: - | M87: - | N87: SM0427D0 | O87: Mănăstirea Măgura Ocnei | P87: - | Q87: - | R87: - | S87: - | T87: SM-CF001 | U87: Enel Energie | V87: Mănăstirea Măgura Ocnei | W87: - | X87: 2023-10-10 | Y87: 09:00:00 | Z87: 2023-10-10 | AA87: 14:00:00 | AB87: Bacău | AC87: Efectuată | AE87: 2023-10-10 | AF87: 09:00:00 | AG87: 2023-10-10 | AH87: 12:00:00 | AI87: 2023-10-10 | AJ87: 09:10:00 | AK87: 2023-10-10 | AL87: 09:05:00 | AM87: 74367/06.10.2023 | AN87: DA | AR87: =IF(B87="X",IF(AN87="","Afectat sau NU?",IF(AN87="DA",IF(((AK87+AL87)-(AE87+AF87))*24<-720,"Neinformat",((AK87+AL87)-(AE87+AF87))*24),"Nu a fost afectat producator/consumator")),"") -> 0.08333333326 | AS87: =IF(B87="X",IF(AN87="DA",IF(AR87<6,LEN(TRIM(V87))-LEN(SUBSTITUTE(V87,CHAR(44),""))+1,0),"-"),"") -> 1 | AT87: =IF(B87="X",IF(AN87="DA",LEN(TRIM(V87))-LEN(SUBSTITUTE(V87,CHAR(44),""))+1,"-"),"") -> 1 | AU87: =IF(B87="X",IF(AN87="","Afectat sau NU?",IF(AN87="DA",IF(((AI87+AJ87)-(AE87+AF87))*24<-720,"Neinformat",((AI87+AJ87)-(AE87+AF87))*24),"Nu a fost afectat producator/consumator")),"") -> 0.1666666667 | AV87: =IF(B87="X",IF(AN87="DA",IF(AU87<6,LEN(TRIM(U87))-LEN(SUBSTITUTE(U87,CHAR(44),""))+1,0),"-"),"") -> 1 | AW87: =IF(B87="X",IF(AN87="DA",LEN(TRIM(U87))-LEN(SUBSTITUTE(U87,CHAR(44),""))+1,"-"),"") -> 1 | AX87: =IF(B87="X",IF(AN87="","Afectat sau NU?",IF(AN87="DA",((AG87+AH87)-(AE87+AF87))*24,"Nu a fost afectat producator/consumator")),"") -> 3 | AY87: =IF(B87="X",IF(AN87="DA",IF(AX87>24,IF(BA87="NU",0,LEN(TRIM(V87))-LEN(SUBSTITUTE(V87,CHAR(44),""))+1),0),"-"),"") -> 0 | AZ87: =IF(B87="X",IF(AN87="DA",IF(AX87>24,LEN(TRIM(V87))-LEN(SUBSTITUTE(V87,CHAR(44),""))+1,0),"-"),"") -> 0 | BF87: =IF(C87="X",IF(AN87="","Afectat sau NU?",IF(AN87="DA",IF(AK87="","Neinformat",NETWORKDAYS(AK87+AL87,AE87+AF87,$BS$2:$BS$14)-2),"Nu a fost afectat producator/consumator")),"") ->  | BG87: =IF(C87="X",IF(AN87="DA",IF(AND(BF87>=5,AK87<>""),LEN(TRIM(V87))-LEN(SUBSTITUTE(V87,CHAR(44),""))+1,0),"-"),"") ->  | BH87: =IF(C87="X",IF(AN87="DA",LEN(TRIM(V87))-LEN(SUBSTITUTE(V87,CHAR(44),""))+1,"-"),"") ->  | BI87: =IF(C87="X",IF(AN87="","Afectat sau NU?",IF(AN87="DA",IF(AI87="","Neinformat",NETWORKDAYS(AI87+AJ87,AE87+AF87,$BS$2:$BS$14)-2),"Nu a fost afectat producator/consumator")),"") ->  | BJ87: =IF(C87="X",IF(AN87="DA",IF(AND(BI87>=5,AI87<>""),LEN(TRIM(U87))-LEN(SUBSTITUTE(U87,CHAR(44),""))+1,0),"-"),"") ->  | BK87: =IF(C87="X",IF(AN87="DA",LEN(TRIM(U87))-LEN(SUBSTITUTE(U87,CHAR(44),""))+1,"-"),"") ->  | BL87: =IF(C87="X",IF(AN87="","Afectat sau NU?",IF(AN87="DA",((AG87+AH87)-(Z87+AA87))*24,"Nu a fost afectat producator/consumator")),"") ->  | BM87: =IF(C87="X",IF(AN87<>"DA","-",IF(AND(AN87="DA",BL87<=0),LEN(TRIM(V87))-LEN(SUBSTITUTE(V87,CHAR(44),""))+1+LEN(TRIM(U87))-LEN(SUBSTITUTE(U87,CHAR(44),""))+1,0)),"") ->  | BN87: =IF(C87="X",IF(AN87="DA",LEN(TRIM(V87))-LEN(SUBSTITUTE(V87,CHAR(44),""))+1+LEN(TRIM(U87))-LEN(SUBSTITUTE(U87,CHAR(44),""))+1,"-"),"") -> 
A88: 72 | B88: x | C88: - | D88: Montare robinet și flanșă electroizolantă monobloc pe conducta DN100 racord SRM Costești | E88: 163146 | F88: Costești | G88: Vaslui | H88: 714115.43 | I88: 559047.91 | J88: 714115.43 | K88: 559047.91 | L88: - | M88: - | N88: SM1019D0 | O88: Costești | P88: - | Q88: - | R88: - | S88: - | T88: SM-SD001 | U88: Nova Power, Cez Vânzare, Engie, E.on Energie, Electrica Furnizare, Enel Energie, Enel Muntenia, Eye Mall, Premier Energy Trading, Gaz Vest, Met România, Premier Energy, Petrom, Renovatio, Romgaz | V88: Gaz Vest | W88: - | X88: 2023-10-10 | Y88: 08:12:00 | Z88: 2023-10-10 | AA88: 16:00:00 | AB88: Brăila | AC88: Efectuată | AE88: 2023-10-10 | AF88: 08:12:00 | AG88: 2023-10-10 | AH88: 11:40:00 | AI88: 2023-10-10 | AJ88: 08:36:00 | AK88: 2023-10-10 | AL88: 08:28:00 | AM88: 74686/09.10.2023 | AN88: DA | AR88: =IF(B88="X",IF(AN88="","Afectat sau NU?",IF(AN88="DA",IF(((AK88+AL88)-(AE88+AF88))*24<-720,"Neinformat",((AK88+AL88)-(AE88+AF88))*24),"Nu a fost afectat producator/consumator")),"") -> 0.2666666667 | AS88: =IF(B88="X",IF(AN88="DA",IF(AR88<6,LEN(TRIM(V88))-LEN(SUBSTITUTE(V88,CHAR(44),""))+1,0),"-"),"") -> 1 | AT88: =IF(B88="X",IF(AN88="DA",LEN(TRIM(V88))-LEN(SUBSTITUTE(V88,CHAR(44),""))+1,"-"),"") -> 1 | AU88: =IF(B88="X",IF(AN88="","Afectat sau NU?",IF(AN88="DA",IF(((AI88+AJ88)-(AE88+AF88))*24<-720,"Neinformat",((AI88+AJ88)-(AE88+AF88))*24),"Nu a fost afectat producator/consumator")),"") -> 0.3999999999 | AV88: =IF(B88="X",IF(AN88="DA",IF(AU88<6,LEN(TRIM(U88))-LEN(SUBSTITUTE(U88,CHAR(44),""))+1,0),"-"),"") -> 15 | AW88: =IF(B88="X",IF(AN88="DA",LEN(TRIM(U88))-LEN(SUBSTITUTE(U88,CHAR(44),""))+1,"-"),"") -> 15 | AX88: =IF(B88="X",IF(AN88="","Afectat sau NU?",IF(AN88="DA",((AG88+AH88)-(AE88+AF88))*24,"Nu a fost afectat producator/consumator")),"") -> 3.466666667 | AY88: =IF(B88="X",IF(AN88="DA",IF(AX88>24,IF(BA88="NU",0,LEN(TRIM(V88))-LEN(SUBSTITUTE(V88,CHAR(44),""))+1),0),"-"),"") -> 0 | AZ88: =IF(B88="X",IF(AN88="DA",IF(AX88>24,LEN(TRIM(V88))-LEN(SUBSTITUTE(V88,CHAR(44),""))+1,0),"-"),"") -> 0 | BF88: =IF(C88="X",IF(AN88="","Afectat sau NU?",IF(AN88="DA",IF(AK88="","Neinformat",NETWORKDAYS(AK88+AL88,AE88+AF88,$BS$2:$BS$14)-2),"Nu a fost afectat producator/consumator")),"") ->  | BG88: =IF(C88="X",IF(AN88="DA",IF(AND(BF88>=5,AK88<>""),LEN(TRIM(V88))-LEN(SUBSTITUTE(V88,CHAR(44),""))+1,0),"-"),"") ->  | BH88: =IF(C88="X",IF(AN88="DA",LEN(TRIM(V88))-LEN(SUBSTITUTE(V88,CHAR(44),""))+1,"-"),"") ->  | BI88: =IF(C88="X",IF(AN88="","Afectat sau NU?",IF(AN88="DA",IF(AI88="","Neinformat",NETWORKDAYS(AI88+AJ88,AE88+AF88,$BS$2:$BS$14)-2),"Nu a fost afectat producator/consumator")),"") ->  | BJ88: =IF(C88="X",IF(AN88="DA",IF(AND(BI88>=5,AI88<>""),LEN(TRIM(U88))-LEN(SUBSTITUTE(U88,CHAR(44),""))+1,0),"-"),"") ->  | BK88: =IF(C88="X",IF(AN88="DA",LEN(TRIM(U88))-LEN(SUBSTITUTE(U88,CHAR(44),""))+1,"-"),"") ->  | BL88: =IF(C88="X",IF(AN88="","Afectat sau NU?",IF(AN88="DA",((AG88+AH88)-(Z88+AA88))*24,"Nu a fost afectat producator/consumator")),"") ->  | BM88: =IF(C88="X",IF(AN88<>"DA","-",IF(AND(AN88="DA",BL88<=0),LEN(TRIM(V88))-LEN(SUBSTITUTE(V88,CHAR(44),""))+1+LEN(TRIM(U88))-LEN(SUBSTITUTE(U88,CHAR(44),""))+1,0)),"") ->  | BN88: =IF(C88="X",IF(AN88="DA",LEN(TRIM(V88))-LEN(SUBSTITUTE(V88,CHAR(44),""))+1+LEN(TRIM(U88))-LEN(SUBSTITUTE(U88,CHAR(44),""))+1,"-"),"") -> 
A89: 73 | B89: x | C89: - | D89: Remediere defect produs de terț pe conducta DN300 racord SRM Medgidia | E89: 60856 | F89: Medgidia | G89: Constanța | H89: 761940.37 | I89: 312300.43 | J89: 761940.37 | K89: 312300.43 | L89: - | M89: - | N89: SM0869D0 | O89: Medgidia | P89: - | Q89: - | R89: - | S89: - | T89: SM-SD001 | U89: Alpha Metal, Nova Power, Bepco, Cez Vânzare, Complexul Energetic Oltenia, Distrigaz Sud Rețele, Distrigaz Vest, Engie, E.on Energie, Electrocentrale București, Electrica Furnizare, Electric Planners, Energy Distribution, Enel Energie, Enel Muntenia, Entrex, Euro Seven, Eye Mall, Premier Energy Trading, Gaz Est, Getica95, Local Gaz, Met România, Monsson, Termoenergetica București, MVM Future, Next Energy Distribution, Next Energy Partners, Premier Energy, Petrom, Gas Provider, Renovatio, Romgaz, RWE Supply, Solprim, Sustainable Energy, Termocentrale Constanța, Termo Calor, Tinmar, Transenergo, Termoelectrica Giurgiu | V89: Distrigaz Sud Rețele | W89: - | X89: 2023-10-11 | Y89: 16:45:00 | Z89: 2023-10-12 | AA89: 12:00:00 | AB89: Constanța | AC89: Efectuată | AE89: 2023-10-11 | AF89: 16:45:00 | AG89: 2023-10-12 | AH89: 10:10:00 | AI89: 2023-10-11 | AJ89: 17:28:00 | AK89: 2023-10-11 | AL89: 17:24:00 | AM89: 76216/12.10.2023 | AN89: DA | AR89: 0.65 | AS89: 1 | AT89: 1 | AU89: 0.7166666667 | AV89: 40 | AW89: 40 | AX89: 17.41666667 | AY89: 0 | AZ89: 0
A90: =A89+1 -> 74 | B90: x | C90: - | D90: Remediere defect produs de terț pe conducta DN300 racord SRM Medgidia | E90: 62208 | F90: Mihail Kogălniceanu | G90: Constanța | H90: 775697.99 | I90: 323652.83 | J90: 775697.99 | K90: 323652.83 | L90: - | M90: - | N90: SM0974D0 | O90: Mihail Kogălniceanu | P90: - | Q90: - | R90: - | S90: - | T90: SM-SD001 | U90: Alpha Metal, Nova Power, Bepco, Cez Vânzare, Complexul Energetic Oltenia, Distrigaz Sud Rețele, Distrigaz Vest, Engie, E.on Energie, Electrocentrale București, Electrica Furnizare, Electric Planners, Energy Distribution, Enel Energie, Enel Muntenia, Entrex, Euro Seven, Eye Mall, Premier Energy Trading, Gaz Est, Getica95, Local Gaz, Met România, Monsson, Termoenergetica București, MVM Future, Next Energy Distribution, Next Energy Partners, Premier Energy, Petrom, Gas Provider, Renovatio, Romgaz, RWE Supply, Solprim, Sustainable Energy, Termocentrale Constanța, Termo Calor, Tinmar, Transenergo, Termoelectrica Giurgiu | V90: Distrigaz Sud Rețele | W90: - | X90: 2023-10-11 | Y90: 16:45:00 | Z90: 2023-10-12 | AA90: 12:00:00 | AB90: Constanța | AC90: Efectuată | AE90: 2023-10-11 | AF90: 16:45:00 | AG90: 2023-10-12 | AH90: 09:30:00 | AI90: 2023-10-11 | AJ90: 17:28:00 | AK90: 2023-10-11 | AL90: 17:24:00 | AM90: 76216/12.10.2023 | AN90: DA | AR90: 0.65 | AS90: 1 | AT90: 1 | AU90: 0.7166666667 | AV90: 40 | AW90: 40 | AX90: 16.75 | AY90: 0 | AZ90: 0
A91: 75 | B91: x | C91: - | D91: Montarea unei linii de măsurare a debitelor mici la SM0848D0 Jidevei I | E91: 5112 | F91: Jidvei | G91: Alba | H91: 431969.69 | I91: 525823.5 | J91: 431969.69 | K91: 525823.5 | L91: - | M91: - | N91: SM0848D0 | O91: Jidvei I | P91: - | Q91: - | R91: - | S91: - | T91: SM-SD001 | U91: Nova Power, Cet Hidrocarburi, Cez Vânzare, Colterm, CPL Concordia, Delgaz, Design Proiect, Distrigaz Vest, Engie, Axpo, E.on Energie, Electrica Furnizare, Electric Planners, Energy Distribution, Enel Energie, Enel Muntenia, Entrex, Eye Mall, Premier Energy Trading, Gaz Est, Gazmir, Local Gaz, Mihoc Oil, Met România, MVM Future, Next Energy Distribution, Premier Energy, Petrom, Prisma Serv, Gas Provider, Renovatio, Romgaz, RWE Supply, Solprim, Tetarom, Tinmar, Transenergo | V91: Delgaz Grid | W91: - | X91: 2023-10-12 | Y91: 09:00:00 | Z91: 2023-10-12 | AA91: 13:00:00 | AB91: Mediaș | AC91: Efectuată | AE91: 2023-10-12 | AF91: 09:00:00 | AG91: 2023-10-12 | AH91: 13:00:00 | AI91: 2023-10-12 | AJ91: 09:36:00 | AK91: 2023-10-12 | AL91: 09:28:00 | AM91: 4273/11.10.2023 | AN91: DA | AR91: =IF(B91="X",IF(AN91="","Afectat sau NU?",IF(AN91="DA",IF(((AK91+AL91)-(AE91+AF91))*24<-720,"Neinformat",((AK91+AL91)-(AE91+AF91))*24),"Nu a fost afectat producator/consumator")),"") -> 0.4666666666 | AS91: =IF(B91="X",IF(AN91="DA",IF(AR91<6,LEN(TRIM(V91))-LEN(SUBSTITUTE(V91,CHAR(44),""))+1,0),"-"),"") -> 1 | AT91: =IF(B91="X",IF(AN91="DA",LEN(TRIM(V91))-LEN(SUBSTITUTE(V91,CHAR(44),""))+1,"-"),"") -> 1 | AU91: =IF(B91="X",IF(AN91="","Afectat sau NU?",IF(AN91="DA",IF(((AI91+AJ91)-(AE91+AF91))*24<-720,"Neinformat",((AI91+AJ91)-(AE91+AF91))*24),"Nu a fost afectat producator/consumator")),"") -> 0.6 | AV91: =IF(B91="X",IF(AN91="DA",IF(AU91<6,LEN(TRIM(U91))-LEN(SUBSTITUTE(U91,CHAR(44),""))+1,0),"-"),"") -> 37 | AW91: =IF(B91="X",IF(AN91="DA",LEN(TRIM(U91))-LEN(SUBSTITUTE(U91,CHAR(44),""))+1,"-"),"") -> 37 | AX91: =IF(B91="X",IF(AN91="","Afectat sau NU?",IF(AN91="DA",((AG91+AH91)-(AE91+AF91))*24,"Nu a fost afectat producator/consumator")),"") -> 4 | AY91: =IF(B91="X",IF(AN91="DA",IF(AX91>24,IF(BA91="NU",0,LEN(TRIM(V91))-LEN(SUBSTITUTE(V91,CHAR(44),""))+1),0),"-"),"") -> 0 | AZ91: =IF(B91="X",IF(AN91="DA",IF(AX91>24,LEN(TRIM(V91))-LEN(SUBSTITUTE(V91,CHAR(44),""))+1,0),"-"),"") -> 0 | BF91: =IF(C91="X",IF(AN91="","Afectat sau NU?",IF(AN91="DA",IF(AK91="","Neinformat",NETWORKDAYS(AK91+AL91,AE91+AF91,$BS$2:$BS$14)-2),"Nu a fost afectat producator/consumator")),"") ->  | BG91: =IF(C91="X",IF(AN91="DA",IF(AND(BF91>=5,AK91<>""),LEN(TRIM(V91))-LEN(SUBSTITUTE(V91,CHAR(44),""))+1,0),"-"),"") ->  | BH91: =IF(C91="X",IF(AN91="DA",LEN(TRIM(V91))-LEN(SUBSTITUTE(V91,CHAR(44),""))+1,"-"),"") ->  | BI91: =IF(C91="X",IF(AN91="","Afectat sau NU?",IF(AN91="DA",IF(AI91="","Neinformat",NETWORKDAYS(AI91+AJ91,AE91+AF91,$BS$2:$BS$14)-2),"Nu a fost afectat producator/consumator")),"") ->  | BJ91: =IF(C91="X",IF(AN91="DA",IF(AND(BI91>=5,AI91<>""),LEN(TRIM(U91))-LEN(SUBSTITUTE(U91,CHAR(44),""))+1,0),"-"),"") ->  | BK91: =IF(C91="X",IF(AN91="DA",LEN(TRIM(U91))-LEN(SUBSTITUTE(U91,CHAR(44),""))+1,"-"),"") ->  | BL91: =IF(C91="X",IF(AN91="","Afectat sau NU?",IF(AN91="DA",((AG91+AH91)-(Z91+AA91))*24,"Nu a fost afectat producator/consumator")),"") ->  | BM91: =IF(C91="X",IF(AN91<>"DA","-",IF(AND(AN91="DA",BL91<=0),LEN(TRIM(V91))-LEN(SUBSTITUTE(V91,CHAR(44),""))+1+LEN(TRIM(U91))-LEN(SUBSTITUTE(U91,CHAR(44),""))+1,0)),"") ->  | BN91: =IF(C91="X",IF(AN91="DA",LEN(TRIM(V91))-LEN(SUBSTITUTE(V91,CHAR(44),""))+1+LEN(TRIM(U91))-LEN(SUBSTITUTE(U91,CHAR(44),""))+1,"-"),"") -> 
A92: 76 | B92: x | C92: - | D92: Înlocuire flanșă electroizolntă cu îmbinare electroizolantă monobloc la SRM Hodăi Boian | E92: 56924 | F92: Hodăi-Boian | G92: Cluj | H92: 424196.47 | I92: 572114.57 | J92: 424196.47 | K92: 572114.57 | L92: - | M92: - | N92: SM0627D0 | O92: Hodăi Boian | P92: - | Q92: - | R92: - | S92: - | T92: SM-SD001 | U92: Nova Power, Cet Hidrocarburi, Cez Vânzare, Colterm, CPL Concordia, Delgaz, Design Proiect, Distrigaz Vest, Engie, Axpo, E.on Energie, Electrica Furnizare, Electric Planners, Energy Distribution, Enel Energie, Enel Muntenia, Entrex, Eye Mall, Premier Energy Trading, Gaz Est, Gazmir, Local Gaz, Mihoc Oil, Met România, MVM Future, Next Energy Distribution, Premier Energy, Petrom, Prisma Serv, Gas Provider, Renovatio, Romgaz, RWE Supply, Solprim, Tetarom, Tinmar, Transenergo | V92: Delgaz Grid | W92: - | X92: 2023-10-18 | Y92: 10:27:00 | Z92: 2023-10-18 | AA92: 14:00:00 | AB92: Cluj | AC92: Efectuată | AE92: 2023-10-18 | AF92: 10:27:00 | AG92: 2023-10-18 | AH92: 13:16:00 | AI92: 2023-10-18 | AJ92: 10:35:00 | AK92: 2023-10-18 | AL92: 10:28:00 | AM92: 77168/16.10.2023 | AN92: DA | AR92: 0.01666666672 | AS92: 1 | AT92: 1 | AU92: 0.1333333332 | AV92: 37 | AW92: 37 | AX92: 2.816666667 | AY92: 0 | AZ92: 0
A93: 77 | B93: x | C93: - | D93: Relocare tronsoane în punctele de intersecție cu autostrada A7 Moldova pe conductele DN250 racord SRM Focșani și DN150 racord SRM Panciu | E93: 174753 | F93: Focșani | G93: Vrancea | H93: 668732.43 | I93: 471274.5 | J93: 668732.43 | K93: 471274.5 | L93: - | M93: - | N93: SM0512D0 | O93: Focșani | P93: - | Q93: - | R93: - | S93: - | T93: SM-SD001 | U93: Alpha Metal, Nova Power, Bepco, Cez Vânzare, Complexul Energetic Oltenia, Distrigaz Sud Rețele, Distrigaz Vest, Engie, E.on Energie, Electrocentrale București, Electrica Furnizare, Electric Planners, Energy Distribution, Enel Energie, Enel Muntenia, Entrex, Euro Seven, Eye Mall, Premier Energy Trading, Gaz Est, Getica95, Local Gaz, Met România, Monsson, Termoenergetica București, MVM Future, Next Energy Distribution, Next Energy Partners, Premier Energy, Petrom, Gas Provider, Renovatio, Romgaz, RWE Supply, Solprim, Sustainable Energy, Termocentrale Constanța, Termo Calor, Tinmar, Transenergo, Termoelectrica Giurgiu | V93: Distrigaz Sud Rețele | W93: - | X93: 2023-10-23 | Y93: 06:01:00 | Z93: 2023-10-24 | AA93: 08:00:00 | AB93: Brăila | AC93: Efectuată | AE93: 2023-10-23 | AF93: 06:01:00 | AG93: 2023-10-23 | AH93: 18:55:00 | AI93: 2023-10-23 | AJ93: 06:08:00 | AK93: 2023-10-23 | AL93: 06:03:00 | AM93: 78100/18.10.2023 | AN93: DA | AR93: =IF(B93="X",IF(AN93="","Afectat sau NU?",IF(AN93="DA",IF(((AK93+AL93)-(AE93+AF93))*24<-720,"Neinformat",((AK93+AL93)-(AE93+AF93))*24),"Nu a fost afectat producator/consumator")),"") -> 0.03333333327 | AS93: =IF(B93="X",IF(AN93="DA",IF(AR93<6,LEN(TRIM(V93))-LEN(SUBSTITUTE(V93,CHAR(44),""))+1,0),"-"),"") -> 1 | AT93: =IF(B93="X",IF(AN93="DA",LEN(TRIM(V93))-LEN(SUBSTITUTE(V93,CHAR(44),""))+1,"-"),"") -> 1 | AU93: =IF(B93="X",IF(AN93="","Afectat sau NU?",IF(AN93="DA",IF(((AI93+AJ93)-(AE93+AF93))*24<-720,"Neinformat",((AI93+AJ93)-(AE93+AF93))*24),"Nu a fost afectat producator/consumator")),"") -> 0.1166666667 | AV93: =IF(B93="X",IF(AN93="DA",IF(AU93<6,LEN(TRIM(U93))-LEN(SUBSTITUTE(U93,CHAR(44),""))+1,0),"-"),"") -> 40 | AW93: =IF(B93="X",IF(AN93="DA",LEN(TRIM(U93))-LEN(SUBSTITUTE(U93,CHAR(44),""))+1,"-"),"") -> 40 | AX93: =IF(B93="X",IF(AN93="","Afectat sau NU?",IF(AN93="DA",((AG93+AH93)-(AE93+AF93))*24,"Nu a fost afectat producator/consumator")),"") -> 12.9 | AY93: =IF(B93="X",IF(AN93="DA",IF(AX93>24,IF(BA93="NU",0,LEN(TRIM(V93))-LEN(SUBSTITUTE(V93,CHAR(44),""))+1),0),"-"),"") -> 0 | AZ93: =IF(B93="X",IF(AN93="DA",IF(AX93>24,LEN(TRIM(V93))-LEN(SUBSTITUTE(V93,CHAR(44),""))+1,0),"-"),"") -> 0 | BG93: =IF(C93="X",IF(AN93="DA",IF(AND(BF93>=5,AK93<>""),LEN(TRIM(V93))-LEN(SUBSTITUTE(V93,CHAR(44),""))+1,0),"-"),"") ->  | BH93: =IF(C93="X",IF(AN93="DA",LEN(TRIM(V93))-LEN(SUBSTITUTE(V93,CHAR(44),""))+1,"-"),"") ->  | BJ93: =IF(C93="X",IF(AN93="DA",IF(AND(BI93>=5,AI93<>""),LEN(TRIM(U93))-LEN(SUBSTITUTE(U93,CHAR(44),""))+1,0),"-"),"") ->  | BK93: =IF(C93="X",IF(AN93="DA",LEN(TRIM(U93))-LEN(SUBSTITUTE(U93,CHAR(44),""))+1,"-"),"") ->  | BL93: =IF(C93="X",IF(AN93="","Afectat sau NU?",IF(AN93="DA",((AG93+AH93)-(Z93+AA93))*24,"Nu a fost afectat producator/consumator")),"") ->  | BM93: =IF(C93="X",IF(AN93<>"DA","-",IF(AND(AN93="DA",BL93<=0),LEN(TRIM(V93))-LEN(SUBSTITUTE(V93,CHAR(44),""))+1+LEN(TRIM(U93))-LEN(SUBSTITUTE(U93,CHAR(44),""))+1,0)),"") ->  | BN93: =IF(C93="X",IF(AN93="DA",LEN(TRIM(V93))-LEN(SUBSTITUTE(V93,CHAR(44),""))+1+LEN(TRIM(U93))-LEN(SUBSTITUTE(U93,CHAR(44),""))+1,"-"),"") -> 
A94: 78 | B94: x | C94: - | D94: Relocare tronsoane în punctele de intersecție cu autostrada A7 Moldova pe conductele DN250 racord SRM Focșani și DN150 racord SRM Panciu | E94: 174753 | F94: Focșani | G94: Vrancea | H94: 668725.95 | I94: 471267.39 | J94: 668725.95 | K94: 471267.39 | L94: - | M94: - | N94: SM1110D0 | O94: Odobești | P94: - | Q94: - | R94: - | S94: - | T94: SM-SD001 | U94: Nova Power, Cez Vânzare, Engie, Axpo Energy, E.on Energie, Electrica Furnizare, Enel Energie, Enel Muntenia, Euro Seven, Eye Mall, Premier Energy Trading, Gaz Est, Gazmir, Met România, Premier Energy, Petrom, Romgaz, Tinmar | V94: Gazmir | W94: - | X94: 2023-10-23 | Y94: 06:01:00 | Z94: 2023-10-24 | AA94: 08:00:00 | AB94: Brăila | AC94: Efectuată | AE94: 2023-10-23 | AF94: 06:01:00 | AG94: 2023-10-23 | AH94: 19:12:00 | AI94: 2023-10-23 | AJ94: 06:15:00 | AK94: 2023-10-23 | AL94: 06:03:00 | AM94: 78100/18.10.2023 | AN94: DA | AR94: =IF(B94="X",IF(AN94="","Afectat sau NU?",IF(AN94="DA",IF(((AK94+AL94)-(AE94+AF94))*24<-720,"Neinformat",((AK94+AL94)-(AE94+AF94))*24),"Nu a fost afectat producator/consumator")),"") -> 0.03333333327 | AS94: =IF(B94="X",IF(AN94="DA",IF(AR94<6,LEN(TRIM(V94))-LEN(SUBSTITUTE(V94,CHAR(44),""))+1,0),"-"),"") -> 1 | AT94: =IF(B94="X",IF(AN94="DA",LEN(TRIM(V94))-LEN(SUBSTITUTE(V94,CHAR(44),""))+1,"-"),"") -> 1 | AU94: =IF(B94="X",IF(AN94="","Afectat sau NU?",IF(AN94="DA",IF(((AI94+AJ94)-(AE94+AF94))*24<-720,"Neinformat",((AI94+AJ94)-(AE94+AF94))*24),"Nu a fost afectat producator/consumator")),"") -> 0.2333333332 | AV94: =IF(B94="X",IF(AN94="DA",IF(AU94<6,LEN(TRIM(U94))-LEN(SUBSTITUTE(U94,CHAR(44),""))+1,0),"-"),"") -> 18 | AW94: =IF(B94="X",IF(AN94="DA",LEN(TRIM(U94))-LEN(SUBSTITUTE(U94,CHAR(44),""))+1,"-"),"") -> 18 | AX94: =IF(B94="X",IF(AN94="","Afectat sau NU?",IF(AN94="DA",((AG94+AH94)-(AE94+AF94))*24,"Nu a fost afectat producator/consumator")),"") -> 13.18333333 | AY94: =IF(B94="X",IF(AN94="DA",IF(AX94>24,IF(BA94="NU",0,LEN(TRIM(V94))-LEN(SUBSTITUTE(V94,CHAR(44),""))+1),0),"-"),"") -> 0 | AZ94: =IF(B94="X",IF(AN94="DA",IF(AX94>24,LEN(TRIM(V94))-LEN(SUBSTITUTE(V94,CHAR(44),""))+1,0),"-"),"") -> 0 | BG94: =IF(C94="X",IF(AN94="DA",IF(AND(BF94>=5,AK94<>""),LEN(TRIM(V94))-LEN(SUBSTITUTE(V94,CHAR(44),""))+1,0),"-"),"") ->  | BH94: =IF(C94="X",IF(AN94="DA",LEN(TRIM(V94))-LEN(SUBSTITUTE(V94,CHAR(44),""))+1,"-"),"") ->  | BJ94: =IF(C94="X",IF(AN94="DA",IF(AND(BI94>=5,AI94<>""),LEN(TRIM(U94))-LEN(SUBSTITUTE(U94,CHAR(44),""))+1,0),"-"),"") ->  | BK94: =IF(C94="X",IF(AN94="DA",LEN(TRIM(U94))-LEN(SUBSTITUTE(U94,CHAR(44),""))+1,"-"),"") ->  | BL94: =IF(C94="X",IF(AN94="","Afectat sau NU?",IF(AN94="DA",((AG94+AH94)-(Z94+AA94))*24,"Nu a fost afectat producator/consumator")),"") ->  | BM94: =IF(C94="X",IF(AN94<>"DA","-",IF(AND(AN94="DA",BL94<=0),LEN(TRIM(V94))-LEN(SUBSTITUTE(V94,CHAR(44),""))+1+LEN(TRIM(U94))-LEN(SUBSTITUTE(U94,CHAR(44),""))+1,0)),"") ->  | BN94: =IF(C94="X",IF(AN94="DA",LEN(TRIM(V94))-LEN(SUBSTITUTE(V94,CHAR(44),""))+1+LEN(TRIM(U94))-LEN(SUBSTITUTE(U94,CHAR(44),""))+1,"-"),"") -> 
A95: =A94+1 -> 79 | B95: x | C95: - | D95: Relocare tronsoane în punctele de intersecție cu autostrada A7 Moldova pe conductele DN250 racord SRM Focșani și DN150 racord SRM Panciu | E95: 175064 | F95: Panciu | G95: Vrancea | H95: 664854.73 | I95: 487960.32 | J95: 664854.73 | K95: 487960.32 | L95: - | M95: - | N95: SM1109D0 | O95: Panciu | P95: - | Q95: - | R95: - | S95: - | T95: SM-SD001 | U95: Nova Power, Cez Vânzare, Engie, Axpo Energy, E.on Energie, Electrica Furnizare, Enel Energie, Enel Muntenia, Euro Seven, Eye Mall, Premier Energy Trading, Gaz Est, Gazmir, Met România, Premier Energy, Petrom, Romgaz, Tinmar | V95: Gazmir | W95: - | X95: 2023-10-23 | Y95: 06:01:00 | Z95: 2023-10-24 | AA95: 08:00:00 | AB95: Brăila | AC95: Efectuată | AE95: 2023-10-23 | AF95: 06:01:00 | AG95: 2023-10-23 | AH95: 19:33:00 | AI95: 2023-10-23 | AJ95: 06:15:00 | AK95: 2023-10-23 | AL95: 06:03:00 | AM95: 78100/18.10.2023 | AN95: DA | AR95: =IF(B95="X",IF(AN95="","Afectat sau NU?",IF(AN95="DA",IF(((AK95+AL95)-(AE95+AF95))*24<-720,"Neinformat",((AK95+AL95)-(AE95+AF95))*24),"Nu a fost afectat producator/consumator")),"") -> 0.03333333327 | AS95: =IF(B95="X",IF(AN95="DA",IF(AR95<6,LEN(TRIM(V95))-LEN(SUBSTITUTE(V95,CHAR(44),""))+1,0),"-"),"") -> 1 | AT95: =IF(B95="X",IF(AN95="DA",LEN(TRIM(V95))-LEN(SUBSTITUTE(V95,CHAR(44),""))+1,"-"),"") -> 1 | AU95: =IF(B95="X",IF(AN95="","Afectat sau NU?",IF(AN95="DA",IF(((AI95+AJ95)-(AE95+AF95))*24<-720,"Neinformat",((AI95+AJ95)-(AE95+AF95))*24),"Nu a fost afectat producator/consumator")),"") -> 0.2333333332 | AV95: =IF(B95="X",IF(AN95="DA",IF(AU95<6,LEN(TRIM(U95))-LEN(SUBSTITUTE(U95,CHAR(44),""))+1,0),"-"),"") -> 18 | AW95: =IF(B95="X",IF(AN95="DA",LEN(TRIM(U95))-LEN(SUBSTITUTE(U95,CHAR(44),""))+1,"-"),"") -> 18 | AX95: =IF(B95="X",IF(AN95="","Afectat sau NU?",IF(AN95="DA",((AG95+AH95)-(AE95+AF95))*24,"Nu a fost afectat producator/consumator")),"") -> 13.53333333 | AY95: =IF(B95="X",IF(AN95="DA",IF(AX95>24,IF(BA95="NU",0,LEN(TRIM(V95))-LEN(SUBSTITUTE(V95,CHAR(44),""))+1),0),"-"),"") -> 0 | AZ95: =IF(B95="X",IF(AN95="DA",IF(AX95>24,LEN(TRIM(V95))-LEN(SUBSTITUTE(V95,CHAR(44),""))+1,0),"-"),"") -> 0 | BG95: =IF(C95="X",IF(AN95="DA",IF(AND(BF95>=5,AK95<>""),LEN(TRIM(V95))-LEN(SUBSTITUTE(V95,CHAR(44),""))+1,0),"-"),"") ->  | BH95: =IF(C95="X",IF(AN95="DA",LEN(TRIM(V95))-LEN(SUBSTITUTE(V95,CHAR(44),""))+1,"-"),"") ->  | BJ95: =IF(C95="X",IF(AN95="DA",IF(AND(BI95>=5,AI95<>""),LEN(TRIM(U95))-LEN(SUBSTITUTE(U95,CHAR(44),""))+1,0),"-"),"") ->  | BK95: =IF(C95="X",IF(AN95="DA",LEN(TRIM(U95))-LEN(SUBSTITUTE(U95,CHAR(44),""))+1,"-"),"") ->  | BL95: =IF(C95="X",IF(AN95="","Afectat sau NU?",IF(AN95="DA",((AG95+AH95)-(Z95+AA95))*24,"Nu a fost afectat producator/consumator")),"") ->  | BM95: =IF(C95="X",IF(AN95<>"DA","-",IF(AND(AN95="DA",BL95<=0),LEN(TRIM(V95))-LEN(SUBSTITUTE(V95,CHAR(44),""))+1+LEN(TRIM(U95))-LEN(SUBSTITUTE(U95,CHAR(44),""))+1,0)),"") ->  | BN95: =IF(C95="X",IF(AN95="DA",LEN(TRIM(V95))-LEN(SUBSTITUTE(V95,CHAR(44),""))+1+LEN(TRIM(U95))-LEN(SUBSTITUTE(U95,CHAR(44),""))+1,"-"),"") -> 
A96: 80 | B96: x | C96: - | D96: Întrerupere accidentală SRM Hamba | E96: 145783 | F96: Hamba | G96: Sibiu | H96: 437086.9 | I96: 485006.65 | J96: 437086.9 | K96: 485006.65 | L96: - | M96: - | N96: SM0101D0 | O96: Hamba | P96: - | Q96: - | R96: - | S96: - | T96: SM-SD001 | U96: Nova Power, Cet Hidrocarburi, Cez Vânzare, Colterm, CPL Concordia, Delgaz, Design Proiect, Distrigaz Vest, Engie, Axpo, E.on Energie, Electrica Furnizare, Electric Planners, Energy Distribution, Enel Energie, Enel Muntenia, Entrex, Eye Mall, Premier Energy Trading, Gaz Est, Gazmir, Mihoc Oil, Met România, MVM Future, Next Energy Distribution, Premier Energy, Petrom, Prisma Serv, Gas Provider, Renovatio, Romgaz, RWE Supply, Solprim, Tetarom, Tinmar, Transenergo | V96: Delgaz Grid | W96: - | X96: 2023-11-01 | Y96: 17:40:00 | Z96: 2023-11-01 | AA96: 21:30:00 | AB96: Mediaș | AC96: Efectuată | AE96: 2023-11-01 | AF96: 17:40:00 | AG96: 2023-11-01 | AH96: 21:30:00 | AI96: 2023-11-01 | AJ96: 18:27:00 | AK96: 2023-11-01 | AL96: 18:22:00 | AM96: 4669/02.11.2023 | AN96: DA | AR96: =IF(B96="X",IF(AN96="","Afectat sau NU?",IF(AN96="DA",IF(((AK96+AL96)-(AE96+AF96))*24<-720,"Neinformat",((AK96+AL96)-(AE96+AF96))*24),"Nu a fost afectat producator/consumator")),"") -> 0.7 | AS96: =IF(B96="X",IF(AN96="DA",IF(AR96<6,LEN(TRIM(V96))-LEN(SUBSTITUTE(V96,CHAR(44),""))+1,0),"-"),"") -> 1 | AT96: =IF(B96="X",IF(AN96="DA",LEN(TRIM(V96))-LEN(SUBSTITUTE(V96,CHAR(44),""))+1,"-"),"") -> 1 | AU96: =IF(B96="X",IF(AN96="","Afectat sau NU?",IF(AN96="DA",IF(((AI96+AJ96)-(AE96+AF96))*24<-720,"Neinformat",((AI96+AJ96)-(AE96+AF96))*24),"Nu a fost afectat producator/consumator")),"") -> 0.7833333334 | AV96: =IF(B96="X",IF(AN96="DA",IF(AU96<6,LEN(TRIM(U96))-LEN(SUBSTITUTE(U96,CHAR(44),""))+1,0),"-"),"") -> 36 | AW96: =IF(B96="X",IF(AN96="DA",LEN(TRIM(U96))-LEN(SUBSTITUTE(U96,CHAR(44),""))+1,"-"),"") -> 36 | AX96: =IF(B96="X",IF(AN96="","Afectat sau NU?",IF(AN96="DA",((AG96+AH96)-(AE96+AF96))*24,"Nu a fost afectat producator/consumator")),"") -> 3.833333333 | AY96: =IF(B96="X",IF(AN96="DA",IF(AX96>24,IF(BA96="NU",0,LEN(TRIM(V96))-LEN(SUBSTITUTE(V96,CHAR(44),""))+1),0),"-"),"") -> 0 | AZ96: =IF(B96="X",IF(AN96="DA",IF(AX96>24,LEN(TRIM(V96))-LEN(SUBSTITUTE(V96,CHAR(44),""))+1,0),"-"),"") -> 0 | BG96: =IF(C96="X",IF(AN96="DA",IF(AND(BF96>=5,AK96<>""),LEN(TRIM(V96))-LEN(SUBSTITUTE(V96,CHAR(44),""))+1,0),"-"),"") ->  | BH96: =IF(C96="X",IF(AN96="DA",LEN(TRIM(V96))-LEN(SUBSTITUTE(V96,CHAR(44),""))+1,"-"),"") ->  | BJ96: =IF(C96="X",IF(AN96="DA",IF(AND(BI96>=5,AI96<>""),LEN(TRIM(U96))-LEN(SUBSTITUTE(U96,CHAR(44),""))+1,0),"-"),"") ->  | BK96: =IF(C96="X",IF(AN96="DA",LEN(TRIM(U96))-LEN(SUBSTITUTE(U96,CHAR(44),""))+1,"-"),"") ->  | BL96: =IF(C96="X",IF(AN96="","Afectat sau NU?",IF(AN96="DA",((AG96+AH96)-(Z96+AA96))*24,"Nu a fost afectat producator/consumator")),"") ->  | BM96: =IF(C96="X",IF(AN96<>"DA","-",IF(AND(AN96="DA",BL96<=0),LEN(TRIM(V96))-LEN(SUBSTITUTE(V96,CHAR(44),""))+1+LEN(TRIM(U96))-LEN(SUBSTITUTE(U96,CHAR(44),""))+1,0)),"") ->  | BN96: =IF(C96="X",IF(AN96="DA",LEN(TRIM(V96))-LEN(SUBSTITUTE(V96,CHAR(44),""))+1+LEN(TRIM(U96))-LEN(SUBSTITUTE(U96,CHAR(44),""))+1,"-"),"") -> 
A97: 81 | B97: x | C97: - | D97: Cuplare subtraversare râu Târnava Mică la conducta DN200 Fântânele - Sovata, zona Chibed | E97: 114863 | F97: Sovata | G97: Mureș | H97: 504263.48 | I97: 564867.51 | J97: 504263.48 | K97: 564867.51 | L97: - | M97: - | N97: SM0833D0 | O97: Sovata | P97: - | Q97: - | R97: - | S97: - | T97: SM-SD001 | U97: Nova Power, Cet Hidrocarburi, Cez Vânzare, Colterm, CPL Concordia, Delgaz, Design Proiect, Distrigaz Vest, Engie, Axpo, E.on Energie, Electrica Furnizare, Electric Planners, Energy Distribution, Enel Energie, Enel Muntenia, Entrex, Eye Mall, Premier Energy Trading, Gaz Est, Gazmir, Mihoc Oil, Met România, MVM Future, Next Energy Distribution, Premier Energy, Petrom, Prisma Serv, Gas Provider, Renovatio, Romgaz, RWE Supply, Solprim, Tetarom, Tinmar, Transenergo | V97: Delgaz Grid | W97: - | X97: 2023-11-02 | Y97: 08:00:00 | Z97: 2023-11-02 | AA97: 16:00:00 | AB97: Brașov | AC97: Efectuată | AE97: 2023-11-02 | AF97: 08:00:00 | AG97: 2023-11-02 | AH97: 15:00:00 | AI97: 2023-11-02 | AJ97: 08:35:00 | AK97: 2023-11-02 | AL97: 08:25:00 | AM97: 1774/31.10.2023 | AN97: DA | AR97: =IF(B97="X",IF(AN97="","Afectat sau NU?",IF(AN97="DA",IF(((AK97+AL97)-(AE97+AF97))*24<-720,"Neinformat",((AK97+AL97)-(AE97+AF97))*24),"Nu a fost afectat producator/consumator")),"") -> 0.4166666666 | AS97: =IF(B97="X",IF(AN97="DA",IF(AR97<6,LEN(TRIM(V97))-LEN(SUBSTITUTE(V97,CHAR(44),""))+1,0),"-"),"") -> 1 | AT97: =IF(B97="X",IF(AN97="DA",LEN(TRIM(V97))-LEN(SUBSTITUTE(V97,CHAR(44),""))+1,"-"),"") -> 1 | AU97: =IF(B97="X",IF(AN97="","Afectat sau NU?",IF(AN97="DA",IF(((AI97+AJ97)-(AE97+AF97))*24<-720,"Neinformat",((AI97+AJ97)-(AE97+AF97))*24),"Nu a fost afectat producator/consumator")),"") -> 0.5833333333 | AV97: =IF(B97="X",IF(AN97="DA",IF(AU97<6,LEN(TRIM(U97))-LEN(SUBSTITUTE(U97,CHAR(44),""))+1,0),"-"),"") -> 36 | AW97: =IF(B97="X",IF(AN97="DA",LEN(TRIM(U97))-LEN(SUBSTITUTE(U97,CHAR(44),""))+1,"-"),"") -> 36 | AX97: =IF(B97="X",IF(AN97="","Afectat sau NU?",IF(AN97="DA",((AG97+AH97)-(AE97+AF97))*24,"Nu a fost afectat producator/consumator")),"") -> 7 | AY97: =IF(B97="X",IF(AN97="DA",IF(AX97>24,IF(BA97="NU",0,LEN(TRIM(V97))-LEN(SUBSTITUTE(V97,CHAR(44),""))+1),0),"-"),"") -> 0 | AZ97: =IF(B97="X",IF(AN97="DA",IF(AX97>24,LEN(TRIM(V97))-LEN(SUBSTITUTE(V97,CHAR(44),""))+1,0),"-"),"") -> 0 | BF97: =IF(C97="X",IF(AN97="","Afectat sau NU?",IF(AN97="DA",IF(AK97="","Neinformat",NETWORKDAYS(AK97+AL97,AE97+AF97,$BS$2:$BS$14)-2),"Nu a fost afectat producator/consumator")),"") ->  | BG97: =IF(C97="X",IF(AN97="DA",IF(AND(BF97>=5,AK97<>""),LEN(TRIM(V97))-LEN(SUBSTITUTE(V97,CHAR(44),""))+1,0),"-"),"") ->  | BH97: =IF(C97="X",IF(AN97="DA",LEN(TRIM(V97))-LEN(SUBSTITUTE(V97,CHAR(44),""))+1,"-"),"") ->  | BI97: =IF(C97="X",IF(AN97="","Afectat sau NU?",IF(AN97="DA",IF(AI97="","Neinformat",NETWORKDAYS(AI97+AJ97,AE97+AF97,$BS$2:$BS$14)-2),"Nu a fost afectat producator/consumator")),"") ->  | BJ97: =IF(C97="X",IF(AN97="DA",IF(AND(BI97>=5,AI97<>""),LEN(TRIM(U97))-LEN(SUBSTITUTE(U97,CHAR(44),""))+1,0),"-"),"") ->  | BK97: =IF(C97="X",IF(AN97="DA",LEN(TRIM(U97))-LEN(SUBSTITUTE(U97,CHAR(44),""))+1,"-"),"") ->  | BL97: =IF(C97="X",IF(AN97="","Afectat sau NU?",IF(AN97="DA",((AG97+AH97)-(Z97+AA97))*24,"Nu a fost afectat producator/consumator")),"") ->  | BM97: =IF(C97="X",IF(AN97<>"DA","-",IF(AND(AN97="DA",BL97<=0),LEN(TRIM(V97))-LEN(SUBSTITUTE(V97,CHAR(44),""))+1+LEN(TRIM(U97))-LEN(SUBSTITUTE(U97,CHAR(44),""))+1,0)),"") ->  | BN97: =IF(C97="X",IF(AN97="DA",LEN(TRIM(V97))-LEN(SUBSTITUTE(V97,CHAR(44),""))+1+LEN(TRIM(U97))-LEN(SUBSTITUTE(U97,CHAR(44),""))+1,"-"),"") -> 
A98: 82 | B98: x | C98: - | D98: Cuplare subtraversare râu Târnava Mică la conducta DN200 Fântânele - Sovata, zona Chibed | E98: 117088 | F98: Chibed | G98: Mureș | H98: 497565.41 | I98: 558773.85 | J98: 497565.41 | K98: 558773.85 | L98: - | M98: - | N98: SM0832D0 | O98: Chibed | P98: - | Q98: - | R98: - | S98: - | T98: SM-SD001 | U98: Nova Power, Cet Hidrocarburi, Cez Vânzare, Colterm, CPL Concordia, Delgaz, Design Proiect, Distrigaz Vest, Engie, Axpo, E.on Energie, Electrica Furnizare, Electric Planners, Energy Distribution, Enel Energie, Enel Muntenia, Entrex, Eye Mall, Premier Energy Trading, Gaz Est, Gazmir, Mihoc Oil, Met România, MVM Future, Next Energy Distribution, Premier Energy, Petrom, Prisma Serv, Gas Provider, Renovatio, Romgaz, RWE Supply, Solprim, Tetarom, Tinmar, Transenergo | V98: Delgaz Grid | W98: - | X98: 2023-11-02 | Y98: 08:00:00 | Z98: 2023-11-02 | AA98: 16:00:00 | AB98: Brașov | AC98: Efectuată | AE98: 2023-11-02 | AF98: 08:00:00 | AG98: 2023-11-02 | AH98: 15:00:00 | AI98: 2023-11-02 | AJ98: 08:35:00 | AK98: 2023-11-02 | AL98: 08:25:00 | AM98: 1774/31.10.2023 | AN98: DA | AR98: 0.4166666666 | AS98: 1 | AT98: 1 | AU98: 0.5833333333 | AV98: 36 | AW98: 36 | AX98: 7 | AY98: 0 | AZ98: 0
A99: 83 | B99: x | C99: - | D99: Cuplare subtraversare râu Târnava Mică la conducta DN200 Fântânele - Sovata, zona Chibed | E99: 117051 | F99: Ghindari | G99: Mureș | H99: 494820.65 | I99: 555599.49 | J99: 494820.65 | K99: 555599.49 | L99: - | M99: - | N99: SM0830D0 | O99: Ghindari | P99: - | Q99: - | R99: - | S99: - | T99: SM-SD001 | U99: Nova Power, Cet Hidrocarburi, Cez Vânzare, Colterm, CPL Concordia, Delgaz, Design Proiect, Distrigaz Vest, Engie, Axpo, E.on Energie, Electrica Furnizare, Electric Planners, Energy Distribution, Enel Energie, Enel Muntenia, Entrex, Eye Mall, Premier Energy Trading, Gaz Est, Gazmir, Mihoc Oil, Met România, MVM Future, Next Energy Distribution, Premier Energy, Petrom, Prisma Serv, Gas Provider, Renovatio, Romgaz, RWE Supply, Solprim, Tetarom, Tinmar, Transenergo | V99: Delgaz Grid | W99: - | X99: 2023-11-02 | Y99: 08:00:00 | Z99: 2023-11-02 | AA99: 16:00:00 | AB99: Brașov | AC99: Efectuată | AE99: 2023-11-02 | AF99: 08:00:00 | AG99: 2023-11-02 | AH99: 15:00:00 | AI99: 2023-11-02 | AJ99: 08:35:00 | AK99: 2023-11-02 | AL99: 08:25:00 | AM99: 1774/31.10.2023 | AN99: DA | AR99: 0.4166666666 | AS99: 1 | AT99: 1 | AU99: 0.5833333333 | AV99: 36 | AW99: 36 | AX99: 7 | AY99: 0 | AZ99: 0
A100: 84 | B100: x | C100: - | D100: Cuplare deviere terți DN500 Abrămuț - Arad II | E100: 27490 | F100: Tămășeu | G100: Bihor | H100: 266439.72 | I100: 640357.22 | J100: 266439.72 | K100: 640357.22 | L100: - | M100: - | N100: SM1100D0 | O100: Tămășeu | P100: - | Q100: - | R100: - | S100: - | T100: SM-SD001 | U100: Nova Power, Cez Vânzare, Distrigaz Vest, Engie, AXPO Energy, E.on Energie, Electrica Furnizare, Energy Distribution, Enel Energie, Enel Muntenia, Eye Mall, Premier Energy Trading, Gaz Vest, Met România, MVM Future, Premier Energy, Petrom, Gas Provider, Renovatio, Romgaz, Solprim, Tinmar | V100: Gaz Vest | W100: - | X100: 2023-11-08 | Y100: 07:00:00 | Z100: 2023-11-08 | AA100: 19:00:00 | AB100: Cluj | AC100: Efectuată | AE100: 2023-11-08 | AF100: 07:00:00 | AG100: 2023-11-08 | AH100: 19:30:00 | AI100: 2023-11-08 | AJ100: 07:31:00 | AK100: 2023-11-08 | AL100: 07:27:00 | AM100: 83685/06.11.2023 | AN100: NU | AR100: Nu a fost afectat producator/consumator | AS100: - | AT100: - | AU100: Nu a fost afectat producator/consumator | AV100: - | AW100: - | AX100: Nu a fost afectat producator/consumator | AY100: - | AZ100: -
A101: 85 | B101: x | C101: - | D101: Deviere tronson 80ml pe conducta DN50 racord SRM Mănăstirea Măgura Ocnei | E101: 20974 | F101: Târgu Ocna | G101: Bacău | H101: 622375.15 | I101: 531290.59 | J101: 622375.15 | K101: 531290.59 | L101: - | M101: - | N101: SM0427D0 | O101: Mănăstirea Măgura Ocnei | P101: - | Q101: - | R101: - | S101: - | T101: SM-CF001 | U101: PPC Energie | V101: Mănăstirea Măgura Ocnei | W101: - | X101: 2023-11-16 | Y101: 09:00:00 | Z101: 2023-11-16 | AA101: 15:00:00 | AB101: Bacău | AC101: Efectuată | AE101: 2023-11-16 | AF101: 09:00:00 | AG101: 2023-11-16 | AH101: 14:00:00 | AI101: 2023-11-16 | AJ101: 09:24:00 | AK101: 2023-11-16 | AL101: 09:03:00 | AM101: 86450/14.11.2023 | AN101: DA | AR101: =IF(B101="X",IF(AN101="","Afectat sau NU?",IF(AN101="DA",IF(((AK101+AL101)-(AE101+AF101))*24<-720,"Neinformat",((AK101+AL101)-(AE101+AF101))*24),"Nu a fost afectat producator/consumator")),"") -> 0.04999999999 | AS101: =IF(B101="X",IF(AN101="DA",IF(AR101<6,LEN(TRIM(V101))-LEN(SUBSTITUTE(V101,CHAR(44),""))+1,0),"-"),"") -> 1 | AT101: =IF(B101="X",IF(AN101="DA",LEN(TRIM(V101))-LEN(SUBSTITUTE(V101,CHAR(44),""))+1,"-"),"") -> 1 | AU101: =IF(B101="X",IF(AN101="","Afectat sau NU?",IF(AN101="DA",IF(((AI101+AJ101)-(AE101+AF101))*24<-720,"Neinformat",((AI101+AJ101)-(AE101+AF101))*24),"Nu a fost afectat producator/consumator")),"") -> 0.4000000001 | AV101: =IF(B101="X",IF(AN101="DA",IF(AU101<6,LEN(TRIM(U101))-LEN(SUBSTITUTE(U101,CHAR(44),""))+1,0),"-"),"") -> 1 | AW101: =IF(B101="X",IF(AN101="DA",LEN(TRIM(U101))-LEN(SUBSTITUTE(U101,CHAR(44),""))+1,"-"),"") -> 1 | AX101: =IF(B101="X",IF(AN101="","Afectat sau NU?",IF(AN101="DA",((AG101+AH101)-(AE101+AF101))*24,"Nu a fost afectat producator/consumator")),"") -> 5 | AY101: =IF(B101="X",IF(AN101="DA",IF(AX101>24,IF(BA101="NU",0,LEN(TRIM(V101))-LEN(SUBSTITUTE(V101,CHAR(44),""))+1),0),"-"),"") -> 0 | AZ101: =IF(B101="X",IF(AN101="DA",IF(AX101>24,LEN(TRIM(V101))-LEN(SUBSTITUTE(V101,CHAR(44),""))+1,0),"-"),"") -> 0 | BF101: =IF(C101="X",IF(AN101="","Afectat sau NU?",IF(AN101="DA",IF(AK101="","Neinformat",NETWORKDAYS(AK101+AL101,AE101+AF101,$BS$2:$BS$14)-2),"Nu a fost afectat producator/consumator")),"") ->  | BG101: =IF(C101="X",IF(AN101="DA",IF(AND(BF101>=5,AK101<>""),LEN(TRIM(V101))-LEN(SUBSTITUTE(V101,CHAR(44),""))+1,0),"-"),"") ->  | BH101: =IF(C101="X",IF(AN101="DA",LEN(TRIM(V101))-LEN(SUBSTITUTE(V101,CHAR(44),""))+1,"-"),"") ->  | BI101: =IF(C101="X",IF(AN101="","Afectat sau NU?",IF(AN101="DA",IF(AI101="","Neinformat",NETWORKDAYS(AI101+AJ101,AE101+AF101,$BS$2:$BS$14)-2),"Nu a fost afectat producator/consumator")),"") ->  | BJ101: =IF(C101="X",IF(AN101="DA",IF(AND(BI101>=5,AI101<>""),LEN(TRIM(U101))-LEN(SUBSTITUTE(U101,CHAR(44),""))+1,0),"-"),"") ->  | BK101: =IF(C101="X",IF(AN101="DA",LEN(TRIM(U101))-LEN(SUBSTITUTE(U101,CHAR(44),""))+1,"-"),"") ->  | BL101: =IF(C101="X",IF(AN101="","Afectat sau NU?",IF(AN101="DA",((AG101+AH101)-(Z101+AA101))*24,"Nu a fost afectat producator/consumator")),"") ->  | BM101: =IF(C101="X",IF(AN101<>"DA","-",IF(AND(AN101="DA",BL101<=0),LEN(TRIM(V101))-LEN(SUBSTITUTE(V101,CHAR(44),""))+1+LEN(TRIM(U101))-LEN(SUBSTITUTE(U101,CHAR(44),""))+1,0)),"") ->  | BN101: =IF(C101="X",IF(AN101="DA",LEN(TRIM(V101))-LEN(SUBSTITUTE(V101,CHAR(44),""))+1+LEN(TRIM(U101))-LEN(SUBSTITUTE(U101,CHAR(44),""))+1,"-"),"") -> 
A102: 86 | B102: x | C102: - | D102: Înlocuire tronson pe conducta DN300 Nord II, zona SRM Săsar II (Flexibil Săsar) | E102: 106452 | F102: Săsar | G102: Maramureș | H102: 387367.04 | I102: 684745.12 | J102: 387367.04 | K102: 684745.12 | L102: - | M102: - | N102: SM0578D0 | O102: Săsar II (Recea) | P102: - | Q102: - | R102: - | S102: - | T102: SM-SD001 | U102: Nova Power, Cet Hidrocarburi, Cez Vânzare, Colterm, CPL Concordia, Delgaz, Design Proiect, Distrigaz Vest, Engie, Axpo, E.on Energie, Electrica Furnizare, Electric Planners, Energy Distribution, Enel Energie, Enel Muntenia, Entrex, Eye Mall, Premier Energy Trading, Gaz Est, Gazmir, Local Gaz, Mihoc Oil, Met România, MVM Future, Next Energy Distribution, Premier Energy, Petrom, Prisma Serv, Gas Provider, Renovatio, Romgaz, RWE Supply, Solprim, Tetarom, Tinmar, Transenergo | V102: Delgaz Grid | W102: - | X102: 2023-11-21 | Y102: 08:10:00 | Z102: 2023-11-21 | AA102: 20:00:00 | AB102: Cluj | AC102: Efectuată | AE102: 2023-11-21 | AF102: 08:10:00 | AG102: 2023-11-21 | AH102: 15:40:00 | AI102: 2023-11-21 | AJ102: 08:22:00 | AK102: 2023-11-21 | AL102: 08:13:00 | AM102: 87677/17.11.2023 | AN102: DA | AR102: =IF(B102="X",IF(AN102="","Afectat sau NU?",IF(AN102="DA",IF(((AK102+AL102)-(AE102+AF102))*24<-720,"Neinformat",((AK102+AL102)-(AE102+AF102))*24),"Nu a fost afectat producator/consumator")),"") -> 0.04999999999 | AS102: =IF(B102="X",IF(AN102="DA",IF(AR102<6,LEN(TRIM(V102))-LEN(SUBSTITUTE(V102,CHAR(44),""))+1,0),"-"),"") -> 1 | AT102: =IF(B102="X",IF(AN102="DA",LEN(TRIM(V102))-LEN(SUBSTITUTE(V102,CHAR(44),""))+1,"-"),"") -> 1 | AU102: =IF(B102="X",IF(AN102="","Afectat sau NU?",IF(AN102="DA",IF(((AI102+AJ102)-(AE102+AF102))*24<-720,"Neinformat",((AI102+AJ102)-(AE102+AF102))*24),"Nu a fost afectat producator/consumator")),"") -> 0.2 | AV102: =IF(B102="X",IF(AN102="DA",IF(AU102<6,LEN(TRIM(U102))-LEN(SUBSTITUTE(U102,CHAR(44),""))+1,0),"-"),"") -> 37 | AW102: =IF(B102="X",IF(AN102="DA",LEN(TRIM(U102))-LEN(SUBSTITUTE(U102,CHAR(44),""))+1,"-"),"") -> 37 | AX102: =IF(B102="X",IF(AN102="","Afectat sau NU?",IF(AN102="DA",((AG102+AH102)-(AE102+AF102))*24,"Nu a fost afectat producator/consumator")),"") -> 7.5 | AY102: =IF(B102="X",IF(AN102="DA",IF(AX102>24,IF(BA102="NU",0,LEN(TRIM(V102))-LEN(SUBSTITUTE(V102,CHAR(44),""))+1),0),"-"),"") -> 0 | AZ102: =IF(B102="X",IF(AN102="DA",IF(AX102>24,LEN(TRIM(V102))-LEN(SUBSTITUTE(V102,CHAR(44),""))+1,0),"-"),"") -> 0 | BF102: =IF(C102="X",IF(AN102="","Afectat sau NU?",IF(AN102="DA",IF(AK102="","Neinformat",NETWORKDAYS(AK102+AL102,AE102+AF102,$BS$2:$BS$14)-2),"Nu a fost afectat producator/consumator")),"") ->  | BG102: =IF(C102="X",IF(AN102="DA",IF(AND(BF102>=5,AK102<>""),LEN(TRIM(V102))-LEN(SUBSTITUTE(V102,CHAR(44),""))+1,0),"-"),"") ->  | BH102: =IF(C102="X",IF(AN102="DA",LEN(TRIM(V102))-LEN(SUBSTITUTE(V102,CHAR(44),""))+1,"-"),"") ->  | BI102: =IF(C102="X",IF(AN102="","Afectat sau NU?",IF(AN102="DA",IF(AI102="","Neinformat",NETWORKDAYS(AI102+AJ102,AE102+AF102,$BS$2:$BS$14)-2),"Nu a fost afectat producator/consumator")),"") ->  | BJ102: =IF(C102="X",IF(AN102="DA",IF(AND(BI102>=5,AI102<>""),LEN(TRIM(U102))-LEN(SUBSTITUTE(U102,CHAR(44),""))+1,0),"-"),"") ->  | BK102: =IF(C102="X",IF(AN102="DA",LEN(TRIM(U102))-LEN(SUBSTITUTE(U102,CHAR(44),""))+1,"-"),"") ->  | BL102: =IF(C102="X",IF(AN102="","Afectat sau NU?",IF(AN102="DA",((AG102+AH102)-(Z102+AA102))*24,"Nu a fost afectat producator/consumator")),"") ->  | BM102: =IF(C102="X",IF(AN102<>"DA","-",IF(AND(AN102="DA",BL102<=0),LEN(TRIM(V102))-LEN(SUBSTITUTE(V102,CHAR(44),""))+1+LEN(TRIM(U102))-LEN(SUBSTITUTE(U102,CHAR(44),""))+1,0)),"") ->  | BN102: =IF(C102="X",IF(AN102="DA",LEN(TRIM(V102))-LEN(SUBSTITUTE(V102,CHAR(44),""))+1+LEN(TRIM(U102))-LEN(SUBSTITUTE(U102,CHAR(44),""))+1,"-"),"") -> 
A103: 87 | B103: x | C103: - | D103: Întrerupere accidentală SRM Rugănești | E103: 86106 | F103: Rugănești | G103: Harghita | H103: 504957.75 | I103: 533202.31 | J103: 504957.75 | K103: 533202.31 | L103: - | M103: - | N103: SM0401D0 | O103: Rugănești | P103: - | Q103: - | R103: - | S103: - | T103: SM-SD001 | U103: Nova Power, Cez Vânzare, Distrigaz Vest, Engie, E.on Energie, Electrica Furnizare, Energy Distribution, PPC Energie, PPC Muntenia, Entrex, Eye Mall, Premier Energy Trading, Gaz Est, Local Gaz, Met România, MVM Future, Next Energy Distribution, Premier Energy, Petrom, Gas Provider, Renovatio, Romgaz, Solprim,Tinmar, Transenergo | V103: Premier Energy | W103: - | X103: 2023-11-27 | Y103: 01:15:00 | Z103: 2023-11-27 | AA103: 09:00:00 | AB103: Brașov | AC103: Efectuată | AE103: 2023-11-27 | AF103: 01:15:00 | AG103: 2023-11-27 | AH103: 07:30:00 | AI103: 2023-11-27 | AJ103: 05:59:00 | AK103: 2023-11-27 | AL103: 05:49:00 | AM103: - | AN103: DA | AR103: 4.566666667 | AS103: 1 | AT103: 1 | AU103: 4.733333333 | AV103: 25 | AW103: 25 | AX103: 6.25 | AY103: 0 | AZ103: 0
A104: 88 | B104: x | C104: - | D104: Cuplare și punere în funcțiune SRM Lețcani nou | E104: 97688 | F104: Lețcani | G104: Iași | H104: 682858.38 | I104: 636181.85 | J104: 682858.38 | K104: 636181.85 | L104: - | M104: - | N104: SM0886D0 | O104: Lețcani | P104: - | Q104: - | R104: - | S104: - | T104: SM-SD001 | U104: Nova Power, Cet Hidrocarburi, Cez Vânzare, Colterm, CPL Concordia, Delgaz, Design Proiect, Distrigaz Vest, Engie, Axpo, E.on Energie, Electrica Furnizare, Electric Planners, Energy Distribution, PPC Energie, PPC Muntenia, Entrex, Eye Mall, Premier Energy Trading, Gaz Est, Gazmir, Local Gaz, Mihoc Oil, Met România, MVM Future, Next Energy Distribution, Premier Energy, Petrom, Prisma Serv, Gas Provider, Renovatio, Romgaz, RWE Supply, Solprim, Tetarom, Tinmar, Transenergo | V104: Delgaz Grid | W104: - | X104: 2023-11-29 | Y104: 09:05:00 | Z104: 2023-11-29 | AA104: 15:00:00 | AB104: Bacău | AC104: Efectuată | AE104: 2023-11-29 | AF104: 09:05:00 | AG104: 2023-11-29 | AH104: 14:50:00 | AI104: 2023-11-29 | AJ104: 09:16:00 | AK104: 2023-11-29 | AL104: 09:09:00 | AM104: 90109/27.11.2023 | AN104: DA | AR104: =IF(B104="X",IF(AN104="","Afectat sau NU?",IF(AN104="DA",IF(((AK104+AL104)-(AE104+AF104))*24<-720,"Neinformat",((AK104+AL104)-(AE104+AF104))*24),"Nu a fost afectat producator/consumator")),"") -> 0.06666666671 | AS104: =IF(B104="X",IF(AN104="DA",IF(AR104<6,LEN(TRIM(V104))-LEN(SUBSTITUTE(V104,CHAR(44),""))+1,0),"-"),"") -> 1 | AT104: =IF(B104="X",IF(AN104="DA",LEN(TRIM(V104))-LEN(SUBSTITUTE(V104,CHAR(44),""))+1,"-"),"") -> 1 | AU104: =IF(B104="X",IF(AN104="","Afectat sau NU?",IF(AN104="DA",IF(((AI104+AJ104)-(AE104+AF104))*24<-720,"Neinformat",((AI104+AJ104)-(AE104+AF104))*24),"Nu a fost afectat producator/consumator")),"") -> 0.1833333334 | AV104: =IF(B104="X",IF(AN104="DA",IF(AU104<6,LEN(TRIM(U104))-LEN(SUBSTITUTE(U104,CHAR(44),""))+1,0),"-"),"") -> 37 | AW104: =IF(B104="X",IF(AN104="DA",LEN(TRIM(U104))-LEN(SUBSTITUTE(U104,CHAR(44),""))+1,"-"),"") -> 37 | AX104: =IF(B104="X",IF(AN104="","Afectat sau NU?",IF(AN104="DA",((AG104+AH104)-(AE104+AF104))*24,"Nu a fost afectat producator/consumator")),"") -> 5.75 | AY104: =IF(B104="X",IF(AN104="DA",IF(AX104>24,IF(BA104="NU",0,LEN(TRIM(V104))-LEN(SUBSTITUTE(V104,CHAR(44),""))+1),0),"-"),"") -> 0 | AZ104: =IF(B104="X",IF(AN104="DA",IF(AX104>24,LEN(TRIM(V104))-LEN(SUBSTITUTE(V104,CHAR(44),""))+1,0),"-"),"") -> 0 | BF104: =IF(C104="X",IF(AN104="","Afectat sau NU?",IF(AN104="DA",IF(AK104="","Neinformat",NETWORKDAYS(AK104+AL104,AE104+AF104,$BS$2:$BS$14)-2),"Nu a fost afectat producator/consumator")),"") ->  | BG104: =IF(C104="X",IF(AN104="DA",IF(AND(BF104>=5,AK104<>""),LEN(TRIM(V104))-LEN(SUBSTITUTE(V104,CHAR(44),""))+1,0),"-"),"") ->  | BH104: =IF(C104="X",IF(AN104="DA",LEN(TRIM(V104))-LEN(SUBSTITUTE(V104,CHAR(44),""))+1,"-"),"") ->  | BI104: =IF(C104="X",IF(AN104="","Afectat sau NU?",IF(AN104="DA",IF(AI104="","Neinformat",NETWORKDAYS(AI104+AJ104,AE104+AF104,$BS$2:$BS$14)-2),"Nu a fost afectat producator/consumator")),"") ->  | BJ104: =IF(C104="X",IF(AN104="DA",IF(AND(BI104>=5,AI104<>""),LEN(TRIM(U104))-LEN(SUBSTITUTE(U104,CHAR(44),""))+1,0),"-"),"") ->  | BK104: =IF(C104="X",IF(AN104="DA",LEN(TRIM(U104))-LEN(SUBSTITUTE(U104,CHAR(44),""))+1,"-"),"") ->  | BL104: =IF(C104="X",IF(AN104="","Afectat sau NU?",IF(AN104="DA",((AG104+AH104)-(Z104+AA104))*24,"Nu a fost afectat producator/consumator")),"") ->  | BM104: =IF(C104="X",IF(AN104<>"DA","-",IF(AND(AN104="DA",BL104<=0),LEN(TRIM(V104))-LEN(SUBSTITUTE(V104,CHAR(44),""))+1+LEN(TRIM(U104))-LEN(SUBSTITUTE(U104,CHAR(44),""))+1,0)),"") ->  | BN104: =IF(C104="X",IF(AN104="DA",LEN(TRIM(V104))-LEN(SUBSTITUTE(V104,CHAR(44),""))+1+LEN(TRIM(U104))-LEN(SUBSTITUTE(U104,CHAR(44),""))+1,"-"),"") -> 
A105: 89 | B105: x | C105: - | D105: Lucrări de mentenanță cu caracter urgent în SRM București CET Vest | E105: 403 | F105: București | G105: București | H105: 577613.28 | I105: 325145.01 | J105: 577613.28 | K105: 325145.01 | L105: - | M105: - | N105: SM0151D0 | O105: București | P105: - | Q105: - | R105: - | S105: - | T105: SM-SD001 | U105: Alpha Metal, Nova Power, Bepco, Cez Vânzare, Complexul Energetic Oltenia, Crest Energy, Distrigaz Sud Rețele, Distrigaz Vest, Engie, E.on Energie, Electrocentrale București, Electrica Furnizare, Electric Planners, Energy Core, Energy Distribution, PPC Energie, PPC Energie Muntenia, Entrex, Euro Seven, Eye Mall, Premier Energy Trading, Gaz Est, Getica95, Local Gaz, Met România, Monsson, Termoenergetica București, MVM Future, Next Energy Distribution, Next Energy Partners, Premier Energy, Petrom, Gas Provider, Renovatio, Romgaz, RWE Supply, Solprim, Sustainable Energy, Termocentrale Constanța, Termo Calor, Termo Verde, Tinmar, Transenergo, Termoelectrica Giurgiu, Vest-Energo | V105: Distrigaz Sud Rețele | W105: - | X105: 2023-12-02 | Y105: 08:00:00 | Z105: 2023-12-02 | AA105: 11:00:00 | AB105: București | AC105: Efectuată | AE105: 2023-12-02 | AF105: 08:00:00 | AG105: 2023-12-02 | AH105: 10:55:00 | AI105: 2023-12-02 | AJ105: 08:12:00 | AK105: 2023-12-02 | AL105: 08:04:00 | AM105: - | AN105: NU | AR105: =IF(B105="X",IF(AN105="","Afectat sau NU?",IF(AN105="DA",IF(((AK105+AL105)-(AE105+AF105))*24<-720,"Neinformat",((AK105+AL105)-(AE105+AF105))*24),"Nu a fost afectat producator/consumator")),"") -> Nu a fost afectat producator/consumator | AS105: =IF(B105="X",IF(AN105="DA",IF(AR105<6,LEN(TRIM(V105))-LEN(SUBSTITUTE(V105,CHAR(44),""))+1,0),"-"),"") -> - | AT105: =IF(B105="X",IF(AN105="DA",LEN(TRIM(V105))-LEN(SUBSTITUTE(V105,CHAR(44),""))+1,"-"),"") -> - | AU105: =IF(B105="X",IF(AN105="","Afectat sau NU?",IF(AN105="DA",IF(((AI105+AJ105)-(AE105+AF105))*24<-720,"Neinformat",((AI105+AJ105)-(AE105+AF105))*24),"Nu a fost afectat producator/consumator")),"") -> Nu a fost afectat producator/consumator | AV105: =IF(B105="X",IF(AN105="DA",IF(AU105<6,LEN(TRIM(U105))-LEN(SUBSTITUTE(U105,CHAR(44),""))+1,0),"-"),"") -> - | AW105: =IF(B105="X",IF(AN105="DA",LEN(TRIM(U105))-LEN(SUBSTITUTE(U105,CHAR(44),""))+1,"-"),"") -> - | AX105: =IF(B105="X",IF(AN105="","Afectat sau NU?",IF(AN105="DA",((AG105+AH105)-(AE105+AF105))*24,"Nu a fost afectat producator/consumator")),"") -> Nu a fost afectat producator/consumator | AY105: =IF(B105="X",IF(AN105="DA",IF(AX105>24,IF(BA105="NU",0,LEN(TRIM(V105))-LEN(SUBSTITUTE(V105,CHAR(44),""))+1),0),"-"),"") -> - | AZ105: =IF(B105="X",IF(AN105="DA",IF(AX105>24,LEN(TRIM(V105))-LEN(SUBSTITUTE(V105,CHAR(44),""))+1,0),"-"),"") -> - | BF105: =IF(C105="X",IF(AN105="","Afectat sau NU?",IF(AN105="DA",IF(AK105="","Neinformat",NETWORKDAYS(AK105+AL105,AE105+AF105,$BS$2:$BS$14)-2),"Nu a fost afectat producator/consumator")),"") ->  | BG105: =IF(C105="X",IF(AN105="DA",IF(AND(BF105>=5,AK105<>""),LEN(TRIM(V105))-LEN(SUBSTITUTE(V105,CHAR(44),""))+1,0),"-"),"") ->  | BH105: =IF(C105="X",IF(AN105="DA",LEN(TRIM(V105))-LEN(SUBSTITUTE(V105,CHAR(44),""))+1,"-"),"") ->  | BI105: =IF(C105="X",IF(AN105="","Afectat sau NU?",IF(AN105="DA",IF(AI105="","Neinformat",NETWORKDAYS(AI105+AJ105,AE105+AF105,$BS$2:$BS$14)-2),"Nu a fost afectat producator/consumator")),"") ->  | BJ105: =IF(C105="X",IF(AN105="DA",IF(AND(BI105>=5,AI105<>""),LEN(TRIM(U105))-LEN(SUBSTITUTE(U105,CHAR(44),""))+1,0),"-"),"") ->  | BK105: =IF(C105="X",IF(AN105="DA",LEN(TRIM(U105))-LEN(SUBSTITUTE(U105,CHAR(44),""))+1,"-"),"") ->  | BL105: =IF(C105="X",IF(AN105="","Afectat sau NU?",IF(AN105="DA",((AG105+AH105)-(Z105+AA105))*24,"Nu a fost afectat producator/consumator")),"") ->  | BM105: =IF(C105="X",IF(AN105<>"DA","-",IF(AND(AN105="DA",BL105<=0),LEN(TRIM(V105))-LEN(SUBSTITUTE(V105,CHAR(44),""))+1+LEN(TRIM(U105))-LEN(SUBSTITUTE(U105,CHAR(44),""))+1,0)),"") ->  | BN105: =IF(C105="X",IF(AN105="DA",LEN(TRIM(V105))-LEN(SUBSTITUTE(V105,CHAR(44),""))+1+LEN(TRIM(U105))-LEN(SUBSTITUTE(U105,CHAR(44),""))+1,"-"),"") -> 
A106: 90 | B106: x | C106: - | D106: Lucrări de relocare a gazcromatografului din instalația tehnologică a SRM Mintia | E106: 92051 | F106: Mintia | G106: Hunedoara | H106: 331826.46 | I106: 492733.6 | J106: 331826.46 | K106: 492733.6 | L106: - | M106: - | N106: SM0309D2 | O106: Mintia | P106: - | Q106: - | R106: - | S106: - | T106: SM-SD001 | U106: Nova Power, Cez Vânzare, Colterm, CPL Concordia, Delgaz, Design Proiect, Distrigaz Vest, Engie, Axpo, E.on Energie, Electrica Furnizare, Electric Planners, Energy Core, Energy Distribution, PPC Energie, PPC Energie Muntenia, Entrex, Eye Mall, Premier Energy Trading, Gaz Est, Gazmir, Local Gaz, Mihoc Oil, Met România, MVM Future, Next Energy Distribution, Premier Energy, Petrom, Prisma Serv, Gas Provider, Renovatio, Romgaz, RWE Supply, Solprim, Tetarom, Tinmar, Transenergo | V106: Delgaz Grid | W106: - | X106: 2023-12-20 | Y106: 10:08:00 | Z106: 2023-12-20 | AA106: 11:00:00 | AB106: Arad | AC106: Efectuată | AE106: 2023-12-20 | AF106: 10:08:00 | AG106: 2023-12-20 | AH106: 10:13:00 | AI106: 2023-12-20 | AJ106: 10:33:00 | AK106: 2023-12-20 | AL106: 10:27:00 | AM106: 96960/19.12.2023 | AN106: NU | AR106: =IF(B106="X",IF(AN106="","Afectat sau NU?",IF(AN106="DA",IF(((AK106+AL106)-(AE106+AF106))*24<-720,"Neinformat",((AK106+AL106)-(AE106+AF106))*24),"Nu a fost afectat producator/consumator")),"") -> Nu a fost afectat producator/consumator | AS106: =IF(B106="X",IF(AN106="DA",IF(AR106<6,LEN(TRIM(V106))-LEN(SUBSTITUTE(V106,CHAR(44),""))+1,0),"-"),"") -> - | AT106: =IF(B106="X",IF(AN106="DA",LEN(TRIM(V106))-LEN(SUBSTITUTE(V106,CHAR(44),""))+1,"-"),"") -> - | AU106: =IF(B106="X",IF(AN106="","Afectat sau NU?",IF(AN106="DA",IF(((AI106+AJ106)-(AE106+AF106))*24<-720,"Neinformat",((AI106+AJ106)-(AE106+AF106))*24),"Nu a fost afectat producator/consumator")),"") -> Nu a fost afectat producator/consumator | AV106: =IF(B106="X",IF(AN106="DA",IF(AU106<6,LEN(TRIM(U106))-LEN(SUBSTITUTE(U106,CHAR(44),""))+1,0),"-"),"") -> - | AW106: =IF(B106="X",IF(AN106="DA",LEN(TRIM(U106))-LEN(SUBSTITUTE(U106,CHAR(44),""))+1,"-"),"") -> - | AX106: =IF(B106="X",IF(AN106="","Afectat sau NU?",IF(AN106="DA",((AG106+AH106)-(AE106+AF106))*24,"Nu a fost afectat producator/consumator")),"") -> Nu a fost afectat producator/consumator | AY106: =IF(B106="X",IF(AN106="DA",IF(AX106>24,IF(BA106="NU",0,LEN(TRIM(V106))-LEN(SUBSTITUTE(V106,CHAR(44),""))+1),0),"-"),"") -> - | AZ106: =IF(B106="X",IF(AN106="DA",IF(AX106>24,LEN(TRIM(V106))-LEN(SUBSTITUTE(V106,CHAR(44),""))+1,0),"-"),"") -> - | BF106: =IF(C106="X",IF(AN106="","Afectat sau NU?",IF(AN106="DA",IF(AK106="","Neinformat",NETWORKDAYS(AK106+AL106,AE106+AF106,$BS$2:$BS$14)-2),"Nu a fost afectat producator/consumator")),"") ->  | BG106: =IF(C106="X",IF(AN106="DA",IF(AND(BF106>=5,AK106<>""),LEN(TRIM(V106))-LEN(SUBSTITUTE(V106,CHAR(44),""))+1,0),"-"),"") ->  | BH106: =IF(C106="X",IF(AN106="DA",LEN(TRIM(V106))-LEN(SUBSTITUTE(V106,CHAR(44),""))+1,"-"),"") ->  | BI106: =IF(C106="X",IF(AN106="","Afectat sau NU?",IF(AN106="DA",IF(AI106="","Neinformat",NETWORKDAYS(AI106+AJ106,AE106+AF106,$BS$2:$BS$14)-2),"Nu a fost afectat producator/consumator")),"") ->  | BJ106: =IF(C106="X",IF(AN106="DA",IF(AND(BI106>=5,AI106<>""),LEN(TRIM(U106))-LEN(SUBSTITUTE(U106,CHAR(44),""))+1,0),"-"),"") ->  | BK106: =IF(C106="X",IF(AN106="DA",LEN(TRIM(U106))-LEN(SUBSTITUTE(U106,CHAR(44),""))+1,"-"),"") ->  | BL106: =IF(C106="X",IF(AN106="","Afectat sau NU?",IF(AN106="DA",((AG106+AH106)-(Z106+AA106))*24,"Nu a fost afectat producator/consumator")),"") ->  | BM106: =IF(C106="X",IF(AN106<>"DA","-",IF(AND(AN106="DA",BL106<=0),LEN(TRIM(V106))-LEN(SUBSTITUTE(V106,CHAR(44),""))+1+LEN(TRIM(U106))-LEN(SUBSTITUTE(U106,CHAR(44),""))+1,0)),"") ->  | BN106: =IF(C106="X",IF(AN106="DA",LEN(TRIM(V106))-LEN(SUBSTITUTE(V106,CHAR(44),""))+1+LEN(TRIM(U106))-LEN(SUBSTITUTE(U106,CHAR(44),""))+1,"-"),"") -> 
A107: 91 | B107: x | C107: - | D107: Deviere conducte DN300 Soci - Pașcani și DN200 racord SRM Pașcani I Sodomeni | E107: 95408 | F107: Pașcani | G107: Iași | H107: 631978.04 | I107: 640286.82 | J107: 631978.04 | K107: 640286.82 | L107: - | M107: - | N107: SM0474D0 | O107: Pașcani II | P107: - | Q107: - | R107: - | S107: - | T107: SM-SD001 | U107: Nova Power, Cez Vânzare, Colterm, CPL Concordia, Delgaz, Design Proiect, Distrigaz Vest, Engie România, E.on Energie, Electrica Furnizare, Electric Planners, Energy Core, Energy Distribution, PPC Energie, PPC Energie Muntenia, Entrex Services, Eye Mall, Premier Energy Trading, Gaz Est, Gazmir, Local Gaz, Mihoc Oil, Met România, MVM Future, Next Energy Distribution, Premier Energy, Petrom, Prisma Serv, Gas Provider, Renovatio, Romgaz, RWE Supply, Solprim, Tetarom, Tinmar, Transenergo | V107: Delgaz Grid | W107: - | X107: 2024-01-25 | Y107: 08:30:00 | Z107: 2024-01-25 | AA107: 17:00:00 | AB107: Bacău | AC107: Efectuată | AE107: 2024-01-25 | AF107: 08:30:00 | AG107: 2024-01-25 | AH107: 17:00:00 | AI107: 2024-01-25 | AJ107: 08:52:00 | AK107: 2024-01-25 | AL107: 08:36:00 | AM107: 5954/23.01.2024 | AN107: DA | AR107: =IF(B107="X",IF(AN107="","Afectat sau NU?",IF(AN107="DA",IF(((AK107+AL107)-(AE107+AF107))*24<-720,"Neinformat",((AK107+AL107)-(AE107+AF107))*24),"Nu a fost afectat producator/consumator")),"") -> 0.09999999998 | AS107: =IF(B107="X",IF(AN107="DA",IF(AR107<6,LEN(TRIM(V107))-LEN(SUBSTITUTE(V107,CHAR(44),""))+1,0),"-"),"") -> 1 | AT107: =IF(B107="X",IF(AN107="DA",LEN(TRIM(V107))-LEN(SUBSTITUTE(V107,CHAR(44),""))+1,"-"),"") -> 1 | AU107: =IF(B107="X",IF(AN107="","Afectat sau NU?",IF(AN107="DA",IF(((AI107+AJ107)-(AE107+AF107))*24<-720,"Neinformat",((AI107+AJ107)-(AE107+AF107))*24),"Nu a fost afectat producator/consumator")),"") -> 0.3666666666 | AV107: =IF(B107="X",IF(AN107="DA",IF(AU107<6,LEN(TRIM(U107))-LEN(SUBSTITUTE(U107,CHAR(44),""))+1,0),"-"),"") -> 36 | AW107: =IF(B107="X",IF(AN107="DA",LEN(TRIM(U107))-LEN(SUBSTITUTE(U107,CHAR(44),""))+1,"-"),"") -> 36 | AX107: =IF(B107="X",IF(AN107="","Afectat sau NU?",IF(AN107="DA",((AG107+AH107)-(AE107+AF107))*24,"Nu a fost afectat producator/consumator")),"") -> 8.5 | AY107: =IF(B107="X",IF(AN107="DA",IF(AX107>24,IF(BA107="NU",0,LEN(TRIM(V107))-LEN(SUBSTITUTE(V107,CHAR(44),""))+1),0),"-"),"") -> 0 | AZ107: =IF(B107="X",IF(AN107="DA",IF(AX107>24,LEN(TRIM(V107))-LEN(SUBSTITUTE(V107,CHAR(44),""))+1,0),"-"),"") -> 0 | BF107: =IF(C107="X",IF(AN107="","Afectat sau NU?",IF(AN107="DA",IF(AK107="","Neinformat",NETWORKDAYS(AK107+AL107,AE107+AF107,$BS$2:$BS$14)-2),"Nu a fost afectat producator/consumator")),"") ->  | BG107: =IF(C107="X",IF(AN107="DA",IF(AND(BF107>=5,AK107<>""),LEN(TRIM(V107))-LEN(SUBSTITUTE(V107,CHAR(44),""))+1,0),"-"),"") ->  | BH107: =IF(C107="X",IF(AN107="DA",LEN(TRIM(V107))-LEN(SUBSTITUTE(V107,CHAR(44),""))+1,"-"),"") ->  | BI107: =IF(C107="X",IF(AN107="","Afectat sau NU?",IF(AN107="DA",IF(AI107="","Neinformat",NETWORKDAYS(AI107+AJ107,AE107+AF107,$BS$2:$BS$14)-2),"Nu a fost afectat producator/consumator")),"") ->  | BJ107: =IF(C107="X",IF(AN107="DA",IF(AND(BI107>=5,AI107<>""),LEN(TRIM(U107))-LEN(SUBSTITUTE(U107,CHAR(44),""))+1,0),"-"),"") ->  | BK107: =IF(C107="X",IF(AN107="DA",LEN(TRIM(U107))-LEN(SUBSTITUTE(U107,CHAR(44),""))+1,"-"),"") ->  | BL107: =IF(C107="X",IF(AN107="","Afectat sau NU?",IF(AN107="DA",((AG107+AH107)-(Z107+AA107))*24,"Nu a fost afectat producator/consumator")),"") ->  | BM107: =IF(C107="X",IF(AN107<>"DA","-",IF(AND(AN107="DA",BL107<=0),LEN(TRIM(V107))-LEN(SUBSTITUTE(V107,CHAR(44),""))+1+LEN(TRIM(U107))-LEN(SUBSTITUTE(U107,CHAR(44),""))+1,0)),"") ->  | BN107: =IF(C107="X",IF(AN107="DA",LEN(TRIM(V107))-LEN(SUBSTITUTE(V107,CHAR(44),""))+1+LEN(TRIM(U107))-LEN(SUBSTITUTE(U107,CHAR(44),""))+1,"-"),"") -> 
A108: 92 | B108: x | C108: - | D108: Deviere conducte DN300 Soci - Pașcani și DN200 racord SRM Pașcani I Sodomeni | E108: 95408 | F108: Pașcani | G108: Iași | H108: 631978.04 | I108: 640286.82 | J108: 631978.04 | K108: 640286.82 | L108: - | M108: - | N108: SM0474D1 | O108: SC Rompak Pașcani | P108: - | Q108: - | R108: - | S108: - | T108: SM-CF001 | U108: Petrom | V108: Rompak | W108: - | X108: 2024-01-25 | Y108: 08:30:00 | Z108: 2024-01-25 | AA108: 17:00:00 | AB108: Bacău | AC108: Efectuată | AE108: 2024-01-25 | AF108: 08:30:00 | AG108: 2024-01-25 | AH108: 15:30:00 | AI108: 2024-01-25 | AJ108: 08:44:00 | AK108: 2024-01-25 | AL108: 08:37:00 | AM108: 5954/23.01.2024 | AN108: DA | AR108: =IF(B108="X",IF(AN108="","Afectat sau NU?",IF(AN108="DA",IF(((AK108+AL108)-(AE108+AF108))*24<-720,"Neinformat",((AK108+AL108)-(AE108+AF108))*24),"Nu a fost afectat producator/consumator")),"") -> 0.1166666667 | AS108: =IF(B108="X",IF(AN108="DA",IF(AR108<6,LEN(TRIM(V108))-LEN(SUBSTITUTE(V108,CHAR(44),""))+1,0),"-"),"") -> 1 | AT108: =IF(B108="X",IF(AN108="DA",LEN(TRIM(V108))-LEN(SUBSTITUTE(V108,CHAR(44),""))+1,"-"),"") -> 1 | AU108: =IF(B108="X",IF(AN108="","Afectat sau NU?",IF(AN108="DA",IF(((AI108+AJ108)-(AE108+AF108))*24<-720,"Neinformat",((AI108+AJ108)-(AE108+AF108))*24),"Nu a fost afectat producator/consumator")),"") -> 0.2333333334 | AV108: =IF(B108="X",IF(AN108="DA",IF(AU108<6,LEN(TRIM(U108))-LEN(SUBSTITUTE(U108,CHAR(44),""))+1,0),"-"),"") -> 1 | AW108: =IF(B108="X",IF(AN108="DA",LEN(TRIM(U108))-LEN(SUBSTITUTE(U108,CHAR(44),""))+1,"-"),"") -> 1 | AX108: =IF(B108="X",IF(AN108="","Afectat sau NU?",IF(AN108="DA",((AG108+AH108)-(AE108+AF108))*24,"Nu a fost afectat producator/consumator")),"") -> 7 | AY108: =IF(B108="X",IF(AN108="DA",IF(AX108>24,IF(BA108="NU",0,LEN(TRIM(V108))-LEN(SUBSTITUTE(V108,CHAR(44),""))+1),0),"-"),"") -> 0 | AZ108: =IF(B108="X",IF(AN108="DA",IF(AX108>24,LEN(TRIM(V108))-LEN(SUBSTITUTE(V108,CHAR(44),""))+1,0),"-"),"") -> 0 | BF108: =IF(C108="X",IF(AN108="","Afectat sau NU?",IF(AN108="DA",IF(AK108="","Neinformat",NETWORKDAYS(AK108+AL108,AE108+AF108,$BS$2:$BS$14)-2),"Nu a fost afectat producator/consumator")),"") ->  | BG108: =IF(C108="X",IF(AN108="DA",IF(AND(BF108>=5,AK108<>""),LEN(TRIM(V108))-LEN(SUBSTITUTE(V108,CHAR(44),""))+1,0),"-"),"") ->  | BH108: =IF(C108="X",IF(AN108="DA",LEN(TRIM(V108))-LEN(SUBSTITUTE(V108,CHAR(44),""))+1,"-"),"") ->  | BI108: =IF(C108="X",IF(AN108="","Afectat sau NU?",IF(AN108="DA",IF(AI108="","Neinformat",NETWORKDAYS(AI108+AJ108,AE108+AF108,$BS$2:$BS$14)-2),"Nu a fost afectat producator/consumator")),"") ->  | BJ108: =IF(C108="X",IF(AN108="DA",IF(AND(BI108>=5,AI108<>""),LEN(TRIM(U108))-LEN(SUBSTITUTE(U108,CHAR(44),""))+1,0),"-"),"") ->  | BK108: =IF(C108="X",IF(AN108="DA",LEN(TRIM(U108))-LEN(SUBSTITUTE(U108,CHAR(44),""))+1,"-"),"") ->  | BL108: =IF(C108="X",IF(AN108="","Afectat sau NU?",IF(AN108="DA",((AG108+AH108)-(Z108+AA108))*24,"Nu a fost afectat producator/consumator")),"") ->  | BM108: =IF(C108="X",IF(AN108<>"DA","-",IF(AND(AN108="DA",BL108<=0),LEN(TRIM(V108))-LEN(SUBSTITUTE(V108,CHAR(44),""))+1+LEN(TRIM(U108))-LEN(SUBSTITUTE(U108,CHAR(44),""))+1,0)),"") ->  | BN108: =IF(C108="X",IF(AN108="DA",LEN(TRIM(V108))-LEN(SUBSTITUTE(V108,CHAR(44),""))+1+LEN(TRIM(U108))-LEN(SUBSTITUTE(U108,CHAR(44),""))+1,"-"),"") -> 
A109: 93 | B109: x | C109: - | D109: Deviere conductă DN200 racord SRM Hălăucești | E109: 97447 | F109: Hălăucești | G109: Iași | H109: 636909.27 | I109: 624481.69 | J109: 636909.27 | K109: 624481.69 | L109: - | M109: - | N109: SM0884D0 | O109: Hălăucești | P109: - | Q109: - | R109: - | S109: - | T109: SM-SD001 | U109: Nova Power, Cez Vânzare, Colterm, CPL Concordia, Delgaz, Design Proiect, Distrigaz Vest, Engie România, E.on Energie, Electrica Furnizare, Electric Planners, Energy Core, Energy Distribution, PPC Energie, PPC Energie Muntenia, Entrex Services, Eye Mall, Premier Energy Trading, Gaz Est, Gazmir, Local Gaz, Mihoc Oil, Met România, MVM Future, Next Energy Distribution, Premier Energy, Petrom, Prisma Serv, Gas Provider, Renovatio, Romgaz, RWE Supply, Solprim, Tetarom, Tinmar, Transenergo | V109: Delgaz Grid | W109: - | X109: 2024-01-31 | Y109: 08:00:00 | Z109: 2024-01-31 | AA109: 17:00:00 | AB109: Bacău | AC109: Efectuată | AE109: 2024-01-31 | AF109: 08:00:00 | AG109: 2024-01-31 | AH109: 17:00:00 | AI109: 2024-01-31 | AJ109: 08:11:00 | AK109: 2024-01-31 | AL109: 08:03:00 | AM109: 7830/29.01.2024 | AN109: DA | AR109: 0.04999999999 | AS109: 1 | AT109: 1 | AU109: 0.1833333332 | AV109: 36 | AW109: 36 | AX109: 9 | AY109: 0 | AZ109: 0
A110: 94 | B110: x | C110: - | D110: Deviere conductă DN200 racord SRM Hălăucești | E110: 97447 | F110: Hălăucești | G110: Iași | H110: 636911.44 | I110: 624477.14 | J110: 636911.44 | K110: 624477.14 | L110: - | M110: - | N110: SM1198D0 | O110: Luncași | P110: - | Q110: - | R110: - | S110: - | T110: SM-SD001 | U110: Nova Power, Cez Vânzare, Engie România, E.on Energie, Electrica Furnizare, PPC Energie, PPC Energie Muntenia, Premier Energy Trading, Mihoc Oil, Premier Energy, Petrom, Prisma Serv, Romgaz | V110: Prisma Serv | W110: - | X110: 2024-01-31 | Y110: 08:00:00 | Z110: 2024-01-31 | AA110: 17:00:00 | AB110: Bacău | AC110: Efectuată | AE110: 2024-01-31 | AF110: 08:00:00 | AG110: 2024-01-31 | AH110: 15:24:00 | AI110: 2024-01-31 | AJ110: 08:08:00 | AK110: 2024-01-31 | AL110: 08:02:00 | AM110: 7830/29.01.2024 | AN110: DA | AR110: =IF(B110="X",IF(AN110="","Afectat sau NU?",IF(AN110="DA",IF(((AK110+AL110)-(AE110+AF110))*24<-720,"Neinformat",((AK110+AL110)-(AE110+AF110))*24),"Nu a fost afectat producator/consumator")),"") -> 0.03333333327 | AS110: =IF(B110="X",IF(AN110="DA",IF(AR110<6,LEN(TRIM(V110))-LEN(SUBSTITUTE(V110,CHAR(44),""))+1,0),"-"),"") -> 1 | AT110: =IF(B110="X",IF(AN110="DA",LEN(TRIM(V110))-LEN(SUBSTITUTE(V110,CHAR(44),""))+1,"-"),"") -> 1 | AU110: =IF(B110="X",IF(AN110="","Afectat sau NU?",IF(AN110="DA",IF(((AI110+AJ110)-(AE110+AF110))*24<-720,"Neinformat",((AI110+AJ110)-(AE110+AF110))*24),"Nu a fost afectat producator/consumator")),"") -> 0.1333333332 | AV110: =IF(B110="X",IF(AN110="DA",IF(AU110<6,LEN(TRIM(U110))-LEN(SUBSTITUTE(U110,CHAR(44),""))+1,0),"-"),"") -> 13 | AW110: =IF(B110="X",IF(AN110="DA",LEN(TRIM(U110))-LEN(SUBSTITUTE(U110,CHAR(44),""))+1,"-"),"") -> 13 | AX110: =IF(B110="X",IF(AN110="","Afectat sau NU?",IF(AN110="DA",((AG110+AH110)-(AE110+AF110))*24,"Nu a fost afectat producator/consumator")),"") -> 7.4 | AY110: =IF(B110="X",IF(AN110="DA",IF(AX110>24,IF(BA110="NU",0,LEN(TRIM(V110))-LEN(SUBSTITUTE(V110,CHAR(44),""))+1),0),"-"),"") -> 0 | AZ110: =IF(B110="X",IF(AN110="DA",IF(AX110>24,LEN(TRIM(V110))-LEN(SUBSTITUTE(V110,CHAR(44),""))+1,0),"-"),"") -> 0 | BF110: =IF(C110="X",IF(AN110="","Afectat sau NU?",IF(AN110="DA",IF(AK110="","Neinformat",NETWORKDAYS(AK110+AL110,AE110+AF110,$BS$2:$BS$14)-2),"Nu a fost afectat producator/consumator")),"") ->  | BG110: =IF(C110="X",IF(AN110="DA",IF(AND(BF110>=5,AK110<>""),LEN(TRIM(V110))-LEN(SUBSTITUTE(V110,CHAR(44),""))+1,0),"-"),"") ->  | BH110: =IF(C110="X",IF(AN110="DA",LEN(TRIM(V110))-LEN(SUBSTITUTE(V110,CHAR(44),""))+1,"-"),"") ->  | BI110: =IF(C110="X",IF(AN110="","Afectat sau NU?",IF(AN110="DA",IF(AI110="","Neinformat",NETWORKDAYS(AI110+AJ110,AE110+AF110,$BS$2:$BS$14)-2),"Nu a fost afectat producator/consumator")),"") ->  | BJ110: =IF(C110="X",IF(AN110="DA",IF(AND(BI110>=5,AI110<>""),LEN(TRIM(U110))-LEN(SUBSTITUTE(U110,CHAR(44),""))+1,0),"-"),"") ->  | BK110: =IF(C110="X",IF(AN110="DA",LEN(TRIM(U110))-LEN(SUBSTITUTE(U110,CHAR(44),""))+1,"-"),"") ->  | BL110: =IF(C110="X",IF(AN110="","Afectat sau NU?",IF(AN110="DA",((AG110+AH110)-(Z110+AA110))*24,"Nu a fost afectat producator/consumator")),"") ->  | BM110: =IF(C110="X",IF(AN110<>"DA","-",IF(AND(AN110="DA",BL110<=0),LEN(TRIM(V110))-LEN(SUBSTITUTE(V110,CHAR(44),""))+1+LEN(TRIM(U110))-LEN(SUBSTITUTE(U110,CHAR(44),""))+1,0)),"") ->  | BN110: =IF(C110="X",IF(AN110="DA",LEN(TRIM(V110))-LEN(SUBSTITUTE(V110,CHAR(44),""))+1+LEN(TRIM(U110))-LEN(SUBSTITUTE(U110,CHAR(44),""))+1,"-"),"") -> 
A111: 95 | B111: x | C111: - | D111: Remediere emanații în instalația tehnologică a SRM Bărsești | E111: 77830 | F111: Bărsești | G111: Gorj | H111: 360834.59 | I111: 395978.73 | J111: 360834.59 | K111: 395978.73 | L111: - | M111: - | N111: SM0191D1 | O111: SC Romcim SA PL Târgu Jiu | P111: - | Q111: - | R111: - | S111: - | T111: SM-CF001 | U111: Petrom | V111: Romcim SA | W111: - | X111: 2024-01-31 | Y111: 10:27:00 | Z111: 2024-01-31 | AA111: 14:00:00 | AB111: Craiova | AC111: Efectuată | AE111: 2024-01-31 | AF111: 10:27:00 | AG111: 2024-01-31 | AH111: 12:57:00 | AI111: 2024-01-31 | AJ111: 11:10:00 | AK111: 2024-01-31 | AL111: 10:30:00 | AM111: 8251/30.01.2024 | AN111: DA | AR111: 0.04999999999 | AS111: 1 | AT111: 1 | AU111: 0.7166666667 | AV111: 1 | AW111: 1 | AX111: 2.5 | AY111: 0 | AZ111: 0
A112: 96 | B112: x | C112: - | D112: Remediere emanații în instalația tehnologică a SRM Bărsești | E112: 77830 | F112: Bărsești | G112: Gorj | H112: 360834.59 | I112: 395978.73 | J112: 360834.59 | K112: 395978.73 | L112: - | M112: - | N112: SM0191D2 | O112: SC Simcor Var Târgu Jiu | P112: - | Q112: - | R112: - | S112: - | T112: SM-CF001 | U112: Nova Power | V112: Simcor Var SA | W112: - | X112: 2024-01-31 | Y112: 10:27:00 | Z112: 2024-01-31 | AA112: 14:00:00 | AB112: Craiova | AC112: Efectuată | AE112: 2024-01-31 | AF112: 10:27:00 | AG112: 2024-01-31 | AH112: 12:42:00 | AI112: 2024-01-31 | AJ112: 11:03:00 | AK112: 2024-01-31 | AL112: 10:30:00 | AM112: 8251/30.01.2024 | AN112: DA | AR112: 0.04999999999 | AS112: 1 | AT112: 1 | AU112: 0.6 | AV112: 1 | AW112: 1 | AX112: 2.25 | AY112: 0 | AZ112: 0
A113: 97 | B113: x | C113: - | D113: Remediere emanații în instalația tehnologică a SRM Bărsești | E113: 77830 | F113: Bărsești | G113: Gorj | H113: 360834.59 | I113: 395978.73 | J113: 360834.59 | K113: 395978.73 | L113: - | M113: - | N113: SM0191D4 | O113: SC Macofil Târgu Jiu | P113: - | Q113: - | R113: - | S113: - | T113: SM-CF001 | U113: Met România | V113: Macofil SA | W113: - | X113: 2024-01-31 | Y113: 10:27:00 | Z113: 2024-01-31 | AA113: 14:00:00 | AB113: Craiova | AC113: Efectuată | AE113: 2024-01-31 | AF113: 10:27:00 | AG113: 2024-01-31 | AH113: 12:42:00 | AI113: 2024-01-31 | AJ113: 11:08:00 | AK113: 2024-01-31 | AL113: 10:31:00 | AM113: 8251/30.01.2024 | AN113: DA | AR113: 0.06666666671 | AS113: 1 | AT113: 1 | AU113: 0.6833333333 | AV113: 1 | AW113: 1 | AX113: 2.25 | AY113: 0 | AZ113: 0
A114: 98 | B114: x | C114: - | D114: Remediere emanații în instalația tehnologică a SRM Bărsești | E114: 77830 | F114: Bărsești | G114: Gorj | H114: 360834.59 | I114: 395978.73 | J114: 360834.59 | K114: 395978.73 | L114: - | M114: - | N114: SM0191D3 | O114: SC Eurotecrom Bârsești | P114: - | Q114: - | R114: - | S114: - | T114: SM-SD001 | U114: Alpha Metal, Nova Power, Bepco, Cez Vânzare, Complexul Energetic Oltenia, Crest Energy, Distrigaz Sud Rețele, Distrigaz Vest, Engie, E.on Energie, Electrocentrale București, Electrica Furnizare, Electric Planners, Energy Core, Energy Distribution, PPC Energie, PPC Energie Muntenia, Entrex, Euro Seven, Eye Mall, Premier Energy Trading, Gaz Est, Getica95, Local Gaz, Met România, Monsson, Termoenergetica București, MVM Future, Next Energy Distribution, Next Energy Partners, Premier Energy, Petrom, Gas Provider, Renovatio, Romgaz, RWE Supply, Solprim, Sustainable Energy, Termocentrale Constanța, Termo Calor, Tinmar, Transenergo, Termoelectrica Giurgiu, Vest Energo | V114: Distrigaz Sud Rețele | W114: - | X114: 2024-01-31 | Y114: 10:27:00 | Z114: 2024-01-31 | AA114: 14:00:00 | AB114: Craiova | AC114: Efectuată | AE114: 2024-01-31 | AF114: 10:27:00 | AG114: 2024-01-31 | AH114: 12:42:00 | AI114: 2024-01-31 | AJ114: 11:13:00 | AK114: 2024-01-31 | AL114: 10:31:00 | AM114: 8251/30.01.2024 | AN114: DA | AR114: 0.06666666671 | AS114: 1 | AT114: 1 | AU114: 0.7666666667 | AV114: 44 | AW114: 44 | AX114: 2.25 | AY114: 0 | AZ114: 0
A115: 99 | B115: - | C115: x | D115: Înlocuire robinet RAE7 în SRM Clinceni | E115: 102044 | F115: Clinceni | G115: Ilfov | H115: 574454.58 | I115: 318647.9 | J115: 574454.58 | K115: 318647.9 | L115: - | M115: - | N115: SM0249D1 | O115: Clinceni | P115: - | Q115: - | R115: - | S115: - | T115: SM-SD001 | V115: Distrigaz Sud Rețele | W115: mai - august 2024 | AB115: București | AP115: Forțe proprii | BF115: Afectat sau NU? | BG115: - | BH115: - | BI115: Afectat sau NU? | BJ115: - | BK115: - | BL115: Afectat sau NU? | BM115: - | BN115: -
A116: 100 | B116: x | C116: - | D116: Sistematizare instalație tehnologică SRM Kronospan Stupini Brașov | E116: 40205 | F116: Brașov | G116: Brașov | H116: 546477.46 | I116: 467208.75 | J116: 546477.46 | K116: 467208.75 | L116: - | M116: - | N116: SM1034D0 | O116: SC Kronospan Stupini Brașov | P116: - | Q116: - | R116: - | S116: - | T116: SM-CF001 | U116: Nova Power | V116: SC Kronospan | W116: - | X116: 2024-02-28 | Y116: 09:25:00 | Z116: 2024-02-28 | AA116: 12:00:00 | AB116: Brașov | AC116: Efectuată | AE116: 2024-02-28 | AF116: 09:25:00 | AG116: 2024-02-28 | AH116: 12:00:00 | AI116: 2024-02-28 | AJ116: 09:53:00 | AK116: 2024-02-28 | AL116: 09:47:00 | AM116: 364/26.02.2024 | AN116: DA | AR116: =IF(B116="X",IF(AN116="","Afectat sau NU?",IF(AN116="DA",IF(((AK116+AL116)-(AE116+AF116))*24<-720,"Neinformat",((AK116+AL116)-(AE116+AF116))*24),"Nu a fost afectat producator/consumator")),"") -> 0.3666666666 | AS116: =IF(B116="X",IF(AN116="DA",IF(AR116<6,LEN(TRIM(V116))-LEN(SUBSTITUTE(V116,CHAR(44),""))+1,0),"-"),"") -> 1 | AT116: =IF(B116="X",IF(AN116="DA",LEN(TRIM(V116))-LEN(SUBSTITUTE(V116,CHAR(44),""))+1,"-"),"") -> 1 | AU116: =IF(B116="X",IF(AN116="","Afectat sau NU?",IF(AN116="DA",IF(((AI116+AJ116)-(AE116+AF116))*24<-720,"Neinformat",((AI116+AJ116)-(AE116+AF116))*24),"Nu a fost afectat producator/consumator")),"") -> 0.4666666668 | AV116: =IF(B116="X",IF(AN116="DA",IF(AU116<6,LEN(TRIM(U116))-LEN(SUBSTITUTE(U116,CHAR(44),""))+1,0),"-"),"") -> 1 | AW116: =IF(B116="X",IF(AN116="DA",LEN(TRIM(U116))-LEN(SUBSTITUTE(U116,CHAR(44),""))+1,"-"),"") -> 1 | AX116: =IF(B116="X",IF(AN116="","Afectat sau NU?",IF(AN116="DA",((AG116+AH116)-(AE116+AF116))*24,"Nu a fost afectat producator/consumator")),"") -> 2.583333333 | AY116: =IF(B116="X",IF(AN116="DA",IF(AX116>24,IF(BA116="NU",0,LEN(TRIM(V116))-LEN(SUBSTITUTE(V116,CHAR(44),""))+1),0),"-"),"") -> 0 | AZ116: =IF(B116="X",IF(AN116="DA",IF(AX116>24,LEN(TRIM(V116))-LEN(SUBSTITUTE(V116,CHAR(44),""))+1,0),"-"),"") -> 0 | BF116: =IF(C116="X",IF(AN116="","Afectat sau NU?",IF(AN116="DA",IF(AK116="","Neinformat",NETWORKDAYS(AK116+AL116,AE116+AF116,$BS$2:$BS$14)-2),"Nu a fost afectat producator/consumator")),"") ->  | BG116: =IF(C116="X",IF(AN116="DA",IF(AND(BF116>=5,AK116<>""),LEN(TRIM(V116))-LEN(SUBSTITUTE(V116,CHAR(44),""))+1,0),"-"),"") ->  | BH116: =IF(C116="X",IF(AN116="DA",LEN(TRIM(V116))-LEN(SUBSTITUTE(V116,CHAR(44),""))+1,"-"),"") ->  | BI116: =IF(C116="X",IF(AN116="","Afectat sau NU?",IF(AN116="DA",IF(AI116="","Neinformat",NETWORKDAYS(AI116+AJ116,AE116+AF116,$BS$2:$BS$14)-2),"Nu a fost afectat producator/consumator")),"") ->  | BJ116: =IF(C116="X",IF(AN116="DA",IF(AND(BI116>=5,AI116<>""),LEN(TRIM(U116))-LEN(SUBSTITUTE(U116,CHAR(44),""))+1,0),"-"),"") ->  | BK116: =IF(C116="X",IF(AN116="DA",LEN(TRIM(U116))-LEN(SUBSTITUTE(U116,CHAR(44),""))+1,"-"),"") ->  | BL116: =IF(C116="X",IF(AN116="","Afectat sau NU?",IF(AN116="DA",((AG116+AH116)-(Z116+AA116))*24,"Nu a fost afectat producator/consumator")),"") ->  | BM116: =IF(C116="X",IF(AN116<>"DA","-",IF(AND(AN116="DA",BL116<=0),LEN(TRIM(V116))-LEN(SUBSTITUTE(V116,CHAR(44),""))+1+LEN(TRIM(U116))-LEN(SUBSTITUTE(U116,CHAR(44),""))+1,0)),"") ->  | BN116: =IF(C116="X",IF(AN116="DA",LEN(TRIM(V116))-LEN(SUBSTITUTE(V116,CHAR(44),""))+1+LEN(TRIM(U116))-LEN(SUBSTITUTE(U116,CHAR(44),""))+1,"-"),"") -> 
A117: 101 | B117: x | C117: - | D117: Deviere conductă DN400 Gherăești - Iași, fir II, zona Mircești | E117: 97820 | F117: Mircești | G117: Iași | H117: 640467.09 | I117: 618333.38 | J117: 640467.09 | K117: 618333.38 | L117: - | M117: - | N117: SM1209D0 | O117: Mircești | P117: - | Q117: - | R117: - | S117: - | T117: SM-SD001 | U117: Nova Power, Design Proiect, Engie, E.on Energie, Electrica Furnizare, PPC Energie, PPC Energie Muntenia, Premier Energy Trading, Gaz Nord Est, Premier Energy, Petrom, Tinmar | V117: Design Proiect | W117: - | X117: 2024-03-05 | Y117: 08:00:00 | Z117: 2024-03-05 | AA117: 17:00:00 | AB117: Bacău | AC117: Efectuată | AE117: 2024-03-05 | AF117: 08:00:00 | AG117: 2024-03-05 | AH117: 17:00:00 | AI117: 2024-03-05 | AJ117: 08:10:00 | AK117: 2024-03-05 | AL117: 08:04:00 | AM117: 17884/29.02.2024 | AN117: DA | AR117: =IF(B117="X",IF(AN117="","Afectat sau NU?",IF(AN117="DA",IF(((AK117+AL117)-(AE117+AF117))*24<-720,"Neinformat",((AK117+AL117)-(AE117+AF117))*24),"Nu a fost afectat producator/consumator")),"") -> 0.06666666653 | AS117: =IF(B117="X",IF(AN117="DA",IF(AR117<6,LEN(TRIM(V117))-LEN(SUBSTITUTE(V117,CHAR(44),""))+1,0),"-"),"") -> 1 | AT117: =IF(B117="X",IF(AN117="DA",LEN(TRIM(V117))-LEN(SUBSTITUTE(V117,CHAR(44),""))+1,"-"),"") -> 1 | AU117: =IF(B117="X",IF(AN117="","Afectat sau NU?",IF(AN117="DA",IF(((AI117+AJ117)-(AE117+AF117))*24<-720,"Neinformat",((AI117+AJ117)-(AE117+AF117))*24),"Nu a fost afectat producator/consumator")),"") -> 0.1666666667 | AV117: =IF(B117="X",IF(AN117="DA",IF(AU117<6,LEN(TRIM(U117))-LEN(SUBSTITUTE(U117,CHAR(44),""))+1,0),"-"),"") -> 12 | AW117: =IF(B117="X",IF(AN117="DA",LEN(TRIM(U117))-LEN(SUBSTITUTE(U117,CHAR(44),""))+1,"-"),"") -> 12 | AX117: =IF(B117="X",IF(AN117="","Afectat sau NU?",IF(AN117="DA",((AG117+AH117)-(AE117+AF117))*24,"Nu a fost afectat producator/consumator")),"") -> 9 | AY117: =IF(B117="X",IF(AN117="DA",IF(AX117>24,IF(BA117="NU",0,LEN(TRIM(V117))-LEN(SUBSTITUTE(V117,CHAR(44),""))+1),0),"-"),"") -> 0 | AZ117: =IF(B117="X",IF(AN117="DA",IF(AX117>24,LEN(TRIM(V117))-LEN(SUBSTITUTE(V117,CHAR(44),""))+1,0),"-"),"") -> 0 | BF117: =IF(C117="X",IF(AN117="","Afectat sau NU?",IF(AN117="DA",IF(AK117="","Neinformat",NETWORKDAYS(AK117+AL117,AE117+AF117,$BS$2:$BS$14)-2),"Nu a fost afectat producator/consumator")),"") ->  | BG117: =IF(C117="X",IF(AN117="DA",IF(AND(BF117>=5,AK117<>""),LEN(TRIM(V117))-LEN(SUBSTITUTE(V117,CHAR(44),""))+1,0),"-"),"") ->  | BH117: =IF(C117="X",IF(AN117="DA",LEN(TRIM(V117))-LEN(SUBSTITUTE(V117,CHAR(44),""))+1,"-"),"") ->  | BI117: =IF(C117="X",IF(AN117="","Afectat sau NU?",IF(AN117="DA",IF(AI117="","Neinformat",NETWORKDAYS(AI117+AJ117,AE117+AF117,$BS$2:$BS$14)-2),"Nu a fost afectat producator/consumator")),"") ->  | BJ117: =IF(C117="X",IF(AN117="DA",IF(AND(BI117>=5,AI117<>""),LEN(TRIM(U117))-LEN(SUBSTITUTE(U117,CHAR(44),""))+1,0),"-"),"") ->  | BK117: =IF(C117="X",IF(AN117="DA",LEN(TRIM(U117))-LEN(SUBSTITUTE(U117,CHAR(44),""))+1,"-"),"") ->  | BL117: =IF(C117="X",IF(AN117="","Afectat sau NU?",IF(AN117="DA",((AG117+AH117)-(Z117+AA117))*24,"Nu a fost afectat producator/consumator")),"") ->  | BM117: =IF(C117="X",IF(AN117<>"DA","-",IF(AND(AN117="DA",BL117<=0),LEN(TRIM(V117))-LEN(SUBSTITUTE(V117,CHAR(44),""))+1+LEN(TRIM(U117))-LEN(SUBSTITUTE(U117,CHAR(44),""))+1,0)),"") ->  | BN117: =IF(C117="X",IF(AN117="DA",LEN(TRIM(V117))-LEN(SUBSTITUTE(V117,CHAR(44),""))+1+LEN(TRIM(U117))-LEN(SUBSTITUTE(U117,CHAR(44),""))+1,"-"),"") -> 
A118: 102 | B118: x | C118: - | D118: Reparare definitivă pe conducta DN250 Cristești - Tg.Neamț, zona Dig Ozana - Blebea | E118: 121082 | F118: Humulești | G118: Neamț | H118: 603183.01 | I118: 634161.77 | J118: 603183.01 | K118: 634161.77 | L118: - | M118: - | N118: SM0463D1 | O118: SC Mirofor Târgu Neamț | P118: - | Q118: - | R118: - | S118: - | T118: SM-CF001 | U118: PPC Energie | V118: Mirofor | W118: - | X118: 2024-03-06 | Y118: 09:55:00 | Z118: 2024-03-06 | AA118: 17:00:00 | AB118: Bacău | AC118: Efectuată | AE118: 2024-03-06 | AF118: 09:55:00 | AG118: 2024-03-06 | AH118: 14:00:00 | AI118: 2024-03-06 | AJ118: 10:09:00 | AK118: 2024-03-06 | AL118: 10:00:00 | AM118: 19141/05.03.2024 | AN118: DA | AR118: 0.08333333326 | AS118: 1 | AT118: 1 | AU118: 0.2333333334 | AV118: 1 | AW118: 1 | AX118: 4.083333333 | AY118: 0 | AZ118: 0
A119: 103 | B119: x | C119: - | D119: Reparare definitivă pe conducta DN250 Cristești - Tg.Neamț, zona Dig Ozana - Blebea | E119: 121064 | F119: Târgu Neamț | G119: Neamț | H119: 602678.26 | I119: 634671.84 | J119: 602678.26 | K119: 634671.84 | L119: - | M119: - | N119: SM0462D0 | O119: Târgu Neamț | P119: - | Q119: - | R119: - | S119: - | T119: SM-SD001 | U119: Nova Power, Cez Vânzare, Colterm, CPL Concordia, Delgaz, Design Proiect, Distrigaz Vest, Engie România, E.on Energie, Electrica Furnizare, Electric Planners, Energy Core, Energy Distribution, PPC Energie, PPC Energie Muntenia, Entrex Services, Eye Mall, Premier Energy Trading, Gaz Est, Gazmir, Getica95, Local Gaz, Mihoc Oil, Met România, MVM Future, Next Energy Distribution, Premier Energy, Petrom, Prisma Serv, Gas Provider, Renovatio, Romgaz, RWE Supply, Solprim, Tetarom, Tinmar, Transenergo, Gaz Vest Trading | V119: Delgaz Grid | W119: - | X119: 2024-03-06 | Y119: 10:02:00 | Z119: 2024-03-06 | AA119: 17:00:00 | AB119: Bacău | AC119: Efectuată | AE119: 2024-03-06 | AF119: 10:02:00 | AG119: 2024-03-06 | AH119: 14:00:00 | AI119: 2024-03-06 | AJ119: 10:15:00 | AK119: 2024-03-06 | AL119: 10:05:00 | AM119: 19141/05.03.2024 | AN119: DA | AR119: 0.04999999999 | AS119: 1 | AT119: 1 | AU119: 0.2166666667 | AV119: 38 | AW119: 38 | AX119: 3.966666667 | AY119: 0 | AZ119: 0
A120: 104 | B120: x | C120: - | D120: Reparare definitivă pe conducta DN250 Cristești - Tg.Neamț, zona Dig Ozana - Blebea | E120: 121064 | F120: Târgu Neamț | G120: Neamț | H120: 602678.26 | I120: 634671.84 | J120: 602678.26 | K120: 634671.84 | L120: - | M120: - | N120: SM0462D1 | O120: Vânători | P120: - | Q120: - | R120: - | S120: - | T120: SM-SD001 | U120: Nova Power, Cez Vânzare, Engie România, E.on Energie, PPC Energie, PPC Energie Muntenia, Premier Energy Trading, Mihoc Oil, Met România, Premier Energy, Petrom, Romgaz | V120: Mihoc Oil | W120: - | X120: 2024-03-06 | Y120: 10:02:00 | Z120: 2024-03-06 | AA120: 17:00:00 | AB120: Bacău | AC120: Efectuată | AE120: 2024-03-06 | AF120: 10:02:00 | AG120: 2024-03-06 | AH120: 14:00:00 | AI120: 2024-03-06 | AJ120: 10:12:00 | AK120: 2024-03-06 | AL120: 10:05:00 | AM120: 19141/05.03.2024 | AN120: DA | AR120: 0.04999999999 | AS120: 1 | AT120: 1 | AU120: 0.1666666667 | AV120: 12 | AW120: 12 | AX120: 3.966666667 | AY120: 0 | AZ120: 0
A121: 105 | B121: x | C121: - | D121: Întrerupere accidentală PM Tătărani | E121: 168372 | F121: Tătărani | G121: Vâlcea | H121: 441511.48 | I121: 388186.33 | J121: 441511.48 | K121: 388186.33 | L121: - | M121: - | N121: - | O121: - | P121: - | Q121: - | R121: PM0068 | S121: Tătărani | T121: PM-PP001 | U121: Petrom | V121: Petrom | W121: - | X121: 2024-03-10 | Y121: 18:05:00 | Z121: 2024-03-11 | AA121: 17:00:00 | AB121: Craiova | AC121: Efectuată | AE121: 2024-03-10 | AF121: 18:05:00 | AG121: 2024-03-11 | AH121: 15:25:00 | AI121: 2024-03-10 | AJ121: 18:23:00 | AK121: 2024-03-10 | AL121: 18:12:00 | AM121: 21194/11.03.2024 | AN121: DA | AR121: =IF(B121="X",IF(AN121="","Afectat sau NU?",IF(AN121="DA",IF(((AK121+AL121)-(AE121+AF121))*24<-720,"Neinformat",((AK121+AL121)-(AE121+AF121))*24),"Nu a fost afectat producator/consumator")),"") -> 0.1166666667 | AS121: =IF(B121="X",IF(AN121="DA",IF(AR121<6,LEN(TRIM(V121))-LEN(SUBSTITUTE(V121,CHAR(44),""))+1,0),"-"),"") -> 1 | AT121: =IF(B121="X",IF(AN121="DA",LEN(TRIM(V121))-LEN(SUBSTITUTE(V121,CHAR(44),""))+1,"-"),"") -> 1 | AU121: =IF(B121="X",IF(AN121="","Afectat sau NU?",IF(AN121="DA",IF(((AI121+AJ121)-(AE121+AF121))*24<-720,"Neinformat",((AI121+AJ121)-(AE121+AF121))*24),"Nu a fost afectat producator/consumator")),"") -> 0.3000000001 | AV121: =IF(B121="X",IF(AN121="DA",IF(AU121<6,LEN(TRIM(U121))-LEN(SUBSTITUTE(U121,CHAR(44),""))+1,0),"-"),"") -> 1 | AW121: =IF(B121="X",IF(AN121="DA",LEN(TRIM(U121))-LEN(SUBSTITUTE(U121,CHAR(44),""))+1,"-"),"") -> 1 | AX121: =IF(B121="X",IF(AN121="","Afectat sau NU?",IF(AN121="DA",((AG121+AH121)-(AE121+AF121))*24,"Nu a fost afectat producator/consumator")),"") -> 21.33333333 | AY121: =IF(B121="X",IF(AN121="DA",IF(AX121>24,IF(BA121="NU",0,LEN(TRIM(V121))-LEN(SUBSTITUTE(V121,CHAR(44),""))+1),0),"-"),"") -> 0 | AZ121: =IF(B121="X",IF(AN121="DA",IF(AX121>24,LEN(TRIM(V121))-LEN(SUBSTITUTE(V121,CHAR(44),""))+1,0),"-"),"") -> 0 | BF121: =IF(C121="X",IF(AN121="","Afectat sau NU?",IF(AN121="DA",IF(AK121="","Neinformat",NETWORKDAYS(AK121+AL121,AE121+AF121,$BS$2:$BS$14)-2),"Nu a fost afectat producator/consumator")),"") ->  | BG121: =IF(C121="X",IF(AN121="DA",IF(AND(BF121>=5,AK121<>""),LEN(TRIM(V121))-LEN(SUBSTITUTE(V121,CHAR(44),""))+1,0),"-"),"") ->  | BH121: =IF(C121="X",IF(AN121="DA",LEN(TRIM(V121))-LEN(SUBSTITUTE(V121,CHAR(44),""))+1,"-"),"") ->  | BI121: =IF(C121="X",IF(AN121="","Afectat sau NU?",IF(AN121="DA",IF(AI121="","Neinformat",NETWORKDAYS(AI121+AJ121,AE121+AF121,$BS$2:$BS$14)-2),"Nu a fost afectat producator/consumator")),"") ->  | BJ121: =IF(C121="X",IF(AN121="DA",IF(AND(BI121>=5,AI121<>""),LEN(TRIM(U121))-LEN(SUBSTITUTE(U121,CHAR(44),""))+1,0),"-"),"") ->  | BK121: =IF(C121="X",IF(AN121="DA",LEN(TRIM(U121))-LEN(SUBSTITUTE(U121,CHAR(44),""))+1,"-"),"") ->  | BL121: =IF(C121="X",IF(AN121="","Afectat sau NU?",IF(AN121="DA",((AG121+AH121)-(Z121+AA121))*24,"Nu a fost afectat producator/consumator")),"") ->  | BM121: =IF(C121="X",IF(AN121<>"DA","-",IF(AND(AN121="DA",BL121<=0),LEN(TRIM(V121))-LEN(SUBSTITUTE(V121,CHAR(44),""))+1+LEN(TRIM(U121))-LEN(SUBSTITUTE(U121,CHAR(44),""))+1,0)),"") ->  | BN121: =IF(C121="X",IF(AN121="DA",LEN(TRIM(V121))-LEN(SUBSTITUTE(V121,CHAR(44),""))+1+LEN(TRIM(U121))-LEN(SUBSTITUTE(U121,CHAR(44),""))+1,"-"),"") -> 
A122: 106 | B122: - | C122: x | D122: Deviere conductă DN250 racord SRM Clinceni datorită lucrărilor de execuție a autostrăzii A0 Lot 3 | E122: 102044 | F122: Clinceni | G122: Ilfov | H122: 574454.58 | I122: 318647.9 | J122: 574454.58 | K122: 318647.9 | L122: - | M122: - | N122: SM0249D1 | O122: Clinceni | P122: - | Q122: - | R122: - | S122: - | T122: SM-SD001 | V122: Distrigaz Sud Rețele | W122: mai - septembrie 2024 | AB122: București | BF122: Afectat sau NU? | BG122: - | BH122: - | BI122: Afectat sau NU? | BJ122: - | BK122: - | BL122: Afectat sau NU? | BM122: - | BN122: -
A123: =A122+1 -> 107 | B123: - | C123: x | D123: Deviere conductă DN250 racord SRM Clinceni datorită lucrărilor de execuție a autostrăzii A0 Lot 3 | E123: 102044 | F123: Clinceni | G123: Ilfov | H123: 574454.58 | I123: 318647.9 | J123: 574454.58 | K123: 318647.9 | L123: - | M123: - | N123: SM0249D2 | O123: Cornetu | P123: - | Q123: - | R123: - | S123: - | T123: SM-SD001 | V123: Premier Energy | W123: mai - septembrie 2024 | AB123: București | AR123: =IF(B123="X",IF(AN123="","Afectat sau NU?",IF(AN123="DA",IF(((AK123+AL123)-(AE123+AF123))*24<-720,"Neinformat",((AK123+AL123)-(AE123+AF123))*24),"Nu a fost afectat producator/consumator")),"") ->  | AS123: =IF(B123="X",IF(AN123="DA",IF(AR123<6,LEN(TRIM(V123))-LEN(SUBSTITUTE(V123,CHAR(44),""))+1,0),"-"),"") ->  | AT123: =IF(B123="X",IF(AN123="DA",LEN(TRIM(V123))-LEN(SUBSTITUTE(V123,CHAR(44),""))+1,"-"),"") ->  | AU123: =IF(B123="X",IF(AN123="","Afectat sau NU?",IF(AN123="DA",IF(((AI123+AJ123)-(AE123+AF123))*24<-720,"Neinformat",((AI123+AJ123)-(AE123+AF123))*24),"Nu a fost afectat producator/consumator")),"") ->  | AV123: =IF(B123="X",IF(AN123="DA",IF(AU123<6,LEN(TRIM(U123))-LEN(SUBSTITUTE(U123,CHAR(44),""))+1,0),"-"),"") ->  | AW123: =IF(B123="X",IF(AN123="DA",LEN(TRIM(U123))-LEN(SUBSTITUTE(U123,CHAR(44),""))+1,"-"),"") ->  | AX123: =IF(B123="X",IF(AN123="","Afectat sau NU?",IF(AN123="DA",((AG123+AH123)-(AE123+AF123))*24,"Nu a fost afectat producator/consumator")),"") ->  | AY123: =IF(B123="X",IF(AN123="DA",IF(AX123>24,IF(BA123="NU",0,LEN(TRIM(V123))-LEN(SUBSTITUTE(V123,CHAR(44),""))+1),0),"-"),"") ->  | AZ123: =IF(B123="X",IF(AN123="DA",IF(AX123>24,LEN(TRIM(V123))-LEN(SUBSTITUTE(V123,CHAR(44),""))+1,0),"-"),"") ->  | BF123: =IF(C123="X",IF(AN123="","Afectat sau NU?",IF(AN123="DA",IF(AK123="","Neinformat",NETWORKDAYS(AK123+AL123,AE123+AF123,$BS$2:$BS$14)-2),"Nu a fost afectat producator/consumator")),"") -> Afectat sau NU? | BG123: =IF(C123="X",IF(AN123="DA",IF(AND(BF123>=5,AK123<>""),LEN(TRIM(V123))-LEN(SUBSTITUTE(V123,CHAR(44),""))+1,0),"-"),"") -> - | BH123: =IF(C123="X",IF(AN123="DA",LEN(TRIM(V123))-LEN(SUBSTITUTE(V123,CHAR(44),""))+1,"-"),"") -> - | BI123: =IF(C123="X",IF(AN123="","Afectat sau NU?",IF(AN123="DA",IF(AI123="","Neinformat",NETWORKDAYS(AI123+AJ123,AE123+AF123,$BS$2:$BS$14)-2),"Nu a fost afectat producator/consumator")),"") -> Afectat sau NU? | BJ123: =IF(C123="X",IF(AN123="DA",IF(AND(BI123>=5,AI123<>""),LEN(TRIM(U123))-LEN(SUBSTITUTE(U123,CHAR(44),""))+1,0),"-"),"") -> - | BK123: =IF(C123="X",IF(AN123="DA",LEN(TRIM(U123))-LEN(SUBSTITUTE(U123,CHAR(44),""))+1,"-"),"") -> - | BL123: =IF(C123="X",IF(AN123="","Afectat sau NU?",IF(AN123="DA",((AG123+AH123)-(Z123+AA123))*24,"Nu a fost afectat producator/consumator")),"") -> Afectat sau NU? | BM123: =IF(C123="X",IF(AN123<>"DA","-",IF(AND(AN123="DA",BL123<=0),LEN(TRIM(V123))-LEN(SUBSTITUTE(V123,CHAR(44),""))+1+LEN(TRIM(U123))-LEN(SUBSTITUTE(U123,CHAR(44),""))+1,0)),"") -> - | BN123: =IF(C123="X",IF(AN123="DA",LEN(TRIM(V123))-LEN(SUBSTITUTE(V123,CHAR(44),""))+1+LEN(TRIM(U123))-LEN(SUBSTITUTE(U123,CHAR(44),""))+1,"-"),"") -> -
A124: =A123+1 -> 108 | B124: - | C124: x | D124: Deviere conductă DN250 racord SRM Clinceni datorită lucrărilor de execuție a autostrăzii A0 Lot 3 | E124: 102044 | F124: Clinceni | G124: Ilfov | H124: 574454.58 | I124: 318647.9 | J124: 574454.58 | K124: 318647.9 | L124: - | M124: - | N124: SM0249D3 | O124: Clinceni Aeroport | P124: - | Q124: - | R124: - | S124: - | T124: SM-SD001 | V124: Premier Energy | W124: mai - septembrie 2024 | AB124: București | BF124: Afectat sau NU? | BG124: - | BH124: - | BI124: Afectat sau NU? | BJ124: - | BK124: - | BL124: Afectat sau NU? | BM124: - | BN124: -
A125: 109 | B125: - | C125: x | D125: Deviere conductă DN500 Corbu - București, fir I datorită lucrărilor de execuție a autostrăzii A0 Lot 3 | E125: 102589 | F125: Domnești | G125: Ilfov | H125: 571517.1 | I125: 321790.8 | J125: 571517.1 | K125: 321790.8 | L125: - | M125: - | N125: SM0918D0 | O125: Domnești | P125: - | Q125: - | R125: - | S125: - | T125: SM-SD001 | V125: Distrigaz Sud Rețele | W125: mai - septembrie 2024 | AB125: București | AR125: =IF(B125="X",IF(AN125="","Afectat sau NU?",IF(AN125="DA",IF(((AK125+AL125)-(AE125+AF125))*24<-720,"Neinformat",((AK125+AL125)-(AE125+AF125))*24),"Nu a fost afectat producator/consumator")),"") ->  | AS125: =IF(B125="X",IF(AN125="DA",IF(AR125<6,LEN(TRIM(V125))-LEN(SUBSTITUTE(V125,CHAR(44),""))+1,0),"-"),"") ->  | AT125: =IF(B125="X",IF(AN125="DA",LEN(TRIM(V125))-LEN(SUBSTITUTE(V125,CHAR(44),""))+1,"-"),"") ->  | AU125: =IF(B125="X",IF(AN125="","Afectat sau NU?",IF(AN125="DA",IF(((AI125+AJ125)-(AE125+AF125))*24<-720,"Neinformat",((AI125+AJ125)-(AE125+AF125))*24),"Nu a fost afectat producator/consumator")),"") ->  | AV125: =IF(B125="X",IF(AN125="DA",IF(AU125<6,LEN(TRIM(U125))-LEN(SUBSTITUTE(U125,CHAR(44),""))+1,0),"-"),"") ->  | AW125: =IF(B125="X",IF(AN125="DA",LEN(TRIM(U125))-LEN(SUBSTITUTE(U125,CHAR(44),""))+1,"-"),"") ->  | AX125: =IF(B125="X",IF(AN125="","Afectat sau NU?",IF(AN125="DA",((AG125+AH125)-(AE125+AF125))*24,"Nu a fost afectat producator/consumator")),"") ->  | AY125: =IF(B125="X",IF(AN125="DA",IF(AX125>24,IF(BA125="NU",0,LEN(TRIM(V125))-LEN(SUBSTITUTE(V125,CHAR(44),""))+1),0),"-"),"") ->  | AZ125: =IF(B125="X",IF(AN125="DA",IF(AX125>24,LEN(TRIM(V125))-LEN(SUBSTITUTE(V125,CHAR(44),""))+1,0),"-"),"") ->  | BF125: =IF(C125="X",IF(AN125="","Afectat sau NU?",IF(AN125="DA",IF(AK125="","Neinformat",NETWORKDAYS(AK125+AL125,AE125+AF125,$BS$2:$BS$14)-2),"Nu a fost afectat producator/consumator")),"") -> Afectat sau NU? | BG125: =IF(C125="X",IF(AN125="DA",IF(AND(BF125>=5,AK125<>""),LEN(TRIM(V125))-LEN(SUBSTITUTE(V125,CHAR(44),""))+1,0),"-"),"") -> - | BH125: =IF(C125="X",IF(AN125="DA",LEN(TRIM(V125))-LEN(SUBSTITUTE(V125,CHAR(44),""))+1,"-"),"") -> - | BI125: =IF(C125="X",IF(AN125="","Afectat sau NU?",IF(AN125="DA",IF(AI125="","Neinformat",NETWORKDAYS(AI125+AJ125,AE125+AF125,$BS$2:$BS$14)-2),"Nu a fost afectat producator/consumator")),"") -> Afectat sau NU? | BJ125: =IF(C125="X",IF(AN125="DA",IF(AND(BI125>=5,AI125<>""),LEN(TRIM(U125))-LEN(SUBSTITUTE(U125,CHAR(44),""))+1,0),"-"),"") -> - | BK125: =IF(C125="X",IF(AN125="DA",LEN(TRIM(U125))-LEN(SUBSTITUTE(U125,CHAR(44),""))+1,"-"),"") -> - | BL125: =IF(C125="X",IF(AN125="","Afectat sau NU?",IF(AN125="DA",((AG125+AH125)-(Z125+AA125))*24,"Nu a fost afectat producator/consumator")),"") -> Afectat sau NU? | BM125: =IF(C125="X",IF(AN125<>"DA","-",IF(AND(AN125="DA",BL125<=0),LEN(TRIM(V125))-LEN(SUBSTITUTE(V125,CHAR(44),""))+1+LEN(TRIM(U125))-LEN(SUBSTITUTE(U125,CHAR(44),""))+1,0)),"") -> - | BN125: =IF(C125="X",IF(AN125="DA",LEN(TRIM(V125))-LEN(SUBSTITUTE(V125,CHAR(44),""))+1+LEN(TRIM(U125))-LEN(SUBSTITUTE(U125,CHAR(44),""))+1,"-"),"") -> -
A126: 110 | B126: - | C126: x | D126: Deviere conductă DN500 Corbu - București, fir I datorită lucrărilor de execuție a autostrăzii A0 Lot 3 | E126: 102044 | F126: Clinceni | G126: Ilfov | H126: 574454.58 | I126: 318647.9 | J126: 574454.58 | K126: 318647.9 | L126: - | M126: - | N126: SM0249D1 | O126: Clinceni | P126: - | Q126: - | R126: - | S126: - | T126: SM-SD001 | V126: Distrigaz Sud Rețele | W126: mai - septembrie 2024 | AB126: București | BF126: Afectat sau NU? | BG126: - | BH126: - | BI126: Afectat sau NU? | BJ126: - | BK126: - | BL126: Afectat sau NU? | BM126: - | BN126: -
A127: 111 | B127: - | C127: x | D127: Deviere conductă DN500 Corbu - București, fir I datorită lucrărilor de execuție a autostrăzii A0 Lot 3 | E127: 102044 | F127: Clinceni | G127: Ilfov | H127: 574454.58 | I127: 318647.9 | J127: 574454.58 | K127: 318647.9 | L127: - | M127: - | N127: SM0249D2 | O127: Cornetu | P127: - | Q127: - | R127: - | S127: - | T127: SM-SD001 | V127: Premier Energy | W127: mai - septembrie 2024 | AB127: București | BF127: Afectat sau NU? | BG127: - | BH127: - | BI127: Afectat sau NU? | BJ127: - | BK127: - | BL127: Afectat sau NU? | BM127: - | BN127: -
A128: 112 | B128: - | C128: x | D128: Deviere conductă DN500 Corbu - București, fir I datorită lucrărilor de execuție a autostrăzii A0 Lot 3 | E128: 102044 | F128: Clinceni | G128: Ilfov | H128: 574454.58 | I128: 318647.9 | J128: 574454.58 | K128: 318647.9 | L128: - | M128: - | N128: SM0249D3 | O128: Clinceni Aeroport | P128: - | Q128: - | R128: - | S128: - | T128: SM-SD001 | V128: Premier Energy | W128: mai - septembrie 2024 | AB128: București | BF128: Afectat sau NU? | BG128: - | BH128: - | BI128: Afectat sau NU? | BJ128: - | BK128: - | BL128: Afectat sau NU? | BM128: - | BN128: -
A129: 113 | B129: - | C129: x | D129: Deviere conductă DN200 racord SRM Bolintin Deal datorită lucrărilor de execuție a autostrăzii A0 Lot 3 | E129: 101172 | F129: Bolintin Deal | G129: Giurgiu | H129: 566334.53 | I129: 327878.3 | J129: 566334.53 | K129: 327878.3 | L129: - | M129: - | N129: SM0986D0 | O129: Bolintin Deal | P129: - | Q129: - | R129: - | S129: - | T129: SM-SD001 | V129: Euro Seven Industry | W129: mai - septembrie 2024 | AB129: București | BF129: Afectat sau NU? | BG129: - | BH129: - | BI129: Afectat sau NU? | BJ129: - | BK129: - | BL129: Afectat sau NU? | BM129: - | BN129: -
A130: 114 | B130: - | C130: x | D130: Deviere conductă DN500 Corbu - București, fir II datorită lucrărilor de execuție a autostrăzii A0 Lot 3 | E130: 101966 | F130: Ciorogârla | G130: Ilfov | H130: 570081.98 | I130: 325484.88 | J130: 570081.98 | K130: 325484.88 | L130: - | M130: - | N130: SM0211D0 | O130: Ciorogârla | P130: - | Q130: - | R130: - | S130: - | T130: SM-SD001 | V130: Distrigaz Sud Rețele | W130: mai - septembrie 2024 | AB130: București | BF130: Afectat sau NU? | BG130: - | BH130: - | BI130: Afectat sau NU? | BJ130: - | BK130: - | BL130: Afectat sau NU? | BM130: - | BN130: -
A131: 115 | B131: - | C131: x | D131: Deviere conductă DN500 Corbu - București, fir II datorită lucrărilor de execuție a autostrăzii A0 Lot 3 | E131: 101172 | F131: Bolintin Deal | G131: Giurgiu | H131: 566334.53 | I131: 327878.3 | J131: 566334.53 | K131: 327878.3 | L131: - | M131: - | N131: SM0986D0 | O131: Bolintin Deal | P131: - | Q131: - | R131: - | S131: - | T131: SM-SD001 | V131: Euro Seven Industry | W131: mai - septembrie 2024 | AB131: București | BF131: Afectat sau NU? | BG131: - | BH131: - | BI131: Afectat sau NU? | BJ131: - | BK131: - | BL131: Afectat sau NU? | BM131: - | BN131: -
A132: 116 | B132: - | C132: x | D132: Deviere conductă DN500 Corbu - București, fir II datorită lucrărilor de execuție a autostrăzii A0 Lot 3 | E132: 103416 | F132: Grădinari | G132: Giurgiu | H132: 565555.03 | I132: 322665.81 | J132: 565555.03 | K132: 322665.81 | L132: - | M132: - | N132: - | O132: - | P132: - | Q132: - | R132: PM0048 | S132: PM Gradinari | T132: PM-PP001 | V132: Petrom, Dacian Petroleum | W132: mai - septembrie 2024 | AB132: București | BF132: Afectat sau NU? | BG132: - | BH132: - | BI132: Afectat sau NU? | BJ132: - | BK132: - | BL132: Afectat sau NU? | BM132: - | BN132: -
A133: 117 | B133: - | C133: x | D133: Conductă de transport gaze naturale DN500 Plătărești - Bălăceanca | E133: 101760 | F133: Bălăceanca | G133: Ilfov | H133: 600884.14 | I133: 320573.02 | J133: 600884.14 | K133: 320573.02 | L133: - | M133: - | N133: - | O133: - | P133: - | Q133: - | R133: PM0039 | S133: Bălăceanca Extras | T133: VPM01 | V133: Depogaz Ploiești | W133: 19 aprilie - iunie 2024 | AB133: București | AP133: PMDI 2023-2025 Anexa3_B.1.1. | BF133: Afectat sau NU? | BG133: - | BH133: - | BI133: Afectat sau NU? | BJ133: - | BK133: - | BL133: Afectat sau NU? | BM133: - | BN133: -
A134: 118 | B134: - | C134: x | D134: Conductă de transport gaze naturale DN500 Plătărești - Bălăceanca | E134: 101760 | F134: Bălăceanca | G134: Ilfov | H134: 600884.14 | I134: 320573.02 | J134: 600884.14 | K134: 320573.02 | L134: - | M134: - | N134: SM1065D0 | O134: Bălăceanca Înmagazinat | P134: - | Q134: - | R134: - | S134: - | T134: VSM01 | V134: Depogaz Ploiești | W134: 19 aprilie - iunie 2024 | AB134: București | AP134: PMDI 2023-2025 Anexa3_B.1.1. | AR134: =IF(B134="X",IF(AN134="","Afectat sau NU?",IF(AN134="DA",IF(((AK134+AL134)-(AE134+AF134))*24<-720,"Neinformat",((AK134+AL134)-(AE134+AF134))*24),"Nu a fost afectat producator/consumator")),"") ->  | AS134: =IF(B134="X",IF(AN134="DA",IF(AR134<6,LEN(TRIM(V134))-LEN(SUBSTITUTE(V134,CHAR(44),""))+1,0),"-"),"") ->  | AT134: =IF(B134="X",IF(AN134="DA",LEN(TRIM(V134))-LEN(SUBSTITUTE(V134,CHAR(44),""))+1,"-"),"") ->  | AU134: =IF(B134="X",IF(AN134="","Afectat sau NU?",IF(AN134="DA",IF(((AI134+AJ134)-(AE134+AF134))*24<-720,"Neinformat",((AI134+AJ134)-(AE134+AF134))*24),"Nu a fost afectat producator/consumator")),"") ->  | AV134: =IF(B134="X",IF(AN134="DA",IF(AU134<6,LEN(TRIM(U134))-LEN(SUBSTITUTE(U134,CHAR(44),""))+1,0),"-"),"") ->  | AW134: =IF(B134="X",IF(AN134="DA",LEN(TRIM(U134))-LEN(SUBSTITUTE(U134,CHAR(44),""))+1,"-"),"") ->  | AX134: =IF(B134="X",IF(AN134="","Afectat sau NU?",IF(AN134="DA",((AG134+AH134)-(AE134+AF134))*24,"Nu a fost afectat producator/consumator")),"") ->  | AY134: =IF(B134="X",IF(AN134="DA",IF(AX134>24,IF(BA134="NU",0,LEN(TRIM(V134))-LEN(SUBSTITUTE(V134,CHAR(44),""))+1),0),"-"),"") ->  | AZ134: =IF(B134="X",IF(AN134="DA",IF(AX134>24,LEN(TRIM(V134))-LEN(SUBSTITUTE(V134,CHAR(44),""))+1,0),"-"),"") ->  | BF134: =IF(C134="X",IF(AN134="","Afectat sau NU?",IF(AN134="DA",IF(AK134="","Neinformat",NETWORKDAYS(AK134+AL134,AE134+AF134,$BS$2:$BS$14)-2),"Nu a fost afectat producator/consumator")),"") -> Afectat sau NU? | BG134: =IF(C134="X",IF(AN134="DA",IF(AND(BF134>=5,AK134<>""),LEN(TRIM(V134))-LEN(SUBSTITUTE(V134,CHAR(44),""))+1,0),"-"),"") -> - | BH134: =IF(C134="X",IF(AN134="DA",LEN(TRIM(V134))-LEN(SUBSTITUTE(V134,CHAR(44),""))+1,"-"),"") -> - | BI134: =IF(C134="X",IF(AN134="","Afectat sau NU?",IF(AN134="DA",IF(AI134="","Neinformat",NETWORKDAYS(AI134+AJ134,AE134+AF134,$BS$2:$BS$14)-2),"Nu a fost afectat producator/consumator")),"") -> Afectat sau NU? | BJ134: =IF(C134="X",IF(AN134="DA",IF(AND(BI134>=5,AI134<>""),LEN(TRIM(U134))-LEN(SUBSTITUTE(U134,CHAR(44),""))+1,0),"-"),"") -> - | BK134: =IF(C134="X",IF(AN134="DA",LEN(TRIM(U134))-LEN(SUBSTITUTE(U134,CHAR(44),""))+1,"-"),"") -> - | BL134: =IF(C134="X",IF(AN134="","Afectat sau NU?",IF(AN134="DA",((AG134+AH134)-(Z134+AA134))*24,"Nu a fost afectat producator/consumator")),"") -> Afectat sau NU? | BM134: =IF(C134="X",IF(AN134<>"DA","-",IF(AND(AN134="DA",BL134<=0),LEN(TRIM(V134))-LEN(SUBSTITUTE(V134,CHAR(44),""))+1+LEN(TRIM(U134))-LEN(SUBSTITUTE(U134,CHAR(44),""))+1,0)),"") -> - | BN134: =IF(C134="X",IF(AN134="DA",LEN(TRIM(V134))-LEN(SUBSTITUTE(V134,CHAR(44),""))+1+LEN(TRIM(U134))-LEN(SUBSTITUTE(U134,CHAR(44),""))+1,"-"),"") -> -
A135: 119 | B135: x | C135: - | D135: Montare flanșă electroizolantă la intrare în SRM Pleșoiu | E135: 128230 | F135: Pleșoiu | G135: Olt | H135: 441525.69 | I135: 331162.25 | J135: 441525.69 | K135: 331162.25 | L135: - | M135: - | N135: SM0240D0 | O135: Pleșoiu | P135: - | Q135: - | R135: - | S135: - | T135: SM-SD001 | U135: Alpha Metal, Nova Power, Bepco, Cez Vânzare, Complexul Energetic Oltenia, Crest Energy, Distrigaz Sud Rețele, Distrigaz Vest, Engie, E.on Energie, Electrocentrale București, Electrica Furnizare, Electric Planners, Energy Core, Energy Distribution, PPC Energie, PPC Energie Muntenia, Entrex, Euro Seven, Eye Mall, Premier Energy Trading, Gaz Est, Getica95, Local Gaz, Met România, Monsson, Termoenergetica București, MVM Future, Next Energy Distribution, Next Energy Partners, Premier Energy, Petrom, Gas Provider, Renovatio, Romgaz, RWE Supply, Solprim, Sustainable Energy, Termocentrale Constanța, Termo Calor, Tinmar, Transenergo, Termoelectrica Giurgiu, Vest Energo, Gaz Vest Trading | V135: Distrigaz Sud Rețele | W135: - | X135: 2024-03-20 | Y135: 08:47:00 | Z135: 2024-03-20 | AA135: 14:00:00 | AB135: Craiova | AC135: Efectuată | AE135: 2024-03-20 | AF135: 08:47:00 | AG135: 2024-03-20 | AH135: 12:40:00 | AI135: 2024-03-20 | AJ135: 09:24:00 | AK135: 2024-03-20 | AL135: 08:56:00 | AM135: 24155/19.03.2024 | AN135: DA | AR135: 0.15 | AS135: 1 | AT135: 1 | AU135: 0.6166666668 | AV135: 45 | AW135: 45 | AX135: 3.883333333 | AY135: 0 | AZ135: 0
A136: 120 | B136: x | C136: - | D136: Lucrări de mentenanță la robinetul R14 pe conducta DN200 racord SRM Ploiești Parc Industrial | E136: 130543 | F136: Ploiești | G136: Prahova | H136: 575877.33 | I136: 382486.86 | J136: 575877.33 | K136: 382486.86 | L136: - | M136: - | N136: SM1103D0 | O136: Ploiești - Parc Industrial | P136: - | Q136: - | R136: - | S136: - | T136: SM-SD001 | U136: Alpha Metal, Nova Power, Bepco, Cez Vânzare, Complexul Energetic Oltenia, Crest Energy, Distrigaz Sud Rețele, Distrigaz Vest, Engie, E.on Energie, Electrocentrale București, Electrica Furnizare, Electric Planners, Energy Core, Energy Distribution, PPC Energie, PPC Energie Muntenia, Entrex, Euro Seven, Eye Mall, Premier Energy Trading, Gaz Est, Getica95, Local Gaz, Met România, Monsson, Termoenergetica București, MVM Future, Next Energy Distribution, Next Energy Partners, Premier Energy, Petrom, Gas Provider, Renovatio, Romgaz, RWE Supply, Solprim, Sustainable Energy, Termocentrale Constanța, Termo Calor, Tinmar, Transenergo, Termoelectrica Giurgiu, Vest Energo, Gaz Vest Trading | V136: Distrigaz Sud Rețele | W136: - | X136: 2024-03-27 | Y136: 10:00:00 | Z136: 2024-03-27 | AA136: 13:00:00 | AB136: București | AC136: Efectuată | AE136: 2024-03-27 | AF136: 10:00:00 | AG136: 2024-03-27 | AH136: 11:24:00 | AI136: 2024-03-27 | AJ136: 10:27:00 | AK136: 2024-03-27 | AL136: 10:12:00 | AM136: 26381/26.03.2024 | AN136: DA | AR136: =IF(B136="X",IF(AN136="","Afectat sau NU?",IF(AN136="DA",IF(((AK136+AL136)-(AE136+AF136))*24<-720,"Neinformat",((AK136+AL136)-(AE136+AF136))*24),"Nu a fost afectat producator/consumator")),"") -> 0.2000000001 | AS136: =IF(B136="X",IF(AN136="DA",IF(AR136<6,LEN(TRIM(V136))-LEN(SUBSTITUTE(V136,CHAR(44),""))+1,0),"-"),"") -> 1 | AT136: =IF(B136="X",IF(AN136="DA",LEN(TRIM(V136))-LEN(SUBSTITUTE(V136,CHAR(44),""))+1,"-"),"") -> 1 | AU136: =IF(B136="X",IF(AN136="","Afectat sau NU?",IF(AN136="DA",IF(((AI136+AJ136)-(AE136+AF136))*24<-720,"Neinformat",((AI136+AJ136)-(AE136+AF136))*24),"Nu a fost afectat producator/consumator")),"") -> 0.4500000001 | AV136: =IF(B136="X",IF(AN136="DA",IF(AU136<6,LEN(TRIM(U136))-LEN(SUBSTITUTE(U136,CHAR(44),""))+1,0),"-"),"") -> 45 | AW136: =IF(B136="X",IF(AN136="DA",LEN(TRIM(U136))-LEN(SUBSTITUTE(U136,CHAR(44),""))+1,"-"),"") -> 45 | AX136: =IF(B136="X",IF(AN136="","Afectat sau NU?",IF(AN136="DA",((AG136+AH136)-(AE136+AF136))*24,"Nu a fost afectat producator/consumator")),"") -> 1.4 | AY136: =IF(B136="X",IF(AN136="DA",IF(AX136>24,IF(BA136="NU",0,LEN(TRIM(V136))-LEN(SUBSTITUTE(V136,CHAR(44),""))+1),0),"-"),"") -> 0 | AZ136: =IF(B136="X",IF(AN136="DA",IF(AX136>24,LEN(TRIM(V136))-LEN(SUBSTITUTE(V136,CHAR(44),""))+1,0),"-"),"") -> 0 | BF136: =IF(C136="X",IF(AN136="","Afectat sau NU?",IF(AN136="DA",IF(AK136="","Neinformat",NETWORKDAYS(AK136+AL136,AE136+AF136,$BS$2:$BS$14)-2),"Nu a fost afectat producator/consumator")),"") ->  | BG136: =IF(C136="X",IF(AN136="DA",IF(AND(BF136>=5,AK136<>""),LEN(TRIM(V136))-LEN(SUBSTITUTE(V136,CHAR(44),""))+1,0),"-"),"") ->  | BH136: =IF(C136="X",IF(AN136="DA",LEN(TRIM(V136))-LEN(SUBSTITUTE(V136,CHAR(44),""))+1,"-"),"") ->  | BI136: =IF(C136="X",IF(AN136="","Afectat sau NU?",IF(AN136="DA",IF(AI136="","Neinformat",NETWORKDAYS(AI136+AJ136,AE136+AF136,$BS$2:$BS$14)-2),"Nu a fost afectat producator/consumator")),"") ->  | BJ136: =IF(C136="X",IF(AN136="DA",IF(AND(BI136>=5,AI136<>""),LEN(TRIM(U136))-LEN(SUBSTITUTE(U136,CHAR(44),""))+1,0),"-"),"") ->  | BK136: =IF(C136="X",IF(AN136="DA",LEN(TRIM(U136))-LEN(SUBSTITUTE(U136,CHAR(44),""))+1,"-"),"") ->  | BL136: =IF(C136="X",IF(AN136="","Afectat sau NU?",IF(AN136="DA",((AG136+AH136)-(Z136+AA136))*24,"Nu a fost afectat producator/consumator")),"") ->  | BM136: =IF(C136="X",IF(AN136<>"DA","-",IF(AND(AN136="DA",BL136<=0),LEN(TRIM(V136))-LEN(SUBSTITUTE(V136,CHAR(44),""))+1+LEN(TRIM(U136))-LEN(SUBSTITUTE(U136,CHAR(44),""))+1,0)),"") ->  | BN136: =IF(C136="X",IF(AN136="DA",LEN(TRIM(V136))-LEN(SUBSTITUTE(V136,CHAR(44),""))+1+LEN(TRIM(U136))-LEN(SUBSTITUTE(U136,CHAR(44),""))+1,"-"),"") -> 
A137: 121 | B137: x | C137: - | D137: Lucrări de mentenanță în SRM Vârț | E137: 82902 | F137: Vârț | G137: Gorj | H137: 352609.94 | I137: 384843.6 | J137: 352609.94 | K137: 384843.6 | L137: - | M137: - | N137: SM0202D0 | O137: Vârț | P137: - | Q137: - | R137: - | S137: - | T137: SM-SD001 | U137: Alpha Metal, Nova Power, Cez Vânzare, Complexul Energetic Oltenia, Crest Energy, Distrigaz Sud Rețele, Distrigaz Vest, Engie, E.on Energie, Electrocentrale București, Electrica Furnizare, Electric Planners, Energy Core, Energy Distribution, PPC Energie, PPC Energie Muntenia, Entrex, Euro Seven, Eye Mall, Premier Energy Trading, Gaz Est, Getica95, Local Gaz, Met România, Monsson, Termoenergetica București, MVM Future, Next Energy Distribution, Next Energy Partners, Premier Energy, Petrom, Gas Provider, Renovatio, Romgaz, RWE Supply, M.D.A Energy, Solprim, Sustainable Energy, Termocentrale Constanța, Termo Calor, Tinmar, Transenergo, Termoelectrica Giurgiu, Gaz Vest Trading, Management Romania | V137: Distrigaz Sud Rețele | W137: - | X137: 2024-04-04 | Y137: 11:51:00 | Z137: 2024-04-04 | AA137: 14:00:00 | AB137: Craiova | AC137: Efectuată | AE137: 2024-04-04 | AF137: 11:51:00 | AG137: 2024-04-04 | AH137: 13:57:00 | AI137: 2024-04-04 | AJ137: 11:57:00 | AK137: 2024-04-04 | AL137: 11:53:00 | AM137: 29223/03.04.2024 | AN137: DA | AR137: =IF(B137="X",IF(AN137="","Afectat sau NU?",IF(AN137="DA",IF(((AK137+AL137)-(AE137+AF137))*24<-720,"Neinformat",((AK137+AL137)-(AE137+AF137))*24),"Nu a fost afectat producator/consumator")),"") -> 0.03333333327 | AS137: =IF(B137="X",IF(AN137="DA",IF(AR137<6,LEN(TRIM(V137))-LEN(SUBSTITUTE(V137,CHAR(44),""))+1,0),"-"),"") -> 1 | AT137: =IF(B137="X",IF(AN137="DA",LEN(TRIM(V137))-LEN(SUBSTITUTE(V137,CHAR(44),""))+1,"-"),"") -> 1 | AU137: =IF(B137="X",IF(AN137="","Afectat sau NU?",IF(AN137="DA",IF(((AI137+AJ137)-(AE137+AF137))*24<-720,"Neinformat",((AI137+AJ137)-(AE137+AF137))*24),"Nu a fost afectat producator/consumator")),"") -> 0.09999999998 | AV137: =IF(B137="X",IF(AN137="DA",IF(AU137<6,LEN(TRIM(U137))-LEN(SUBSTITUTE(U137,CHAR(44),""))+1,0),"-"),"") -> 45 | AW137: =IF(B137="X",IF(AN137="DA",LEN(TRIM(U137))-LEN(SUBSTITUTE(U137,CHAR(44),""))+1,"-"),"") -> 45 | AX137: =IF(B137="X",IF(AN137="","Afectat sau NU?",IF(AN137="DA",((AG137+AH137)-(AE137+AF137))*24,"Nu a fost afectat producator/consumator")),"") -> 2.1 | AY137: =IF(B137="X",IF(AN137="DA",IF(AX137>24,IF(BA137="NU",0,LEN(TRIM(V137))-LEN(SUBSTITUTE(V137,CHAR(44),""))+1),0),"-"),"") -> 0 | AZ137: =IF(B137="X",IF(AN137="DA",IF(AX137>24,LEN(TRIM(V137))-LEN(SUBSTITUTE(V137,CHAR(44),""))+1,0),"-"),"") -> 0 | BF137: =IF(C137="X",IF(AN137="","Afectat sau NU?",IF(AN137="DA",IF(AK137="","Neinformat",NETWORKDAYS(AK137+AL137,AE137+AF137,$BS$2:$BS$14)-2),"Nu a fost afectat producator/consumator")),"") ->  | BG137: =IF(C137="X",IF(AN137="DA",IF(AND(BF137>=5,AK137<>""),LEN(TRIM(V137))-LEN(SUBSTITUTE(V137,CHAR(44),""))+1,0),"-"),"") ->  | BH137: =IF(C137="X",IF(AN137="DA",LEN(TRIM(V137))-LEN(SUBSTITUTE(V137,CHAR(44),""))+1,"-"),"") ->  | BI137: =IF(C137="X",IF(AN137="","Afectat sau NU?",IF(AN137="DA",IF(AI137="","Neinformat",NETWORKDAYS(AI137+AJ137,AE137+AF137,$BS$2:$BS$14)-2),"Nu a fost afectat producator/consumator")),"") ->  | BJ137: =IF(C137="X",IF(AN137="DA",IF(AND(BI137>=5,AI137<>""),LEN(TRIM(U137))-LEN(SUBSTITUTE(U137,CHAR(44),""))+1,0),"-"),"") ->  | BK137: =IF(C137="X",IF(AN137="DA",LEN(TRIM(U137))-LEN(SUBSTITUTE(U137,CHAR(44),""))+1,"-"),"") ->  | BL137: =IF(C137="X",IF(AN137="","Afectat sau NU?",IF(AN137="DA",((AG137+AH137)-(Z137+AA137))*24,"Nu a fost afectat producator/consumator")),"") ->  | BM137: =IF(C137="X",IF(AN137<>"DA","-",IF(AND(AN137="DA",BL137<=0),LEN(TRIM(V137))-LEN(SUBSTITUTE(V137,CHAR(44),""))+1+LEN(TRIM(U137))-LEN(SUBSTITUTE(U137,CHAR(44),""))+1,0)),"") ->  | BN137: =IF(C137="X",IF(AN137="DA",LEN(TRIM(V137))-LEN(SUBSTITUTE(V137,CHAR(44),""))+1+LEN(TRIM(U137))-LEN(SUBSTITUTE(U137,CHAR(44),""))+1,"-"),"") -> 
A138: 122 | B138: x | C138: - | D138: Deviere conductă DN300 Beia - Hoghiz | E138: 40786 | F138: Beia | G138: Brașov | H138: 516259.68 | I138: 516736.5 | J138: 516259.68 | K138: 516736.5 | L138: - | M138: - | N138: - | O138: - | P138: - | Q138: - | R138: PM0009 | S138: Beia | T138: PM-PP001 | U138: Romgaz | V138: Romgaz | W138: - | X138: 2024-04-08 | Y138: 10:20:00 | Z138: 2024-04-19 | AA138: 10:00:00 | AB138: Mediaș | AC138: Efectuată | AE138: 2024-04-08 | AF138: 10:20:00 | AG138: 2024-04-15 | AH138: 13:20:00 | AI138: 2024-04-08 | AJ138: 11:26:00 | AK138: 2024-04-08 | AL138: 11:19:00 | AM138: 1512/05.04.2024 | AN138: DA | AR138: 0.9833333334 | AS138: 1 | AT138: 1 | AU138: 1.1 | AV138: 1 | AW138: 1 | AX138: 171 | AY138: 1 | AZ138: 1 | BA138: DA
A139: 123 | B139: x | C139: - | D139: Deviere conductă DN300 Beia - Hoghiz | E139: 40713 | F139: Bunești | G139: Brașov | H139: 507522.84 | I139: 512305.82 | J139: 507522.84 | K139: 512305.82 | L139: - | M139: - | N139: - | O139: - | P139: PM0010 | Q139: Bunești | R139: - | S139: - | T139: PM-PP001 | U139: Romgaz | V139: Romgaz | W139: - | X139: 2024-04-08 | Y139: 11:00:00 | Z139: 2024-04-19 | AA139: 10:00:00 | AB139: Mediaș | AC139: Efectuată | AE139: 2024-04-08 | AF139: 11:00:00 | AG139: 2024-04-15 | AH139: 13:20:00 | AI139: 2024-04-08 | AJ139: 11:43:00 | AK139: 2024-04-08 | AL139: 11:33:00 | AM139: 1512/05.04.2024 | AN139: DA | AR139: 0.5499999999 | AS139: 1 | AT139: 1 | AU139: 0.7166666666 | AV139: 1 | AW139: 1 | AX139: 170.3333333 | AY139: 1 | AZ139: 1 | BA139: DA
A140: 124 | B140: x | C140: - | D140: Deviere conductă DN300 Fântânele - Arad II | E140: 9299 | F140: Fântânele | G140: Arad | H140: 220074.46 | I140: 520595.21 | J140: 220074.46 | K140: 520595.21 | L140: - | M140: - | N140: SM0348D0 | O140: Fântânele AR | P140: - | Q140: - | R140: - | S140: - | T140: SM-SD001 | U140: Nova Power, Cez Vânzare, Colterm, CPL Concordia, Delgaz, Design Proiect, Distrigaz Vest, Engie România, E.on Energie, Electrica Furnizare, Electric Planners, Energy Core, Energy Distribution, PPC Energie, PPC Energie Muntenia, Entrex Services, Eye Mall, Premier Energy Trading, Gaz Est, Gazmir, Getica95, Local Gaz, Mihoc Oil, Met România, MVM Future, Next Energy Distribution, Premier Energy, Petrom, Prisma Serv, Gas Provider, Renovatio, Romgaz, RWE Supply, MDA Energy, Solprim, Tetarom, Tinmar, Transenergo, Gaz Vest Trading | V140: Delgaz Grid | W140: - | X140: 2024-04-10 | Y140: 08:05:00 | Z140: 2024-04-10 | AA140: 16:00:00 | AB140: Arad | AC140: Efectuată | AE140: 2024-04-10 | AF140: 08:05:00 | AG140: 2024-04-10 | AH140: 17:30:00 | AI140: 2024-04-10 | AJ140: 08:17:00 | AK140: 2024-04-10 | AL140: 08:11:00 | AM140: 28051/29.03.2024 | AN140: DA | AR140: 0.09999999998 | AS140: 1 | AT140: 1 | AU140: 0.2 | AV140: 39 | AW140: 39 | AX140: 9.416666667 | AY140: 0 | AZ140: 0
A141: 125 | B141: x | C141: - | D141: Lucrări de modernizare în SRM Copșa Mică | E141: 143780 | F141: Copșa Mică | G141: Sibiu | H141: 442762.29 | I141: 513720.62 | J141: 442762.29 | K141: 513720.62 | L141: - | M141: - | N141: SM0862D4 | O141: SC Rombat Copșa Mică | P141: - | Q141: - | R141: - | S141: - | T141: SM-SD001 | U141: Nova Power, Cez Vânzare, Colterm, CPL Concordia, Delgaz, Design Proiect, Distrigaz Vest, Engie România, E.on Energie, Electrica Furnizare, Electric Planners, Energy Core, Energy Distribution, PPC Energie, PPC Energie Muntenia, Entrex Services, Eye Mall, Premier Energy Trading, Gaz Est, Gazmir, Getica95, Local Gaz, Mihoc Oil, Met România, MVM Future, Next Energy Distribution, Premier Energy, Petrom, Prisma Serv, Gas Provider, Renovatio, Romgaz, RWE Supply, MDA Energy, Solprim, Tetarom, Tinmar, Transenergo, Gaz Vest Trading | V141: Delgaz Grid | W141: - | X141: 2024-04-12 | Y141: 08:00:00 | Z141: 2024-04-12 | AA141: 17:00:00 | AB141: Mediaș | AC141: Efectuată | AE141: 2024-04-12 | AF141: 08:00:00 | AG141: 2024-04-12 | AH141: 17:03:00 | AI141: 2024-04-12 | AJ141: 09:23:00 | AK141: 2024-04-12 | AL141: 09:02:00 | AM141: 1674/12.04.2024 | AN141: DA | AR141: =IF(B141="X",IF(AN141="","Afectat sau NU?",IF(AN141="DA",IF(((AK141+AL141)-(AE141+AF141))*24<-720,"Neinformat",((AK141+AL141)-(AE141+AF141))*24),"Nu a fost afectat producator/consumator")),"") -> 1.033333333 | AS141: =IF(B141="X",IF(AN141="DA",IF(AR141<6,LEN(TRIM(V141))-LEN(SUBSTITUTE(V141,CHAR(44),""))+1,0),"-"),"") -> 1 | AT141: =IF(B141="X",IF(AN141="DA",LEN(TRIM(V141))-LEN(SUBSTITUTE(V141,CHAR(44),""))+1,"-"),"") -> 1 | AU141: =IF(B141="X",IF(AN141="","Afectat sau NU?",IF(AN141="DA",IF(((AI141+AJ141)-(AE141+AF141))*24<-720,"Neinformat",((AI141+AJ141)-(AE141+AF141))*24),"Nu a fost afectat producator/consumator")),"") -> 1.383333333 | AV141: =IF(B141="X",IF(AN141="DA",IF(AU141<6,LEN(TRIM(U141))-LEN(SUBSTITUTE(U141,CHAR(44),""))+1,0),"-"),"") -> 39 | AW141: =IF(B141="X",IF(AN141="DA",LEN(TRIM(U141))-LEN(SUBSTITUTE(U141,CHAR(44),""))+1,"-"),"") -> 39 | AX141: =IF(B141="X",IF(AN141="","Afectat sau NU?",IF(AN141="DA",((AG141+AH141)-(AE141+AF141))*24,"Nu a fost afectat producator/consumator")),"") -> 9.05 | AY141: =IF(B141="X",IF(AN141="DA",IF(AX141>24,IF(BA141="NU",0,LEN(TRIM(V141))-LEN(SUBSTITUTE(V141,CHAR(44),""))+1),0),"-"),"") -> 0 | AZ141: =IF(B141="X",IF(AN141="DA",IF(AX141>24,LEN(TRIM(V141))-LEN(SUBSTITUTE(V141,CHAR(44),""))+1,0),"-"),"") -> 0 | BF141: =IF(C141="X",IF(AN141="","Afectat sau NU?",IF(AN141="DA",IF(AK141="","Neinformat",NETWORKDAYS(AK141+AL141,AE141+AF141,$BS$2:$BS$14)-2),"Nu a fost afectat producator/consumator")),"") ->  | BG141: =IF(C141="X",IF(AN141="DA",IF(AND(BF141>=5,AK141<>""),LEN(TRIM(V141))-LEN(SUBSTITUTE(V141,CHAR(44),""))+1,0),"-"),"") ->  | BH141: =IF(C141="X",IF(AN141="DA",LEN(TRIM(V141))-LEN(SUBSTITUTE(V141,CHAR(44),""))+1,"-"),"") ->  | BI141: =IF(C141="X",IF(AN141="","Afectat sau NU?",IF(AN141="DA",IF(AI141="","Neinformat",NETWORKDAYS(AI141+AJ141,AE141+AF141,$BS$2:$BS$14)-2),"Nu a fost afectat producator/consumator")),"") ->  | BJ141: =IF(C141="X",IF(AN141="DA",IF(AND(BI141>=5,AI141<>""),LEN(TRIM(U141))-LEN(SUBSTITUTE(U141,CHAR(44),""))+1,0),"-"),"") ->  | BK141: =IF(C141="X",IF(AN141="DA",LEN(TRIM(U141))-LEN(SUBSTITUTE(U141,CHAR(44),""))+1,"-"),"") ->  | BL141: =IF(C141="X",IF(AN141="","Afectat sau NU?",IF(AN141="DA",((AG141+AH141)-(Z141+AA141))*24,"Nu a fost afectat producator/consumator")),"") ->  | BM141: =IF(C141="X",IF(AN141<>"DA","-",IF(AND(AN141="DA",BL141<=0),LEN(TRIM(V141))-LEN(SUBSTITUTE(V141,CHAR(44),""))+1+LEN(TRIM(U141))-LEN(SUBSTITUTE(U141,CHAR(44),""))+1,0)),"") ->  | BN141: =IF(C141="X",IF(AN141="DA",LEN(TRIM(V141))-LEN(SUBSTITUTE(V141,CHAR(44),""))+1+LEN(TRIM(U141))-LEN(SUBSTITUTE(U141,CHAR(44),""))+1,"-"),"") -> 
A142: 126 | B142: x | C142: - | D142: Deviere conductă DN500 Țicleni - Turcinești, zona Drăgoieni | E142: 78454 | F142: Țicleni | G142: Gorj | H142: 374136.52 | I142: 380014.38 | J142: 374136.52 | K142: 380014.38 | L142: - | M142: - | N142: - | O142: - | P142: - | Q142: - | R142: PM0198 | S142: Țicleni Târgu Jiu | T142: PM-PP001 | U142: Petrom | V142: Petrom | W142: - | X142: 2024-04-22 | Y142: 10:02:00 | Z142: 2024-04-24 | AA142: 18:00:00 | AB142: Craiova | AC142: Efectuată | AE142: 2024-04-22 | AF142: 10:02:00 | AG142: 2024-04-24 | AH142: 18:00:00 | AI142: 2024-04-22 | AJ142: 10:22:00 | AK142: 2024-04-22 | AL142: 10:09:00 | AM142: 34464/19.04.2024 | AN142: DA | AR142: =IF(B142="X",IF(AN142="","Afectat sau NU?",IF(AN142="DA",IF(((AK142+AL142)-(AE142+AF142))*24<-720,"Neinformat",((AK142+AL142)-(AE142+AF142))*24),"Nu a fost afectat producator/consumator")),"") -> 0.1166666667 | AS142: =IF(B142="X",IF(AN142="DA",IF(AR142<6,LEN(TRIM(V142))-LEN(SUBSTITUTE(V142,CHAR(44),""))+1,0),"-"),"") -> 1 | AT142: =IF(B142="X",IF(AN142="DA",LEN(TRIM(V142))-LEN(SUBSTITUTE(V142,CHAR(44),""))+1,"-"),"") -> 1 | AU142: =IF(B142="X",IF(AN142="","Afectat sau NU?",IF(AN142="DA",IF(((AI142+AJ142)-(AE142+AF142))*24<-720,"Neinformat",((AI142+AJ142)-(AE142+AF142))*24),"Nu a fost afectat producator/consumator")),"") -> 0.3333333332 | AV142: =IF(B142="X",IF(AN142="DA",IF(AU142<6,LEN(TRIM(U142))-LEN(SUBSTITUTE(U142,CHAR(44),""))+1,0),"-"),"") -> 1 | AW142: =IF(B142="X",IF(AN142="DA",LEN(TRIM(U142))-LEN(SUBSTITUTE(U142,CHAR(44),""))+1,"-"),"") -> 1 | AX142: =IF(B142="X",IF(AN142="","Afectat sau NU?",IF(AN142="DA",((AG142+AH142)-(AE142+AF142))*24,"Nu a fost afectat producator/consumator")),"") -> 55.96666667 | AY142: =IF(B142="X",IF(AN142="DA",IF(AX142>24,IF(BA142="NU",0,LEN(TRIM(V142))-LEN(SUBSTITUTE(V142,CHAR(44),""))+1),0),"-"),"") -> 1 | AZ142: =IF(B142="X",IF(AN142="DA",IF(AX142>24,LEN(TRIM(V142))-LEN(SUBSTITUTE(V142,CHAR(44),""))+1,0),"-"),"") -> 1 | BA142: DA | BF142: =IF(C142="X",IF(AN142="","Afectat sau NU?",IF(AN142="DA",IF(AK142="","Neinformat",NETWORKDAYS(AK142+AL142,AE142+AF142,$BS$2:$BS$14)-2),"Nu a fost afectat producator/consumator")),"") ->  | BG142: =IF(C142="X",IF(AN142="DA",IF(AND(BF142>=5,AK142<>""),LEN(TRIM(V142))-LEN(SUBSTITUTE(V142,CHAR(44),""))+1,0),"-"),"") ->  | BH142: =IF(C142="X",IF(AN142="DA",LEN(TRIM(V142))-LEN(SUBSTITUTE(V142,CHAR(44),""))+1,"-"),"") ->  | BI142: =IF(C142="X",IF(AN142="","Afectat sau NU?",IF(AN142="DA",IF(AI142="","Neinformat",NETWORKDAYS(AI142+AJ142,AE142+AF142,$BS$2:$BS$14)-2),"Nu a fost afectat producator/consumator")),"") ->  | BJ142: =IF(C142="X",IF(AN142="DA",IF(AND(BI142>=5,AI142<>""),LEN(TRIM(U142))-LEN(SUBSTITUTE(U142,CHAR(44),""))+1,0),"-"),"") ->  | BK142: =IF(C142="X",IF(AN142="DA",LEN(TRIM(U142))-LEN(SUBSTITUTE(U142,CHAR(44),""))+1,"-"),"") ->  | BL142: =IF(C142="X",IF(AN142="","Afectat sau NU?",IF(AN142="DA",((AG142+AH142)-(Z142+AA142))*24,"Nu a fost afectat producator/consumator")),"") ->  | BM142: =IF(C142="X",IF(AN142<>"DA","-",IF(AND(AN142="DA",BL142<=0),LEN(TRIM(V142))-LEN(SUBSTITUTE(V142,CHAR(44),""))+1+LEN(TRIM(U142))-LEN(SUBSTITUTE(U142,CHAR(44),""))+1,0)),"") ->  | BN142: =IF(C142="X",IF(AN142="DA",LEN(TRIM(V142))-LEN(SUBSTITUTE(V142,CHAR(44),""))+1+LEN(TRIM(U142))-LEN(SUBSTITUTE(U142,CHAR(44),""))+1,"-"),"") -> 
A143: 127 | B143: x | C143: - | D143: Remediere defect pe DN500 Sărmășel - Ceanu Mare, zona Sopor | E143: 57822 | F143: Soporu de Câmpie | G143: Cluj | H143: 424717.25 | I143: 577408.96 | J143: 424717.25 | K143: 577408.96 | L143: - | M143: - | N143: SM0635D0 | O143: Sopor | P143: - | Q143: - | R143: - | S143: - | T143: SM-SD001 | U143: Nova Power, Cez Vânzare, Colterm, CPL Concordia, Delgaz, Design Proiect, Distrigaz Vest, Engie România, E.on Energie, Electrica Furnizare, Electric Planners, Energy Core, Energy Distribution, PPC Energie, PPC Energie Muntenia, Entrex Services, Eye Mall, Premier Energy Trading, Gaz Est, Gazmir, Getica95, Local Gaz, Mihoc Oil, Met România, MVM Future, Next Energy Distribution, Premier Energy, Petrom, Prisma Serv, Gas Provider, Renovatio, Romgaz, RWE Supply, MDA Energy, Solprim, Tetarom, Tinmar, Transenergo, Gaz Vest Trading | V143: Delgaz Grid | W143: - | X143: 2024-04-23 | Y143: 09:01:00 | Z143: 2024-04-24 | AA143: 12:00:00 | AB143: Cluj | AC143: Efectuată | AE143: 2024-04-23 | AF143: 09:01:00 | AG143: 2024-04-24 | AH143: 09:10:00 | AI143: 2024-04-23 | AJ143: 09:40:00 | AK143: 2024-04-23 | AL143: 09:18:00 | AM143: 35248/22.04.2024 | AN143: DA | AR143: 0.2833333332 | AS143: 1 | AT143: 1 | AU143: 0.65 | AV143: 39 | AW143: 39 | AX143: 24.15 | AY143: 1 | AZ143: 1 | BA143: DA
A144: 128 | B144: x | C144: - | D144: Remediere defect pe DN500 Sărmășel - Ceanu Mare, zona Sopor | E144: 56933 | F144: Iacobeni | G144: Cluj | H144: 424050.85 | I144: 576412.97 | J144: 424050.85 | K144: 576412.97 | L144: - | M144: - | N144: SM0634D0 | O144: Iacobeni | P144: - | Q144: - | R144: - | S144: - | T144: SM-SD001 | U144: Nova Power, Cez Vânzare, Colterm, CPL Concordia, Delgaz, Design Proiect, Distrigaz Vest, Engie România, E.on Energie, Electrica Furnizare, Electric Planners, Energy Core, Energy Distribution, PPC Energie, PPC Energie Muntenia, Entrex Services, Eye Mall, Premier Energy Trading, Gaz Est, Gazmir, Getica95, Local Gaz, Mihoc Oil, Met România, MVM Future, Next Energy Distribution, Premier Energy, Petrom, Prisma Serv, Gas Provider, Renovatio, Romgaz, RWE Supply, MDA Energy, Solprim, Tetarom, Tinmar, Transenergo, Gaz Vest Trading | V144: Delgaz Grid | W144: - | X144: 2024-04-23 | Y144: 09:04:00 | Z144: 2024-04-24 | AA144: 12:00:00 | AB144: Cluj | AC144: Efectuată | AE144: 2024-04-23 | AF144: 09:04:00 | AG144: 2024-04-24 | AH144: 10:23:00 | AI144: 2024-04-23 | AJ144: 09:48:00 | AK144: 2024-04-23 | AL144: 09:18:00 | AM144: 35248/22.04.2024 | AN144: DA | AR144: 0.2333333332 | AS144: 1 | AT144: 1 | AU144: 0.7333333333 | AV144: 39 | AW144: 39 | AX144: 25.31666667 | AY144: 1 | AZ144: 1 | BA144: DA
A145: 129 | B145: x | C145: - | D145: Remediere defect pe DN500 Sărmășel - Ceanu Mare, zona Sopor | E145: 56933 | F145: Iacobeni | G145: Cluj | H145: 423537.9 | I145: 575972.15 | J145: 423537.9 | K145: 575972.15 | L145: - | M145: - | N145: SM0633D0 | O145: Iacobeni Moara | P145: - | Q145: - | R145: - | S145: - | T145: SM-SD001 | U145: Nova Power, Cez Vânzare, Colterm, CPL Concordia, Delgaz, Design Proiect, Distrigaz Vest, Engie România, E.on Energie, Electrica Furnizare, Electric Planners, Energy Core, Energy Distribution, PPC Energie, PPC Energie Muntenia, Entrex Services, Eye Mall, Premier Energy Trading, Gaz Est, Gazmir, Getica95, Local Gaz, Mihoc Oil, Met România, MVM Future, Next Energy Distribution, Premier Energy, Petrom, Prisma Serv, Gas Provider, Renovatio, Romgaz, RWE Supply, MDA Energy, Solprim, Tetarom, Tinmar, Transenergo, Gaz Vest Trading | V145: Delgaz Grid | W145: - | X145: 2024-04-23 | Y145: 09:01:00 | Z145: 2024-04-24 | AA145: 12:00:00 | AB145: Cluj | AC145: Efectuată | AE145: 2024-04-23 | AF145: 09:01:00 | AG145: 2024-04-24 | AH145: 10:52:00 | AI145: 2024-04-23 | AJ145: 09:43:00 | AK145: 2024-04-23 | AL145: 09:18:00 | AM145: 35248/22.04.2024 | AN145: DA | AR145: 0.2833333332 | AS145: 1 | AT145: 1 | AU145: 0.7 | AV145: 39 | AW145: 39 | AX145: 25.85 | AY145: 1 | AZ145: 1 | BA145: DA
A146: 130 | B146: x | C146: - | D146: Remediere defect pe DN500 Sărmășel - Ceanu Mare, zona Sopor | E146: 56853 | F146: Ceanu Mare | G146: Cluj | H146: 420031.77 | I146: 573818.48 | J146: 420031.77 | K146: 573818.48 | L146: - | M146: - | N146: SM0631D0 | O146: Ceanu Mare - Cătun | P146: - | Q146: - | R146: - | S146: - | T146: SM-SD001 | U146: Nova Power, Cez Vânzare, Colterm, CPL Concordia, Delgaz, Design Proiect, Distrigaz Vest, Engie România, E.on Energie, Electrica Furnizare, Electric Planners, Energy Core, Energy Distribution, PPC Energie, PPC Energie Muntenia, Entrex Services, Eye Mall, Premier Energy Trading, Gaz Est, Gazmir, Getica95, Local Gaz, Mihoc Oil, Met România, MVM Future, Next Energy Distribution, Premier Energy, Petrom, Prisma Serv, Gas Provider, Renovatio, Romgaz, RWE Supply, MDA Energy, Solprim, Tetarom, Tinmar, Transenergo, Gaz Vest Trading | V146: Delgaz Grid | W146: - | X146: 2024-04-23 | Y146: 09:04:00 | Z146: 2024-04-24 | AA146: 12:00:00 | AB146: Cluj | AC146: Efectuată | AE146: 2024-04-23 | AF146: 09:04:00 | AG146: 2024-04-24 | AH146: 11:21:00 | AI146: 2024-04-23 | AJ146: 09:45:00 | AK146: 2024-04-23 | AL146: 09:19:00 | AM146: 35248/22.04.2024 | AN146: DA | AR146: 0.2499999999 | AS146: 1 | AT146: 1 | AU146: 0.6833333333 | AV146: 39 | AW146: 39 | AX146: 26.28333333 | AY146: 1 | AZ146: 1 | BA146: DA
A147: 131 | B147: x | C147: - | D147: Montare by-pass la SRM Sofert Bacău II prevăzut cu regulator și contor | E147: 20304 | F147: Bacău | G147: Bacău | H147: 649064.16 | I147: 558509.76 | J147: 649064.16 | K147: 558509.76 | L147: - | M147: - | N147: SM0507D2 | O147: Bacău II | P147: - | Q147: - | R147: - | S147: - | T147: SM-SD001 | U147: Nova Power, Cez Vânzare, Colterm, CPL Concordia, Delgaz, Design Proiect, Distrigaz Vest, Engie România, E.on Energie, Electrica Furnizare, Electric Planners, Energy Core, Energy Distribution, PPC Energie, PPC Energie Muntenia, Entrex Services, Eye Mall, Premier Energy Trading, Gaz Est, Gazmir, Getica95, Local Gaz, Mihoc Oil, Met România, MVM Future, Next Energy Distribution, Premier Energy, Petrom, Prisma Serv, Gas Provider, Renovatio, Romgaz, RWE Supply, MDA Energy, Solprim, Tetarom, Tinmar, Transenergo, Gaz Vest Trading | V147: Delgaz Grid | W147: - | X147: 2024-04-24 | Y147: 08:00:00 | Z147: 2024-04-24 | AA147: 18:00:00 | AB147: Bacău | AC147: Efectuată | AE147: 2024-04-24 | AF147: 08:00:00 | AG147: 2024-04-24 | AH147: 18:00:00 | AI147: 2024-04-24 | AJ147: 08:46:00 | AK147: 2024-04-24 | AL147: 08:26:00 | AM147: 35183/22.04.2024 | AN147: DA | AR147: =IF(B147="X",IF(AN147="","Afectat sau NU?",IF(AN147="DA",IF(((AK147+AL147)-(AE147+AF147))*24<-720,"Neinformat",((AK147+AL147)-(AE147+AF147))*24),"Nu a fost afectat producator/consumator")),"") -> 0.4333333333 | AS147: =IF(B147="X",IF(AN147="DA",IF(AR147<6,LEN(TRIM(V147))-LEN(SUBSTITUTE(V147,CHAR(44),""))+1,0),"-"),"") -> 1 | AT147: =IF(B147="X",IF(AN147="DA",LEN(TRIM(V147))-LEN(SUBSTITUTE(V147,CHAR(44),""))+1,"-"),"") -> 1 | AU147: =IF(B147="X",IF(AN147="","Afectat sau NU?",IF(AN147="DA",IF(((AI147+AJ147)-(AE147+AF147))*24<-720,"Neinformat",((AI147+AJ147)-(AE147+AF147))*24),"Nu a fost afectat producator/consumator")),"") -> 0.7666666665 | AV147: =IF(B147="X",IF(AN147="DA",IF(AU147<6,LEN(TRIM(U147))-LEN(SUBSTITUTE(U147,CHAR(44),""))+1,0),"-"),"") -> 39 | AW147: =IF(B147="X",IF(AN147="DA",LEN(TRIM(U147))-LEN(SUBSTITUTE(U147,CHAR(44),""))+1,"-"),"") -> 39 | AX147: =IF(B147="X",IF(AN147="","Afectat sau NU?",IF(AN147="DA",((AG147+AH147)-(AE147+AF147))*24,"Nu a fost afectat producator/consumator")),"") -> 10 | AY147: =IF(B147="X",IF(AN147="DA",IF(AX147>24,IF(BA147="NU",0,LEN(TRIM(V147))-LEN(SUBSTITUTE(V147,CHAR(44),""))+1),0),"-"),"") -> 0 | AZ147: =IF(B147="X",IF(AN147="DA",IF(AX147>24,LEN(TRIM(V147))-LEN(SUBSTITUTE(V147,CHAR(44),""))+1,0),"-"),"") -> 0 | BF147: =IF(C147="X",IF(AN147="","Afectat sau NU?",IF(AN147="DA",IF(AK147="","Neinformat",NETWORKDAYS(AK147+AL147,AE147+AF147,$BS$2:$BS$14)-2),"Nu a fost afectat producator/consumator")),"") ->  | BG147: =IF(C147="X",IF(AN147="DA",IF(AND(BF147>=5,AK147<>""),LEN(TRIM(V147))-LEN(SUBSTITUTE(V147,CHAR(44),""))+1,0),"-"),"") ->  | BH147: =IF(C147="X",IF(AN147="DA",LEN(TRIM(V147))-LEN(SUBSTITUTE(V147,CHAR(44),""))+1,"-"),"") ->  | BI147: =IF(C147="X",IF(AN147="","Afectat sau NU?",IF(AN147="DA",IF(AI147="","Neinformat",NETWORKDAYS(AI147+AJ147,AE147+AF147,$BS$2:$BS$14)-2),"Nu a fost afectat producator/consumator")),"") ->  | BJ147: =IF(C147="X",IF(AN147="DA",IF(AND(BI147>=5,AI147<>""),LEN(TRIM(U147))-LEN(SUBSTITUTE(U147,CHAR(44),""))+1,0),"-"),"") ->  | BK147: =IF(C147="X",IF(AN147="DA",LEN(TRIM(U147))-LEN(SUBSTITUTE(U147,CHAR(44),""))+1,"-"),"") ->  | BL147: =IF(C147="X",IF(AN147="","Afectat sau NU?",IF(AN147="DA",((AG147+AH147)-(Z147+AA147))*24,"Nu a fost afectat producator/consumator")),"") ->  | BM147: =IF(C147="X",IF(AN147<>"DA","-",IF(AND(AN147="DA",BL147<=0),LEN(TRIM(V147))-LEN(SUBSTITUTE(V147,CHAR(44),""))+1+LEN(TRIM(U147))-LEN(SUBSTITUTE(U147,CHAR(44),""))+1,0)),"") ->  | BN147: =IF(C147="X",IF(AN147="DA",LEN(TRIM(V147))-LEN(SUBSTITUTE(V147,CHAR(44),""))+1+LEN(TRIM(U147))-LEN(SUBSTITUTE(U147,CHAR(44),""))+1,"-"),"") -> 
A148: 132 | B148: x | C148: - | D148: Deviere conducte DN400 Urechești - Bacău și DN100 racord SRM Nicolae Bălcescu | E148: 21864 | F148: Cleja | G148: Bacău | H148: 650218.24 | I148: 546634.96 | J148: 650218.24 | K148: 546634.96 | L148: - | M148: - | N148: SM0890D0 | O148: Cleja | P148: - | Q148: - | R148: - | S148: - | T148: SM-SD001 | U148: Nova Power, Cez Vânzare, Colterm, CPL Concordia, Delgaz, Design Proiect, Distrigaz Vest, Engie România, E.on Energie, Electrica Furnizare, Electric Planners, Energy Core, Energy Distribution, PPC Energie, PPC Energie Muntenia, Entrex Services, Eye Mall, Premier Energy Trading, Gaz Est, Gazmir, Getica95, Local Gaz, Mihoc Oil, Met România, MVM Future, Next Energy Distribution, Premier Energy, Petrom, Prisma Serv, Gas Provider, Renovatio, Romgaz, RWE Supply, MDA Energy, Solprim, Tetarom, Tinmar, Transenergo, Gaz Vest Trading | V148: Delgaz Grid | W148: - | X148: 2024-04-24 | Y148: 08:05:00 | Z148: 2024-04-24 | AA148: 18:00:00 | AB148: Bacău | AC148: Efectuată | AE148: 2024-04-24 | AF148: 08:05:00 | AG148: 2024-04-24 | AH148: 18:00:00 | AI148: 2024-04-24 | AJ148: 08:35:00 | AK148: 2024-04-24 | AL148: 08:13:00 | AM148: 34765/19.04.2024 | AN148: DA | AR148: 0.1333333334 | AS148: 1 | AT148: 1 | AU148: 0.5000000001 | AV148: 39 | AW148: 39 | AX148: 9.916666667 | AY148: 0 | AZ148: 0
A149: =A148+1 -> 133 | B149: x | C149: - | D149: Deviere conducte DN400 Urechești - Bacău și DN100 racord SRM Nicolae Bălcescu | E149: 23724 | F149: Nicolae Bălcescu | G149: Bacău | H149: 648047.77 | I149: 554535.47 | J149: 648047.77 | K149: 554535.47 | L149: - | M149: - | N149: SM0891D0 | O149: Nicolae Bălcescu | P149: - | Q149: - | R149: - | S149: - | T149: SM-SD001 | U149: Nova Power, Cez Vânzare, Colterm, CPL Concordia, Delgaz, Design Proiect, Distrigaz Vest, Engie România, E.on Energie, Electrica Furnizare, Electric Planners, Energy Core, Energy Distribution, PPC Energie, PPC Energie Muntenia, Entrex Services, Eye Mall, Premier Energy Trading, Gaz Est, Gazmir, Getica95, Local Gaz, Mihoc Oil, Met România, MVM Future, Next Energy Distribution, Premier Energy, Petrom, Prisma Serv, Gas Provider, Renovatio, Romgaz, RWE Supply, MDA Energy, Solprim, Tetarom, Tinmar, Transenergo, Gaz Vest Trading | V149: Delgaz Grid | W149: - | X149: 2024-04-24 | Y149: 08:00:00 | Z149: 2024-04-24 | AA149: 18:00:00 | AB149: Bacău | AC149: Efectuată | AE149: 2024-04-24 | AF149: 08:00:00 | AG149: 2024-04-24 | AH149: 18:00:00 | AI149: 2024-04-24 | AJ149: 08:43:00 | AK149: 2024-04-24 | AL149: 08:26:00 | AM149: 34765/19.04.2024 | AN149: DA | AR149: 0.4333333333 | AS149: 1 | AT149: 1 | AU149: 0.7166666666 | AV149: 39 | AW149: 39 | AX149: 10 | AY149: 0 | AZ149: 0
A150: =A149+1 -> 134 | B150: x | C150: - | D150: Deviere conducte DN400 Urechești - Bacău și DN100 racord SRM Nicolae Bălcescu | E150: 22479 | F150: Fărăoani | G150: Bacău | H150: 647723.15 | I150: 550370.56 | J150: 647723.15 | K150: 550370.56 | L150: - | M150: - | N150: SM1337D0 | O150: Fărăoani | P150: - | Q150: - | R150: - | S150: - | T150: SM-SD001 | U150: Nova Power, Cez Vânzare, Engie România, E.on Energie, PPC Energie, PPC Energie Muntenia, Premier Energy Trading, Mihoc Oil, Met România, Premier Energy, Petrom, Romgaz | V150: Mihoc Oil | W150: - | X150: 2024-04-24 | Y150: 08:00:00 | Z150: 2024-04-24 | AA150: 18:00:00 | AB150: Bacău | AC150: Efectuată | AE150: 2024-04-24 | AF150: 08:00:00 | AG150: 2024-04-24 | AH150: 18:00:00 | AI150: 2024-04-24 | AJ150: 08:49:00 | AK150: 2024-04-24 | AL150: 08:27:00 | AM150: 34765/19.04.2024 | AN150: DA | AR150: =IF(B150="X",IF(AN150="","Afectat sau NU?",IF(AN150="DA",IF(((AK150+AL150)-(AE150+AF150))*24<-720,"Neinformat",((AK150+AL150)-(AE150+AF150))*24),"Nu a fost afectat producator/consumator")),"") -> 0.4499999999 | AS150: =IF(B150="X",IF(AN150="DA",IF(AR150<6,LEN(TRIM(V150))-LEN(SUBSTITUTE(V150,CHAR(44),""))+1,0),"-"),"") -> 1 | AT150: =IF(B150="X",IF(AN150="DA",LEN(TRIM(V150))-LEN(SUBSTITUTE(V150,CHAR(44),""))+1,"-"),"") -> 1 | AU150: =IF(B150="X",IF(AN150="","Afectat sau NU?",IF(AN150="DA",IF(((AI150+AJ150)-(AE150+AF150))*24<-720,"Neinformat",((AI150+AJ150)-(AE150+AF150))*24),"Nu a fost afectat producator/consumator")),"") -> 0.8166666665 | AV150: =IF(B150="X",IF(AN150="DA",IF(AU150<6,LEN(TRIM(U150))-LEN(SUBSTITUTE(U150,CHAR(44),""))+1,0),"-"),"") -> 12 | AW150: =IF(B150="X",IF(AN150="DA",LEN(TRIM(U150))-LEN(SUBSTITUTE(U150,CHAR(44),""))+1,"-"),"") -> 12 | AX150: =IF(B150="X",IF(AN150="","Afectat sau NU?",IF(AN150="DA",((AG150+AH150)-(AE150+AF150))*24,"Nu a fost afectat producator/consumator")),"") -> 10 | AY150: =IF(B150="X",IF(AN150="DA",IF(AX150>24,IF(BA150="NU",0,LEN(TRIM(V150))-LEN(SUBSTITUTE(V150,CHAR(44),""))+1),0),"-"),"") -> 0 | AZ150: =IF(B150="X",IF(AN150="DA",IF(AX150>24,LEN(TRIM(V150))-LEN(SUBSTITUTE(V150,CHAR(44),""))+1,0),"-"),"") -> 0 | BF150: =IF(C150="X",IF(AN150="","Afectat sau NU?",IF(AN150="DA",IF(AK150="","Neinformat",NETWORKDAYS(AK150+AL150,AE150+AF150,$BS$2:$BS$14)-2),"Nu a fost afectat producator/consumator")),"") ->  | BG150: =IF(C150="X",IF(AN150="DA",IF(AND(BF150>=5,AK150<>""),LEN(TRIM(V150))-LEN(SUBSTITUTE(V150,CHAR(44),""))+1,0),"-"),"") ->  | BH150: =IF(C150="X",IF(AN150="DA",LEN(TRIM(V150))-LEN(SUBSTITUTE(V150,CHAR(44),""))+1,"-"),"") ->  | BI150: =IF(C150="X",IF(AN150="","Afectat sau NU?",IF(AN150="DA",IF(AI150="","Neinformat",NETWORKDAYS(AI150+AJ150,AE150+AF150,$BS$2:$BS$14)-2),"Nu a fost afectat producator/consumator")),"") ->  | BJ150: =IF(C150="X",IF(AN150="DA",IF(AND(BI150>=5,AI150<>""),LEN(TRIM(U150))-LEN(SUBSTITUTE(U150,CHAR(44),""))+1,0),"-"),"") ->  | BK150: =IF(C150="X",IF(AN150="DA",LEN(TRIM(U150))-LEN(SUBSTITUTE(U150,CHAR(44),""))+1,"-"),"") ->  | BL150: =IF(C150="X",IF(AN150="","Afectat sau NU?",IF(AN150="DA",((AG150+AH150)-(Z150+AA150))*24,"Nu a fost afectat producator/consumator")),"") ->  | BM150: =IF(C150="X",IF(AN150<>"DA","-",IF(AND(AN150="DA",BL150<=0),LEN(TRIM(V150))-LEN(SUBSTITUTE(V150,CHAR(44),""))+1+LEN(TRIM(U150))-LEN(SUBSTITUTE(U150,CHAR(44),""))+1,0)),"") ->  | BN150: =IF(C150="X",IF(AN150="DA",LEN(TRIM(V150))-LEN(SUBSTITUTE(V150,CHAR(44),""))+1+LEN(TRIM(U150))-LEN(SUBSTITUTE(U150,CHAR(44),""))+1,"-"),"") -> 
A151: 135 | B151: x | C151: - | D151: Deviere conducte DN400 Urechești - Bacău și DN100 racord SRM Nicolae Bălcescu | E151: 24775 | F151: Răcăciuni | G151: Bacău | H151: 653353.09 | I151: 541163.36 | J151: 653353.09 | K151: 541163.36 | L151: - | M151: - | N151: SM0505D0 | O151: Răcăciuni | P151: - | Q151: - | R151: - | S151: - | T151: SM-SD001 | U151: Nova Power, Cez Vânzare, Colterm, CPL Concordia, Delgaz, Design Proiect, Distrigaz Vest, Engie România, E.on Energie, Electrica Furnizare, Electric Planners, Energy Core, Energy Distribution, PPC Energie, PPC Energie Muntenia, Entrex Services, Eye Mall, Premier Energy Trading, Gaz Est, Gazmir, Getica95, Local Gaz, Mihoc Oil, Met România, MVM Future, Next Energy Distribution, Premier Energy, Petrom, Prisma Serv, Gas Provider, Renovatio, Romgaz, RWE Supply, MDA Energy, Solprim, Tetarom, Tinmar, Transenergo, Gaz Vest Trading | V151: Delgaz Grid | W151: - | X151: 2024-04-24 | Y151: 10:20:00 | Z151: 2024-04-24 | AA151: 18:00:00 | AB151: Bacău | AC151: Efectuată | AE151: 2024-04-24 | AF151: 10:20:00 | AG151: 2024-04-24 | AH151: 18:00:00 | AI151: 2024-04-24 | AJ151: 10:25:00 | AK151: 2024-04-24 | AL151: 10:21:00 | AM151: - | AN151: DA | AR151: 0.01666666672 | AS151: 1 | AT151: 1 | AU151: 0.08333333343 | AV151: 39 | AW151: 39 | AX151: 7.666666667 | AY151: 0 | AZ151: 0
A152: 136 | B152: x | C152: - | D152: Lucrări de mentenanță în SRM Ploiești KM 65 | E152: 130543 | F152: Ploiești | G152: Prahova | H152: 576778.88 | I152: 384813.89 | J152: 576778.88 | K152: 384813.89 | L152: - | M152: - | N152: SM0109D0 | O152: Ploiești KM 65 | P152: - | Q152: - | R152: - | S152: - | T152: SM-SD001 | U152: Alpha Metal, Nova Power, Cez Vânzare, Complexul Energetic Oltenia, Crest Energy, Distrigaz Sud Rețele, Distrigaz Vest, Engie, E.on Energie, Electrocentrale București, Electrica Furnizare, Electric Planners, Energy Core, Energy Distribution, PPC Energie, PPC Energie Muntenia, Entrex, Euro Seven, Eye Mall, Premier Energy Trading, Gaz Est, Getica95, Local Gaz, Met România, Monsson, Termoenergetica București, MVM Future, Next Energy Distribution, Next Energy Partners, Premier Energy, Petrom, Gas Provider, Renovatio, Romgaz, RWE Supply, M.D.A Eergy, Solprim, Sustainable Energy, Termocentrale Constanța, Termo Calor, Tinmar, Transenergo, Termoelectrica Giurgiu, Gaz Vest Trading, Management Romania | V152: Distrigaz Sud Rețele | W152: - | X152: 2024-04-24 | Y152: 09:00:00 | Z152: 2024-04-24 | AA152: 16:00:00 | AB152: București | AC152: Efectuată | AE152: 2024-04-24 | AF152: 09:00:00 | AG152: 2024-04-25 | AH152: 09:49:00 | AI152: 2024-04-24 | AJ152: 09:59:00 | AK152: 2024-04-24 | AL152: 09:10:00 | AM152: 35294/22.04.2024 | AN152: NU | AR152: =IF(B152="X",IF(AN152="","Afectat sau NU?",IF(AN152="DA",IF(((AK152+AL152)-(AE152+AF152))*24<-720,"Neinformat",((AK152+AL152)-(AE152+AF152))*24),"Nu a fost afectat producator/consumator")),"") -> Nu a fost afectat producator/consumator | AS152: =IF(B152="X",IF(AN152="DA",IF(AR152<6,LEN(TRIM(V152))-LEN(SUBSTITUTE(V152,CHAR(44),""))+1,0),"-"),"") -> - | AT152: =IF(B152="X",IF(AN152="DA",LEN(TRIM(V152))-LEN(SUBSTITUTE(V152,CHAR(44),""))+1,"-"),"") -> - | AU152: =IF(B152="X",IF(AN152="","Afectat sau NU?",IF(AN152="DA",IF(((AI152+AJ152)-(AE152+AF152))*24<-720,"Neinformat",((AI152+AJ152)-(AE152+AF152))*24),"Nu a fost afectat producator/consumator")),"") -> Nu a fost afectat producator/consumator | AV152: =IF(B152="X",IF(AN152="DA",IF(AU152<6,LEN(TRIM(U152))-LEN(SUBSTITUTE(U152,CHAR(44),""))+1,0),"-"),"") -> - | AW152: =IF(B152="X",IF(AN152="DA",LEN(TRIM(U152))-LEN(SUBSTITUTE(U152,CHAR(44),""))+1,"-"),"") -> - | AX152: =IF(B152="X",IF(AN152="","Afectat sau NU?",IF(AN152="DA",((AG152+AH152)-(AE152+AF152))*24,"Nu a fost afectat producator/consumator")),"") -> Nu a fost afectat producator/consumator | AY152: =IF(B152="X",IF(AN152="DA",IF(AX152>24,IF(BA152="NU",0,LEN(TRIM(V152))-LEN(SUBSTITUTE(V152,CHAR(44),""))+1),0),"-"),"") -> - | AZ152: =IF(B152="X",IF(AN152="DA",IF(AX152>24,LEN(TRIM(V152))-LEN(SUBSTITUTE(V152,CHAR(44),""))+1,0),"-"),"") -> - | BF152: =IF(C152="X",IF(AN152="","Afectat sau NU?",IF(AN152="DA",IF(AK152="","Neinformat",NETWORKDAYS(AK152+AL152,AE152+AF152,$BS$2:$BS$14)-2),"Nu a fost afectat producator/consumator")),"") ->  | BG152: =IF(C152="X",IF(AN152="DA",IF(AND(BF152>=5,AK152<>""),LEN(TRIM(V152))-LEN(SUBSTITUTE(V152,CHAR(44),""))+1,0),"-"),"") ->  | BH152: =IF(C152="X",IF(AN152="DA",LEN(TRIM(V152))-LEN(SUBSTITUTE(V152,CHAR(44),""))+1,"-"),"") ->  | BI152: =IF(C152="X",IF(AN152="","Afectat sau NU?",IF(AN152="DA",IF(AI152="","Neinformat",NETWORKDAYS(AI152+AJ152,AE152+AF152,$BS$2:$BS$14)-2),"Nu a fost afectat producator/consumator")),"") ->  | BJ152: =IF(C152="X",IF(AN152="DA",IF(AND(BI152>=5,AI152<>""),LEN(TRIM(U152))-LEN(SUBSTITUTE(U152,CHAR(44),""))+1,0),"-"),"") ->  | BK152: =IF(C152="X",IF(AN152="DA",LEN(TRIM(U152))-LEN(SUBSTITUTE(U152,CHAR(44),""))+1,"-"),"") ->  | BL152: =IF(C152="X",IF(AN152="","Afectat sau NU?",IF(AN152="DA",((AG152+AH152)-(Z152+AA152))*24,"Nu a fost afectat producator/consumator")),"") ->  | BM152: =IF(C152="X",IF(AN152<>"DA","-",IF(AND(AN152="DA",BL152<=0),LEN(TRIM(V152))-LEN(SUBSTITUTE(V152,CHAR(44),""))+1+LEN(TRIM(U152))-LEN(SUBSTITUTE(U152,CHAR(44),""))+1,0)),"") ->  | BN152: =IF(C152="X",IF(AN152="DA",LEN(TRIM(V152))-LEN(SUBSTITUTE(V152,CHAR(44),""))+1+LEN(TRIM(U152))-LEN(SUBSTITUTE(U152,CHAR(44),""))+1,"-"),"") -> 
A153: 137 | B153: x | C153: - | D153: Deviere DN500 Onești - Adjudul Vechi și DN150 racord SRM Vrancart Adjud | E153: 174897 | F153: Adjudu Vechi | G153: Vrancea | H153: 669494.85 | I153: 517076.88 | J153: 669494.85 | K153: 517076.88 | L153: - | M153: - | N153: SM0508D0 | O153: Adjud | P153: - | Q153: - | R153: - | S153: - | T153: SM-SD001 | U153: Alpha Metal, Nova Power, Cez Vânzare, Complexul Energetic Oltenia, Crest Energy, Distrigaz Sud Rețele, Distrigaz Vest, Engie, E.on Energie, Electrocentrale București, Electrica Furnizare, Electric Planners, Energy Core, Energy Distribution, PPC Energie, PPC Energie Muntenia, Entrex, Euro Seven, Eye Mall, Premier Energy Trading, Gaz Est, Getica95, Local Gaz, Met România, Monsson, Termoenergetica București, MVM Future, Next Energy Distribution, Next Energy Partners, Premier Energy, Petrom, Gas Provider, Renovatio, Romgaz, RWE Supply, M.D.A Eergy, Solprim, Sustainable Energy, Termocentrale Constanța, Termo Calor, Tinmar, Transenergo, Termoelectrica Giurgiu, Gaz Vest Trading, Management Romania | V153: Distrigaz Sud Rețele | W153: - | X153: 2024-04-29 | Y153: 08:00:00 | Z153: 2024-04-29 | AA153: 18:00:00 | AB153: Bacău | AC153: Efectuată | AE153: 2024-04-29 | AF153: 08:00:00 | AG153: 2024-04-29 | AH153: 17:01:00 | AI153: 2024-04-29 | AJ153: 08:13:00 | AK153: 2024-04-29 | AL153: 08:04:00 | AM153: 35751/23.04.2024 | AN153: DA | AR153: 0.06666666653 | AS153: 1 | AT153: 1 | AU153: 0.2166666667 | AV153: 45 | AW153: 45 | AX153: 9.016666667 | AY153: 0 | AZ153: 0
A154: 138 | B154: x | C154: - | D154: Deviere DN500 Onești - Adjudul Vechi și DN150 racord SRM Vrancart Adjud | E154: 174879 | F154: Adjud | G154: Vrancea | H154: 669525.05 | I154: 514652.44 | J154: 669525.05 | K154: 514652.44 | L154: - | M154: - | N154: SM1018D0 | O154: SC Vrancart Adjud | P154: - | Q154: - | R154: - | S154: - | T154: SM-CF001 | U154: Premier Energy Trading | V154: SC Vrancart | W154: - | X154: 2024-04-29 | Y154: 08:00:00 | Z154: 2024-04-29 | AA154: 18:00:00 | AB154: Bacău | AC154: Efectuată | AE154: 2024-04-29 | AF154: 08:00:00 | AG154: 2024-04-29 | AH154: 17:51:00 | AI154: 2024-04-29 | AJ154: 08:10:00 | AK154: 2024-04-29 | AL154: 08:04:00 | AM154: 35751/23.04.2024 | AN154: DA | AR154: 0.06666666653 | AS154: 1 | AT154: 1 | AU154: 0.1666666667 | AV154: 1 | AW154: 1 | AX154: 9.85 | AY154: 0 | AZ154: 0
A155: 139 | B155: x | C155: - | D155: Remediere defect în SRM UM Băbana | E155: 14094 | F155: Băbana | G155: Argeș | H155: 481895.48 | I155: 373424.47 | J155: 481895.48 | K155: 373424.47 | L155: - | M155: - | N155: SM0222D0 | O155: UM Băbana | P155: - | Q155: - | R155: - | S155: - | T155: SM-CF001 | U155: Premier Energy | V155: Unitatea Militară 01714 | W155: - | X155: 2024-05-09 | Y155: 11:00:00 | Z155: 2024-05-09 | AA155: 14:00:00 | AB155: Craiova | AC155: Efectuată | AE155: 2024-05-09 | AF155: 11:00:00 | AG155: 2024-05-09 | AH155: 13:25:00 | AI155: 2024-05-09 | AJ155: 12:22:00 | AK155: 2024-05-09 | AL155: 11:09:00 | AM155: 38951/09.05.2024 | AN155: DA | AR155: =IF(B155="X",IF(AN155="","Afectat sau NU?",IF(AN155="DA",IF(((AK155+AL155)-(AE155+AF155))*24<-720,"Neinformat",((AK155+AL155)-(AE155+AF155))*24),"Nu a fost afectat producator/consumator")),"") -> 0.15 | AS155: =IF(B155="X",IF(AN155="DA",IF(AR155<6,LEN(TRIM(V155))-LEN(SUBSTITUTE(V155,CHAR(44),""))+1,0),"-"),"") -> 1 | AT155: =IF(B155="X",IF(AN155="DA",LEN(TRIM(V155))-LEN(SUBSTITUTE(V155,CHAR(44),""))+1,"-"),"") -> 1 | AU155: =IF(B155="X",IF(AN155="","Afectat sau NU?",IF(AN155="DA",IF(((AI155+AJ155)-(AE155+AF155))*24<-720,"Neinformat",((AI155+AJ155)-(AE155+AF155))*24),"Nu a fost afectat producator/consumator")),"") -> 1.366666667 | AV155: =IF(B155="X",IF(AN155="DA",IF(AU155<6,LEN(TRIM(U155))-LEN(SUBSTITUTE(U155,CHAR(44),""))+1,0),"-"),"") -> 1 | AW155: =IF(B155="X",IF(AN155="DA",LEN(TRIM(U155))-LEN(SUBSTITUTE(U155,CHAR(44),""))+1,"-"),"") -> 1 | AX155: =IF(B155="X",IF(AN155="","Afectat sau NU?",IF(AN155="DA",((AG155+AH155)-(AE155+AF155))*24,"Nu a fost afectat producator/consumator")),"") -> 2.416666667 | AY155: =IF(B155="X",IF(AN155="DA",IF(AX155>24,IF(BA155="NU",0,LEN(TRIM(V155))-LEN(SUBSTITUTE(V155,CHAR(44),""))+1),0),"-"),"") -> 0 | AZ155: =IF(B155="X",IF(AN155="DA",IF(AX155>24,LEN(TRIM(V155))-LEN(SUBSTITUTE(V155,CHAR(44),""))+1,0),"-"),"") -> 0 | BF155: =IF(C155="X",IF(AN155="","Afectat sau NU?",IF(AN155="DA",IF(AK155="","Neinformat",NETWORKDAYS(AK155+AL155,AE155+AF155,$BS$2:$BS$14)-2),"Nu a fost afectat producator/consumator")),"") ->  | BG155: =IF(C155="X",IF(AN155="DA",IF(AND(BF155>=5,AK155<>""),LEN(TRIM(V155))-LEN(SUBSTITUTE(V155,CHAR(44),""))+1,0),"-"),"") ->  | BH155: =IF(C155="X",IF(AN155="DA",LEN(TRIM(V155))-LEN(SUBSTITUTE(V155,CHAR(44),""))+1,"-"),"") ->  | BI155: =IF(C155="X",IF(AN155="","Afectat sau NU?",IF(AN155="DA",IF(AI155="","Neinformat",NETWORKDAYS(AI155+AJ155,AE155+AF155,$BS$2:$BS$14)-2),"Nu a fost afectat producator/consumator")),"") ->  | BJ155: =IF(C155="X",IF(AN155="DA",IF(AND(BI155>=5,AI155<>""),LEN(TRIM(U155))-LEN(SUBSTITUTE(U155,CHAR(44),""))+1,0),"-"),"") ->  | BK155: =IF(C155="X",IF(AN155="DA",LEN(TRIM(U155))-LEN(SUBSTITUTE(U155,CHAR(44),""))+1,"-"),"") ->  | BL155: =IF(C155="X",IF(AN155="","Afectat sau NU?",IF(AN155="DA",((AG155+AH155)-(Z155+AA155))*24,"Nu a fost afectat producator/consumator")),"") ->  | BM155: =IF(C155="X",IF(AN155<>"DA","-",IF(AND(AN155="DA",BL155<=0),LEN(TRIM(V155))-LEN(SUBSTITUTE(V155,CHAR(44),""))+1+LEN(TRIM(U155))-LEN(SUBSTITUTE(U155,CHAR(44),""))+1,0)),"") ->  | BN155: =IF(C155="X",IF(AN155="DA",LEN(TRIM(V155))-LEN(SUBSTITUTE(V155,CHAR(44),""))+1+LEN(TRIM(U155))-LEN(SUBSTITUTE(U155,CHAR(44),""))+1,"-"),"") -> 
A156: 140 | B156: x | C156: - | D156: Deviere DN100 racord SRM Fărăoani | E156: 22479 | F156: Fărăoani | G156: Bacău | H156: 647723.15 | I156: 550370.56 | J156: 647723.15 | K156: 550370.56 | L156: - | M156: - | N156: SM1337D0 | O156: Fărăoani | P156: - | Q156: - | R156: - | S156: - | T156: SM-SD001 | U156: Nova Power, Premier Energy Furnizare, Engie România, E.on Energie, PPC Energie, PPC Energie Muntenia, Premier Energy Trading, Mihoc Oil, Met România, Premier Energy, Petrom, Romgaz | V156: Mihoc Oil | W156: - | X156: 2024-05-14 | Y156: 08:10:00 | Z156: 2024-05-14 | AA156: 18:00:00 | AB156: Bacău | AC156: Efectuată | AE156: 2024-05-14 | AF156: 08:10:00 | AG156: 2024-05-14 | AH156: 17:24:00 | AI156: 2024-05-14 | AJ156: 08:43:00 | AK156: 2024-05-14 | AL156: 08:12:00 | AM156: 39490/10.05.2024 | AN156: DA | AR156: =IF(B156="X",IF(AN156="","Afectat sau NU?",IF(AN156="DA",IF(((AK156+AL156)-(AE156+AF156))*24<-720,"Neinformat",((AK156+AL156)-(AE156+AF156))*24),"Nu a fost afectat producator/consumator")),"") -> 0.03333333327 | AS156: =IF(B156="X",IF(AN156="DA",IF(AR156<6,LEN(TRIM(V156))-LEN(SUBSTITUTE(V156,CHAR(44),""))+1,0),"-"),"") -> 1 | AT156: =IF(B156="X",IF(AN156="DA",LEN(TRIM(V156))-LEN(SUBSTITUTE(V156,CHAR(44),""))+1,"-"),"") -> 1 | AU156: =IF(B156="X",IF(AN156="","Afectat sau NU?",IF(AN156="DA",IF(((AI156+AJ156)-(AE156+AF156))*24<-720,"Neinformat",((AI156+AJ156)-(AE156+AF156))*24),"Nu a fost afectat producator/consumator")),"") -> 0.5499999999 | AV156: =IF(B156="X",IF(AN156="DA",IF(AU156<6,LEN(TRIM(U156))-LEN(SUBSTITUTE(U156,CHAR(44),""))+1,0),"-"),"") -> 12 | AW156: =IF(B156="X",IF(AN156="DA",LEN(TRIM(U156))-LEN(SUBSTITUTE(U156,CHAR(44),""))+1,"-"),"") -> 12 | AX156: =IF(B156="X",IF(AN156="","Afectat sau NU?",IF(AN156="DA",((AG156+AH156)-(AE156+AF156))*24,"Nu a fost afectat producator/consumator")),"") -> 9.233333333 | AY156: =IF(B156="X",IF(AN156="DA",IF(AX156>24,IF(BA156="NU",0,LEN(TRIM(V156))-LEN(SUBSTITUTE(V156,CHAR(44),""))+1),0),"-"),"") -> 0 | AZ156: =IF(B156="X",IF(AN156="DA",IF(AX156>24,LEN(TRIM(V156))-LEN(SUBSTITUTE(V156,CHAR(44),""))+1,0),"-"),"") -> 0 | BF156: =IF(C156="X",IF(AN156="","Afectat sau NU?",IF(AN156="DA",IF(AK156="","Neinformat",NETWORKDAYS(AK156+AL156,AE156+AF156,$BS$2:$BS$14)-2),"Nu a fost afectat producator/consumator")),"") ->  | BG156: =IF(C156="X",IF(AN156="DA",IF(AND(BF156>=5,AK156<>""),LEN(TRIM(V156))-LEN(SUBSTITUTE(V156,CHAR(44),""))+1,0),"-"),"") ->  | BH156: =IF(C156="X",IF(AN156="DA",LEN(TRIM(V156))-LEN(SUBSTITUTE(V156,CHAR(44),""))+1,"-"),"") ->  | BI156: =IF(C156="X",IF(AN156="","Afectat sau NU?",IF(AN156="DA",IF(AI156="","Neinformat",NETWORKDAYS(AI156+AJ156,AE156+AF156,$BS$2:$BS$14)-2),"Nu a fost afectat producator/consumator")),"") ->  | BJ156: =IF(C156="X",IF(AN156="DA",IF(AND(BI156>=5,AI156<>""),LEN(TRIM(U156))-LEN(SUBSTITUTE(U156,CHAR(44),""))+1,0),"-"),"") ->  | BK156: =IF(C156="X",IF(AN156="DA",LEN(TRIM(U156))-LEN(SUBSTITUTE(U156,CHAR(44),""))+1,"-"),"") ->  | BL156: =IF(C156="X",IF(AN156="","Afectat sau NU?",IF(AN156="DA",((AG156+AH156)-(Z156+AA156))*24,"Nu a fost afectat producator/consumator")),"") ->  | BM156: =IF(C156="X",IF(AN156<>"DA","-",IF(AND(AN156="DA",BL156<=0),LEN(TRIM(V156))-LEN(SUBSTITUTE(V156,CHAR(44),""))+1+LEN(TRIM(U156))-LEN(SUBSTITUTE(U156,CHAR(44),""))+1,0)),"") ->  | BN156: =IF(C156="X",IF(AN156="DA",LEN(TRIM(V156))-LEN(SUBSTITUTE(V156,CHAR(44),""))+1+LEN(TRIM(U156))-LEN(SUBSTITUTE(U156,CHAR(44),""))+1,"-"),"") -> 
A157: 141 | B157: x | C157: - | D157: Sistematizare SNT pe DN500 Turcinești - Ișalnița, zona Turburea | E157: 81834 | F157: Bibești | G157: Gorj | H157: 381014.7 | I157: 363384.29 | J157: 381014.7 | K157: 363384.29 | L157: - | M157: - | N157: - | O157: - | P157: - | Q157: - | R157: PM0196 | S157: Bibești | T157: PM-PP001 | U157: Romgaz, Amromco | V157: Romgaz, Amromco | W157: - | X157: 2024-05-14 | Y157: 08:30:00 | Z157: 2024-05-14 | AA157: 20:30:00 | AB157: Craiova | AC157: Efectuată | AE157: 2024-05-14 | AF157: 08:30:00 | AG157: 2024-05-14 | AH157: 16:55:00 | AI157: 2024-05-14 | AJ157: 08:47:00 | AK157: 2024-05-14 | AL157: 08:41:00 | AM157: 39449/10.05.2024 | AN157: DA | AR157: 0.1833333334 | AS157: 2 | AT157: 2 | AU157: 0.2833333334 | AV157: 2 | AW157: 2 | AX157: 8.416666667 | AY157: 0 | AZ157: 0
A158: 142 | B158: x | C158: - | D158: Sistematizare SNT pe DN500 Turcinești - Ișalnița, zona Turburea | E158: 72418 | F158: Ghercești | G158: Dolj | H158: 411336.78 | I158: 315622.86 | J158: 411336.78 | K158: 315622.86 | L158: - | M158: - | N158: - | O158: - | P158: PM0275 | Q158: Stația Centrală Ghercești | R158: - | S158: - | T158: VPM01 | U158: Alpha Metal, Nova Power, Premier Energy Furnizare, CPL Concordia, Distrigaz Vest, Engie România, E.on Energie, Energy Distribution, PPC Energie, PPC Energie Muntenia, Euro Seven, Eye Mall, Premier Energy Trading, Gaz Est, Instant Construct, Megaconstruct, Met Austria, Mihoc Oil, Met România, Next Energy Distribution, Premier Energy, Petrom, Premier Energy Hungary, Romgaz, RWE Supply, Sustainable Energy, Tinmar, Termoelectrica Giurgiu | V158: Depogaz Ploiești | W158: - | X158: 2024-05-14 | Y158: 08:30:00 | Z158: 2024-05-14 | AA158: 20:30:00 | AB158: Craiova | AC158: Efectuată | AE158: 2024-05-14 | AF158: 08:30:00 | AG158: 2024-05-14 | AH158: 16:55:00 | AI158: 2024-05-14 | AJ158: 08:50:00 | AK158: 2024-05-14 | AL158: 08:42:00 | AM158: 39449/10.05.2024 | AN158: NU | AR158: Nu a fost afectat producator/consumator | AS158: - | AT158: - | AU158: Nu a fost afectat producator/consumator | AV158: - | AW158: - | AX158: Nu a fost afectat producator/consumator | AY158: - | AZ158: -
A159: 143 | B159: x | C159: - | D159: Înlocuire tronson pe DN500 Onești - Racova - Gherăești, Fir II | E159: 122472 | F159: Dulcești | G159: Neamț | H159: 639482.31 | I159: 608448.7 | J159: 639482.31 | K159: 608448.7 | L159: - | M159: - | N159: SM0469D0 | O159: Dulcești | P159: - | Q159: - | R159: - | S159: - | T159: SM-SD001 | U159: Nova Power, Premier Energy Furnizare, Colterm, CPL Concordia, Delgaz, Design Proiect, Distrigaz Vest, Engie România, E.on Energie, Electrica Furnizare, Electric Planners, Energy Core, Energy Distribution, PPC Energie, PPC Energie Muntenia, Entrex Services, Eye Mall, Premier Energy Trading, Gaz Est, Gazmir, Getica95, Local Gaz, Mihoc Oil, Met România, MVM Future, Next Energy Distribution, Premier Energy, Petrom, Prisma Serv, Gas Provider, Renovatio, Romgaz, RWE Supply, MDA Energy, Solprim, Tetarom, Tinmar, Transenergo, Gaz Vest Trading | V159: Delgaz Grid | W159: - | X159: 2024-05-16 | Y159: 08:00:00 | Z159: 2024-05-16 | AA159: 19:00:00 | AB159: Bacău | AC159: Efectuată | AE159: 2024-05-16 | AF159: 08:00:00 | AG159: 2024-05-16 | AH159: 17:04:00 | AI159: 2024-05-16 | AJ159: 08:12:00 | AK159: 2024-05-16 | AL159: 08:01:00 | AM159: 40739/15.05.2024 | AN159: DA | AR159: 0.01666666655 | AS159: 1 | AT159: 1 | AU159: 0.2 | AV159: 39 | AW159: 39 | AX159: 9.066666667 | AY159: 0 | AZ159: 0
A160: 144 | B160: x | C160: - | D160: Înlocuire tronson pe DN500 Onești - Racova - Gherăești, Fir II | E160: 120913 | F160: Simionești | G160: Neamț | H160: 641447.97 | I160: 609975.44 | J160: 641447.97 | K160: 609975.44 | L160: - | M160: - | N160: SM0957D0 | O160: Simionești | P160: - | Q160: - | R160: - | S160: - | T160: SM-SD001 | U160: Nova Power, Premier Energy Furnizare, Cordun Gaz, Engie România, E.on Energie, Electrica Furnizare, PPC Energie, PPC Energie Muntenia, Premier Energy Trading, Gaz Est, Premier Energy, Petrom, Romgaz | V160: Cordun Gaz | W160: - | X160: 2024-05-16 | Y160: 08:00:00 | Z160: 2024-05-16 | AA160: 19:00:00 | AB160: Bacău | AC160: Efectuată | AE160: 2024-05-16 | AF160: 08:00:00 | AG160: 2024-05-16 | AH160: 17:37:00 | AI160: 2024-05-16 | AJ160: 08:07:00 | AK160: 2024-05-16 | AL160: 08:02:00 | AM160: 40739/15.05.2024 | AN160: DA | AR160: 0.03333333327 | AS160: 1 | AT160: 1 | AU160: 0.1166666665 | AV160: 13 | AW160: 13 | AX160: 9.616666667 | AY160: 0 | AZ160: 0
A161: 145 | B161: x | C161: - | D161: Înlocuire tronson pe DN500 Onești - Racova - Gherăești, Fir II | E161: 120913 | F161: Simionești | G161: Neamț | H161: 641447.97 | I161: 609975.44 | J161: 641447.97 | K161: 609975.44 | L161: - | M161: - | N161: SM0957D1 | O161: Simionești II | P161: - | Q161: - | R161: - | S161: - | T161: SM-SD001 | U161: Nova Power, Premier Energy Furnizare, Cordun Gaz, Engie România, E.on Energie, Electrica Furnizare, PPC Energie, PPC Energie Muntenia, Premier Energy Trading, Gaz Est, Premier Energy, Petrom, Romgaz | V161: Cordun Gaz | W161: - | X161: 2024-05-16 | Y161: 08:00:00 | Z161: 2024-05-16 | AA161: 19:00:00 | AB161: Bacău | AC161: Efectuată | AE161: 2024-05-16 | AF161: 08:00:00 | AG161: 2024-05-16 | AH161: 17:37:00 | AI161: 2024-05-16 | AJ161: 08:10:00 | AK161: 2024-05-16 | AL161: 08:02:00 | AM161: 40739/15.05.2024 | AN161: DA | AR161: 0.03333333327 | AS161: 1 | AT161: 1 | AU161: 0.1666666667 | AV161: 13 | AW161: 13 | AX161: 9.616666667 | AY161: 0 | AZ161: 0
A162: 146 | B162: - | C162: x | D162: Înlocuire flanșă electroizolntă cu îmbinare electroizolantă monobloc la SRM Noul Român | E162: 143986 | F162: Noul Român | G162: Sibiu | H162: 467411.63 | I162: 479214.21 | J162: 467411.63 | K162: 479214.21 | L162: - | M162: - | N162: SM0794D0 | O162: Noul Român | P162: - | Q162: - | R162: - | S162: - | T162: SM-SD001 | V162: Delgaz Grid | W162: iulie - august 2024 | AB162: Mediaș | AP162: Forțe proprii | AR162: =IF(B162="X",IF(AN162="","Afectat sau NU?",IF(AN162="DA",IF(((AK162+AL162)-(AE162+AF162))*24<-720,"Neinformat",((AK162+AL162)-(AE162+AF162))*24),"Nu a fost afectat producator/consumator")),"") ->  | AS162: =IF(B162="X",IF(AN162="DA",IF(AR162<6,LEN(TRIM(V162))-LEN(SUBSTITUTE(V162,CHAR(44),""))+1,0),"-"),"") ->  | AT162: =IF(B162="X",IF(AN162="DA",LEN(TRIM(V162))-LEN(SUBSTITUTE(V162,CHAR(44),""))+1,"-"),"") ->  | AU162: =IF(B162="X",IF(AN162="","Afectat sau NU?",IF(AN162="DA",IF(((AI162+AJ162)-(AE162+AF162))*24<-720,"Neinformat",((AI162+AJ162)-(AE162+AF162))*24),"Nu a fost afectat producator/consumator")),"") ->  | AV162: =IF(B162="X",IF(AN162="DA",IF(AU162<6,LEN(TRIM(U162))-LEN(SUBSTITUTE(U162,CHAR(44),""))+1,0),"-"),"") ->  | AW162: =IF(B162="X",IF(AN162="DA",LEN(TRIM(U162))-LEN(SUBSTITUTE(U162,CHAR(44),""))+1,"-"),"") ->  | AX162: =IF(B162="X",IF(AN162="","Afectat sau NU?",IF(AN162="DA",((AG162+AH162)-(AE162+AF162))*24,"Nu a fost afectat producator/consumator")),"") ->  | AY162: =IF(B162="X",IF(AN162="DA",IF(AX162>24,IF(BA162="NU",0,LEN(TRIM(V162))-LEN(SUBSTITUTE(V162,CHAR(44),""))+1),0),"-"),"") ->  | AZ162: =IF(B162="X",IF(AN162="DA",IF(AX162>24,LEN(TRIM(V162))-LEN(SUBSTITUTE(V162,CHAR(44),""))+1,0),"-"),"") ->  | BF162: =IF(C162="X",IF(AN162="","Afectat sau NU?",IF(AN162="DA",IF(AK162="","Neinformat",NETWORKDAYS(AK162+AL162,AE162+AF162,$BS$2:$BS$14)-2),"Nu a fost afectat producator/consumator")),"") -> Afectat sau NU? | BG162: =IF(C162="X",IF(AN162="DA",IF(AND(BF162>=5,AK162<>""),LEN(TRIM(V162))-LEN(SUBSTITUTE(V162,CHAR(44),""))+1,0),"-"),"") -> - | BH162: =IF(C162="X",IF(AN162="DA",LEN(TRIM(V162))-LEN(SUBSTITUTE(V162,CHAR(44),""))+1,"-"),"") -> - | BI162: =IF(C162="X",IF(AN162="","Afectat sau NU?",IF(AN162="DA",IF(AI162="","Neinformat",NETWORKDAYS(AI162+AJ162,AE162+AF162,$BS$2:$BS$14)-2),"Nu a fost afectat producator/consumator")),"") -> Afectat sau NU? | BJ162: =IF(C162="X",IF(AN162="DA",IF(AND(BI162>=5,AI162<>""),LEN(TRIM(U162))-LEN(SUBSTITUTE(U162,CHAR(44),""))+1,0),"-"),"") -> - | BK162: =IF(C162="X",IF(AN162="DA",LEN(TRIM(U162))-LEN(SUBSTITUTE(U162,CHAR(44),""))+1,"-"),"") -> - | BL162: =IF(C162="X",IF(AN162="","Afectat sau NU?",IF(AN162="DA",((AG162+AH162)-(Z162+AA162))*24,"Nu a fost afectat producator/consumator")),"") -> Afectat sau NU? | BM162: =IF(C162="X",IF(AN162<>"DA","-",IF(AND(AN162="DA",BL162<=0),LEN(TRIM(V162))-LEN(SUBSTITUTE(V162,CHAR(44),""))+1+LEN(TRIM(U162))-LEN(SUBSTITUTE(U162,CHAR(44),""))+1,0)),"") -> - | BN162: =IF(C162="X",IF(AN162="DA",LEN(TRIM(V162))-LEN(SUBSTITUTE(V162,CHAR(44),""))+1+LEN(TRIM(U162))-LEN(SUBSTITUTE(U162,CHAR(44),""))+1,"-"),"") -> -
A163: 147 | B163: - | C163: x | D163: Înlocuire flanșă electroizolntă cu îmbinare electroizolantă monobloc la SRM Vad | E163: 41845 | F163: Vad | G163: Brașov | H163: 511691.09 | I163: 477821.71 | J163: 511691.09 | K163: 477821.71 | L163: - | M163: - | N163: SM0021D0 | O163: Vad | P163: - | Q163: - | R163: - | S163: - | T163: SM-SD001 | V163: Distrigaz Sud Rețele | W163: iulie - august 2024 | AB163: Mediaș | AP163: Forțe proprii | AR163: =IF(B163="X",IF(AN163="","Afectat sau NU?",IF(AN163="DA",IF(((AK163+AL163)-(AE163+AF163))*24<-720,"Neinformat",((AK163+AL163)-(AE163+AF163))*24),"Nu a fost afectat producator/consumator")),"") ->  | AS163: =IF(B163="X",IF(AN163="DA",IF(AR163<6,LEN(TRIM(V163))-LEN(SUBSTITUTE(V163,CHAR(44),""))+1,0),"-"),"") ->  | AT163: =IF(B163="X",IF(AN163="DA",LEN(TRIM(V163))-LEN(SUBSTITUTE(V163,CHAR(44),""))+1,"-"),"") ->  | AU163: =IF(B163="X",IF(AN163="","Afectat sau NU?",IF(AN163="DA",IF(((AI163+AJ163)-(AE163+AF163))*24<-720,"Neinformat",((AI163+AJ163)-(AE163+AF163))*24),"Nu a fost afectat producator/consumator")),"") ->  | AV163: =IF(B163="X",IF(AN163="DA",IF(AU163<6,LEN(TRIM(U163))-LEN(SUBSTITUTE(U163,CHAR(44),""))+1,0),"-"),"") ->  | AW163: =IF(B163="X",IF(AN163="DA",LEN(TRIM(U163))-LEN(SUBSTITUTE(U163,CHAR(44),""))+1,"-"),"") ->  | AX163: =IF(B163="X",IF(AN163="","Afectat sau NU?",IF(AN163="DA",((AG163+AH163)-(AE163+AF163))*24,"Nu a fost afectat producator/consumator")),"") ->  | AY163: =IF(B163="X",IF(AN163="DA",IF(AX163>24,IF(BA163="NU",0,LEN(TRIM(V163))-LEN(SUBSTITUTE(V163,CHAR(44),""))+1),0),"-"),"") ->  | AZ163: =IF(B163="X",IF(AN163="DA",IF(AX163>24,LEN(TRIM(V163))-LEN(SUBSTITUTE(V163,CHAR(44),""))+1,0),"-"),"") ->  | BF163: =IF(C163="X",IF(AN163="","Afectat sau NU?",IF(AN163="DA",IF(AK163="","Neinformat",NETWORKDAYS(AK163+AL163,AE163+AF163,$BS$2:$BS$14)-2),"Nu a fost afectat producator/consumator")),"") -> Afectat sau NU? | BG163: =IF(C163="X",IF(AN163="DA",IF(AND(BF163>=5,AK163<>""),LEN(TRIM(V163))-LEN(SUBSTITUTE(V163,CHAR(44),""))+1,0),"-"),"") -> - | BH163: =IF(C163="X",IF(AN163="DA",LEN(TRIM(V163))-LEN(SUBSTITUTE(V163,CHAR(44),""))+1,"-"),"") -> - | BI163: =IF(C163="X",IF(AN163="","Afectat sau NU?",IF(AN163="DA",IF(AI163="","Neinformat",NETWORKDAYS(AI163+AJ163,AE163+AF163,$BS$2:$BS$14)-2),"Nu a fost afectat producator/consumator")),"") -> Afectat sau NU? | BJ163: =IF(C163="X",IF(AN163="DA",IF(AND(BI163>=5,AI163<>""),LEN(TRIM(U163))-LEN(SUBSTITUTE(U163,CHAR(44),""))+1,0),"-"),"") -> - | BK163: =IF(C163="X",IF(AN163="DA",LEN(TRIM(U163))-LEN(SUBSTITUTE(U163,CHAR(44),""))+1,"-"),"") -> - | BL163: =IF(C163="X",IF(AN163="","Afectat sau NU?",IF(AN163="DA",((AG163+AH163)-(Z163+AA163))*24,"Nu a fost afectat producator/consumator")),"") -> Afectat sau NU? | BM163: =IF(C163="X",IF(AN163<>"DA","-",IF(AND(AN163="DA",BL163<=0),LEN(TRIM(V163))-LEN(SUBSTITUTE(V163,CHAR(44),""))+1+LEN(TRIM(U163))-LEN(SUBSTITUTE(U163,CHAR(44),""))+1,0)),"") -> - | BN163: =IF(C163="X",IF(AN163="DA",LEN(TRIM(V163))-LEN(SUBSTITUTE(V163,CHAR(44),""))+1+LEN(TRIM(U163))-LEN(SUBSTITUTE(U163,CHAR(44),""))+1,"-"),"") -> -
A164: 148 | B164: x | C164: - | D164: Montarea unei linii de reglare suplimentară în SRM Porumbenii Mici | E164: 85225 | F164: Porumbenii Mici | G164: Harghita | H164: 508390.27 | I164: 530075.4 | J164: 508390.27 | K164: 530075.4 | L164: - | M164: - | N164: SM0382D0 | O164: Porumbenii Mici | P164: - | Q164: - | R164: - | S164: - | T164: SM-SD001 | U164: Nova Power, Premier Energy Furnizare, Distrigaz Vest, Engie, E.on Energie, Electrica Furnizare, Energy Core, Energy Distribution, PPC Energie, PPC Muntenia, Entrex, Euro Seven, Eye Mall, Premier Energy Trading, Gaz Est, Getica95, Local Gaz, Met România, MVM Future, Next Energy Distribution, Premier Energy, Petrom, Gas Provider, Renovatio, Romgaz, M.D.A Energy, Solprim, Tinmar, Transenergo, Gaz Vest Trading, Vimetco | V164: Premier Energy | W164: - | X164: 2024-05-28 | Y164: 09:30:00 | Z164: 2024-05-28 | AA164: 15:00:00 | AB164: Brașov | AC164: Efectuată | AE164: 2024-05-28 | AF164: 09:30:00 | AG164: 2024-05-28 | AH164: 14:53:00 | AI164: 2024-05-28 | AJ164: 10:12:00 | AK164: 2024-05-28 | AL164: 09:58:00 | AM164: 44672/28.05.2024 | AN164: DA | AR164: =IF(B164="X",IF(AN164="","Afectat sau NU?",IF(AN164="DA",IF(((AK164+AL164)-(AE164+AF164))*24<-720,"Neinformat",((AK164+AL164)-(AE164+AF164))*24),"Nu a fost afectat producator/consumator")),"") -> 0.4666666666 | AS164: =IF(B164="X",IF(AN164="DA",IF(AR164<6,LEN(TRIM(V164))-LEN(SUBSTITUTE(V164,CHAR(44),""))+1,0),"-"),"") -> 1 | AT164: =IF(B164="X",IF(AN164="DA",LEN(TRIM(V164))-LEN(SUBSTITUTE(V164,CHAR(44),""))+1,"-"),"") -> 1 | AU164: =IF(B164="X",IF(AN164="","Afectat sau NU?",IF(AN164="DA",IF(((AI164+AJ164)-(AE164+AF164))*24<-720,"Neinformat",((AI164+AJ164)-(AE164+AF164))*24),"Nu a fost afectat producator/consumator")),"") -> 0.7 | AV164: =IF(B164="X",IF(AN164="DA",IF(AU164<6,LEN(TRIM(U164))-LEN(SUBSTITUTE(U164,CHAR(44),""))+1,0),"-"),"") -> 31 | AW164: =IF(B164="X",IF(AN164="DA",LEN(TRIM(U164))-LEN(SUBSTITUTE(U164,CHAR(44),""))+1,"-"),"") -> 31 | AX164: =IF(B164="X",IF(AN164="","Afectat sau NU?",IF(AN164="DA",((AG164+AH164)-(AE164+AF164))*24,"Nu a fost afectat producator/consumator")),"") -> 5.383333333 | AY164: =IF(B164="X",IF(AN164="DA",IF(AX164>24,IF(BA164="NU",0,LEN(TRIM(V164))-LEN(SUBSTITUTE(V164,CHAR(44),""))+1),0),"-"),"") -> 0 | AZ164: =IF(B164="X",IF(AN164="DA",IF(AX164>24,LEN(TRIM(V164))-LEN(SUBSTITUTE(V164,CHAR(44),""))+1,0),"-"),"") -> 0 | BF164: =IF(C164="X",IF(AN164="","Afectat sau NU?",IF(AN164="DA",IF(AK164="","Neinformat",NETWORKDAYS(AK164+AL164,AE164+AF164,$BS$2:$BS$14)-2),"Nu a fost afectat producator/consumator")),"") ->  | BG164: =IF(C164="X",IF(AN164="DA",IF(AND(BF164>=5,AK164<>""),LEN(TRIM(V164))-LEN(SUBSTITUTE(V164,CHAR(44),""))+1,0),"-"),"") ->  | BH164: =IF(C164="X",IF(AN164="DA",LEN(TRIM(V164))-LEN(SUBSTITUTE(V164,CHAR(44),""))+1,"-"),"") ->  | BI164: =IF(C164="X",IF(AN164="","Afectat sau NU?",IF(AN164="DA",IF(AI164="","Neinformat",NETWORKDAYS(AI164+AJ164,AE164+AF164,$BS$2:$BS$14)-2),"Nu a fost afectat producator/consumator")),"") ->  | BJ164: =IF(C164="X",IF(AN164="DA",IF(AND(BI164>=5,AI164<>""),LEN(TRIM(U164))-LEN(SUBSTITUTE(U164,CHAR(44),""))+1,0),"-"),"") ->  | BK164: =IF(C164="X",IF(AN164="DA",LEN(TRIM(U164))-LEN(SUBSTITUTE(U164,CHAR(44),""))+1,"-"),"") ->  | BL164: =IF(C164="X",IF(AN164="","Afectat sau NU?",IF(AN164="DA",((AG164+AH164)-(Z164+AA164))*24,"Nu a fost afectat producator/consumator")),"") ->  | BM164: =IF(C164="X",IF(AN164<>"DA","-",IF(AND(AN164="DA",BL164<=0),LEN(TRIM(V164))-LEN(SUBSTITUTE(V164,CHAR(44),""))+1+LEN(TRIM(U164))-LEN(SUBSTITUTE(U164,CHAR(44),""))+1,0)),"") ->  | BN164: =IF(C164="X",IF(AN164="DA",LEN(TRIM(V164))-LEN(SUBSTITUTE(V164,CHAR(44),""))+1+LEN(TRIM(U164))-LEN(SUBSTITUTE(U164,CHAR(44),""))+1,"-"),"") -> 
A165: 149 | B165: x | C165: - | D165: Montarea unei linii de reglare suplimentară în SRM Rugănești | E165: 86106 | F165: Rugănești | G165: Harghita | H165: 504957.75 | I165: 533202.31 | J165: 504957.75 | K165: 533202.31 | L165: - | M165: - | N165: SM0401D0 | O165: Rugănești | P165: - | Q165: - | R165: - | S165: - | T165: SM-SD001 | U165: Nova Power, Premier Energy Furnizare, Distrigaz Vest, Engie, E.on Energie, Electrica Furnizare, Energy Core, Energy Distribution, PPC Energie, PPC Muntenia, Entrex, Euro Seven, Eye Mall, Premier Energy Trading, Gaz Est, Getica95, Local Gaz, Met România, MVM Future, Next Energy Distribution, Premier Energy, Petrom, Gas Provider, Renovatio, Romgaz, M.D.A Energy, Solprim, Tinmar, Transenergo, Gaz Vest Trading, Vimetco | V165: Premier Energy | W165: - | X165: 2024-05-29 | Y165: 09:00:00 | Z165: 2024-05-29 | AA165: 15:00:00 | AB165: Brașov | AC165: Efectuată | AE165: 2024-05-29 | AF165: 09:00:00 | AG165: 2024-05-29 | AH165: 14:10:00 | AI165: 2024-05-29 | AJ165: 09:21:00 | AK165: 2024-05-29 | AL165: 09:14:00 | AM165: 45001/28.05.2024 | AN165: DA | AR165: =IF(B165="X",IF(AN165="","Afectat sau NU?",IF(AN165="DA",IF(((AK165+AL165)-(AE165+AF165))*24<-720,"Neinformat",((AK165+AL165)-(AE165+AF165))*24),"Nu a fost afectat producator/consumator")),"") -> 0.2333333334 | AS165: =IF(B165="X",IF(AN165="DA",IF(AR165<6,LEN(TRIM(V165))-LEN(SUBSTITUTE(V165,CHAR(44),""))+1,0),"-"),"") -> 1 | AT165: =IF(B165="X",IF(AN165="DA",LEN(TRIM(V165))-LEN(SUBSTITUTE(V165,CHAR(44),""))+1,"-"),"") -> 1 | AU165: =IF(B165="X",IF(AN165="","Afectat sau NU?",IF(AN165="DA",IF(((AI165+AJ165)-(AE165+AF165))*24<-720,"Neinformat",((AI165+AJ165)-(AE165+AF165))*24),"Nu a fost afectat producator/consumator")),"") -> 0.3499999999 | AV165: =IF(B165="X",IF(AN165="DA",IF(AU165<6,LEN(TRIM(U165))-LEN(SUBSTITUTE(U165,CHAR(44),""))+1,0),"-"),"") -> 31 | AW165: =IF(B165="X",IF(AN165="DA",LEN(TRIM(U165))-LEN(SUBSTITUTE(U165,CHAR(44),""))+1,"-"),"") -> 31 | AX165: =IF(B165="X",IF(AN165="","Afectat sau NU?",IF(AN165="DA",((AG165+AH165)-(AE165+AF165))*24,"Nu a fost afectat producator/consumator")),"") -> 5.166666667 | AY165: =IF(B165="X",IF(AN165="DA",IF(AX165>24,IF(BA165="NU",0,LEN(TRIM(V165))-LEN(SUBSTITUTE(V165,CHAR(44),""))+1),0),"-"),"") -> 0 | AZ165: =IF(B165="X",IF(AN165="DA",IF(AX165>24,LEN(TRIM(V165))-LEN(SUBSTITUTE(V165,CHAR(44),""))+1,0),"-"),"") -> 0 | BF165: =IF(C165="X",IF(AN165="","Afectat sau NU?",IF(AN165="DA",IF(AK165="","Neinformat",NETWORKDAYS(AK165+AL165,AE165+AF165,$BS$2:$BS$14)-2),"Nu a fost afectat producator/consumator")),"") ->  | BG165: =IF(C165="X",IF(AN165="DA",IF(AND(BF165>=5,AK165<>""),LEN(TRIM(V165))-LEN(SUBSTITUTE(V165,CHAR(44),""))+1,0),"-"),"") ->  | BH165: =IF(C165="X",IF(AN165="DA",LEN(TRIM(V165))-LEN(SUBSTITUTE(V165,CHAR(44),""))+1,"-"),"") ->  | BI165: =IF(C165="X",IF(AN165="","Afectat sau NU?",IF(AN165="DA",IF(AI165="","Neinformat",NETWORKDAYS(AI165+AJ165,AE165+AF165,$BS$2:$BS$14)-2),"Nu a fost afectat producator/consumator")),"") ->  | BJ165: =IF(C165="X",IF(AN165="DA",IF(AND(BI165>=5,AI165<>""),LEN(TRIM(U165))-LEN(SUBSTITUTE(U165,CHAR(44),""))+1,0),"-"),"") ->  | BK165: =IF(C165="X",IF(AN165="DA",LEN(TRIM(U165))-LEN(SUBSTITUTE(U165,CHAR(44),""))+1,"-"),"") ->  | BL165: =IF(C165="X",IF(AN165="","Afectat sau NU?",IF(AN165="DA",((AG165+AH165)-(Z165+AA165))*24,"Nu a fost afectat producator/consumator")),"") ->  | BM165: =IF(C165="X",IF(AN165<>"DA","-",IF(AND(AN165="DA",BL165<=0),LEN(TRIM(V165))-LEN(SUBSTITUTE(V165,CHAR(44),""))+1+LEN(TRIM(U165))-LEN(SUBSTITUTE(U165,CHAR(44),""))+1,0)),"") ->  | BN165: =IF(C165="X",IF(AN165="DA",LEN(TRIM(V165))-LEN(SUBSTITUTE(V165,CHAR(44),""))+1+LEN(TRIM(U165))-LEN(SUBSTITUTE(U165,CHAR(44),""))+1,"-"),"") -> 
A166: 150 | B166: x | C166: - | D166: Eliminare sudură neconformă pe DN100 racord SRM Culcea | E166: 108856 | F166: Culcea | G166: Maramureș | H166: 392408.49 | I166: 675367.47 | J166: 392408.49 | K166: 675367.47 | L166: - | M166: - | N166: SM0563D0 | O166: Culcea | P166: - | Q166: - | R166: - | S166: - | T166: SM-SD001 | U166: Nova Power, Premier Energy Furnizare, Colterm, CPL Concordia, Delgaz, Design Proiect, Distrigaz Vest, Engie România, E.on Energie, Electrica Furnizare, Electric Planners, Energy Core, Energy Distribution, PPC Energie, PPC Energie Muntenia, Entrex Services, Eye Mall, Premier Energy Trading, Gaz Est, Gazmir, Getica95, Local Gaz, Mihoc Oil, Met România, MVM Future, Next Energy Distribution, Premier Energy, Petrom, Prisma Serv, Gas Provider, Renovatio, Romgaz, RWE Supply, MDA Energy, Solprim, Tetarom, Tinmar, Transenergo, Gaz Vest Trading | V166: Delgaz Grid | W166: - | X166: 2024-06-03 | Y166: 10:50:00 | Z166: 2024-06-03 | AA166: 15:00:00 | AB166: Cluj | AC166: Efectuată | AE166: 2024-06-03 | AF166: 10:50:00 | AG166: 2024-06-03 | AH166: 13:40:00 | AI166: 2024-06-03 | AJ166: 11:03:00 | AK166: 2024-06-03 | AL166: 10:52:00 | AM166: 45674/30.05.2024 | AN166: NU | AR166: =IF(B166="X",IF(AN166="","Afectat sau NU?",IF(AN166="DA",IF(((AK166+AL166)-(AE166+AF166))*24<-720,"Neinformat",((AK166+AL166)-(AE166+AF166))*24),"Nu a fost afectat producator/consumator")),"") -> Nu a fost afectat producator/consumator | AS166: =IF(B166="X",IF(AN166="DA",IF(AR166<6,LEN(TRIM(V166))-LEN(SUBSTITUTE(V166,CHAR(44),""))+1,0),"-"),"") -> - | AT166: =IF(B166="X",IF(AN166="DA",LEN(TRIM(V166))-LEN(SUBSTITUTE(V166,CHAR(44),""))+1,"-"),"") -> - | AU166: =IF(B166="X",IF(AN166="","Afectat sau NU?",IF(AN166="DA",IF(((AI166+AJ166)-(AE166+AF166))*24<-720,"Neinformat",((AI166+AJ166)-(AE166+AF166))*24),"Nu a fost afectat producator/consumator")),"") -> Nu a fost afectat producator/consumator | AV166: =IF(B166="X",IF(AN166="DA",IF(AU166<6,LEN(TRIM(U166))-LEN(SUBSTITUTE(U166,CHAR(44),""))+1,0),"-"),"") -> - | AW166: =IF(B166="X",IF(AN166="DA",LEN(TRIM(U166))-LEN(SUBSTITUTE(U166,CHAR(44),""))+1,"-"),"") -> - | AX166: =IF(B166="X",IF(AN166="","Afectat sau NU?",IF(AN166="DA",((AG166+AH166)-(AE166+AF166))*24,"Nu a fost afectat producator/consumator")),"") -> Nu a fost afectat producator/consumator | AY166: =IF(B166="X",IF(AN166="DA",IF(AX166>24,IF(BA166="NU",0,LEN(TRIM(V166))-LEN(SUBSTITUTE(V166,CHAR(44),""))+1),0),"-"),"") -> - | AZ166: =IF(B166="X",IF(AN166="DA",IF(AX166>24,LEN(TRIM(V166))-LEN(SUBSTITUTE(V166,CHAR(44),""))+1,0),"-"),"") -> - | BF166: =IF(C166="X",IF(AN166="","Afectat sau NU?",IF(AN166="DA",IF(AK166="","Neinformat",NETWORKDAYS(AK166+AL166,AE166+AF166,$BS$2:$BS$14)-2),"Nu a fost afectat producator/consumator")),"") ->  | BG166: =IF(C166="X",IF(AN166="DA",IF(AND(BF166>=5,AK166<>""),LEN(TRIM(V166))-LEN(SUBSTITUTE(V166,CHAR(44),""))+1,0),"-"),"") ->  | BH166: =IF(C166="X",IF(AN166="DA",LEN(TRIM(V166))-LEN(SUBSTITUTE(V166,CHAR(44),""))+1,"-"),"") ->  | BI166: =IF(C166="X",IF(AN166="","Afectat sau NU?",IF(AN166="DA",IF(AI166="","Neinformat",NETWORKDAYS(AI166+AJ166,AE166+AF166,$BS$2:$BS$14)-2),"Nu a fost afectat producator/consumator")),"") ->  | BJ166: =IF(C166="X",IF(AN166="DA",IF(AND(BI166>=5,AI166<>""),LEN(TRIM(U166))-LEN(SUBSTITUTE(U166,CHAR(44),""))+1,0),"-"),"") ->  | BK166: =IF(C166="X",IF(AN166="DA",LEN(TRIM(U166))-LEN(SUBSTITUTE(U166,CHAR(44),""))+1,"-"),"") ->  | BL166: =IF(C166="X",IF(AN166="","Afectat sau NU?",IF(AN166="DA",((AG166+AH166)-(Z166+AA166))*24,"Nu a fost afectat producator/consumator")),"") ->  | BM166: =IF(C166="X",IF(AN166<>"DA","-",IF(AND(AN166="DA",BL166<=0),LEN(TRIM(V166))-LEN(SUBSTITUTE(V166,CHAR(44),""))+1+LEN(TRIM(U166))-LEN(SUBSTITUTE(U166,CHAR(44),""))+1,0)),"") ->  | BN166: =IF(C166="X",IF(AN166="DA",LEN(TRIM(V166))-LEN(SUBSTITUTE(V166,CHAR(44),""))+1+LEN(TRIM(U166))-LEN(SUBSTITUTE(U166,CHAR(44),""))+1,"-"),"") -> 
A167: 151 | B167: x | C167: - | D167: Cuplare conductă DN80 racord și SRM Ianova în conducta DN80 racord SRM Izvin | E167: 158350 | F167: Izvin | G167: Timiș | H167: 224757.04 | I167: 484415.35 | J167: 224757.04 | K167: 484415.35 | L167: - | M167: - | N167: SM0331D0 | O167: Izvin | P167: - | Q167: - | R167: - | S167: - | T167: SM-SD001 | U167: Nova Power, Premier Energy Furnizare, Distrigaz Vest, Engie, E.on Energie, Electrica Furnizare, Energy Distribution, PPC Energie, PPC Muntenia, Entrex Services, Eye Mall, Premier Energy Trading, Gaz Est, Gaz Vest, Getica95, Local Gaz, Met România, MVM Future, Premier Energy, Petrom, Gas Provider, Renovatio, Romgaz, Solprim, Tinmar, Gaz Vest Trading, | V167: Gaz Vest | W167: - | X167: 2024-06-06 | Y167: 08:10:00 | Z167: 2024-06-06 | AA167: 20:00:00 | AB167: Arad | AC167: Efectuată | AE167: 2024-06-06 | AF167: 08:10:00 | AG167: 2024-06-06 | AH167: 17:00:00 | AI167: 2024-06-06 | AJ167: 08:42:00 | AK167: 2024-06-06 | AL167: 08:36:00 | AM167: 46535/03.06.2024 | AN167: DA | AR167: =IF(B167="X",IF(AN167="","Afectat sau NU?",IF(AN167="DA",IF(((AK167+AL167)-(AE167+AF167))*24<-720,"Neinformat",((AK167+AL167)-(AE167+AF167))*24),"Nu a fost afectat producator/consumator")),"") -> 0.4333333332 | AS167: =IF(B167="X",IF(AN167="DA",IF(AR167<6,LEN(TRIM(V167))-LEN(SUBSTITUTE(V167,CHAR(44),""))+1,0),"-"),"") -> 1 | AT167: =IF(B167="X",IF(AN167="DA",LEN(TRIM(V167))-LEN(SUBSTITUTE(V167,CHAR(44),""))+1,"-"),"") -> 1 | AU167: =IF(B167="X",IF(AN167="","Afectat sau NU?",IF(AN167="DA",IF(((AI167+AJ167)-(AE167+AF167))*24<-720,"Neinformat",((AI167+AJ167)-(AE167+AF167))*24),"Nu a fost afectat producator/consumator")),"") -> 0.5333333333 | AV167: =IF(B167="X",IF(AN167="DA",IF(AU167<6,LEN(TRIM(U167))-LEN(SUBSTITUTE(U167,CHAR(44),""))+1,0),"-"),"") -> 26 | AW167: =IF(B167="X",IF(AN167="DA",LEN(TRIM(U167))-LEN(SUBSTITUTE(U167,CHAR(44),""))+1,"-"),"") -> 26 | AX167: =IF(B167="X",IF(AN167="","Afectat sau NU?",IF(AN167="DA",((AG167+AH167)-(AE167+AF167))*24,"Nu a fost afectat producator/consumator")),"") -> 8.833333333 | AY167: =IF(B167="X",IF(AN167="DA",IF(AX167>24,IF(BA167="NU",0,LEN(TRIM(V167))-LEN(SUBSTITUTE(V167,CHAR(44),""))+1),0),"-"),"") -> 0 | AZ167: =IF(B167="X",IF(AN167="DA",IF(AX167>24,LEN(TRIM(V167))-LEN(SUBSTITUTE(V167,CHAR(44),""))+1,0),"-"),"") -> 0 | BF167: =IF(C167="X",IF(AN167="","Afectat sau NU?",IF(AN167="DA",IF(AK167="","Neinformat",NETWORKDAYS(AK167+AL167,AE167+AF167,$BS$2:$BS$14)-2),"Nu a fost afectat producator/consumator")),"") ->  | BG167: =IF(C167="X",IF(AN167="DA",IF(AND(BF167>=5,AK167<>""),LEN(TRIM(V167))-LEN(SUBSTITUTE(V167,CHAR(44),""))+1,0),"-"),"") ->  | BH167: =IF(C167="X",IF(AN167="DA",LEN(TRIM(V167))-LEN(SUBSTITUTE(V167,CHAR(44),""))+1,"-"),"") ->  | BI167: =IF(C167="X",IF(AN167="","Afectat sau NU?",IF(AN167="DA",IF(AI167="","Neinformat",NETWORKDAYS(AI167+AJ167,AE167+AF167,$BS$2:$BS$14)-2),"Nu a fost afectat producator/consumator")),"") ->  | BJ167: =IF(C167="X",IF(AN167="DA",IF(AND(BI167>=5,AI167<>""),LEN(TRIM(U167))-LEN(SUBSTITUTE(U167,CHAR(44),""))+1,0),"-"),"") ->  | BK167: =IF(C167="X",IF(AN167="DA",LEN(TRIM(U167))-LEN(SUBSTITUTE(U167,CHAR(44),""))+1,"-"),"") ->  | BL167: =IF(C167="X",IF(AN167="","Afectat sau NU?",IF(AN167="DA",((AG167+AH167)-(Z167+AA167))*24,"Nu a fost afectat producator/consumator")),"") ->  | BM167: =IF(C167="X",IF(AN167<>"DA","-",IF(AND(AN167="DA",BL167<=0),LEN(TRIM(V167))-LEN(SUBSTITUTE(V167,CHAR(44),""))+1+LEN(TRIM(U167))-LEN(SUBSTITUTE(U167,CHAR(44),""))+1,0)),"") ->  | BN167: =IF(C167="X",IF(AN167="DA",LEN(TRIM(V167))-LEN(SUBSTITUTE(V167,CHAR(44),""))+1+LEN(TRIM(U167))-LEN(SUBSTITUTE(U167,CHAR(44),""))+1,"-"),"") -> 
A168: 152 | B168: x | C168: - | D168: Întrerupere accidentală SRM Câmpulung Muscel | E168: 13506 | F168: Câmpulung | G168: Argeș | H168: 509108.28 | I168: 421227.17 | J168: 509108.28 | K168: 421227.17 | L168: - | M168: - | N168: SM0213D2 | O168: SC Carmeuse Holding Câmpulung | P168: - | Q168: - | R168: - | S168: - | T168: SM-CF001 | U168: Petrom | V168: Carmeuse Holding | W168: - | X168: 2024-06-06 | Y168: 23:46:00 | Z168: 2024-06-07 | AA168: 06:00:00 | AB168: Brașov | AC168: Efectuată | AE168: 2024-06-06 | AF168: 23:46:00 | AG168: 2024-06-07 | AH168: 02:45:00 | AI168: 2024-06-07 | AJ168: 01:28:00 | AK168: 2024-06-07 | AL168: 00:42:00 | AM168: - | AN168: DA | AR168: 0.9333333334 | AS168: 1 | AT168: 1 | AU168: 1.7 | AV168: 1 | AW168: 1 | AX168: 2.983333333 | AY168: 0 | AZ168: 0
A169: 153 | B169: x | C169: - | D169: Lucrări de mentenanță la modulul de odorizare din SRM Șercaia | E169: 41827 | F169: Șercaia | G169: Brașov | H169: 510692.04 | I169: 481124.44 | J169: 510692.04 | K169: 481124.44 | L169: - | M169: - | N169: SM0019D0 | O169: Șercaia | P169: - | Q169: - | R169: - | S169: - | T169: SM-SD001 | U169: Alpha Metal, Nova Power, BTDconstruct, Premier Energy Furnizare, Complexul Energetic Oltenia, Crest Energy, Distrigaz Sud Rețele, Distrigaz Vest, Engie, E.on Energie, Electrocentrale București, Electrica Furnizare, Electric Planners, Energy Core, Energy Distribution, PPC Energie, PPC Energie Muntenia, Entrex, Euro Seven, Eye Mall, Premier Energy Trading, Gaz Est, Getica95, Local Gaz, Lord Energy, Met România, Monsson, Termoenergetica București, MVM Future, Next Energy Distribution, Next Energy Partners, Premier Energy, Petrom, Gas Provider, Renovatio, Romgaz, RWE Supply, M.D.A Eergy, Solprim, Sustainable Energy, Termocentrale Constanța, Termo Calor, Tinmar, Transenergo, Termoelectrica Giurgiu, Gaz Vest Trading, Management România | V169: Distrigaz Sud Rețele | W169: - | X169: 2024-06-07 | Y169: 09:00:00 | Z169: 2024-06-07 | AA169: 11:00:00 | AB169: Mediaș | AC169: Efectuată | AE169: 2024-06-07 | AF169: 09:00:00 | AG169: 2024-06-07 | AH169: 09:25:00 | AI169: 2024-06-07 | AJ169: 10:09:00 | AK169: 2024-06-07 | AL169: 09:09:00 | AM169: - | AN169: DA | AR169: =IF(B169="X",IF(AN169="","Afectat sau NU?",IF(AN169="DA",IF(((AK169+AL169)-(AE169+AF169))*24<-720,"Neinformat",((AK169+AL169)-(AE169+AF169))*24),"Nu a fost afectat producator/consumator")),"") -> 0.15 | AS169: =IF(B169="X",IF(AN169="DA",IF(AR169<6,LEN(TRIM(V169))-LEN(SUBSTITUTE(V169,CHAR(44),""))+1,0),"-"),"") -> 1 | AT169: =IF(B169="X",IF(AN169="DA",LEN(TRIM(V169))-LEN(SUBSTITUTE(V169,CHAR(44),""))+1,"-"),"") -> 1 | AU169: =IF(B169="X",IF(AN169="","Afectat sau NU?",IF(AN169="DA",IF(((AI169+AJ169)-(AE169+AF169))*24<-720,"Neinformat",((AI169+AJ169)-(AE169+AF169))*24),"Nu a fost afectat producator/consumator")),"") -> 1.15 | AV169: =IF(B169="X",IF(AN169="DA",IF(AU169<6,LEN(TRIM(U169))-LEN(SUBSTITUTE(U169,CHAR(44),""))+1,0),"-"),"") -> 47 | AW169: =IF(B169="X",IF(AN169="DA",LEN(TRIM(U169))-LEN(SUBSTITUTE(U169,CHAR(44),""))+1,"-"),"") -> 47 | AX169: =IF(B169="X",IF(AN169="","Afectat sau NU?",IF(AN169="DA",((AG169+AH169)-(AE169+AF169))*24,"Nu a fost afectat producator/consumator")),"") -> 0.4166666666 | AY169: =IF(B169="X",IF(AN169="DA",IF(AX169>24,IF(BA169="NU",0,LEN(TRIM(V169))-LEN(SUBSTITUTE(V169,CHAR(44),""))+1),0),"-"),"") -> 0 | AZ169: =IF(B169="X",IF(AN169="DA",IF(AX169>24,LEN(TRIM(V169))-LEN(SUBSTITUTE(V169,CHAR(44),""))+1,0),"-"),"") -> 0 | BF169: =IF(C169="X",IF(AN169="","Afectat sau NU?",IF(AN169="DA",IF(AK169="","Neinformat",NETWORKDAYS(AK169+AL169,AE169+AF169,$BS$2:$BS$14)-2),"Nu a fost afectat producator/consumator")),"") ->  | BG169: =IF(C169="X",IF(AN169="DA",IF(AND(BF169>=5,AK169<>""),LEN(TRIM(V169))-LEN(SUBSTITUTE(V169,CHAR(44),""))+1,0),"-"),"") ->  | BH169: =IF(C169="X",IF(AN169="DA",LEN(TRIM(V169))-LEN(SUBSTITUTE(V169,CHAR(44),""))+1,"-"),"") ->  | BI169: =IF(C169="X",IF(AN169="","Afectat sau NU?",IF(AN169="DA",IF(AI169="","Neinformat",NETWORKDAYS(AI169+AJ169,AE169+AF169,$BS$2:$BS$14)-2),"Nu a fost afectat producator/consumator")),"") ->  | BJ169: =IF(C169="X",IF(AN169="DA",IF(AND(BI169>=5,AI169<>""),LEN(TRIM(U169))-LEN(SUBSTITUTE(U169,CHAR(44),""))+1,0),"-"),"") ->  | BK169: =IF(C169="X",IF(AN169="DA",LEN(TRIM(U169))-LEN(SUBSTITUTE(U169,CHAR(44),""))+1,"-"),"") ->  | BL169: =IF(C169="X",IF(AN169="","Afectat sau NU?",IF(AN169="DA",((AG169+AH169)-(Z169+AA169))*24,"Nu a fost afectat producator/consumator")),"") ->  | BM169: =IF(C169="X",IF(AN169<>"DA","-",IF(AND(AN169="DA",BL169<=0),LEN(TRIM(V169))-LEN(SUBSTITUTE(V169,CHAR(44),""))+1+LEN(TRIM(U169))-LEN(SUBSTITUTE(U169,CHAR(44),""))+1,0)),"") ->  | BN169: =IF(C169="X",IF(AN169="DA",LEN(TRIM(V169))-LEN(SUBSTITUTE(V169,CHAR(44),""))+1+LEN(TRIM(U169))-LEN(SUBSTITUTE(U169,CHAR(44),""))+1,"-"),"") -> 
A170: 154 | B170: x | C170: - | D170: Punere în siguranță a conductei DN300 Aninoasa - Turceni, zona pârâului Valea lui Câine, loc. Brănești | E170: 81273 | F170: Plopșoru | G170: Gorj | H170: 374004.86 | I170: 354469.46 | J170: 374004.86 | K170: 354469.46 | L170: - | M170: - | N170: SM1166D0 | O170: Turceni | P170: - | Q170: - | R170: - | S170: - | T170: SM-SD001 | U170: Alpha Metal, Nova Power, BTDconstruct, Premier Energy Furnizare, Complexul Energetic Oltenia, Crest Energy, Distrigaz Sud Rețele, Distrigaz Vest, Engie, E.on Energie, Electrocentrale București, Electrica Furnizare, Electric Planners, Energy Core, Energy Distribution, PPC Energie, PPC Energie Muntenia, Entrex, Euro Seven, Eye Mall, Premier Energy Trading, Gaz Est, Getica95, Local Gaz, Lord Energy, Met România, Monsson, Termoenergetica București, MVM Future, Next Energy Distribution, Next Energy Partners, Premier Energy, Petrom, Gas Provider, Renovatio, Romgaz, RWE Supply, M.D.A Eergy, Solprim, Sustainable Energy, Termocentrale Constanța, Termo Calor, Tinmar, Transenergo, Termoelectrica Giurgiu, Gaz Vest Trading, Management România | V170: Distrigaz Sud Rețele | W170: - | X170: 2024-06-13 | Y170: 08:00:00 | Z170: 2024-06-13 | AA170: 17:00:00 | AB170: Craiova | AC170: Efectuată | AE170: 2024-06-13 | AF170: 08:00:00 | AG170: 2024-06-13 | AH170: 15:40:00 | AI170: 2024-06-13 | AJ170: 08:21:00 | AK170: 2024-06-13 | AL170: 08:05:00 | AM170: 49808/12.06.2024 | AN170: DA | AR170: 0.08333333326 | AS170: 1 | AT170: 1 | AU170: 0.3499999999 | AV170: 47 | AW170: 47 | AX170: 7.666666667 | AY170: 0 | AZ170: 0
A171: =A170+1 -> 155 | B171: x | C171: - | D171: Punere în siguranță a conductei DN300 Aninoasa - Turceni, zona pârâului Valea lui Câine, loc. Brănești | E171: 81273 | F171: Plopșoru | G171: Gorj | H171: 374038.85 | I171: 354421.82 | J171: 374038.85 | K171: 354421.82 | L171: - | M171: - | N171: SM1190D0 | O171: CET Turceni | P171: - | Q171: - | R171: - | S171: - | T171: SM-CF001 | U171: Complexul Energetic Oltenia | V171: Complexul Energetic Oltenia | W171: - | X171: 2024-06-13 | Y171: 08:00:00 | Z171: 2024-06-13 | AA171: 17:00:00 | AB171: Craiova | AC171: Efectuată | AE171: 2024-06-13 | AF171: 08:00:00 | AG171: 2024-06-13 | AH171: 15:40:00 | AI171: 2024-06-13 | AJ171: 08:23:00 | AK171: 2024-06-13 | AL171: 08:05:00 | AM171: 49808/12.06.2024 | AN171: DA | AR171: 0.08333333326 | AS171: 1 | AT171: 1 | AU171: 0.3833333334 | AV171: 1 | AW171: 1 | AX171: 7.666666667 | AY171: 0 | AZ171: 0
A172: 156 | B172: x | C172: - | D172: Montare robinet de ieșire DN200, filtru conic și eliminare odorizator la SRM Carei I | E172: 136535 | F172: Carei | G172: Satu Mare | H172: 311106.3 | I172: 688940.77 | J172: 311106.3 | K172: 688940.77 | L172: - | M172: - | N172: SM0589D0 | O172: Carei I | P172: - | Q172: - | R172: - | S172: - | T172: SM-SD001 | U172: Nova Power, Premier Energy Furnizare, Colterm, CPL Concordia, Delgaz, Design Proiect, Distrigaz Vest, Engie România, E.on Energie, Electrica Furnizare, Electric Planners, Energy Core, Energy Distribution, PPC Energie, PPC Energie Muntenia, Entrex Services, Eye Mall, Premier Energy Trading, Gaz Est, Gazmir, Getica95, Local Gaz, Mihoc Oil, Met România, MVM Future, Next Energy Distribution, Premier Energy, Petrom, Prisma Serv, Gas Provider, Renovatio, Romgaz, RWE Supply, MDA Energy, Solprim, Tetarom, Tinmar, Transenergo, Gaz Vest Trading | V172: Delgaz Grid | W172: - | X172: 2024-06-19 | Y172: 08:20:00 | Z172: 2024-06-19 | AA172: 18:00:00 | AB172: Cluj | AC172: Efectuată | AE172: 2024-06-19 | AF172: 08:20:00 | AG172: 2024-06-19 | AH172: 14:20:00 | AI172: 2024-06-19 | AJ172: 08:52:00 | AK172: 2024-06-19 | AL172: 08:24:00 | AM172: 50979/17.06.2024 | AN172: NU | AR172: Nu a fost afectat producator/consumator | AS172: - | AT172: - | AU172: Nu a fost afectat producator/consumator | AV172: - | AW172: - | AX172: Nu a fost afectat producator/consumator | AY172: - | AZ172: -
A173: 157 | B173: x | C173: - | D173: Eliminare separator de lichide de pe conducta DN80 racord SRM Bichiș | E173: 115780 | F173: Bichiș | G173: Mureș | H173: 429677.4 | I173: 542850.64 | J173: 429677.4 | K173: 542850.64 | L173: - | M173: - | N173: SM0671D0 | O173: Bichiș | P173: - | Q173: - | R173: - | S173: - | T173: SM-SD001 | U173: Nova Power, Premier Energy Furnizare, Colterm, CPL Concordia, Delgaz, Design Proiect, Distrigaz Vest, Engie România, E.on Energie, Electrica Furnizare, Electric Planners, Energy Core, Energy Distribution, PPC Energie, PPC Energie Muntenia, Entrex Services, Eye Mall, Premier Energy Trading, Gaz Est, Gazmir, Getica95, Local Gaz, Mihoc Oil, Met România, MVM Future, Next Energy Distribution, Premier Energy, Petrom, Prisma Serv, Gas Provider, Renovatio, Romgaz, RWE Supply, MDA Energy, Solprim, Tetarom, Tinmar, Transenergo, Gaz Vest Trading | V173: Delgaz Grid | W173: - | X173: 2024-06-27 | Y173: 09:00:00 | Z173: 2024-06-27 | AA173: 16:00:00 | AB173: Cluj | AC173: Efectuată | AE173: 2024-06-27 | AF173: 09:00:00 | AG173: 2024-06-27 | AH173: 16:00:00 | AI173: 2024-06-27 | AJ173: 09:15:00 | AK173: 2024-06-27 | AL173: 09:03:00 | AM173: 53138/25.06.2024 | AN173: NU | AR173: =IF(B173="X",IF(AN173="","Afectat sau NU?",IF(AN173="DA",IF(((AK173+AL173)-(AE173+AF173))*24<-720,"Neinformat",((AK173+AL173)-(AE173+AF173))*24),"Nu a fost afectat producator/consumator")),"") -> Nu a fost afectat producator/consumator | AS173: =IF(B173="X",IF(AN173="DA",IF(AR173<6,LEN(TRIM(V173))-LEN(SUBSTITUTE(V173,CHAR(44),""))+1,0),"-"),"") -> - | AT173: =IF(B173="X",IF(AN173="DA",LEN(TRIM(V173))-LEN(SUBSTITUTE(V173,CHAR(44),""))+1,"-"),"") -> - | AU173: =IF(B173="X",IF(AN173="","Afectat sau NU?",IF(AN173="DA",IF(((AI173+AJ173)-(AE173+AF173))*24<-720,"Neinformat",((AI173+AJ173)-(AE173+AF173))*24),"Nu a fost afectat producator/consumator")),"") -> Nu a fost afectat producator/consumator | AV173: =IF(B173="X",IF(AN173="DA",IF(AU173<6,LEN(TRIM(U173))-LEN(SUBSTITUTE(U173,CHAR(44),""))+1,0),"-"),"") -> - | AW173: =IF(B173="X",IF(AN173="DA",LEN(TRIM(U173))-LEN(SUBSTITUTE(U173,CHAR(44),""))+1,"-"),"") -> - | AX173: =IF(B173="X",IF(AN173="","Afectat sau NU?",IF(AN173="DA",((AG173+AH173)-(AE173+AF173))*24,"Nu a fost afectat producator/consumator")),"") -> Nu a fost afectat producator/consumator | AY173: =IF(B173="X",IF(AN173="DA",IF(AX173>24,IF(BA173="NU",0,LEN(TRIM(V173))-LEN(SUBSTITUTE(V173,CHAR(44),""))+1),0),"-"),"") -> - | AZ173: =IF(B173="X",IF(AN173="DA",IF(AX173>24,LEN(TRIM(V173))-LEN(SUBSTITUTE(V173,CHAR(44),""))+1,0),"-"),"") -> - | BF173: =IF(C173="X",IF(AN173="","Afectat sau NU?",IF(AN173="DA",IF(AK173="","Neinformat",NETWORKDAYS(AK173+AL173,AE173+AF173,$BS$2:$BS$14)-2),"Nu a fost afectat producator/consumator")),"") ->  | BG173: =IF(C173="X",IF(AN173="DA",IF(AND(BF173>=5,AK173<>""),LEN(TRIM(V173))-LEN(SUBSTITUTE(V173,CHAR(44),""))+1,0),"-"),"") ->  | BH173: =IF(C173="X",IF(AN173="DA",LEN(TRIM(V173))-LEN(SUBSTITUTE(V173,CHAR(44),""))+1,"-"),"") ->  | BI173: =IF(C173="X",IF(AN173="","Afectat sau NU?",IF(AN173="DA",IF(AI173="","Neinformat",NETWORKDAYS(AI173+AJ173,AE173+AF173,$BS$2:$BS$14)-2),"Nu a fost afectat producator/consumator")),"") ->  | BJ173: =IF(C173="X",IF(AN173="DA",IF(AND(BI173>=5,AI173<>""),LEN(TRIM(U173))-LEN(SUBSTITUTE(U173,CHAR(44),""))+1,0),"-"),"") ->  | BK173: =IF(C173="X",IF(AN173="DA",LEN(TRIM(U173))-LEN(SUBSTITUTE(U173,CHAR(44),""))+1,"-"),"") ->  | BL173: =IF(C173="X",IF(AN173="","Afectat sau NU?",IF(AN173="DA",((AG173+AH173)-(Z173+AA173))*24,"Nu a fost afectat producator/consumator")),"") ->  | BM173: =IF(C173="X",IF(AN173<>"DA","-",IF(AND(AN173="DA",BL173<=0),LEN(TRIM(V173))-LEN(SUBSTITUTE(V173,CHAR(44),""))+1+LEN(TRIM(U173))-LEN(SUBSTITUTE(U173,CHAR(44),""))+1,0)),"") ->  | BN173: =IF(C173="X",IF(AN173="DA",LEN(TRIM(V173))-LEN(SUBSTITUTE(V173,CHAR(44),""))+1+LEN(TRIM(U173))-LEN(SUBSTITUTE(U173,CHAR(44),""))+1,"-"),"") -> 
A174: 158 | B174: - | C174: x | D174: Punere în siguranță a conductei de transport gaze naturale DN300 Sibiu - Cisnădie la traversarea aeriană a pârâului Argintului, zona SRM Transilvania Automobile, județul Sibiu | E174: 143566 | F174: Șelimbăr | G174: Sibiu | H174: 438109.44 | I174: 473474.75 | J174: 438109.44 | K174: 473474.75 | L174: - | M174: - | N174: SM0732D0 | O174: Șelimbăr | P174: - | Q174: - | R174: - | S174: - | T174: SM-SD001 | V174: Delgaz Grid | W174: august - septembrie 2024 | AB174: Mediaș | AP174: PMDI 2024-2026 Anexa3_A.2.23 | AR174: =IF(B174="X",IF(AN174="","Afectat sau NU?",IF(AN174="DA",IF(((AK174+AL174)-(AE174+AF174))*24<-720,"Neinformat",((AK174+AL174)-(AE174+AF174))*24),"Nu a fost afectat producator/consumator")),"") ->  | AS174: =IF(B174="X",IF(AN174="DA",IF(AR174<6,LEN(TRIM(V174))-LEN(SUBSTITUTE(V174,CHAR(44),""))+1,0),"-"),"") ->  | AT174: =IF(B174="X",IF(AN174="DA",LEN(TRIM(V174))-LEN(SUBSTITUTE(V174,CHAR(44),""))+1,"-"),"") ->  | AU174: =IF(B174="X",IF(AN174="","Afectat sau NU?",IF(AN174="DA",IF(((AI174+AJ174)-(AE174+AF174))*24<-720,"Neinformat",((AI174+AJ174)-(AE174+AF174))*24),"Nu a fost afectat producator/consumator")),"") ->  | AV174: =IF(B174="X",IF(AN174="DA",IF(AU174<6,LEN(TRIM(U174))-LEN(SUBSTITUTE(U174,CHAR(44),""))+1,0),"-"),"") ->  | AW174: =IF(B174="X",IF(AN174="DA",LEN(TRIM(U174))-LEN(SUBSTITUTE(U174,CHAR(44),""))+1,"-"),"") ->  | AX174: =IF(B174="X",IF(AN174="","Afectat sau NU?",IF(AN174="DA",((AG174+AH174)-(AE174+AF174))*24,"Nu a fost afectat producator/consumator")),"") ->  | AY174: =IF(B174="X",IF(AN174="DA",IF(AX174>24,IF(BA174="NU",0,LEN(TRIM(V174))-LEN(SUBSTITUTE(V174,CHAR(44),""))+1),0),"-"),"") ->  | AZ174: =IF(B174="X",IF(AN174="DA",IF(AX174>24,LEN(TRIM(V174))-LEN(SUBSTITUTE(V174,CHAR(44),""))+1,0),"-"),"") ->  | BF174: Afectat sau NU? | BG174: =IF(C174="X",IF(AN174="DA",IF(AND(BF174>=5,AK174<>""),LEN(TRIM(V174))-LEN(SUBSTITUTE(V174,CHAR(44),""))+1,0),"-"),"") -> - | BH174: =IF(C174="X",IF(AN174="DA",LEN(TRIM(V174))-LEN(SUBSTITUTE(V174,CHAR(44),""))+1,"-"),"") -> - | BI174: Afectat sau NU? | BJ174: =IF(C174="X",IF(AN174="DA",IF(AND(BI174>=5,AI174<>""),LEN(TRIM(U174))-LEN(SUBSTITUTE(U174,CHAR(44),""))+1,0),"-"),"") -> - | BK174: =IF(C174="X",IF(AN174="DA",LEN(TRIM(U174))-LEN(SUBSTITUTE(U174,CHAR(44),""))+1,"-"),"") -> - | BL174: =IF(C174="X",IF(AN174="","Afectat sau NU?",IF(AN174="DA",((AG174+AH174)-(Z174+AA174))*24,"Nu a fost afectat producator/consumator")),"") -> Afectat sau NU? | BM174: =IF(C174="X",IF(AN174<>"DA","-",IF(AND(AN174="DA",BL174<=0),LEN(TRIM(V174))-LEN(SUBSTITUTE(V174,CHAR(44),""))+1+LEN(TRIM(U174))-LEN(SUBSTITUTE(U174,CHAR(44),""))+1,0)),"") -> - | BN174: =IF(C174="X",IF(AN174="DA",LEN(TRIM(V174))-LEN(SUBSTITUTE(V174,CHAR(44),""))+1+LEN(TRIM(U174))-LEN(SUBSTITUTE(U174,CHAR(44),""))+1,"-"),"") -> -
